Workbook

Sheet Daily
A1: Date | B1: Year | C1: Month | D1: AvgTemp | E1: HDD | F1: CDD | G1: RNEL | H1: Sales | I1: RainFall | L1: Year | M1: Month | N1: Sum of HDD | O1: Sum of CDD | P1: Sum of RNEL | Q1: Sum of Sales | R1: Sum of RainFall | AA1: Fcst22 | AB1: Month | AC1: BC HDD | AD1: BC CDD | AE1: CAL HDD | AF1: CAL CDD
A2: 2021-11-01 | B2: =YEAR(A2) -> 2021 | C2: 11 | D2: 66.5 | E2: =IF(D2<65,65-D2,0) -> 0 | F2: =IF(D2>65,D2-65,0) -> 1.5 | I2: 0 | J2: =+Y15 -> 0 | L2: (blank) | M2: (blank) | X2: Peak | Y2: Estimated | AB2: 1 | AC2: 148 | AD2: 75 | AE2: 172.35 | AF2: 54.9
A3: =+A2+1 -> 2021-11-02 | B3: =YEAR(A3) -> 2021 | C3: 11 | D3: 74.5 | E3: 0 | F3: 9.5 | I3: 0 | L3: 2021 | M3: 11 | N3: 26 | O3: 128 | R3: 0 | X3: Demand | Y3: Energy | AB3: 2 | AC3: 136 | AD3: 54 | AE3: 93.6 | AF3: 81.7
A4: =+A3+1 -> 2021-11-03 | B4: 2021 | C4: 11 | D4: 76.5 | E4: 0 | F4: 11.5 | I4: 0 | L4: 2021 | M4: 12 | N4: 9.5 | O4: 212.5 | R4: 0 | X4: Losses | Y4: Losses | AB4: 3 | AC4: 65 | AD4: 111 | AE4: 46 | AF4: 156.65
A5: 2021-11-04 | B5: 2021 | C5: 11 | D5: 74 | E5: 0 | F5: 9 | I5: 0 | L5: 2022 | M5: 1 | N5: 133.5 | O5: 60 | R5: 1.465 | W5: 1 | X5: 0.07797691891 | Y5: =+X5/X$17*Y$17 -> 0 | AB5: 4 | AC5: 22 | AD5: 200 | AE5: 4.85 | AF5: 272
A6: 2021-11-05 | B6: 2021 | C6: 11 | D6: 65 | E6: 0 | F6: 0 | I6: 0 | L6: 2022 | M6: 2 | N6: 47.5 | O6: 148.5 | R6: 0.622 | W6: =+W5+1 -> 2 | X6: 0.0685935334 | Y6: =+X6/X$17*Y$17 -> 0 | AB6: 5 | AC6: 0 | AD6: 332 | AE6: 0 | AF6: 439.1
A7: 2021-11-06 | B7: 2021 | C7: 11 | D7: 61 | E7: 4 | F7: 0 | I7: 0 | L7: 2022 | M7: 3 | N7: 11 | O7: 287.5 | R7: 2.912 | W7: =+W6+1 -> 3 | X7: 0.06630422922 | Y7: 0 | AB7: 6 | AC7: 0 | AD7: 488 | AE7: 0 | AF7: 529.75
A8: 2021-11-07 | B8: 2021 | C8: 11 | D8: 62.5 | E8: 2.5 | F8: 0 | I8: 0 | L8: 2022 | M8: 4 | N8: 0 | O8: 355.5 | R8: 3.35 | W8: 4 | X8: 0.06856825617 | Y8: 0 | AB8: 7 | AC8: 0 | AD8: 556 | AE8: 0 | AF8: 573.5
A9: 2021-11-08 | B9: 2021 | C9: 11 | D9: 65 | E9: 0 | F9: 0 | I9: 0 | L9: 2022 | M9: 5 | N9: 0 | O9: 513.5 | R9: 0.163 | W9: 5 | X9: 0.07127171824 | Y9: 0 | AB9: 8 | AC9: 0 | AD9: 560 | AE9: 0 | AF9: 582
A10: 2021-11-09 | B10: 2021 | C10: 11 | D10: 67.5 | E10: 0 | F10: 2.5 | I10: 0 | L10: 2022 | M10: 6 | N10: 0 | O10: 562.5 | R10: 12.604 | W10: 6 | X10: 0.07491356497 | Y10: 0 | AB10: 9 | AC10: 0 | AD10: 572 | AE10: 0 | AF10: 526.35
A11: 2021-11-10 | B11: 2021 | C11: 11 | D11: 72 | E11: 0 | F11: 7 | I11: 0 | L11: 2022 | M11: 7 | N11: 0 | O11: 620 | R11: 7.305 | W11: 7 | X11: 0.07533628008 | Y11: 0 | AB11: 10 | AC11: 0 | AD11: 476 | AE11: 3.6 | AF11: 390.35
A12: 2021-11-11 | B12: 2021 | C12: 11 | D12: 75.5 | E12: 0 | F12: 10.5 | I12: 0 | L12: 2022 | M12: 8 | N12: 0 | O12: 619 | R12: 0 | W12: 8 | X12: 0.07592571734 | Y12: 0 | AB12: 11 | AC12: 10 | AD12: 278 | AE12: 29.4 | AF12: 173.15
A13: 2021-11-12 | B13: 2021 | C13: 11 | D13: 74.5 | E13: 0 | F13: 9.5 | I13: 0 | L13: 2022 | M13: 9 | N13: 0 | O13: 542 | R13: 0 | W13: 9 | X13: 0.07243230849 | Y13: 0 | AB13: 12 | AC13: 64 | AD13: 134 | AE13: 100.15 | AF13: 104.35
A14: 2021-11-13 | B14: 2021 | C14: 11 | D14: 70.5 | E14: 0 | F14: 5.5 | I14: 0 | L14: 2022 | M14: 10 | N14: 0 | O14: 477.5 | R14: 0 | W14: 10 | X14: 0.06973330066 | Y14: 0
A15: 2021-11-14 | B15: 2021 | C15: 11 | D15: 63 | E15: 2 | F15: 0 | I15: 0 | L15: 2022 | M15: 11 | N15: 26 | O15: 128 | R15: 0 | W15: 11 | X15: 0.06227996511 | Y15: 0
A16: 2021-11-15 | B16: 2021 | C16: 11 | D16: 65.5 | E16: 0 | F16: 0.5 | I16: 0 | L16: 2022 | M16: 12 | N16: 9.5 | O16: 212.5 | R16: 0 | W16: 12 | X16: 0.0727643622 | Y16: =+X16/X$17*Y$17 -> 0
A17: 2021-11-16 | B17: 2021 | C17: 11 | D17: 67.5 | E17: 0 | F17: 2.5 | I17: 0 | L17: 2023 | M17: 1 | N17: 133.5 | O17: 60 | R17: 0 | W17: YE | X17: 0.07173039274 | Y17: =+T5 -> 0
A18: 2021-11-17 | B18: 2021 | C18: 11 | D18: 72 | E18: 0 | F18: 7 | I18: 0 | L18: 2023 | M18: 2 | N18: 65 | O18: 0
A19: 2021-11-18 | B19: 2021 | C19: 11 | D19: 74 | E19: 0 | F19: 9 | I19: 0 | P19: =SUM(P5:P16) -> 0 | Q19: =SUM(Q5:Q16) -> 0
A20: 2021-11-19 | B20: 2021 | C20: 11 | D20: 76 | E20: 0 | F20: 11 | I20: 0 | L20: NOTE: Refresh Pivot Above
A21: 2021-11-20 | B21: 2021 | C21: 11 | D21: 72.5 | E21: 0 | F21: 7.5 | I21: 0
A22: 2021-11-21 | B22: 2021 | C22: 11 | D22: 76 | E22: 0 | F22: 11 | I22: 0
A23: 2021-11-22 | B23: 2021 | C23: 11 | D23: 71.5 | E23: 0 | F23: 6.5 | I23: 0
A24: 2021-11-23 | B24: 2021 | C24: 11 | D24: 60 | E24: 5 | F24: 0 | I24: 0
A25: 2021-11-24 | B25: 2021 | C25: 11 | D25: 62 | E25: 3 | F25: 0 | I25: 0
A26: 2021-11-25 | B26: 2021 | C26: 11 | D26: 68.5 | E26: 0 | F26: 3.5 | I26: 0
A27: 2021-11-26 | B27: 2021 | C27: 11 | D27: 68 | E27: 0 | F27: 3 | I27: 0
A28: 2021-11-27 | B28: 2021 | C28: 11 | D28: 62.5 | E28: 2.5 | F28: 0 | I28: 0
A29: 2021-11-28 | B29: 2021 | C29: 11 | D29: 62.5 | E29: 2.5 | F29: 0 | I29: 0
A30: 2021-11-29 | B30: 2021 | C30: 11 | D30: 64 | E30: 1 | F30: 0 | I30: 0
A31: 2021-11-30 | B31: 2021 | C31: 11 | D31: 61.5 | E31: 3.5 | F31: 0 | I31: 0
A32: 2021-12-01 | B32: 2021 | C32: 12 | D32: 66.5 | E32: 0 | F32: 1.5 | I32: 0 | J32: =+Y16 -> 0
A33: 2021-12-02 | B33: 2021 | C33: 12 | D33: 67.5 | E33: 0 | F33: 2.5 | I33: 0
A34: 2021-12-03 | B34: 2021 | C34: 12 | D34: 66.5 | E34: 0 | F34: 1.5 | I34: 0
A35: 2021-12-04 | B35: 2021 | C35: 12 | D35: 65 | E35: 0 | F35: 0 | I35: 0
A36: 2021-12-05 | B36: 2021 | C36: 12 | D36: 70.5 | E36: 0 | F36: 5.5 | I36: 0
A37: 2021-12-06 | B37: 2021 | C37: 12 | D37: 71 | E37: 0 | F37: 6 | I37: 0
A38: 2021-12-07 | B38: 2021 | C38: 12 | D38: 73.5 | E38: 0 | F38: 8.5 | I38: 0
A39: 2021-12-08 | B39: 2021 | C39: 12 | D39: 73 | E39: 0 | F39: 8 | I39: 0
A40: 2021-12-09 | B40: 2021 | C40: 12 | D40: 74.5 | E40: 0 | F40: 9.5 | I40: 0
A41: 2021-12-10 | B41: 2021 | C41: 12 | D41: 75.5 | E41: 0 | F41: 10.5 | I41: 0
A42: 2021-12-11 | B42: 2021 | C42: 12 | D42: 77 | E42: 0 | F42: 12 | I42: 0
A43: 2021-12-12 | B43: 2021 | C43: 12 | D43: 76 | E43: 0 | F43: 11 | I43: 0
A44: 2021-12-13 | B44: 2021 | C44: 12 | D44: 76.5 | E44: 0 | F44: 11.5 | I44: 0
A45: 2021-12-14 | B45: 2021 | C45: 12 | D45: 75 | E45: 0 | F45: 10 | I45: 0
A46: 2021-12-15 | B46: 2021 | C46: 12 | D46: 75 | E46: 0 | F46: 10 | I46: 0
A47: 2021-12-16 | B47: 2021 | C47: 12 | D47: 77.5 | E47: 0 | F47: 12.5 | I47: 0
A48: 2021-12-17 | B48: 2021 | C48: 12 | D48: 77.5 | E48: 0 | F48: 12.5 | I48: 0
A49: 2021-12-18 | B49: 2021 | C49: 12 | D49: 78 | E49: 0 | F49: 13 | I49: 0
A50: 2021-12-19 | B50: 2021 | C50: 12 | D50: 77.5 | E50: 0 | F50: 12.5 | I50: 0
A51: 2021-12-20 | B51: 2021 | C51: 12 | D51: 72 | E51: 0 | F51: 7 | I51: 0
A52: 2021-12-21 | B52: 2021 | C52: 12 | D52: 67 | E52: 0 | F52: 2 | I52: 0
A53: 2021-12-22 | B53: 2021 | C53: 12 | D53: 60 | E53: 5 | F53: 0 | I53: 0
A54: 2021-12-23 | B54: 2021 | C54: 12 | D54: 60.5 | E54: 4.5 | F54: 0 | I54: 0
A55: 2021-12-24 | B55: 2021 | C55: 12 | D55: 65.5 | E55: 0 | F55: 0.5 | I55: 0
A56: 2021-12-25 | B56: 2021 | C56: 12 | D56: 66.5 | E56: 0 | F56: 1.5 | I56: 0
A57: 2021-12-26 | B57: 2021 | C57: 12 | D57: 68.5 | E57: 0 | F57: 3.5 | I57: 0
A58: 2021-12-27 | B58: 2021 | C58: 12 | D58: 69.5 | E58: 0 | F58: 4.5 | I58: 0
A59: 2021-12-28 | B59: 2021 | C59: 12 | D59: 70 | E59: 0 | F59: 5 | I59: 0
A60: 2021-12-29 | B60: 2021 | C60: 12 | D60: 75 | E60: 0 | F60: 10 | I60: 0
A61: 2021-12-30 | B61: 2021 | C61: 12 | D61: 74 | E61: 0 | F61: 9 | I61: 0
A62: 2021-12-31 | B62: 2021 | C62: 12 | D62: 76 | E62: 0 | F62: 11 | I62: 0
A63: 2022-01-01 | B63: =YEAR(A63) -> 2022 | C63: =MONTH(A63) -> 1 | D63: 74.5 | E63: =IF(D63<65,65-D63,0) -> 0 | F63: =IF(D63>65,D63-65,0) -> 9.5 | I63: 0 | J63: =+Y$5 -> 0 | Z63: =SUM(AB63:AB427) ->  | AB63: =+AC63/$AD$427 -> 
A64: 2022-01-02 | B64: 2022 | C64: 1 | D64: 76.5 | E64: 0 | F64: 11.5 | I64: 0 | AB64: =+AC64/$AD$427 -> 
A65: 2022-01-03 | B65: 2022 | C65: 1 | D65: 65 | E65: 0 | F65: 0 | I65: 0.02 | AB65: =+AC65/$AD$427 -> 
A66: 2022-01-04 | B66: 2022 | C66: 1 | D66: 63 | E66: 2 | F66: 0 | I66: 0 | AB66: =+AC66/$AD$427 -> 
A67: 2022-01-05 | B67: =YEAR(A67) -> 2022 | C67: =MONTH(A67) -> 1 | D67: 67 | E67: =IF(D67<65,65-D67,0) -> 0 | F67: =IF(D67>65,D67-65,0) -> 2 | I67: 0
A68: =+A67+1 -> 2022-01-06 | B68: 2022 | C68: 1 | D68: 65 | E68: 0 | F68: 0 | I68: 0.001
A69: 2022-01-07 | B69: 2022 | C69: 1 | D69: 72 | E69: 0 | F69: 7 | I69: 0.001
A70: 2022-01-08 | B70: 2022 | C70: 1 | D70: 69.5 | E70: 0 | F70: 4.5 | I70: 0
A71: 2022-01-09 | B71: 2022 | C71: 1 | D71: 74.5 | E71: 0 | F71: 9.5 | I71: 0
A72: 2022-01-10 | B72: 2022 | C72: 1 | D72: 72.5 | E72: 0 | F72: 7.5 | I72: 0
A73: 2022-01-11 | B73: 2022 | C73: 1 | D73: 63.5 | E73: 1.5 | F73: 0 | I73: 0
A74: 2022-01-12 | B74: 2022 | C74: 1 | D74: 65.5 | E74: 0 | F74: 0.5 | I74: 0
A75: 2022-01-13 | B75: 2022 | C75: 1 | D75: 66.5 | E75: 0 | F75: 1.5 | I75: 0.001
A76: 2022-01-14 | B76: 2022 | C76: 1 | D76: 63.5 | E76: 1.5 | F76: 0 | I76: 0
A77: 2022-01-15 | B77: 2022 | C77: 1 | D77: 62.5 | E77: 2.5 | F77: 0 | I77: 0
A78: 2022-01-16 | B78: 2022 | C78: 1 | D78: 66.5 | E78: 0 | F78: 1.5 | I78: 0.68
A79: 2022-01-17 | B79: 2022 | C79: 1 | D79: 61 | E79: 4 | F79: 0 | I79: 0
A80: 2022-01-18 | B80: 2022 | C80: 1 | D80: 53 | E80: 12 | F80: 0 | I80: 0
A81: 2022-01-19 | B81: 2022 | C81: 1 | D81: 61 | E81: 4 | F81: 0 | I81: 0
A82: 2022-01-20 | B82: 2022 | C82: 1 | D82: 65.5 | E82: 0 | F82: 0.5 | I82: 0
A83: 2022-01-21 | B83: 2022 | C83: 1 | D83: 68 | E83: 0 | F83: 3 | I83: 0
A84: 2022-01-22 | B84: 2022 | C84: 1 | D84: 54.5 | E84: 10.5 | F84: 0 | I84: 0.01
A85: 2022-01-23 | B85: 2022 | C85: 1 | D85: 51.5 | E85: 13.5 | F85: 0 | I85: 0.001
A86: 2022-01-24 | B86: 2022 | C86: 1 | D86: 51.5 | E86: 13.5 | F86: 0 | I86: 0
A87: 2022-01-25 | B87: 2022 | C87: 1 | D87: 53.5 | E87: 11.5 | F87: 0 | I87: 0.67
A88: 2022-01-26 | B88: 2022 | C88: 1 | D88: 58.5 | E88: 6.5 | F88: 0 | I88: 0.08
A89: 2022-01-27 | B89: 2022 | C89: 1 | D89: 66.5 | E89: 0 | F89: 1.5 | I89: 0
A90: 2022-01-28 | B90: 2022 | C90: 1 | D90: 60.5 | E90: 4.5 | F90: 0 | I90: 0.001
A91: 2022-01-29 | B91: 2022 | C91: 1 | D91: 48 | E91: 17 | F91: 0 | I91: 0
A92: 2022-01-30 | B92: 2022 | C92: 1 | D92: 47 | E92: 18 | F92: 0 | I92: 0
A93: 2022-01-31 | B93: 2022 | C93: 1 | D93: 54 | E93: 11 | F93: 0 | I93: 0
A94: 2022-02-01 | B94: 2022 | C94: 2 | D94: 62.5 | E94: 2.5 | F94: 0 | I94: 0 | J94: =+Y$6 -> 0
A95: 2022-02-02 | B95: 2022 | C95: 2 | D95: 69.5 | E95: 0 | F95: 4.5 | I95: 0
A96: 2022-02-03 | B96: 2022 | C96: 2 | D96: 75.5 | E96: 0 | F96: 10.5 | I96: 0
A97: 2022-02-04 | B97: 2022 | C97: 2 | D97: 75 | E97: 0 | F97: 10 | I97: 0
A98: 2022-02-05 | B98: 2022 | C98: 2 | D98: 63 | E98: 2 | F98: 0 | I98: 0.02
A99: 2022-02-06 | B99: 2022 | C99: 2 | D99: 59 | E99: 6 | F99: 0 | I99: 0.02
A100: 2022-02-07 | B100: 2022 | C100: 2 | D100: 62 | E100: 3 | F100: 0 | I100: 0
A101: 2022-02-08 | B101: 2022 | C101: 2 | D101: 54.5 | E101: 10.5 | F101: 0 | I101: 0.35
A102: 2022-02-09 | B102: 2022 | C102: 2 | D102: 59 | E102: 6 | F102: 0 | I102: 0.001
A103: 2022-02-10 | B103: 2022 | C103: 2 | D103: 59.5 | E103: 5.5 | F103: 0 | I103: 0
A104: 2022-02-11 | B104: 2022 | C104: 2 | D104: 65 | E104: 0 | F104: 0 | I104: 0
A105: 2022-02-12 | B105: 2022 | C105: 2 | D105: 67.5 | E105: 0 | F105: 2.5 | I105: 0.001
A106: 2022-02-13 | B106: 2022 | C106: 2 | D106: 66 | E106: 0 | F106: 1 | I106: 0.1
A107: 2022-02-14 | B107: 2022 | C107: 2 | D107: 57 | E107: 8 | F107: 0 | I107: 0
A108: 2022-02-15 | B108: 2022 | C108: 2 | D108: 61 | E108: 4 | F108: 0 | I108: 0
A109: 2022-02-16 | B109: 2022 | C109: 2 | D109: 71.5 | E109: 0 | F109: 6.5 | I109: 0
A110: 2022-02-17 | B110: 2022 | C110: 2 | D110: 76.5 | E110: 0 | F110: 11.5 | I110: 0
A111: 2022-02-18 | B111: 2022 | C111: 2 | D111: 74.5 | E111: 0 | F111: 9.5 | I111: 0
A112: 2022-02-19 | B112: 2022 | C112: 2 | D112: 68.5 | E112: 0 | F112: 3.5 | I112: 0.13
A113: 2022-02-20 | B113: 2022 | C113: 2 | D113: 68 | E113: 0 | F113: 3 | I113: 0
A114: 2022-02-21 | B114: 2022 | C114: 2 | D114: 74.5 | E114: 0 | F114: 9.5 | I114: 0
A115: 2022-02-22 | B115: 2022 | C115: 2 | D115: 77 | E115: 0 | F115: 12 | I115: 0
A116: 2022-02-23 | B116: 2022 | C116: 2 | D116: 78 | E116: 0 | F116: 13 | I116: 0
A117: 2022-02-24 | B117: 2022 | C117: 2 | D117: 77 | E117: 0 | F117: 12 | I117: 0
A118: 2022-02-25 | B118: 2022 | C118: 2 | D118: 76 | E118: 0 | F118: 11 | I118: 0
A119: 2022-02-26 | B119: 2022 | C119: 2 | D119: 76 | E119: 0 | F119: 11 | I119: 0
A120: 2022-02-27 | B120: 2022 | C120: 2 | D120: 75.5 | E120: 0 | F120: 10.5 | I120: 0
A121: 2022-02-28 | B121: 2022 | C121: 2 | D121: 72 | E121: 0 | F121: 7 | I121: 0
A122: 2022-03-01 | B122: 2022 | C122: 3 | D122: 69.5 | E122: 0 | F122: 4.5 | I122: 0 | J122: =+Y$7 -> 0
A123: 2022-03-02 | B123: 2022 | C123: 3 | D123: 68 | E123: 0 | F123: 3 | I123: 0
A124: 2022-03-03 | B124: 2022 | C124: 3 | D124: 71 | E124: 0 | F124: 6 | I124: 0
A125: 2022-03-04 | B125: 2022 | C125: 3 | D125: 77 | E125: 0 | F125: 12 | I125: 0
A126: 2022-03-05 | B126: 2022 | C126: 3 | D126: 76 | E126: 0 | F126: 11 | I126: 0
A127: 2022-03-06 | B127: 2022 | C127: 3 | D127: 77.5 | E127: 0 | F127: 12.5 | I127: 0 | AB127: =+AC127/$AD$427 -> 
A128: 2022-03-07 | B128: 2022 | C128: 3 | D128: 79.5 | E128: 0 | F128: 14.5 | I128: 0
A129: 2022-03-08 | B129: 2022 | C129: 3 | D129: 80 | E129: 0 | F129: 15 | I129: 0
A130: 2022-03-09 | B130: 2022 | C130: 3 | D130: 80.5 | E130: 0 | F130: 15.5 | I130: 0
A131: 2022-03-10 | B131: =YEAR(A131) -> 2022 | C131: =MONTH(A131) -> 3 | D131: 78 | E131: =IF(D131<65,65-D131,0) -> 0 | F131: =IF(D131>65,D131-65,0) -> 13 | I131: 0.001
A132: =+A131+1 -> 2022-03-11 | B132: 2022 | C132: 3 | D132: 79 | E132: 0 | F132: 14 | I132: 0
A133: 2022-03-12 | B133: 2022 | C133: 3 | D133: 63.5 | E133: 1.5 | F133: 0 | I133: 0.41
A134: 2022-03-13 | B134: 2022 | C134: 3 | D134: 55.5 | E134: 9.5 | F134: 0 | I134: 0
A135: 2022-03-14 | B135: 2022 | C135: 3 | D135: 67.5 | E135: 0 | F135: 2.5 | I135: 0
A136: 2022-03-15 | B136: 2022 | C136: 3 | D136: 75.5 | E136: 0 | F136: 10.5 | I136: 1.04
A137: 2022-03-16 | B137: 2022 | C137: 3 | D137: 74 | E137: 0 | F137: 9 | I137: 0.001
A138: 2022-03-17 | B138: 2022 | C138: 3 | D138: 72 | E138: 0 | F138: 7 | I138: 0
A139: 2022-03-18 | B139: 2022 | C139: 3 | D139: 76 | E139: 0 | F139: 11 | I139: 0
A140: 2022-03-19 | B140: 2022 | C140: 3 | D140: 77.5 | E140: 0 | F140: 12.5 | I140: 0
A141: 2022-03-20 | B141: 2022 | C141: 3 | D141: 74.5 | E141: 0 | F141: 9.5 | I141: 0
A142: 2022-03-21 | B142: 2022 | C142: 3 | D142: 71 | E142: 0 | F142: 6 | I142: 0
A143: 2022-03-22 | B143: 2022 | C143: 3 | D143: 77 | E143: 0 | F143: 12 | I143: 0
A144: 2022-03-23 | B144: 2022 | C144: 3 | D144: 80 | E144: 0 | F144: 15 | I144: 0
A145: 2022-03-24 | B145: 2022 | C145: 3 | D145: 70 | E145: 0 | F145: 5 | I145: 1.42
A146: 2022-03-25 | B146: 2022 | C146: 3 | D146: 71 | E146: 0 | F146: 6 | I146: 0
A147: 2022-03-26 | B147: 2022 | C147: 3 | D147: 70.5 | E147: 0 | F147: 5.5 | I147: 0
A148: 2022-03-27 | B148: 2022 | C148: 3 | D148: 72 | E148: 0 | F148: 7 | I148: 0
A149: 2022-03-28 | B149: 2022 | C149: 3 | D149: 75 | E149: 0 | F149: 10 | I149: 0
A150: 2022-03-29 | B150: 2022 | C150: 3 | D150: 75 | E150: 0 | F150: 10 | I150: 0
A151: 2022-03-30 | B151: 2022 | C151: 3 | D151: 78.5 | E151: 0 | F151: 13.5 | I151: 0
A152: 2022-03-31 | B152: 2022 | C152: 3 | D152: 79.5 | E152: 0 | F152: 14.5 | I152: 0.04
A153: 2022-04-01 | B153: 2022 | C153: 4 | D153: 75.5 | E153: 0 | F153: 10.5 | I153: 0.18 | J153: =+Y$8 -> 0
A154: 2022-04-02 | B154: 2022 | C154: 4 | D154: 74 | E154: 0 | F154: 9 | I154: 0
A155: 2022-04-03 | B155: 2022 | C155: 4 | D155: 74 | E155: 0 | F155: 9 | I155: 0
A156: 2022-04-04 | B156: 2022 | C156: 4 | D156: 75 | E156: 0 | F156: 10 | I156: 0
A157: 2022-04-05 | B157: 2022 | C157: 4 | D157: 80 | E157: 0 | F157: 15 | I157: 0
A158: 2022-04-06 | B158: 2022 | C158: 4 | D158: 82 | E158: 0 | F158: 17 | I158: 0
A159: 2022-04-07 | B159: 2022 | C159: 4 | D159: 76 | E159: 0 | F159: 11 | I159: 0
A160: 2022-04-08 | B160: 2022 | C160: 4 | D160: 71 | E160: 0 | F160: 6 | I160: 0
A161: 2022-04-09 | B161: 2022 | C161: 4 | D161: 67 | E161: 0 | F161: 2 | I161: 0
A162: 2022-04-10 | B162: 2022 | C162: 4 | D162: 66.5 | E162: 0 | F162: 1.5 | I162: 0.54
A163: 2022-04-11 | B163: 2022 | C163: 4 | D163: 73.5 | E163: 0 | F163: 8.5 | I163: 2.02
A164: 2022-04-12 | B164: 2022 | C164: 4 | D164: 77 | E164: 0 | F164: 12 | I164: 0.04
A165: 2022-04-13 | B165: 2022 | C165: 4 | D165: 78 | E165: 0 | F165: 13 | I165: 0
A166: 2022-04-14 | B166: 2022 | C166: 4 | D166: 80.5 | E166: 0 | F166: 15.5 | I166: 0
A167: 2022-04-15 | B167: 2022 | C167: 4 | D167: 80 | E167: 0 | F167: 15 | I167: 0
A168: 2022-04-16 | B168: 2022 | C168: 4 | D168: 80.5 | E168: 0 | F168: 15.5 | I168: 0
A169: 2022-04-17 | B169: 2022 | C169: 4 | D169: 81.5 | E169: 0 | F169: 16.5 | I169: 0
A170: 2022-04-18 | B170: 2022 | C170: 4 | D170: 82 | E170: 0 | F170: 17 | I170: 0.35
A171: 2022-04-19 | B171: 2022 | C171: 4 | D171: 75 | E171: 0 | F171: 10 | I171: 0.08
A172: 2022-04-20 | B172: 2022 | C172: 4 | D172: 73 | E172: 0 | F172: 8 | I172: 0.14
A173: 2022-04-21 | B173: 2022 | C173: 4 | D173: 77 | E173: 0 | F173: 12 | I173: 0
A174: 2022-04-22 | B174: 2022 | C174: 4 | D174: 77 | E174: 0 | F174: 12 | I174: 0
A175: 2022-04-23 | B175: 2022 | C175: 4 | D175: 78 | E175: 0 | F175: 13 | I175: 0
A176: 2022-04-24 | B176: 2022 | C176: 4 | D176: 79.5 | E176: 0 | F176: 14.5 | I176: 0
A177: 2022-04-25 | B177: 2022 | C177: 4 | D177: 80.5 | E177: 0 | F177: 15.5 | I177: 0
A178: 2022-04-26 | B178: 2022 | C178: 4 | D178: 79.5 | E178: 0 | F178: 14.5 | I178: 0
A179: 2022-04-27 | B179: 2022 | C179: 4 | D179: 77 | E179: 0 | F179: 12 | I179: 0
A180: 2022-04-28 | B180: 2022 | C180: 4 | D180: 79 | E180: 0 | F180: 14 | I180: 0
A181: 2022-04-29 | B181: 2022 | C181: 4 | D181: 79 | E181: 0 | F181: 14 | I181: 0
A182: 2022-04-30 | B182: 2022 | C182: 4 | D182: 77 | E182: 0 | F182: 12 | I182: 0
A183: 2022-05-01 | B183: 2022 | C183: 5 | D183: 77.5 | E183: 0 | F183: 12.5 | I183: 0 | J183: =+Y$9 -> 0
A184: 2022-05-02 | B184: 2022 | C184: 5 | D184: 79 | E184: 0 | F184: 14 | I184: 0
A185: 2022-05-03 | B185: 2022 | C185: 5 | D185: 79.5 | E185: 0 | F185: 14.5 | I185: 0
A186: 2022-05-04 | B186: 2022 | C186: 5 | D186: 80.5 | E186: 0 | F186: 15.5 | I186: 0
A187: 2022-05-05 | B187: 2022 | C187: 5 | D187: 83 | E187: 0 | F187: 18 | I187: 0
A188: 2022-05-06 | B188: 2022 | C188: 5 | D188: 82.5 | E188: 0 | F188: 17.5 | I188: 0.16
A189: 2022-05-07 | B189: 2022 | C189: 5 | D189: 80.5 | E189: 0 | F189: 15.5 | I189: 0
A190: 2022-05-08 | B190: 2022 | C190: 5 | D190: 82 | E190: 0 | F190: 17 | I190: 0
A191: 2022-05-09 | B191: 2022 | C191: 5 | D191: 80.5 | E191: 0 | F191: 15.5 | I191: 0 | AB191: =+AC191/$AD$427 -> 
A192: 2022-05-10 | B192: 2022 | C192: 5 | D192: 76 | E192: 0 | F192: 11 | I192: 0
A193: 2022-05-11 | B193: 2022 | C193: 5 | D193: 75 | E193: 0 | F193: 10 | I193: 0
A194: 2022-05-12 | B194: 2022 | C194: 5 | D194: 76.5 | E194: 0 | F194: 11.5 | I194: 0
A195: 2022-05-13 | B195: =YEAR(A195) -> 2022 | C195: =MONTH(A195) -> 5 | D195: 78 | E195: =IF(D195<65,65-D195,0) -> 0 | F195: =IF(D195>65,D195-65,0) -> 13 | I195: 0.001
A196: =+A195+1 -> 2022-05-14 | B196: 2022 | C196: 5 | D196: 80 | E196: 0 | F196: 15 | I196: 0
A197: 2022-05-15 | B197: 2022 | C197: 5 | D197: 80 | E197: 0 | F197: 15 | I197: 0
A198: 2022-05-16 | B198: 2022 | C198: 5 | D198: 80 | E198: 0 | F198: 15 | I198: 0
A199: 2022-05-17 | B199: 2022 | C199: 5 | D199: 82 | E199: 0 | F199: 17 | I199: 0
A200: 2022-05-18 | B200: 2022 | C200: 5 | D200: 83.5 | E200: 0 | F200: 18.5 | I200: 0
... 259 more rows

Sheet JAN
A1: 2022 | CI1: =YEAR(CI3) -> 2021 | CJ1: =YEAR(CJ3) -> 2021 | CK1: 2021 | CL1: 2021 | CM1: 2021 | CN1: 2021 | CO1: 2021 | CP1: 2021 | CQ1: 2021 | CR1: 2021 | CS1: 2021 | CT1: 2021 | CU1: 2021 | CV1: 2021 | CW1: 2021 | CX1: 2021 | CY1: 2021 | CZ1: 2021 | DA1: 2021 | DB1: 2021 | DC1: 2021 | DD1: 2021 | DE1: 2021 | DF1: 2021 | DG1: 2021 | DH1: 2021 | DI1: 2021 | DJ1: 2021 | DK1: 2021 | DL1: 2021 | DM1: 2021 | DN1: 2021 | DO1: 2021 | DP1: 2021 | DQ1: 2021 | DR1: 2021 | DS1: 2021 | DT1: 2022 | DU1: 2022 | DV1: 2022 | DW1: 2022 | DX1: 2022 | DY1: 2022 | DZ1: 2022 | EA1: 2022 | EB1: 2022 | EC1: 2022 | ED1: 2022 | EE1: 2022 | EF1: 2022 | EG1: 2022 | EH1: 2022 | EI1: 2022 | EJ1: 2022 | EK1: 2022 | EL1: 2022 | EM1: 2022 | EN1: 2022 | EO1: 2022 | EP1: 2022 | EQ1: 2022 | ER1: 2022 | ES1: 2022 | ET1: 2022 | EU1: =YEAR(EU3) -> 2022 | EV1: =YEAR(EV3) -> 2022 | EW1: 2022 | EX1: 2022 | EY1: =YEAR(EY3) -> 2022 | EZ1: 2022 | FA1: 2022
A2: 1 | B2: Published Billing Schedule | L2: =MONTH(L3) -> 11 | M2: =MONTH(M3) -> 11 | N2: 11 | O2: 11 | P2: 11 | Q2: 11 | R2: 12 | S2: 12 | T2: 12 | U2: 12 | V2: 12 | W2: 12 | X2: 12 | Y2: 12 | Z2: 12 | AA2: 12 | AB2: 12 | AC2: 12 | AD2: 12 | AE2: 12 | AF2: 12 | AG2: 12 | AH2: 12 | AI2: 12 | AJ2: 12 | AK2: 12 | AL2: 12 | AM2: 12 | AN2: 12 | AO2: 12 | AP2: 12 | AQ2: 12 | AR2: 12 | AS2: 12 | AT2: 12 | AU2: 12 | AV2: 12 | AW2: 1 | AX2: 1 | AY2: 1 | AZ2: 1 | BA2: 1 | BB2: 1 | BC2: 1 | BD2: 1 | BE2: 1 | BF2: 1 | BG2: 1 | BH2: 1 | BI2: 1 | BJ2: 1 | BK2: 1 | BL2: 1 | BM2: 1 | BN2: 1 | BO2: 1 | BP2: 1 | BQ2: 1 | BR2: 1 | BS2: 1 | BT2: 1 | BU2: 1 | BV2: 1 | BW2: 1 | BX2: 1 | CI2: =MONTH(CI3) -> 11 | CJ2: =MONTH(CJ3) -> 11 | CK2: 11 | CL2: 11 | CM2: 11 | CN2: 11 | CO2: 12 | CP2: 12 | CQ2: 12 | CR2: 12 | CS2: 12 | CT2: 12 | CU2: 12 | CV2: 12 | CW2: 12 | CX2: 12 | CY2: 12 | CZ2: 12 | DA2: 12 | DB2: 12 | DC2: 12 | DD2: 12 | DE2: 12 | DF2: 12 | DG2: 12 | DH2: 12 | DI2: 12 | DJ2: 12 | DK2: 12 | DL2: 12 | DM2: 12 | DN2: 12 | DO2: 12 | DP2: 12 | DQ2: 12 | DR2: 12 | DS2: 12 | DT2: 1 | DU2: 1 | DV2: 1 | DW2: 1 | DX2: 1 | DY2: 1 | DZ2: 1 | EA2: 1 | EB2: 1 | EC2: 1 | ED2: 1 | EE2: 1 | EF2: 1 | EG2: 1 | EH2: 1 | EI2: 1 | EJ2: 1 | EK2: 1 | EL2: 1 | EM2: 1 | EN2: 1 | EO2: 1 | EP2: 1 | EQ2: 1 | ER2: 1 | ES2: 1 | ET2: 1 | EU2: 1 | EV2: 1 | EW2: =MONTH(EW3) -> 1 | EX2: 1 | EY2: 2 | EZ2: 2 | FA2: 2
A3: Lookup | B3: Year | C3: Month | D3: Cycle | E3: StartBilling | F3: EndBilling | G3: No.Days | K3: Date | L3: =+E4 -> 2021-11-25 | M3: =+L3+1 -> 2021-11-26 | N3: =+M3+1 -> 2021-11-27 | O3: 2021-11-28 | P3: 2021-11-29 | Q3: 2021-11-30 | R3: 2021-12-01 | S3: 2021-12-02 | T3: 2021-12-03 | U3: 2021-12-04 | V3: 2021-12-05 | W3: 2021-12-06 | X3: 2021-12-07 | Y3: 2021-12-08 | Z3: 2021-12-09 | AA3: 2021-12-10 | AB3: 2021-12-11 | AC3: 2021-12-12 | AD3: 2021-12-13 | AE3: 2021-12-14 | AF3: 2021-12-15 | AG3: 2021-12-16 | AH3: 2021-12-17 | AI3: 2021-12-18 | AJ3: 2021-12-19 | AK3: 2021-12-20 | AL3: 2021-12-21 | AM3: 2021-12-22 | AN3: 2021-12-23 | AO3: 2021-12-24 | AP3: 2021-12-25 | AQ3: 2021-12-26 | AR3: 2021-12-27 | AS3: 2021-12-28 | AT3: 2021-12-29 | AU3: 2021-12-30 | AV3: 2021-12-31 | AW3: 2022-01-01 | AX3: 2022-01-02 | AY3: 2022-01-03 | AZ3: 2022-01-04 | BA3: 2022-01-05 | BB3: 2022-01-06 | BC3: 2022-01-07 | BD3: 2022-01-08 | BE3: 2022-01-09 | BF3: 2022-01-10 | BG3: 2022-01-11 | BH3: 2022-01-12 | BI3: 2022-01-13 | BJ3: 2022-01-14 | BK3: 2022-01-15 | BL3: 2022-01-16 | BM3: 2022-01-17 | BN3: 2022-01-18 | BO3: 2022-01-19 | BP3: 2022-01-20 | BQ3: 2022-01-21 | BR3: 2022-01-22 | BS3: 2022-01-23 | BT3: 2022-01-24 | BU3: 2022-01-25 | BV3: 2022-01-26 | BW3: =+BV3+1 -> 2022-01-27 | BX3: =+BW3+1 -> 2022-01-28 | BY3: =+BX3+1 -> 2022-01-29 | BZ3: 2022-01-30 | CA3: 2022-01-31 | CB3: =+CA3+1 -> 2022-02-01 | CC3: =+CB3+1 -> 2022-02-02 | CD3: =+CC3+1 -> 2022-02-03 | CH3: Cycle | CI3: =+L3 -> 2021-11-25 | CJ3: 2021-11-26 | CK3: 2021-11-27 | CL3: 2021-11-28 | CM3: 2021-11-29 | CN3: 2021-11-30 | CO3: 2021-12-01 | CP3: 2021-12-02 | CQ3: 2021-12-03 | CR3: 2021-12-04 | CS3: 2021-12-05 | CT3: 2021-12-06 | CU3: 2021-12-07 | CV3: 2021-12-08 | CW3: 2021-12-09 | CX3: 2021-12-10 | CY3: 2021-12-11 | CZ3: 2021-12-12 | DA3: 2021-12-13 | DB3: 2021-12-14 | DC3: 2021-12-15 | DD3: 2021-12-16 | DE3: 2021-12-17 | DF3: 2021-12-18 | DG3: 2021-12-19 | DH3: 2021-12-20 | DI3: 2021-12-21 | DJ3: 2021-12-22 | DK3: 2021-12-23 | DL3: 2021-12-24 | DM3: 2021-12-25 | DN3: 2021-12-26 | DO3: =+AR3 -> 2021-12-27 | DP3: 2021-12-28 | DQ3: 2021-12-29 | DR3: 2021-12-30 | DS3: 2021-12-31 | DT3: 2022-01-01 | DU3: 2022-01-02 | DV3: 2022-01-03 | DW3: 2022-01-04 | DX3: 2022-01-05 | DY3: 2022-01-06 | DZ3: 2022-01-07 | EA3: 2022-01-08 | EB3: 2022-01-09 | EC3: 2022-01-10 | ED3: 2022-01-11 | EE3: 2022-01-12 | EF3: 2022-01-13 | EG3: 2022-01-14 | EH3: 2022-01-15 | EI3: 2022-01-16 | EJ3: 2022-01-17 | EK3: 2022-01-18 | EL3: 2022-01-19 | EM3: 2022-01-20 | EN3: 2022-01-21 | EO3: 2022-01-22 | EP3: 2022-01-23 | EQ3: 2022-01-24 | ER3: 2022-01-25 | ES3: 2022-01-26 | ET3: 2022-01-27 | EU3: =+BX3 -> 2022-01-28 | EV3: =+BY3 -> 2022-01-29 | EW3: =+BZ3 -> 2022-01-30 | EX3: =+CA3 -> 2022-01-31 | EY3: =+CB3 -> 2022-02-01 | EZ3: 2022-02-02 | FA3: 2022-02-03
A4: =+$A$1*10000+A2*100+1 -> 20220101 | B4: =+A1 -> 2022 | C4: =+A2 -> 1 | D4: 1 | E4: 2021-11-25 | F4: 2021-12-28 | G4: =+F4-E4+1 -> 34 | J4: Billing Cycles | K4: 1 | L4: =IF(AND(L$3>=$E4,L$3<=$F4),1,0) -> 1 | M4: =IF(AND(M$3>=$E4,M$3<=$F4),1,0) -> 1 | N4: 1 | O4: 1 | P4: 1 | Q4: 1 | R4: 1 | S4: 1 | T4: 1 | U4: 1 | V4: 1 | W4: 1 | X4: 1 | Y4: 1 | Z4: 1 | AA4: 1 | AB4: 1 | AC4: 1 | AD4: 1 | AE4: 1 | AF4: 1 | AG4: 1 | AH4: 1 | AI4: 1 | AJ4: 1 | AK4: 1 | AL4: 1 | AM4: 1 | AN4: 1 | AO4: 1 | AP4: 1 | AQ4: 1 | AR4: 1 | AS4: 1 | AT4: 0 | AU4: 0 | AV4: 0 | AW4: 0 | AX4: 0 | AY4: 0 | AZ4: 0 | BA4: 0 | BB4: 0 | BC4: 0 | BD4: 0 | BE4: 0 | BF4: 0 | BG4: 0 | BH4: 0 | BI4: 0 | BJ4: 0 | BK4: 0 | BL4: 0 | BM4: 0 | BN4: 0 | BO4: 0 | BP4: 0 | BQ4: 0 | BR4: 0 | BS4: 0 | BT4: 0 | BU4: 0 | BV4: 0 | BW4: 0 | BX4: 0 | BY4: =IF(AND(BY$3>=$E4,BY$3<=$F4),1,0) -> 0 | BZ4: 0 | CA4: 0 | CB4: 0 | CC4: 0 | CD4: 0 | CF4: =SUM(CI4:FA4)-CG4/1000 ->  | CG4: 40187074 | CH4: 1 | CI4: =((CI48/$CG48))*($CG4/1000) ->  | CJ4: =((CJ48/$CG48))*($CG4/1000) ->  | DO4: =((DO48/$CG48))*($CG4/1000) ->  | EV4: =((EV48/$CG48))*($CG4/1000) ->  | EY4: =((EY48/$CG48))*($CG4/1000) -> 
A5: =+A4+1 -> 20220102 | B5: =+B4 -> 2022 | C5: =+C4 -> 1 | D5: =+D4+1 -> 2 | E5: 2021-11-30 | F5: 2021-12-29 | G5: =+F5-E5+1 -> 30 | K5: 2 | L5: =IF(AND(L$3>=$E5,L$3<=$F5),1,0) -> 0 | M5: 0 | N5: 0 | O5: 0 | P5: 0 | Q5: 1 | R5: 1 | S5: 1 | T5: 1 | U5: 1 | V5: 1 | W5: 1 | X5: 1 | Y5: 1 | Z5: 1 | AA5: 1 | AB5: 1 | AC5: 1 | AD5: 1 | AE5: 1 | AF5: 1 | AG5: 1 | AH5: 1 | AI5: 1 | AJ5: 1 | AK5: 1 | AL5: 1 | AM5: 1 | AN5: 1 | AO5: 1 | AP5: 1 | AQ5: 1 | AR5: 1 | AS5: 1 | AT5: 1 | AU5: 0 | AV5: 0 | AW5: 0 | AX5: 0 | AY5: 0 | AZ5: 0 | BA5: 0 | BB5: 0 | BC5: 0 | BD5: 0 | BE5: 0 | BF5: 0 | BG5: 0 | BH5: 0 | BI5: 0 | BJ5: 0 | BK5: 0 | BL5: 0 | BM5: 0 | BN5: 0 | BO5: 0 | BP5: 0 | BQ5: 0 | BR5: 0 | BS5: 0 | BT5: 0 | BU5: 0 | BV5: 0 | BW5: 0 | BX5: 0 | BY5: 0 | BZ5: 0 | CA5: 0 | CB5: 0 | CC5: 0 | CD5: 0 | CG5: 78437430 | CH5: 2 | CI5: =((CI49/$CG49))*($CG5/1000) ->  | DO5: =((DO49/$CG49))*($CG5/1000) ->  | EV5: =((EV49/$CG49))*($CG5/1000) ->  | EY5: =((EY49/$CG49))*($CG5/1000) -> 
A6: =+A5+1 -> 20220103 | B6: =+B5 -> 2022 | C6: 1 | D6: =+D5+1 -> 3 | E6: 2021-12-01 | F6: 2021-12-30 | G6: 30 | K6: 3 | L6: 0 | M6: 0 | N6: 0 | O6: 0 | P6: 0 | Q6: 0 | R6: 1 | S6: 1 | T6: 1 | U6: 1 | V6: 1 | W6: 1 | X6: 1 | Y6: 1 | Z6: 1 | AA6: 1 | AB6: 1 | AC6: 1 | AD6: 1 | AE6: 1 | AF6: 1 | AG6: 1 | AH6: 1 | AI6: 1 | AJ6: 1 | AK6: 1 | AL6: 1 | AM6: 1 | AN6: 1 | AO6: 1 | AP6: 1 | AQ6: 1 | AR6: 1 | AS6: 1 | AT6: 1 | AU6: 1 | AV6: 0 | AW6: 0 | AX6: 0 | AY6: 0 | AZ6: 0 | BA6: 0 | BB6: 0 | BC6: 0 | BD6: 0 | BE6: 0 | BF6: 0 | BG6: 0 | BH6: 0 | BI6: 0 | BJ6: 0 | BK6: 0 | BL6: 0 | BM6: 0 | BN6: 0 | BO6: 0 | BP6: 0 | BQ6: 0 | BR6: 0 | BS6: 0 | BT6: 0 | BU6: 0 | BV6: 0 | BW6: 0 | BX6: 0 | BY6: 0 | BZ6: 0 | CA6: 0 | CB6: 0 | CC6: 0 | CD6: 0 | CG6: 48531406 | CH6: 3 | CI6: =((CI50/$CG50))*($CG6/1000) ->  | DO6: =((DO50/$CG50))*($CG6/1000) ->  | EV6: =((EV50/$CG50))*($CG6/1000) ->  | EY6: =((EY50/$CG50))*($CG6/1000) -> 
A7: 20220104 | B7: 2022 | C7: 1 | D7: 4 | E7: 2021-12-02 | F7: 2022-01-03 | G7: 33 | K7: 4 | L7: 0 | M7: 0 | N7: 0 | O7: 0 | P7: 0 | Q7: 0 | R7: 0 | S7: 1 | T7: 1 | U7: 1 | V7: 1 | W7: 1 | X7: 1 | Y7: 1 | Z7: 1 | AA7: 1 | AB7: 1 | AC7: 1 | AD7: 1 | AE7: 1 | AF7: 1 | AG7: 1 | AH7: 1 | AI7: 1 | AJ7: 1 | AK7: 1 | AL7: 1 | AM7: 1 | AN7: 1 | AO7: 1 | AP7: 1 | AQ7: 1 | AR7: 1 | AS7: 1 | AT7: 1 | AU7: 1 | AV7: 1 | AW7: 1 | AX7: 1 | AY7: 1 | AZ7: 0 | BA7: 0 | BB7: 0 | BC7: 0 | BD7: 0 | BE7: 0 | BF7: 0 | BG7: 0 | BH7: 0 | BI7: 0 | BJ7: 0 | BK7: 0 | BL7: 0 | BM7: 0 | BN7: 0 | BO7: 0 | BP7: 0 | BQ7: 0 | BR7: 0 | BS7: 0 | BT7: 0 | BU7: 0 | BV7: 0 | BW7: 0 | BX7: 0 | BY7: 0 | BZ7: 0 | CA7: 0 | CB7: 0 | CC7: 0 | CD7: 0 | CG7: 67550081 | CH7: 4 | CI7: =((CI51/$CG51))*($CG7/1000) ->  | DO7: =((DO51/$CG51))*($CG7/1000) ->  | EV7: =((EV51/$CG51))*($CG7/1000) ->  | EY7: =((EY51/$CG51))*($CG7/1000) -> 
A8: 20220105 | B8: 2022 | C8: 1 | D8: 5 | E8: 2021-12-03 | F8: 2022-01-04 | G8: 33 | K8: 5 | L8: 0 | M8: 0 | N8: 0 | O8: 0 | P8: 0 | Q8: 0 | R8: 0 | S8: 0 | T8: 1 | U8: 1 | V8: 1 | W8: 1 | X8: 1 | Y8: 1 | Z8: 1 | AA8: =IF(AND(AA$3>=$E8,AA$3<=$F8),1,0) -> 1 | AB8: 1 | AC8: 1 | AD8: 1 | AE8: 1 | AF8: 1 | AG8: 1 | AH8: 1 | AI8: 1 | AJ8: 1 | AK8: 1 | AL8: 1 | AM8: 1 | AN8: 1 | AO8: 1 | AP8: 1 | AQ8: 1 | AR8: 1 | AS8: 1 | AT8: 1 | AU8: 1 | AV8: 1 | AW8: 1 | AX8: 1 | AY8: 1 | AZ8: 1 | BA8: 0 | BB8: 0 | BC8: 0 | BD8: 0 | BE8: 0 | BF8: 0 | BG8: 0 | BH8: 0 | BI8: 0 | BJ8: 0 | BK8: 0 | BL8: 0 | BM8: 0 | BN8: 0 | BO8: 0 | BP8: 0 | BQ8: 0 | BR8: 0 | BS8: 0 | BT8: 0 | BU8: 0 | BV8: 0 | BW8: 0 | BX8: 0 | BY8: 0 | BZ8: 0 | CA8: 0 | CB8: 0 | CC8: 0 | CD8: 0 | CG8: 120182173 | CH8: 5 | CI8: =((CI52/$CG52))*($CG8/1000) ->  | DO8: =((DO52/$CG52))*($CG8/1000) ->  | EV8: =((EV52/$CG52))*($CG8/1000) ->  | EY8: =((EY52/$CG52))*($CG8/1000) -> 
A9: 20220106 | B9: 2022 | C9: 1 | D9: 6 | E9: 2021-12-04 | F9: 2022-01-05 | G9: 33 | K9: 6 | L9: 0 | M9: 0 | N9: 0 | O9: 0 | P9: 0 | Q9: 0 | R9: 0 | S9: 0 | T9: 0 | U9: 1 | V9: 1 | W9: 1 | X9: 1 | Y9: 1 | Z9: 1 | AA9: 1 | AB9: 1 | AC9: 1 | AD9: 1 | AE9: 1 | AF9: 1 | AG9: 1 | AH9: 1 | AI9: 1 | AJ9: 1 | AK9: 1 | AL9: 1 | AM9: 1 | AN9: 1 | AO9: 1 | AP9: 1 | AQ9: 1 | AR9: 1 | AS9: 1 | AT9: 1 | AU9: 1 | AV9: 1 | AW9: 1 | AX9: 1 | AY9: 1 | AZ9: 1 | BA9: 1 | BB9: 0 | BC9: 0 | BD9: 0 | BE9: 0 | BF9: 0 | BG9: 0 | BH9: 0 | BI9: 0 | BJ9: 0 | BK9: 0 | BL9: 0 | BM9: 0 | BN9: 0 | BO9: 0 | BP9: 0 | BQ9: 0 | BR9: 0 | BS9: 0 | BT9: 0 | BU9: 0 | BV9: 0 | BW9: 0 | BX9: 0 | BY9: 0 | BZ9: 0 | CA9: 0 | CB9: 0 | CC9: 0 | CD9: 0 | CG9: 46534135 | CH9: 6 | CI9: =((CI53/$CG53))*($CG9/1000) ->  | DO9: =((DO53/$CG53))*($CG9/1000) ->  | EV9: =((EV53/$CG53))*($CG9/1000) ->  | EY9: =((EY53/$CG53))*($CG9/1000) -> 
A10: 20220107 | B10: 2022 | C10: 1 | D10: 7 | E10: 2021-12-07 | F10: 2022-01-06 | G10: 31 | K10: 7 | L10: 0 | M10: 0 | N10: 0 | O10: 0 | P10: 0 | Q10: 0 | R10: 0 | S10: 0 | T10: 0 | U10: 0 | V10: 0 | W10: 0 | X10: 1 | Y10: 1 | Z10: 1 | AA10: 1 | AB10: 1 | AC10: 1 | AD10: 1 | AE10: 1 | AF10: 1 | AG10: 1 | AH10: 1 | AI10: 1 | AJ10: 1 | AK10: 1 | AL10: 1 | AM10: 1 | AN10: 1 | AO10: 1 | AP10: 1 | AQ10: 1 | AR10: 1 | AS10: 1 | AT10: 1 | AU10: 1 | AV10: 1 | AW10: 1 | AX10: 1 | AY10: 1 | AZ10: 1 | BA10: 1 | BB10: 1 | BC10: 0 | BD10: 0 | BE10: 0 | BF10: 0 | BG10: 0 | BH10: 0 | BI10: 0 | BJ10: 0 | BK10: 0 | BL10: 0 | BM10: 0 | BN10: 0 | BO10: 0 | BP10: 0 | BQ10: 0 | BR10: 0 | BS10: 0 | BT10: 0 | BU10: 0 | BV10: 0 | BW10: 0 | BX10: 0 | BY10: 0 | BZ10: 0 | CA10: 0 | CB10: 0 | CC10: 0 | CD10: 0 | CG10: 49077765 | CH10: 7 | CI10: =((CI54/$CG54))*($CG10/1000) ->  | DO10: =((DO54/$CG54))*($CG10/1000) ->  | EV10: =((EV54/$CG54))*($CG10/1000) ->  | EY10: =((EY54/$CG54))*($CG10/1000) -> 
A11: 20220108 | B11: 2022 | C11: 1 | D11: 8 | E11: 2021-12-08 | F11: 2022-01-07 | G11: 31 | K11: 8 | L11: 0 | M11: 0 | N11: 0 | O11: 0 | P11: 0 | Q11: 0 | R11: 0 | S11: 0 | T11: 0 | U11: 0 | V11: 0 | W11: 0 | X11: 0 | Y11: 1 | Z11: 1 | AA11: 1 | AB11: 1 | AC11: 1 | AD11: 1 | AE11: 1 | AF11: 1 | AG11: 1 | AH11: 1 | AI11: 1 | AJ11: 1 | AK11: 1 | AL11: 1 | AM11: 1 | AN11: 1 | AO11: 1 | AP11: 1 | AQ11: 1 | AR11: 1 | AS11: 1 | AT11: 1 | AU11: 1 | AV11: 1 | AW11: 1 | AX11: 1 | AY11: 1 | AZ11: 1 | BA11: 1 | BB11: 1 | BC11: 1 | BD11: 0 | BE11: 0 | BF11: 0 | BG11: 0 | BH11: 0 | BI11: 0 | BJ11: 0 | BK11: 0 | BL11: 0 | BM11: 0 | BN11: 0 | BO11: 0 | BP11: 0 | BQ11: 0 | BR11: 0 | BS11: 0 | BT11: 0 | BU11: 0 | BV11: 0 | BW11: 0 | BX11: 0 | BY11: 0 | BZ11: 0 | CA11: 0 | CB11: 0 | CC11: 0 | CD11: 0 | CG11: 66347837 | CH11: 8 | CI11: =((CI55/$CG55))*($CG11/1000) ->  | DO11: =((DO55/$CG55))*($CG11/1000) ->  | EV11: =((EV55/$CG55))*($CG11/1000) ->  | EY11: =((EY55/$CG55))*($CG11/1000) -> 
A12: 20220109 | B12: 2022 | C12: 1 | D12: 9 | E12: 2021-12-09 | F12: 2022-01-10 | G12: 33 | K12: 9 | L12: 0 | M12: 0 | N12: 0 | O12: 0 | P12: 0 | Q12: 0 | R12: 0 | S12: 0 | T12: 0 | U12: 0 | V12: 0 | W12: 0 | X12: 0 | Y12: 0 | Z12: 1 | AA12: 1 | AB12: 1 | AC12: 1 | AD12: 1 | AE12: 1 | AF12: 1 | AG12: 1 | AH12: 1 | AI12: 1 | AJ12: 1 | AK12: 1 | AL12: 1 | AM12: 1 | AN12: 1 | AO12: 1 | AP12: 1 | AQ12: 1 | AR12: 1 | AS12: 1 | AT12: 1 | AU12: 1 | AV12: 1 | AW12: 1 | AX12: 1 | AY12: 1 | AZ12: 1 | BA12: 1 | BB12: 1 | BC12: 1 | BD12: 1 | BE12: 1 | BF12: 1 | BG12: 0 | BH12: 0 | BI12: 0 | BJ12: 0 | BK12: 0 | BL12: 0 | BM12: 0 | BN12: 0 | BO12: 0 | BP12: 0 | BQ12: 0 | BR12: 0 | BS12: 0 | BT12: 0 | BU12: 0 | BV12: 0 | BW12: 0 | BX12: 0 | BY12: 0 | BZ12: 0 | CA12: 0 | CB12: 0 | CC12: 0 | CD12: 0 | CG12: 54708339 | CH12: 9 | CI12: =((CI56/$CG56))*($CG12/1000) ->  | DO12: =((DO56/$CG56))*($CG12/1000) ->  | EV12: =((EV56/$CG56))*($CG12/1000) ->  | EY12: =((EY56/$CG56))*($CG12/1000) -> 
A13: 20220110 | B13: 2022 | C13: 1 | D13: 10 | E13: 2021-12-10 | F13: 2022-01-11 | G13: 33 | K13: 10 | L13: 0 | M13: 0 | N13: 0 | O13: 0 | P13: 0 | Q13: 0 | R13: 0 | S13: 0 | T13: 0 | U13: 0 | V13: 0 | W13: 0 | X13: 0 | Y13: 0 | Z13: 0 | AA13: 1 | AB13: 1 | AC13: 1 | AD13: 1 | AE13: 1 | AF13: 1 | AG13: 1 | AH13: 1 | AI13: 1 | AJ13: 1 | AK13: =IF(AND(AK$3>=$E13,AK$3<=$F13),1,0) -> 1 | AL13: 1 | AM13: 1 | AN13: 1 | AO13: 1 | AP13: 1 | AQ13: 1 | AR13: 1 | AS13: 1 | AT13: 1 | AU13: 1 | AV13: 1 | AW13: 1 | AX13: 1 | AY13: 1 | AZ13: 1 | BA13: 1 | BB13: 1 | BC13: 1 | BD13: 1 | BE13: 1 | BF13: 1 | BG13: 1 | BH13: 0 | BI13: 0 | BJ13: 0 | BK13: 0 | BL13: 0 | BM13: 0 | BN13: 0 | BO13: 0 | BP13: 0 | BQ13: 0 | BR13: 0 | BS13: 0 | BT13: 0 | BU13: 0 | BV13: 0 | BW13: 0 | BX13: 0 | BY13: 0 | BZ13: 0 | CA13: 0 | CB13: 0 | CC13: 0 | CD13: 0 | CG13: 125372019 | CH13: 10 | CI13: =((CI57/$CG57))*($CG13/1000) ->  | DO13: =((DO57/$CG57))*($CG13/1000) ->  | EV13: =((EV57/$CG57))*($CG13/1000) ->  | EY13: =((EY57/$CG57))*($CG13/1000) -> 
A14: 20220111 | B14: 2022 | C14: 1 | D14: 11 | E14: 2021-12-11 | F14: 2022-01-12 | G14: 33 | K14: 11 | L14: 0 | M14: 0 | N14: 0 | O14: 0 | P14: 0 | Q14: 0 | R14: 0 | S14: 0 | T14: 0 | U14: 0 | V14: 0 | W14: 0 | X14: 0 | Y14: 0 | Z14: 0 | AA14: 0 | AB14: =IF(AND(AB$3>=$E14,AB$3<=$F14),1,0) -> 1 | AC14: 1 | AD14: 1 | AE14: 1 | AF14: 1 | AG14: 1 | AH14: 1 | AI14: 1 | AJ14: 1 | AK14: 1 | AL14: 1 | AM14: 1 | AN14: 1 | AO14: 1 | AP14: 1 | AQ14: 1 | AR14: 1 | AS14: 1 | AT14: 1 | AU14: 1 | AV14: 1 | AW14: 1 | AX14: 1 | AY14: 1 | AZ14: 1 | BA14: 1 | BB14: 1 | BC14: 1 | BD14: 1 | BE14: 1 | BF14: 1 | BG14: 1 | BH14: 1 | BI14: 0 | BJ14: 0 | BK14: 0 | BL14: 0 | BM14: 0 | BN14: 0 | BO14: 0 | BP14: 0 | BQ14: 0 | BR14: 0 | BS14: 0 | BT14: 0 | BU14: 0 | BV14: 0 | BW14: 0 | BX14: 0 | BY14: 0 | BZ14: 0 | CA14: 0 | CB14: 0 | CC14: 0 | CD14: 0 | CG14: 51191230 | CH14: 11 | CI14: =((CI58/$CG58))*($CG14/1000) ->  | DO14: =((DO58/$CG58))*($CG14/1000) ->  | EV14: =((EV58/$CG58))*($CG14/1000) ->  | EY14: =((EY58/$CG58))*($CG14/1000) -> 
A15: 20220112 | B15: 2022 | C15: 1 | D15: 12 | E15: 2021-12-11 | F15: 2022-01-12 | G15: 33 | K15: 12 | L15: 0 | M15: 0 | N15: 0 | O15: 0 | P15: 0 | Q15: 0 | R15: 0 | S15: 0 | T15: 0 | U15: 0 | V15: 0 | W15: 0 | X15: 0 | Y15: 0 | Z15: 0 | AA15: 0 | AB15: 1 | AC15: 1 | AD15: 1 | AE15: 1 | AF15: 1 | AG15: 1 | AH15: 1 | AI15: 1 | AJ15: 1 | AK15: 1 | AL15: 1 | AM15: 1 | AN15: 1 | AO15: 1 | AP15: 1 | AQ15: 1 | AR15: 1 | AS15: 1 | AT15: 1 | AU15: 1 | AV15: 1 | AW15: 1 | AX15: 1 | AY15: 1 | AZ15: 1 | BA15: 1 | BB15: 1 | BC15: 1 | BD15: 1 | BE15: 1 | BF15: 1 | BG15: 1 | BH15: 1 | BI15: 0 | BJ15: 0 | BK15: 0 | BL15: 0 | BM15: 0 | BN15: 0 | BO15: 0 | BP15: 0 | BQ15: 0 | BR15: 0 | BS15: 0 | BT15: 0 | BU15: 0 | BV15: 0 | BW15: 0 | BX15: 0 | BY15: 0 | BZ15: 0 | CA15: 0 | CB15: 0 | CC15: 0 | CD15: 0 | CG15: 47585004 | CH15: 12 | CI15: =((CI59/$CG59))*($CG15/1000) ->  | DO15: =((DO59/$CG59))*($CG15/1000) ->  | EV15: =((EV59/$CG59))*($CG15/1000) ->  | EY15: =((EY59/$CG59))*($CG15/1000) -> 
A16: 20220113 | B16: 2022 | C16: 1 | D16: 13 | E16: 2021-12-14 | F16: 2022-01-13 | G16: 31 | K16: 13 | L16: 0 | M16: 0 | N16: 0 | O16: 0 | P16: 0 | Q16: 0 | R16: 0 | S16: 0 | T16: 0 | U16: 0 | V16: 0 | W16: 0 | X16: 0 | Y16: 0 | Z16: 0 | AA16: 0 | AB16: 0 | AC16: 0 | AD16: 0 | AE16: 1 | AF16: 1 | AG16: 1 | AH16: 1 | AI16: 1 | AJ16: 1 | AK16: 1 | AL16: 1 | AM16: 1 | AN16: 1 | AO16: 1 | AP16: 1 | AQ16: 1 | AR16: 1 | AS16: 1 | AT16: 1 | AU16: 1 | AV16: 1 | AW16: 1 | AX16: 1 | AY16: 1 | AZ16: 1 | BA16: 1 | BB16: 1 | BC16: 1 | BD16: 1 | BE16: 1 | BF16: 1 | BG16: 1 | BH16: 1 | BI16: 1 | BJ16: 0 | BK16: 0 | BL16: 0 | BM16: 0 | BN16: 0 | BO16: 0 | BP16: 0 | BQ16: 0 | BR16: 0 | BS16: 0 | BT16: 0 | BU16: 0 | BV16: 0 | BW16: 0 | BX16: 0 | BY16: 0 | BZ16: 0 | CA16: 0 | CB16: 0 | CC16: 0 | CD16: 0 | CG16: 52782216 | CH16: 13 | CI16: =((CI60/$CG60))*($CG16/1000) ->  | DO16: =((DO60/$CG60))*($CG16/1000) ->  | EV16: =((EV60/$CG60))*($CG16/1000) ->  | EY16: =((EY60/$CG60))*($CG16/1000) -> 
A17: 20220114 | B17: 2022 | C17: 1 | D17: 14 | E17: 2021-12-15 | F17: 2022-01-14 | G17: 31 | K17: 14 | L17: 0 | M17: 0 | N17: 0 | O17: 0 | P17: 0 | Q17: 0 | R17: 0 | S17: 0 | T17: 0 | U17: 0 | V17: 0 | W17: 0 | X17: 0 | Y17: 0 | Z17: 0 | AA17: 0 | AB17: 0 | AC17: 0 | AD17: 0 | AE17: 0 | AF17: 1 | AG17: 1 | AH17: 1 | AI17: 1 | AJ17: 1 | AK17: 1 | AL17: 1 | AM17: 1 | AN17: 1 | AO17: 1 | AP17: 1 | AQ17: 1 | AR17: 1 | AS17: 1 | AT17: 1 | AU17: 1 | AV17: 1 | AW17: 1 | AX17: 1 | AY17: 1 | AZ17: 1 | BA17: 1 | BB17: 1 | BC17: 1 | BD17: 1 | BE17: 1 | BF17: 1 | BG17: 1 | BH17: 1 | BI17: 1 | BJ17: 1 | BK17: 0 | BL17: 0 | BM17: 0 | BN17: 0 | BO17: 0 | BP17: 0 | BQ17: 0 | BR17: 0 | BS17: 0 | BT17: 0 | BU17: 0 | BV17: 0 | BW17: 0 | BX17: 0 | BY17: 0 | BZ17: 0 | CA17: 0 | CB17: 0 | CC17: 0 | CD17: 0 | CG17: 69578631 | CH17: 14 | CI17: =((CI61/$CG61))*($CG17/1000) ->  | DO17: =((DO61/$CG61))*($CG17/1000) ->  | EV17: =((EV61/$CG61))*($CG17/1000) ->  | EY17: =((EY61/$CG61))*($CG17/1000) -> 
A18: 20220115 | B18: 2022 | C18: 1 | D18: 15 | E18: 2021-12-16 | F18: 2022-01-18 | G18: 34 | K18: 15 | L18: 0 | M18: 0 | N18: 0 | O18: 0 | P18: 0 | Q18: 0 | R18: 0 | S18: 0 | T18: 0 | U18: 0 | V18: 0 | W18: 0 | X18: 0 | Y18: 0 | Z18: 0 | AA18: 0 | AB18: 0 | AC18: 0 | AD18: 0 | AE18: 0 | AF18: 0 | AG18: 1 | AH18: 1 | AI18: 1 | AJ18: 1 | AK18: 1 | AL18: 1 | AM18: 1 | AN18: 1 | AO18: 1 | AP18: 1 | AQ18: 1 | AR18: 1 | AS18: 1 | AT18: 1 | AU18: 1 | AV18: 1 | AW18: 1 | AX18: 1 | AY18: 1 | AZ18: 1 | BA18: 1 | BB18: 1 | BC18: 1 | BD18: 1 | BE18: 1 | BF18: 1 | BG18: 1 | BH18: 1 | BI18: 1 | BJ18: 1 | BK18: 1 | BL18: 1 | BM18: 1 | BN18: 1 | BO18: 0 | BP18: 0 | BQ18: 0 | BR18: 0 | BS18: 0 | BT18: 0 | BU18: 0 | BV18: 0 | BW18: 0 | BX18: 0 | BY18: 0 | BZ18: 0 | CA18: 0 | CB18: 0 | CC18: 0 | CD18: 0 | CG18: 100434076 | CH18: 15 | CI18: =((CI62/$CG62))*($CG18/1000) ->  | DO18: =((DO62/$CG62))*($CG18/1000) ->  | EV18: =((EV62/$CG62))*($CG18/1000) ->  | EY18: =((EY62/$CG62))*($CG18/1000) -> 
A19: 20220116 | B19: 2022 | C19: 1 | D19: 16 | E19: 2021-12-17 | F19: 2022-01-19 | G19: 34 | K19: 16 | L19: 0 | M19: 0 | N19: 0 | O19: 0 | P19: 0 | Q19: 0 | R19: 0 | S19: 0 | T19: 0 | U19: 0 | V19: 0 | W19: 0 | X19: 0 | Y19: 0 | Z19: 0 | AA19: 0 | AB19: 0 | AC19: 0 | AD19: 0 | AE19: 0 | AF19: 0 | AG19: 0 | AH19: 1 | AI19: 1 | AJ19: 1 | AK19: 1 | AL19: =IF(AND(AL$3>=$E19,AL$3<=$F19),1,0) -> 1 | AM19: 1 | AN19: 1 | AO19: 1 | AP19: 1 | AQ19: 1 | AR19: 1 | AS19: 1 | AT19: 1 | AU19: 1 | AV19: 1 | AW19: 1 | AX19: 1 | AY19: 1 | AZ19: 1 | BA19: 1 | BB19: 1 | BC19: 1 | BD19: 1 | BE19: 1 | BF19: 1 | BG19: 1 | BH19: 1 | BI19: 1 | BJ19: 1 | BK19: 1 | BL19: 1 | BM19: 1 | BN19: 1 | BO19: 1 | BP19: 0 | BQ19: 0 | BR19: 0 | BS19: 0 | BT19: 0 | BU19: 0 | BV19: 0 | BW19: 0 | BX19: 0 | BY19: 0 | BZ19: 0 | CA19: 0 | CB19: 0 | CC19: 0 | CD19: 0 | CG19: 57988808 | CH19: 16 | CI19: =((CI63/$CG63))*($CG19/1000) ->  | DO19: =((DO63/$CG63))*($CG19/1000) ->  | EV19: =((EV63/$CG63))*($CG19/1000) ->  | EY19: =((EY63/$CG63))*($CG19/1000) -> 
A20: 20220117 | B20: 2022 | C20: 1 | D20: 17 | E20: 2021-12-18 | F20: 2022-01-20 | G20: 34 | K20: 17 | L20: 0 | M20: 0 | N20: 0 | O20: 0 | P20: 0 | Q20: 0 | R20: 0 | S20: 0 | T20: 0 | U20: 0 | V20: 0 | W20: 0 | X20: 0 | Y20: 0 | Z20: 0 | AA20: 0 | AB20: =IF(AND(AB$3>=$E20,AB$3<=$F20),1,0) -> 0 | AC20: 0 | AD20: 0 | AE20: 0 | AF20: 0 | AG20: 0 | AH20: 0 | AI20: 1 | AJ20: 1 | AK20: 1 | AL20: 1 | AM20: 1 | AN20: 1 | AO20: 1 | AP20: 1 | AQ20: 1 | AR20: 1 | AS20: 1 | AT20: 1 | AU20: 1 | AV20: 1 | AW20: 1 | AX20: 1 | AY20: 1 | AZ20: 1 | BA20: 1 | BB20: 1 | BC20: 1 | BD20: 1 | BE20: 1 | BF20: 1 | BG20: 1 | BH20: 1 | BI20: 1 | BJ20: 1 | BK20: 1 | BL20: 1 | BM20: 1 | BN20: 1 | BO20: 1 | BP20: 1 | BQ20: 0 | BR20: 0 | BS20: 0 | BT20: 0 | BU20: 0 | BV20: 0 | BW20: 0 | BX20: 0 | BY20: 0 | BZ20: 0 | CA20: 0 | CB20: =IF(AND(CB$3>=$E20,CB$3<=$F20),1,0) -> 0 | CC20: 0 | CD20: 0 | CG20: 42193532 | CH20: 17 | CI20: =((CI64/$CG64))*($CG20/1000) ->  | DO20: =((DO64/$CG64))*($CG20/1000) ->  | EV20: =((EV64/$CG64))*($CG20/1000) ->  | EY20: =((EY64/$CG64))*($CG20/1000) -> 
A21: 20220118 | B21: 2022 | C21: 1 | D21: 18 | E21: 2021-12-21 | F21: 2022-01-21 | G21: 32 | K21: 18 | L21: 0 | M21: 0 | N21: 0 | O21: 0 | P21: 0 | Q21: 0 | R21: 0 | S21: 0 | T21: 0 | U21: 0 | V21: 0 | W21: 0 | X21: 0 | Y21: 0 | Z21: 0 | AA21: 0 | AB21: 0 | AC21: 0 | AD21: 0 | AE21: 0 | AF21: 0 | AG21: 0 | AH21: 0 | AI21: 0 | AJ21: 0 | AK21: 0 | AL21: 1 | AM21: 1 | AN21: 1 | AO21: 1 | AP21: 1 | AQ21: 1 | AR21: 1 | AS21: 1 | AT21: 1 | AU21: 1 | AV21: 1 | AW21: 1 | AX21: 1 | AY21: 1 | AZ21: 1 | BA21: 1 | BB21: 1 | BC21: 1 | BD21: 1 | BE21: 1 | BF21: 1 | BG21: 1 | BH21: 1 | BI21: 1 | BJ21: 1 | BK21: 1 | BL21: 1 | BM21: 1 | BN21: 1 | BO21: 1 | BP21: 1 | BQ21: 1 | BR21: 0 | BS21: 0 | BT21: 0 | BU21: 0 | BV21: 0 | BW21: 0 | BX21: 0 | BY21: 0 | BZ21: 0 | CA21: 0 | CB21: 0 | CC21: 0 | CD21: 0 | CG21: 108493177 | CH21: 18 | CI21: =((CI65/$CG65))*($CG21/1000) ->  | DO21: =((DO65/$CG65))*($CG21/1000) ->  | EV21: =((EV65/$CG65))*($CG21/1000) ->  | EY21: =((EY65/$CG65))*($CG21/1000) -> 
A22: 20220119 | B22: 2022 | C22: 1 | D22: 19 | E22: 2021-12-22 | F22: 2022-01-24 | G22: 34 | K22: 19 | L22: 0 | M22: 0 | N22: 0 | O22: 0 | P22: 0 | Q22: 0 | R22: 0 | S22: 0 | T22: 0 | U22: 0 | V22: 0 | W22: 0 | X22: 0 | Y22: 0 | Z22: 0 | AA22: 0 | AB22: 0 | AC22: 0 | AD22: 0 | AE22: 0 | AF22: 0 | AG22: 0 | AH22: 0 | AI22: 0 | AJ22: 0 | AK22: 0 | AL22: 0 | AM22: 1 | AN22: 1 | AO22: 1 | AP22: 1 | AQ22: 1 | AR22: 1 | AS22: 1 | AT22: 1 | AU22: 1 | AV22: 1 | AW22: 1 | AX22: 1 | AY22: 1 | AZ22: 1 | BA22: 1 | BB22: 1 | BC22: 1 | BD22: 1 | BE22: 1 | BF22: 1 | BG22: 1 | BH22: 1 | BI22: 1 | BJ22: 1 | BK22: 1 | BL22: 1 | BM22: 1 | BN22: 1 | BO22: 1 | BP22: 1 | BQ22: 1 | BR22: 1 | BS22: 1 | BT22: 1 | BU22: 0 | BV22: 0 | BW22: 0 | BX22: 0 | BY22: 0 | BZ22: 0 | CA22: 0 | CB22: 0 | CC22: 0 | CD22: 0 | CG22: 52253470 | CH22: 19 | CI22: =((CI66/$CG66))*($CG22/1000) ->  | DO22: =((DO66/$CG66))*($CG22/1000) ->  | EV22: =((EV66/$CG66))*($CG22/1000) ->  | EY22: =((EY66/$CG66))*($CG22/1000) -> 
A23: 20220120 | B23: 2022 | C23: 1 | D23: 20 | E23: 2021-12-23 | F23: 2022-01-25 | G23: 34 | K23: 20 | L23: 0 | M23: 0 | N23: 0 | O23: 0 | P23: 0 | Q23: 0 | R23: 0 | S23: 0 | T23: 0 | U23: 0 | V23: 0 | W23: 0 | X23: =IF(AND(X$3>=$E23,X$3<=$F23),1,0) -> 0 | Y23: 0 | Z23: 0 | AA23: 0 | AB23: 0 | AC23: 0 | AD23: 0 | AE23: 0 | AF23: 0 | AG23: 0 | AH23: 0 | AI23: 0 | AJ23: 0 | AK23: 0 | AL23: 0 | AM23: 0 | AN23: 1 | AO23: 1 | AP23: 1 | AQ23: 1 | AR23: 1 | AS23: 1 | AT23: 1 | AU23: 1 | AV23: 1 | AW23: 1 | AX23: 1 | AY23: 1 | AZ23: 1 | BA23: 1 | BB23: 1 | BC23: 1 | BD23: 1 | BE23: 1 | BF23: 1 | BG23: 1 | BH23: 1 | BI23: 1 | BJ23: 1 | BK23: 1 | BL23: 1 | BM23: 1 | BN23: 1 | BO23: 1 | BP23: 1 | BQ23: 1 | BR23: 1 | BS23: 1 | BT23: 1 | BU23: 1 | BV23: 0 | BW23: 0 | BX23: 0 | BY23: 0 | BZ23: 0 | CA23: 0 | CB23: 0 | CC23: 0 | CD23: 0 | CG23: 47264312 | CH23: 20 | CI23: =((CI67/$CG67))*($CG23/1000) ->  | DO23: =((DO67/$CG67))*($CG23/1000) ->  | EV23: =((EV67/$CG67))*($CG23/1000) ->  | EY23: =((EY67/$CG67))*($CG23/1000) -> 
A24: 20220121 | B24: 2022 | C24: 1 | D24: 21 | E24: 2021-12-28 | F24: 2022-01-26 | G24: 30 | K24: 21 | L24: =IF(AND(L$3>=$E24,L$3<=$F24),1,0) -> 0 | M24: 0 | N24: 0 | O24: 0 | P24: 0 | Q24: 0 | R24: 0 | S24: 0 | T24: 0 | U24: 0 | V24: 0 | W24: 0 | X24: 0 | Y24: 0 | Z24: 0 | AA24: 0 | AB24: 0 | AC24: 0 | AD24: 0 | AE24: 0 | AF24: 0 | AG24: 0 | AH24: 0 | AI24: 0 | AJ24: 0 | AK24: 0 | AL24: 0 | AM24: 0 | AN24: 0 | AO24: 0 | AP24: 0 | AQ24: 0 | AR24: 0 | AS24: 1 | AT24: 1 | AU24: 1 | AV24: 1 | AW24: 1 | AX24: 1 | AY24: 1 | AZ24: 1 | BA24: 1 | BB24: 1 | BC24: 1 | BD24: 1 | BE24: 1 | BF24: 1 | BG24: 1 | BH24: 1 | BI24: 1 | BJ24: 1 | BK24: 1 | BL24: 1 | BM24: 1 | BN24: 1 | BO24: 1 | BP24: 1 | BQ24: 1 | BR24: 1 | BS24: 1 | BT24: 1 | BU24: 1 | BV24: 1 | BW24: 0 | BX24: 0 | BY24: 0 | BZ24: 0 | CA24: 0 | CB24: 0 | CC24: 0 | CD24: 0 | CG24: 88187648 | CH24: 21 | CI24: =((CI68/$CG68))*($CG24/1000) ->  | DO24: =((DO68/$CG68))*($CG24/1000) ->  | EV24: =((EV68/$CG68))*($CG24/1000) ->  | EY24: =((EY68/$CG68))*($CG24/1000) -> 
A25: =+A24+2 -> 20220123 | B25: 2022 | C25: 1 | D25: 23 | E25: 2022-01-01 | F25: =DATE(A1,A2,31) -> 2022-01-31 | G25: 31 | K25: 23 | L25: 0 | M25: 0 | N25: 0 | O25: 0 | P25: 0 | Q25: 0 | R25: 0 | S25: 0 | T25: 0 | U25: 0 | V25: 0 | W25: 0 | X25: 0 | Y25: 0 | Z25: 0 | AA25: 0 | AB25: 0 | AC25: 0 | AD25: 0 | AE25: 0 | AF25: 0 | AG25: 0 | AH25: 0 | AI25: 0 | AJ25: 0 | AK25: 0 | AL25: 0 | AM25: 0 | AN25: 0 | AO25: 0 | AP25: 0 | AQ25: 0 | AR25: 0 | AS25: 0 | AT25: 0 | AU25: 0 | AV25: 0 | AW25: 1 | AX25: 1 | AY25: 1 | AZ25: 1 | BA25: 1 | BB25: 1 | BC25: 1 | BD25: 1 | BE25: 1 | BF25: 1 | BG25: 1 | BH25: 1 | BI25: 1 | BJ25: 1 | BK25: 1 | BL25: 1 | BM25: 1 | BN25: 1 | BO25: 1 | BP25: 1 | BQ25: 1 | BR25: 1 | BS25: 1 | BT25: 1 | BU25: 1 | BV25: 1 | BW25: 1 | BX25: 1 | BY25: 1 | BZ25: 1 | CA25: 1 | CB25: =IF(AND(CB$3>=$E25,CB$3<=$F25),1,0) -> 0 | CC25: 0 | CD25: 0 | CF25: =SUM(CI25:FA25)-CG25/1000 ->  | CG25: 123677210 | CH25: 23 | CI25: =((CI69/$CG69))*($CG25/1000) ->  | DO25: =((DO69/$CG69))*($CG25/1000) ->  | EV25: =((EV69/$CG69))*($CG25/1000) ->  | EY25: =((EY69/$CG69))*($CG25/1000) -> 
G26: =AVERAGE(G4:G25) -> 32.36363636 | K26: Cnt | L26: =SUM(L4:L25) -> 1 | M26: =SUM(M4:M25) -> 1 | N26: =SUM(N4:N25) -> 1 | O26: 1 | P26: 1 | Q26: 2 | R26: 3 | S26: 4 | T26: 5 | U26: 6 | V26: 6 | W26: 6 | X26: 7 | Y26: 8 | Z26: 9 | AA26: 10 | AB26: 12 | AC26: 12 | AD26: 12 | AE26: 13 | AF26: 14 | AG26: 15 | AH26: 16 | AI26: 17 | AJ26: 17 | AK26: 17 | AL26: 18 | AM26: 19 | AN26: 20 | AO26: 20 | AP26: 20 | AQ26: 20 | AR26: 20 | AS26: 21 | AT26: 20 | AU26: 19 | AV26: 18 | AW26: =SUM(AW4:AW25) -> 19 | AX26: 19 | AY26: 19 | AZ26: 18 | BA26: 17 | BB26: 16 | BC26: 15 | BD26: 14 | BE26: 14 | BF26: 14 | BG26: 13 | BH26: 12 | BI26: 10 | BJ26: 9 | BK26: 8 | BL26: 8 | BM26: 8 | BN26: 8 | BO26: 7 | BP26: 6 | BQ26: 5 | BR26: 4 | BS26: 4 | BT26: 4 | BU26: 3 | BV26: 2 | BW26: 1 | BX26: 1 | BY26: =SUM(BY4:BY25) -> 1 | BZ26: 1 | CA26: 1 | CB26: 0 | CC26: 0 | CD26: 0 | CF26: =SUM(CI26:FA26)-CG26/1000 ->  | CG26: =SUM(CG4:CG25) -> 1538557573 | CH26: =SUM(CI26:FA26) ->  | CI26: =SUM(CI4:CI25) ->  | CJ26: =SUM(CJ4:CJ25) ->  | EV26: =SUM(EV4:EV25) ->  | EY26: =SUM(EY4:EY25) -> 
F27: Check | G27: =+CD3 -> 2022-02-03 | I27: =SUM(L27:CD27) -> 32.36363636 | K27: PctOn | L27: =+L26/22 -> 0.04545454545 | M27: =+M26/22 -> 0.04545454545 | N27: =+N26/22 -> 0.04545454545 | O27: 0.04545454545 | P27: 0.04545454545 | Q27: 0.09090909091 | R27: 0.1363636364 | S27: 0.1818181818 | T27: 0.2272727273 | U27: 0.2727272727 | V27: 0.2727272727 | W27: 0.2727272727 | X27: 0.3181818182 | Y27: 0.3636363636 | Z27: 0.4090909091 | AA27: 0.4545454545 | AB27: 0.5454545455 | AC27: 0.5454545455 | AD27: 0.5454545455 | AE27: 0.5909090909 | AF27: 0.6363636364 | AG27: 0.6818181818 | AH27: 0.7272727273 | AI27: 0.7727272727 | AJ27: 0.7727272727 | AK27: 0.7727272727 | AL27: 0.8181818182 | AM27: 0.8636363636 | AN27: 0.9090909091 | AO27: 0.9090909091 | AP27: 0.9090909091 | AQ27: 0.9090909091 | AR27: 0.9090909091 | AS27: 0.9545454545 | AT27: 0.9090909091 | AU27: 0.8636363636 | AV27: 0.8181818182 | AW27: 0.8636363636 | AX27: 0.8636363636 | AY27: 0.8636363636 | AZ27: 0.8181818182 | BA27: 0.7727272727 | BB27: 0.7272727273 | BC27: 0.6818181818 | BD27: 0.6363636364 | BE27: 0.6363636364 | BF27: 0.6363636364 | BG27: 0.5909090909 | BH27: 0.5454545455 | BI27: 0.4545454545 | BJ27: 0.4090909091 | BK27: 0.3636363636 | BL27: 0.3636363636 | BM27: 0.3636363636 | BN27: 0.3636363636 | BO27: 0.3181818182 | BP27: 0.2727272727 | BQ27: 0.2272727273 | BR27: 0.1818181818 | BS27: 0.1818181818 | BT27: 0.1818181818 | BU27: 0.1363636364 | BV27: 0.09090909091 | BW27: 0.04545454545 | BX27: 0.04545454545 | BY27: =+BY26/22 -> 0.04545454545 | BZ27: 0.04545454545 | CA27: 0.04545454545 | CB27: 0 | CC27: 0 | CD27: 0 | CH27: NEL---->>> | CI27: =VLOOKUP(CI3,Daily!$A$2:$H$459,8) -> 0 | CJ27: =VLOOKUP(CJ3,Daily!$A$2:$H$459,8) -> 0 | CK27: =VLOOKUP(CK3,Daily!$A$2:$H$459,8) -> 0 | CL27: =VLOOKUP(CL3,Daily!$A$2:$H$459,8) -> 0 | CM27: =VLOOKUP(CM3,Daily!$A$2:$H$459,8) -> 0 | CN27: =VLOOKUP(CN3,Daily!$A$2:$H$459,8) -> 0 | CO27: =VLOOKUP(CO3,Daily!$A$2:$H$459,8) -> 0 | CP27: =VLOOKUP(CP3,Daily!$A$2:$H$459,8) -> 0 | CQ27: =VLOOKUP(CQ3,Daily!$A$2:$H$459,8) -> 0 | CR27: =VLOOKUP(CR3,Daily!$A$2:$H$459,8) -> 0 | CS27: =VLOOKUP(CS3,Daily!$A$2:$H$459,8) -> 0 | CT27: =VLOOKUP(CT3,Daily!$A$2:$H$459,8) -> 0 | CU27: =VLOOKUP(CU3,Daily!$A$2:$H$459,8) -> 0 | CV27: =VLOOKUP(CV3,Daily!$A$2:$H$459,8) -> 0 | CW27: =VLOOKUP(CW3,Daily!$A$2:$H$459,8) -> 0 | CX27: =VLOOKUP(CX3,Daily!$A$2:$H$459,8) -> 0 | CY27: =VLOOKUP(CY3,Daily!$A$2:$H$459,8) -> 0 | CZ27: =VLOOKUP(CZ3,Daily!$A$2:$H$459,8) -> 0 | DA27: =VLOOKUP(DA3,Daily!$A$2:$H$459,8) -> 0 | DB27: =VLOOKUP(DB3,Daily!$A$2:$H$459,8) -> 0 | DC27: =VLOOKUP(DC3,Daily!$A$2:$H$459,8) -> 0 | DD27: =VLOOKUP(DD3,Daily!$A$2:$H$459,8) -> 0 | DE27: =VLOOKUP(DE3,Daily!$A$2:$H$459,8) -> 0 | DF27: =VLOOKUP(DF3,Daily!$A$2:$H$459,8) -> 0 | DG27: =VLOOKUP(DG3,Daily!$A$2:$H$459,8) -> 0 | DH27: =VLOOKUP(DH3,Daily!$A$2:$H$459,8) -> 0 | DI27: =VLOOKUP(DI3,Daily!$A$2:$H$459,8) -> 0 | DJ27: =VLOOKUP(DJ3,Daily!$A$2:$H$459,8) -> 0 | DK27: =VLOOKUP(DK3,Daily!$A$2:$H$459,8) -> 0 | DL27: =VLOOKUP(DL3,Daily!$A$2:$H$459,8) -> 0 | DM27: =VLOOKUP(DM3,Daily!$A$2:$H$459,8) -> 0 | DN27: =VLOOKUP(DN3,Daily!$A$2:$H$459,8) -> 0 | DO27: =VLOOKUP(DO3,Daily!$A$2:$H$459,8) -> 0 | DP27: =VLOOKUP(DP3,Daily!$A$2:$H$459,8) -> 0 | DQ27: =VLOOKUP(DQ3,Daily!$A$2:$H$459,8) -> 0 | DR27: =VLOOKUP(DR3,Daily!$A$2:$H$459,8) -> 0 | DS27: =VLOOKUP(DS3,Daily!$A$2:$H$459,8) -> 0 | DT27: =VLOOKUP(DT3,Daily!$A$2:$H$459,8) -> 0 | DU27: =VLOOKUP(DU3,Daily!$A$2:$H$459,8) -> 0 | DV27: =VLOOKUP(DV3,Daily!$A$2:$H$459,8) -> 0 | DW27: =VLOOKUP(DW3,Daily!$A$2:$H$459,8) -> 0 | DX27: =VLOOKUP(DX3,Daily!$A$2:$H$459,8) -> 0 | DY27: =VLOOKUP(DY3,Daily!$A$2:$H$459,8) -> 0 | DZ27: =VLOOKUP(DZ3,Daily!$A$2:$H$459,8) -> 0 | EA27: =VLOOKUP(EA3,Daily!$A$2:$H$459,8) -> 0 | EB27: =VLOOKUP(EB3,Daily!$A$2:$H$459,8) -> 0 | EC27: =VLOOKUP(EC3,Daily!$A$2:$H$459,8) -> 0 | ED27: =VLOOKUP(ED3,Daily!$A$2:$H$459,8) -> 0 | EE27: =VLOOKUP(EE3,Daily!$A$2:$H$459,8) -> 0 | EF27: =VLOOKUP(EF3,Daily!$A$2:$H$459,8) -> 0 | EG27: =VLOOKUP(EG3,Daily!$A$2:$H$459,8) -> 0 | EH27: =VLOOKUP(EH3,Daily!$A$2:$H$459,8) -> 0 | EI27: =VLOOKUP(EI3,Daily!$A$2:$H$459,8) -> 0 | EJ27: =VLOOKUP(EJ3,Daily!$A$2:$H$459,8) -> 0 | EK27: =VLOOKUP(EK3,Daily!$A$2:$H$459,8) -> 0 | EL27: =VLOOKUP(EL3,Daily!$A$2:$H$459,8) -> 0 | EM27: =VLOOKUP(EM3,Daily!$A$2:$H$459,8) -> 0 | EN27: =VLOOKUP(EN3,Daily!$A$2:$H$459,8) -> 0 | EO27: =VLOOKUP(EO3,Daily!$A$2:$H$459,8) -> 0 | EP27: =VLOOKUP(EP3,Daily!$A$2:$H$459,8) -> 0 | EQ27: =VLOOKUP(EQ3,Daily!$A$2:$H$459,8) -> 0 | ER27: =VLOOKUP(ER3,Daily!$A$2:$H$459,8) -> 0 | ES27: =VLOOKUP(ES3,Daily!$A$2:$H$459,8) -> 0 | ET27: =VLOOKUP(ET3,Daily!$A$2:$H$459,8) -> 0 | EU27: =VLOOKUP(EU3,Daily!$A$2:$H$459,8) -> 0 | EV27: =VLOOKUP(EV3,Daily!$A$2:$H$459,8) -> 0 | EW27: =VLOOKUP(EW3,Daily!$A$2:$H$459,8) -> 0 | EX27: =VLOOKUP(EX3,Daily!$A$2:$H$459,8) -> 0 | EY27: =VLOOKUP(EY3,Daily!$A$2:$H$459,8) -> 0 | EZ27: =VLOOKUP(EZ3,Daily!$A$2:$H$459,8) -> 0 | FA27: =VLOOKUP(FA3,Daily!$A$2:$H$459,8) -> 0
K28: PctOff | L28: =1-L27 -> 0.9545454545 | M28: =1-M27 -> 0.9545454545 | N28: 0.9545454545 | O28: 0.9545454545 | P28: 0.9545454545 | Q28: 0.9090909091 | R28: 0.8636363636 | S28: 0.8181818182 | T28: 0.7727272727 | U28: 0.7272727273 | V28: 0.7272727273 | W28: 0.7272727273 | X28: 0.6818181818 | Y28: 0.6363636364 | Z28: 0.5909090909 | AA28: 0.5454545455 | AB28: 0.4545454545 | AC28: 0.4545454545 | AD28: 0.4545454545 | AE28: 0.4090909091 | AF28: 0.3636363636 | AG28: 0.3181818182 | AH28: 0.2727272727 | AI28: 0.2272727273 | AJ28: 0.2272727273 | AK28: 0.2272727273 | AL28: 0.1818181818 | AM28: 0.1363636364 | AN28: 0.09090909091 | AO28: 0.09090909091 | AP28: 0.09090909091 | AQ28: 0.09090909091 | AR28: 0.09090909091 | AS28: 0.04545454545 | AT28: 0.09090909091 | AU28: 0.1363636364 | AV28: 0.1818181818 | AW28: 0.1363636364 | AX28: 0.1363636364 | AY28: 0.1363636364 | AZ28: 0.1818181818 | BA28: 0.2272727273 | BB28: 0.2727272727 | BC28: 0.3181818182 | BD28: 0.3636363636 | BE28: 0.3636363636 | BF28: 0.3636363636 | BG28: 0.4090909091 | BH28: 0.4545454545 | BI28: 0.5454545455 | BJ28: 0.5909090909 | BK28: 0.6363636364 | BL28: 0.6363636364 | BM28: 0.6363636364 | BN28: 0.6363636364 | BO28: 0.6818181818 | BP28: 0.7272727273 | BQ28: 0.7727272727 | BR28: 0.8181818182 | BS28: 0.8181818182 | BT28: 0.8181818182 | BU28: 0.8636363636 | BV28: =1-BV27 -> 0.9090909091 | BW28: =1-BW27 -> 0.9545454545 | BX28: =1-BX27 -> 0.9545454545 | BY28: =1-BY27 -> 0.9545454545 | BZ28: 0.9545454545 | CA28: 0.9545454545 | CB28: =1-CB27 -> 1 | CC28: 1 | CD28: 1 | CG28: January:
J29: Average | K29: Temp | L29: =VLOOKUP(L3,Daily!$A:$D,4) -> 68.5 | M29: =VLOOKUP(M3,Daily!$A:$D,4) -> 68 | N29: =VLOOKUP(N3,Daily!$A:$D,4) -> 62.5 | O29: =VLOOKUP(O3,Daily!$A:$D,4) -> 62.5 | P29: =VLOOKUP(P3,Daily!$A:$D,4) -> 64 | Q29: =VLOOKUP(Q3,Daily!$A:$D,4) -> 61.5 | R29: =VLOOKUP(R3,Daily!$A:$D,4) -> 66.5 | S29: =VLOOKUP(S3,Daily!$A:$D,4) -> 67.5 | T29: =VLOOKUP(T3,Daily!$A:$D,4) -> 66.5 | U29: =VLOOKUP(U3,Daily!$A:$D,4) -> 65 | V29: =VLOOKUP(V3,Daily!$A:$D,4) -> 70.5 | W29: =VLOOKUP(W3,Daily!$A:$D,4) -> 71 | X29: =VLOOKUP(X3,Daily!$A:$D,4) -> 73.5 | Y29: =VLOOKUP(Y3,Daily!$A:$D,4) -> 73 | Z29: =VLOOKUP(Z3,Daily!$A:$D,4) -> 74.5 | AA29: =VLOOKUP(AA3,Daily!$A:$D,4) -> 75.5 | AB29: =VLOOKUP(AB3,Daily!$A:$D,4) -> 77 | AC29: =VLOOKUP(AC3,Daily!$A:$D,4) -> 76 | AD29: =VLOOKUP(AD3,Daily!$A:$D,4) -> 76.5 | AE29: =VLOOKUP(AE3,Daily!$A:$D,4) -> 75 | AF29: =VLOOKUP(AF3,Daily!$A:$D,4) -> 75 | AG29: =VLOOKUP(AG3,Daily!$A:$D,4) -> 77.5 | AH29: =VLOOKUP(AH3,Daily!$A:$D,4) -> 77.5 | AI29: =VLOOKUP(AI3,Daily!$A:$D,4) -> 78 | AJ29: =VLOOKUP(AJ3,Daily!$A:$D,4) -> 77.5 | AK29: =VLOOKUP(AK3,Daily!$A:$D,4) -> 72 | AL29: =VLOOKUP(AL3,Daily!$A:$D,4) -> 67 | AM29: =VLOOKUP(AM3,Daily!$A:$D,4) -> 60 | AN29: =VLOOKUP(AN3,Daily!$A:$D,4) -> 60.5 | AO29: =VLOOKUP(AO3,Daily!$A:$D,4) -> 65.5 | AP29: =VLOOKUP(AP3,Daily!$A:$D,4) -> 66.5 | AQ29: =VLOOKUP(AQ3,Daily!$A:$D,4) -> 68.5 | AR29: =VLOOKUP(AR3,Daily!$A:$D,4) -> 69.5 | AS29: =VLOOKUP(AS3,Daily!$A:$D,4) -> 70 | AT29: =VLOOKUP(AT3,Daily!$A:$D,4) -> 75 | AU29: =VLOOKUP(AU3,Daily!$A:$D,4) -> 74 | AV29: =VLOOKUP(AV3,Daily!$A:$D,4) -> 76 | AW29: =VLOOKUP(AW3,Daily!$A:$D,4) -> 74.5 | AX29: =VLOOKUP(AX3,Daily!$A:$D,4) -> 76.5 | AY29: =VLOOKUP(AY3,Daily!$A:$D,4) -> 65 | AZ29: =VLOOKUP(AZ3,Daily!$A:$D,4) -> 63 | BA29: =VLOOKUP(BA3,Daily!$A:$D,4) -> 67 | BB29: =VLOOKUP(BB3,Daily!$A:$D,4) -> 65 | BC29: =VLOOKUP(BC3,Daily!$A:$D,4) -> 72 | BD29: =VLOOKUP(BD3,Daily!$A:$D,4) -> 69.5 | BE29: =VLOOKUP(BE3,Daily!$A:$D,4) -> 74.5 | BF29: =VLOOKUP(BF3,Daily!$A:$D,4) -> 72.5 | BG29: =VLOOKUP(BG3,Daily!$A:$D,4) -> 63.5 | BH29: =VLOOKUP(BH3,Daily!$A:$D,4) -> 65.5 | BI29: =VLOOKUP(BI3,Daily!$A:$D,4) -> 66.5 | BJ29: =VLOOKUP(BJ3,Daily!$A:$D,4) -> 63.5 | BK29: =VLOOKUP(BK3,Daily!$A:$D,4) -> 62.5 | BL29: =VLOOKUP(BL3,Daily!$A:$D,4) -> 66.5 | BM29: =VLOOKUP(BM3,Daily!$A:$D,4) -> 61 | BN29: =VLOOKUP(BN3,Daily!$A:$D,4) -> 53 | BO29: =VLOOKUP(BO3,Daily!$A:$D,4) -> 61 | BP29: =VLOOKUP(BP3,Daily!$A:$D,4) -> 65.5 | BQ29: =VLOOKUP(BQ3,Daily!$A:$D,4) -> 68 | BR29: =VLOOKUP(BR3,Daily!$A:$D,4) -> 54.5 | BS29: =VLOOKUP(BS3,Daily!$A:$D,4) -> 51.5 | BT29: =VLOOKUP(BT3,Daily!$A:$D,4) -> 51.5 | BU29: =VLOOKUP(BU3,Daily!$A:$D,4) -> 53.5 | BV29: =VLOOKUP(BV3,Daily!$A:$D,4) -> 58.5 | BW29: =VLOOKUP(BW3,Daily!$A:$D,4) -> 66.5 | BX29: =VLOOKUP(BX3,Daily!$A:$D,4) -> 60.5 | BY29: =VLOOKUP(BY3,Daily!$A:$D,4) -> 48 | BZ29: =VLOOKUP(BZ3,Daily!$A:$D,4) -> 47 | CA29: =VLOOKUP(CA3,Daily!$A:$D,4) -> 54 | CB29: =VLOOKUP(CB3,Daily!$A:$D,4) -> 62.5 | CC29: =VLOOKUP(CC3,Daily!$A:$D,4) -> 69.5 | CD29: =VLOOKUP(CD3,Daily!$A:$D,4) -> 75.5 | CG29: Billed | CH29: =SUM(CI29:FA29) ->  | CI29: =IF(CI2=$A$2,CI26,0) -> 0 | CJ29: 0 | CK29: 0 | CL29: 0 | CM29: 0 | CN29: 0 | CO29: 0 | CP29: 0 | CQ29: 0 | CR29: 0 | CS29: 0 | CT29: 0 | CU29: 0 | CV29: 0 | CW29: 0 | CX29: 0 | CY29: 0 | CZ29: 0 | DA29: 0 | DB29: 0 | DC29: 0 | DD29: 0 | DE29: 0 | DF29: 0 | DG29: 0 | DH29: 0 | DI29: 0 | DJ29: 0 | DK29: 0 | DL29: 0 | DM29: 0 | DN29: 0 | DO29: =IF(DO2=$A$2,DO26,0) -> 0 | DP29: =IF(DP2=$A$2,DP26,0) -> 0 | DQ29: 0 | DR29: 0 | DS29: 0 | EV29: =IF(EV2=$A$2,EV26,0) ->  | EY29: =IF(EY2=$A$2,EY26,0) -> 0 | EZ29: 0 | FA29: 0
I30: =SUM(L30:CD30) -> 133.5 | J30: Calendar | K30: HDD | L30: =IF((L3>=DATE($A$1,$A$2,1))*(L3<=DATE($A$1,$A$2,DAY(EOMONTH(DATE($A$1,$A$2,1),0)))), IF(L29<65,65-L29,0),0) -> 0 | M30: =IF((M3>=DATE($A$1,$A$2,1))*(M3<=DATE($A$1,$A$2,DAY(EOMONTH(DATE($A$1,$A$2,1),0)))), IF(M29<65,65-M29,0),0) -> 0 | N30: 0 | O30: 0 | P30: 0 | Q30: 0 | R30: 0 | S30: 0 | T30: 0 | U30: 0 | V30: 0 | W30: 0 | X30: 0 | Y30: 0 | Z30: 0 | AA30: 0 | AB30: 0 | AC30: 0 | AD30: 0 | AE30: 0 | AF30: 0 | AG30: 0 | AH30: 0 | AI30: 0 | AJ30: 0 | AK30: 0 | AL30: 0 | AM30: 0 | AN30: 0 | AO30: 0 | AP30: 0 | AQ30: 0 | AR30: 0 | AS30: 0 | AT30: =IF((AT3>=DATE($A$1,$A$2,1))*(AT3<=DATE($A$1,$A$2,DAY(EOMONTH(DATE($A$1,$A$2,1),0)))), IF(AT29<65,65-AT29,0),0) -> 0 | AU30: 0 | AV30: 0 | AW30: 0 | AX30: 0 | AY30: 0 | AZ30: 2 | BA30: 0 | BB30: 0 | BC30: 0 | BD30: 0 | BE30: 0 | BF30: 0 | BG30: 1.5 | BH30: 0 | BI30: 0 | BJ30: =IF((BJ3>=DATE($A$1,$A$2,1))*(BJ3<=DATE($A$1,$A$2,DAY(EOMONTH(DATE($A$1,$A$2,1),0)))), IF(BJ29<65,65-BJ29,0),0) -> 1.5 | BK30: 2.5 | BL30: 0 | BM30: 4 | BN30: 12 | BO30: 4 | BP30: 0 | BQ30: 0 | BR30: 10.5 | BS30: 13.5 | BT30: 13.5 | BU30: 11.5 | BV30: 6.5 | BW30: 0 | BX30: 4.5 | BY30: =IF((BY3>=DATE($A$1,$A$2,1))*(BY3<=DATE($A$1,$A$2,DAY(EOMONTH(DATE($A$1,$A$2,1),0)))), IF(BY29<65,65-BY29,0),0) -> 17 | BZ30: 18 | CA30: 11 | CB30: 0 | CC30: 0 | CD30: 0 | CG30: Unbilled1 | CH30: =SUM(CI30:FA30) -> 0 | CI30: =IFERROR(IF(CI2=$A$2,HLOOKUP(CI3,FEB!$CI$3:$ET$26,24),0),0) -> 0 | CJ30: =IFERROR(IF(CJ2=$A$2,HLOOKUP(CJ3,FEB!$CI$3:$ET$26,24),0),0) -> 0 | CK30: =IFERROR(IF(CK2=$A$2,HLOOKUP(CK3,FEB!$CI$3:$ET$26,24),0),0) -> 0 | CL30: =IFERROR(IF(CL2=$A$2,HLOOKUP(CL3,FEB!$CI$3:$ET$26,24),0),0) -> 0 | CM30: =IFERROR(IF(CM2=$A$2,HLOOKUP(CM3,FEB!$CI$3:$ET$26,24),0),0) -> 0 | CN30: =IFERROR(IF(CN2=$A$2,HLOOKUP(CN3,FEB!$CI$3:$ET$26,24),0),0) -> 0 | CO30: =IFERROR(IF(CO2=$A$2,HLOOKUP(CO3,FEB!$CI$3:$ET$26,24),0),0) -> 0 | CP30: =IFERROR(IF(CP2=$A$2,HLOOKUP(CP3,FEB!$CI$3:$ET$26,24),0),0) -> 0 | CQ30: =IFERROR(IF(CQ2=$A$2,HLOOKUP(CQ3,FEB!$CI$3:$ET$26,24),0),0) -> 0 | CR30: =IFERROR(IF(CR2=$A$2,HLOOKUP(CR3,FEB!$CI$3:$ET$26,24),0),0) -> 0 | CS30: =IFERROR(IF(CS2=$A$2,HLOOKUP(CS3,FEB!$CI$3:$ET$26,24),0),0) -> 0 | CT30: =IFERROR(IF(CT2=$A$2,HLOOKUP(CT3,FEB!$CI$3:$ET$26,24),0),0) -> 0 | CU30: =IFERROR(IF(CU2=$A$2,HLOOKUP(CU3,FEB!$CI$3:$ET$26,24),0),0) -> 0 | CV30: =IFERROR(IF(CV2=$A$2,HLOOKUP(CV3,FEB!$CI$3:$ET$26,24),0),0) -> 0 | CW30: =IFERROR(IF(CW2=$A$2,HLOOKUP(CW3,FEB!$CI$3:$ET$26,24),0),0) -> 0 | CX30: =IFERROR(IF(CX2=$A$2,HLOOKUP(CX3,FEB!$CI$3:$ET$26,24),0),0) -> 0 | CY30: =IFERROR(IF(CY2=$A$2,HLOOKUP(CY3,FEB!$CI$3:$ET$26,24),0),0) -> 0 | CZ30: =IFERROR(IF(CZ2=$A$2,HLOOKUP(CZ3,FEB!$CI$3:$ET$26,24),0),0) -> 0 | DA30: =IFERROR(IF(DA2=$A$2,HLOOKUP(DA3,FEB!$CI$3:$ET$26,24),0),0) -> 0 | DB30: =IFERROR(IF(DB2=$A$2,HLOOKUP(DB3,FEB!$CI$3:$ET$26,24),0),0) -> 0 | DC30: =IFERROR(IF(DC2=$A$2,HLOOKUP(DC3,FEB!$CI$3:$ET$26,24),0),0) -> 0 | DD30: =IFERROR(IF(DD2=$A$2,HLOOKUP(DD3,FEB!$CI$3:$ET$26,24),0),0) -> 0 | DE30: =IFERROR(IF(DE2=$A$2,HLOOKUP(DE3,FEB!$CI$3:$ET$26,24),0),0) -> 0 | DF30: =IFERROR(IF(DF2=$A$2,HLOOKUP(DF3,FEB!$CI$3:$ET$26,24),0),0) -> 0 | DG30: =IFERROR(IF(DG2=$A$2,HLOOKUP(DG3,FEB!$CI$3:$ET$26,24),0),0) -> 0 | DH30: =IFERROR(IF(DH2=$A$2,HLOOKUP(DH3,FEB!$CI$3:$ET$26,24),0),0) -> 0 | DI30: =IFERROR(IF(DI2=$A$2,HLOOKUP(DI3,FEB!$CI$3:$ET$26,24),0),0) -> 0 | DJ30: =IFERROR(IF(DJ2=$A$2,HLOOKUP(DJ3,FEB!$CI$3:$ET$26,24),0),0) -> 0 | DK30: =IFERROR(IF(DK2=$A$2,HLOOKUP(DK3,FEB!$CI$3:$ET$26,24),0),0) -> 0 | DL30: =IFERROR(IF(DL2=$A$2,HLOOKUP(DL3,FEB!$CI$3:$ET$26,24),0),0) -> 0 | DM30: =IFERROR(IF(DM2=$A$2,HLOOKUP(DM3,FEB!$CI$3:$ET$26,24),0),0) -> 0 | DN30: =IFERROR(IF(DN2=$A$2,HLOOKUP(DN3,FEB!$CI$3:$ET$26,24),0),0) -> 0 | DO30: =IFERROR(IF(DO2=$A$2,HLOOKUP(DO3,FEB!$CI$3:$ET$26,24),0),0) -> 0 | DP30: =IFERROR(IF(DP2=$A$2,HLOOKUP(DP3,FEB!$CI$3:$ET$26,24),0),0) -> 0 | DQ30: =IFERROR(IF(DQ2=$A$2,HLOOKUP(DQ3,FEB!$CI$3:$ET$26,24),0),0) -> 0 | DR30: =IFERROR(IF(DR2=$A$2,HLOOKUP(DR3,FEB!$CI$3:$ET$26,24),0),0) -> 0 | DS30: =IFERROR(IF(DS2=$A$2,HLOOKUP(DS3,FEB!$CI$3:$ET$26,24),0),0) -> 0 | DT30: =IFERROR(IF(DT2=$A$2,HLOOKUP(DT3,FEB!$CI$3:$ET$26,24),0),0) -> 0 | DU30: =IFERROR(IF(DU2=$A$2,HLOOKUP(DU3,FEB!$CI$3:$ET$26,24),0),0) -> 0 | DV30: =IFERROR(IF(DV2=$A$2,HLOOKUP(DV3,FEB!$CI$3:$ET$26,24),0),0) -> 0 | DW30: =IFERROR(IF(DW2=$A$2,HLOOKUP(DW3,FEB!$CI$3:$ET$26,24),0),0) -> 0 | DX30: =IFERROR(IF(DX2=$A$2,HLOOKUP(DX3,FEB!$CI$3:$ET$26,24),0),0) -> 0 | DY30: =IFERROR(IF(DY2=$A$2,HLOOKUP(DY3,FEB!$CI$3:$ET$26,24),0),0) -> 0 | DZ30: =IFERROR(IF(DZ2=$A$2,HLOOKUP(DZ3,FEB!$CI$3:$ET$26,24),0),0) -> 0 | EA30: =IFERROR(IF(EA2=$A$2,HLOOKUP(EA3,FEB!$CI$3:$ET$26,24),0),0) -> 0 | EB30: =IFERROR(IF(EB2=$A$2,HLOOKUP(EB3,FEB!$CI$3:$ET$26,24),0),0) -> 0 | EC30: =IFERROR(IF(EC2=$A$2,HLOOKUP(EC3,FEB!$CI$3:$ET$26,24),0),0) -> 0 | ED30: =IFERROR(IF(ED2=$A$2,HLOOKUP(ED3,FEB!$CI$3:$ET$26,24),0),0) -> 0 | EE30: =IFERROR(IF(EE2=$A$2,HLOOKUP(EE3,FEB!$CI$3:$ET$26,24),0),0) -> 0 | EF30: =IFERROR(IF(EF2=$A$2,HLOOKUP(EF3,FEB!$CI$3:$ET$26,24),0),0) -> 0 | EG30: =IFERROR(IF(EG2=$A$2,HLOOKUP(EG3,FEB!$CI$3:$ET$26,24),0),0) -> 0 | EH30: =IFERROR(IF(EH2=$A$2,HLOOKUP(EH3,FEB!$CI$3:$ET$26,24),0),0) -> 0 | EI30: =IFERROR(IF(EI2=$A$2,HLOOKUP(EI3,FEB!$CI$3:$ET$26,24),0),0) -> 0 | EJ30: =IFERROR(IF(EJ2=$A$2,HLOOKUP(EJ3,FEB!$CI$3:$ET$26,24),0),0) -> 0 | EK30: =IFERROR(IF(EK2=$A$2,HLOOKUP(EK3,FEB!$CI$3:$ET$26,24),0),0) -> 0 | EL30: =IFERROR(IF(EL2=$A$2,HLOOKUP(EL3,FEB!$CI$3:$ET$26,24),0),0) -> 0 | EM30: =IFERROR(IF(EM2=$A$2,HLOOKUP(EM3,FEB!$CI$3:$ET$26,24),0),0) -> 0 | EN30: =IFERROR(IF(EN2=$A$2,HLOOKUP(EN3,FEB!$CI$3:$ET$26,24),0),0) -> 0 | EO30: =IFERROR(IF(EO2=$A$2,HLOOKUP(EO3,FEB!$CI$3:$ET$26,24),0),0) -> 0 | EP30: =IFERROR(IF(EP2=$A$2,HLOOKUP(EP3,FEB!$CI$3:$ET$26,24),0),0) -> 0 | EQ30: =IFERROR(IF(EQ2=$A$2,HLOOKUP(EQ3,FEB!$CI$3:$ET$26,24),0),0) -> 0 | ER30: =IFERROR(IF(ER2=$A$2,HLOOKUP(ER3,FEB!$CI$3:$ET$26,24),0),0) -> 0 | ES30: =IFERROR(IF(ES2=$A$2,HLOOKUP(ES3,FEB!$CI$3:$ET$26,24),0),0) -> 0 | ET30: =IFERROR(IF(ET2=$A$2,HLOOKUP(ET3,FEB!$CI$3:$ET$26,24),0),0) -> 0 | EU30: =IFERROR(IF(EU2=$A$2,HLOOKUP(EU3,FEB!$CI$3:$ET$26,24),0),0) -> 0 | EV30: =IFERROR(IF(EV2=$A$2,HLOOKUP(EV3,FEB!$CI$3:$ET$26,24),0),0) -> 0 | EW30: =IFERROR(IF(EW2=$A$2,HLOOKUP(EW3,FEB!$CI$3:$ET$26,24),0),0) -> 0 | EX30: =IFERROR(IF(EX2=$A$2,HLOOKUP(EX3,FEB!$CI$3:$ET$26,24),0),0) -> 0 | EY30: =IFERROR(IF(EY2=$A$2,HLOOKUP(EY3,FEB!$CI$3:$ET$26,24),0),0) -> 0 | EZ30: =IFERROR(IF(EZ2=$A$2,HLOOKUP(EZ3,FEB!$CI$3:$ET$26,24),0),0) -> 0 | FA30: =IFERROR(IF(FA2=$A$2,HLOOKUP(FA3,FEB!$CI$3:$ET$26,24),0),0) -> 0
I31: =SUM(L31:CD31) -> 60 | J31: Calendar | K31: CDD | L31: =IF((L3>=DATE($A$1,$A$2,1))*(L3<=DATE($A$1,$A$2,DAY(EOMONTH(DATE($A$1,$A$2,1),0)))), IF(L29>65,L29-65,0),0) -> 0 | M31: =IF((M3>=DATE($A$1,$A$2,1))*(M3<=DATE($A$1,$A$2,DAY(EOMONTH(DATE($A$1,$A$2,1),0)))), IF(M29>65,M29-65,0),0) -> 0 | N31: 0 | O31: 0 | P31: 0 | Q31: 0 | R31: 0 | S31: 0 | T31: 0 | U31: 0 | V31: 0 | W31: 0 | X31: 0 | Y31: 0 | Z31: 0 | AA31: 0 | AB31: 0 | AC31: 0 | AD31: 0 | AE31: 0 | AF31: 0 | AG31: 0 | AH31: 0 | AI31: 0 | AJ31: 0 | AK31: 0 | AL31: 0 | AM31: 0 | AN31: 0 | AO31: 0 | AP31: 0 | AQ31: 0 | AR31: 0 | AS31: 0 | AT31: 0 | AU31: 0 | AV31: 0 | AW31: =IF((AW3>=DATE($A$1,$A$2,1))*(AW3<=DATE($A$1,$A$2,DAY(EOMONTH(DATE($A$1,$A$2,1),0)))), IF(AW29>65,AW29-65,0),0) -> 9.5 | AX31: 11.5 | AY31: 0 | AZ31: 0 | BA31: 2 | BB31: 0 | BC31: 7 | BD31: 4.5 | BE31: 9.5 | BF31: 7.5 | BG31: 0 | BH31: 0.5 | BI31: 1.5 | BJ31: 0 | BK31: 0 | BL31: 1.5 | BM31: 0 | BN31: 0 | BO31: 0 | BP31: 0.5 | BQ31: 3 | BR31: 0 | BS31: 0 | BT31: 0 | BU31: 0 | BV31: 0 | BW31: 1.5 | BX31: 0 | BY31: =IF((BY3>=DATE($A$1,$A$2,1))*(BY3<=DATE($A$1,$A$2,DAY(EOMONTH(DATE($A$1,$A$2,1),0)))), IF(BY29>65,BY29-65,0),0) -> 0 | BZ31: 0 | CA31: 0 | CB31: 0 | CC31: 0 | CD31: 0 | CG31: Unbilled2 | CH31: 0 | CI31: =IFERROR(IF(CI2=$A$2,HLOOKUP(CI3,MAR!$CI$3:$ET$26,24),0),0) -> 0 | CJ31: =IFERROR(IF(CJ2=$A$2,HLOOKUP(CJ3,MAR!$CI$3:$ET$26,24),0),0) -> 0 | CK31: =IFERROR(IF(CK2=$A$2,HLOOKUP(CK3,MAR!$CI$3:$ET$26,24),0),0) -> 0 | CL31: =IFERROR(IF(CL2=$A$2,HLOOKUP(CL3,MAR!$CI$3:$ET$26,24),0),0) -> 0 | CM31: =IFERROR(IF(CM2=$A$2,HLOOKUP(CM3,MAR!$CI$3:$ET$26,24),0),0) -> 0 | CN31: =IFERROR(IF(CN2=$A$2,HLOOKUP(CN3,MAR!$CI$3:$ET$26,24),0),0) -> 0 | CO31: =IFERROR(IF(CO2=$A$2,HLOOKUP(CO3,MAR!$CI$3:$ET$26,24),0),0) -> 0 | CP31: =IFERROR(IF(CP2=$A$2,HLOOKUP(CP3,MAR!$CI$3:$ET$26,24),0),0) -> 0 | CQ31: =IFERROR(IF(CQ2=$A$2,HLOOKUP(CQ3,MAR!$CI$3:$ET$26,24),0),0) -> 0 | CR31: =IFERROR(IF(CR2=$A$2,HLOOKUP(CR3,MAR!$CI$3:$ET$26,24),0),0) -> 0 | CS31: =IFERROR(IF(CS2=$A$2,HLOOKUP(CS3,MAR!$CI$3:$ET$26,24),0),0) -> 0 | CT31: =IFERROR(IF(CT2=$A$2,HLOOKUP(CT3,MAR!$CI$3:$ET$26,24),0),0) -> 0 | CU31: =IFERROR(IF(CU2=$A$2,HLOOKUP(CU3,MAR!$CI$3:$ET$26,24),0),0) -> 0 | CV31: =IFERROR(IF(CV2=$A$2,HLOOKUP(CV3,MAR!$CI$3:$ET$26,24),0),0) -> 0 | CW31: =IFERROR(IF(CW2=$A$2,HLOOKUP(CW3,MAR!$CI$3:$ET$26,24),0),0) -> 0 | CX31: =IFERROR(IF(CX2=$A$2,HLOOKUP(CX3,MAR!$CI$3:$ET$26,24),0),0) -> 0 | CY31: =IFERROR(IF(CY2=$A$2,HLOOKUP(CY3,MAR!$CI$3:$ET$26,24),0),0) -> 0 | CZ31: =IFERROR(IF(CZ2=$A$2,HLOOKUP(CZ3,MAR!$CI$3:$ET$26,24),0),0) -> 0 | DA31: =IFERROR(IF(DA2=$A$2,HLOOKUP(DA3,MAR!$CI$3:$ET$26,24),0),0) -> 0 | DB31: =IFERROR(IF(DB2=$A$2,HLOOKUP(DB3,MAR!$CI$3:$ET$26,24),0),0) -> 0 | DC31: =IFERROR(IF(DC2=$A$2,HLOOKUP(DC3,MAR!$CI$3:$ET$26,24),0),0) -> 0 | DD31: =IFERROR(IF(DD2=$A$2,HLOOKUP(DD3,MAR!$CI$3:$ET$26,24),0),0) -> 0 | DE31: =IFERROR(IF(DE2=$A$2,HLOOKUP(DE3,MAR!$CI$3:$ET$26,24),0),0) -> 0 | DF31: =IFERROR(IF(DF2=$A$2,HLOOKUP(DF3,MAR!$CI$3:$ET$26,24),0),0) -> 0 | DG31: =IFERROR(IF(DG2=$A$2,HLOOKUP(DG3,MAR!$CI$3:$ET$26,24),0),0) -> 0 | DH31: =IFERROR(IF(DH2=$A$2,HLOOKUP(DH3,MAR!$CI$3:$ET$26,24),0),0) -> 0 | DI31: =IFERROR(IF(DI2=$A$2,HLOOKUP(DI3,MAR!$CI$3:$ET$26,24),0),0) -> 0 | DJ31: =IFERROR(IF(DJ2=$A$2,HLOOKUP(DJ3,MAR!$CI$3:$ET$26,24),0),0) -> 0 | DK31: =IFERROR(IF(DK2=$A$2,HLOOKUP(DK3,MAR!$CI$3:$ET$26,24),0),0) -> 0 | DL31: =IFERROR(IF(DL2=$A$2,HLOOKUP(DL3,MAR!$CI$3:$ET$26,24),0),0) -> 0 | DM31: =IFERROR(IF(DM2=$A$2,HLOOKUP(DM3,MAR!$CI$3:$ET$26,24),0),0) -> 0 | DN31: =IFERROR(IF(DN2=$A$2,HLOOKUP(DN3,MAR!$CI$3:$ET$26,24),0),0) -> 0 | DO31: =IFERROR(IF(DO2=$A$2,HLOOKUP(DO3,MAR!$CI$3:$ET$26,24),0),0) -> 0 | DP31: =IFERROR(IF(DP2=$A$2,HLOOKUP(DP3,MAR!$CI$3:$ET$26,24),0),0) -> 0 | DQ31: =IFERROR(IF(DQ2=$A$2,HLOOKUP(DQ3,MAR!$CI$3:$ET$26,24),0),0) -> 0 | DR31: =IFERROR(IF(DR2=$A$2,HLOOKUP(DR3,MAR!$CI$3:$ET$26,24),0),0) -> 0 | DS31: =IFERROR(IF(DS2=$A$2,HLOOKUP(DS3,MAR!$CI$3:$ET$26,24),0),0) -> 0 | DT31: =IFERROR(IF(DT2=$A$2,HLOOKUP(DT3,MAR!$CI$3:$ET$26,24),0),0) -> 0 | DU31: =IFERROR(IF(DU2=$A$2,HLOOKUP(DU3,MAR!$CI$3:$ET$26,24),0),0) -> 0 | DV31: =IFERROR(IF(DV2=$A$2,HLOOKUP(DV3,MAR!$CI$3:$ET$26,24),0),0) -> 0 | DW31: =IFERROR(IF(DW2=$A$2,HLOOKUP(DW3,MAR!$CI$3:$ET$26,24),0),0) -> 0 | DX31: =IFERROR(IF(DX2=$A$2,HLOOKUP(DX3,MAR!$CI$3:$ET$26,24),0),0) -> 0 | DY31: =IFERROR(IF(DY2=$A$2,HLOOKUP(DY3,MAR!$CI$3:$ET$26,24),0),0) -> 0 | DZ31: =IFERROR(IF(DZ2=$A$2,HLOOKUP(DZ3,MAR!$CI$3:$ET$26,24),0),0) -> 0 | EA31: =IFERROR(IF(EA2=$A$2,HLOOKUP(EA3,MAR!$CI$3:$ET$26,24),0),0) -> 0 | EB31: =IFERROR(IF(EB2=$A$2,HLOOKUP(EB3,MAR!$CI$3:$ET$26,24),0),0) -> 0 | EC31: =IFERROR(IF(EC2=$A$2,HLOOKUP(EC3,MAR!$CI$3:$ET$26,24),0),0) -> 0 | ED31: =IFERROR(IF(ED2=$A$2,HLOOKUP(ED3,MAR!$CI$3:$ET$26,24),0),0) -> 0 | EE31: =IFERROR(IF(EE2=$A$2,HLOOKUP(EE3,MAR!$CI$3:$ET$26,24),0),0) -> 0 | EF31: =IFERROR(IF(EF2=$A$2,HLOOKUP(EF3,MAR!$CI$3:$ET$26,24),0),0) -> 0 | EG31: =IFERROR(IF(EG2=$A$2,HLOOKUP(EG3,MAR!$CI$3:$ET$26,24),0),0) -> 0 | EH31: =IFERROR(IF(EH2=$A$2,HLOOKUP(EH3,MAR!$CI$3:$ET$26,24),0),0) -> 0 | EI31: =IFERROR(IF(EI2=$A$2,HLOOKUP(EI3,MAR!$CI$3:$ET$26,24),0),0) -> 0 | EJ31: =IFERROR(IF(EJ2=$A$2,HLOOKUP(EJ3,MAR!$CI$3:$ET$26,24),0),0) -> 0 | EK31: =IFERROR(IF(EK2=$A$2,HLOOKUP(EK3,MAR!$CI$3:$ET$26,24),0),0) -> 0 | EL31: =IFERROR(IF(EL2=$A$2,HLOOKUP(EL3,MAR!$CI$3:$ET$26,24),0),0) -> 0 | EM31: =IFERROR(IF(EM2=$A$2,HLOOKUP(EM3,MAR!$CI$3:$ET$26,24),0),0) -> 0 | EN31: =IFERROR(IF(EN2=$A$2,HLOOKUP(EN3,MAR!$CI$3:$ET$26,24),0),0) -> 0 | EO31: =IFERROR(IF(EO2=$A$2,HLOOKUP(EO3,MAR!$CI$3:$ET$26,24),0),0) -> 0 | EP31: =IFERROR(IF(EP2=$A$2,HLOOKUP(EP3,MAR!$CI$3:$ET$26,24),0),0) -> 0 | EQ31: =IFERROR(IF(EQ2=$A$2,HLOOKUP(EQ3,MAR!$CI$3:$ET$26,24),0),0) -> 0 | ER31: =IFERROR(IF(ER2=$A$2,HLOOKUP(ER3,MAR!$CI$3:$ET$26,24),0),0) -> 0 | ES31: =IFERROR(IF(ES2=$A$2,HLOOKUP(ES3,MAR!$CI$3:$ET$26,24),0),0) -> 0 | ET31: =IFERROR(IF(ET2=$A$2,HLOOKUP(ET3,MAR!$CI$3:$ET$26,24),0),0) -> 0 | EU31: =IFERROR(IF(EU2=$A$2,HLOOKUP(EU3,MAR!$CI$3:$ET$26,24),0),0) -> 0 | EV31: =IFERROR(IF(EV2=$A$2,HLOOKUP(EV3,MAR!$CI$3:$ET$26,24),0),0) -> 0 | EW31: =IFERROR(IF(EW2=$A$2,HLOOKUP(EW3,MAR!$CI$3:$ET$26,24),0),0) -> 0 | EX31: =IFERROR(IF(EX2=$A$2,HLOOKUP(EX3,MAR!$CI$3:$ET$26,24),0),0) -> 0 | EY31: =IFERROR(IF(EY2=$A$2,HLOOKUP(EY3,MAR!$CI$3:$ET$26,24),0),0) -> 0 | EZ31: =IFERROR(IF(EZ2=$A$2,HLOOKUP(EZ3,MAR!$CI$3:$ET$26,24),0),0) -> 0 | FA31: =IFERROR(IF(FA2=$A$2,HLOOKUP(FA3,MAR!$CI$3:$ET$26,24),0),0) -> 0
I32: =SUM(L32:CD32) -> 31.40909091 | J32: Billing | K32: HDD | L32: =IF(L29<65, (65-L29)*L27,0) -> 0 | M32: =IF(M29<65, (65-M29)*M27,0) -> 0 | N32: 0.1136363636 | O32: 0.1136363636 | P32: 0.04545454545 | Q32: 0.3181818182 | R32: 0 | S32: 0 | T32: 0 | U32: 0 | V32: 0 | W32: 0 | X32: 0 | Y32: 0 | Z32: 0 | AA32: 0 | AB32: 0 | AC32: 0 | AD32: 0 | AE32: 0 | AF32: 0 | AG32: 0 | AH32: 0 | AI32: 0 | AJ32: 0 | AK32: 0 | AL32: 0 | AM32: 4.318181818 | AN32: 4.090909091 | AO32: 0 | AP32: 0 | AQ32: 0 | AR32: 0 | AS32: 0 | AT32: =IF(AT29<65, (65-AT29)*AT27,0) -> 0 | AU32: 0 | AV32: 0 | AW32: 0 | AX32: 0 | AY32: 0 | AZ32: 1.636363636 | BA32: 0 | BB32: 0 | BC32: 0 | BD32: 0 | BE32: 0 | BF32: 0 | BG32: 0.8863636364 | BH32: 0 | BI32: 0 | BJ32: 0.6136363636 | BK32: 0.9090909091 | BL32: 0 | BM32: 1.454545455 | BN32: 4.363636364 | BO32: 1.272727273 | BP32: 0 | BQ32: 0 | BR32: 1.909090909 | BS32: 2.454545455 | BT32: 2.454545455 | BU32: 1.568181818 | BV32: 0.5909090909 | BW32: 0 | BX32: 0.2045454545 | BY32: =IF(BY29<65, (65-BY29)*BY27,0) -> 0.7727272727 | BZ32: 0.8181818182 | CA32: 0.5 | CB32: 0 | CC32: 0 | CD32: 0 | CG32: Calendar | CI32: =+CI29+CI30+CI31 -> 0 | CJ32: =+CJ29+CJ30+CJ31 -> 0 | CK32: 0 | CL32: 0 | CM32: 0 | CN32: 0 | CO32: 0 | CP32: 0 | CQ32: 0 | CR32: 0 | CS32: 0 | CT32: 0 | CU32: 0 | CV32: 0 | CW32: 0 | CX32: 0 | CY32: 0 | CZ32: 0 | DA32: 0 | DB32: 0 | DC32: 0 | DD32: 0 | DE32: 0 | DF32: 0 | DG32: 0 | DH32: 0 | DI32: 0 | DJ32: 0 | DK32: 0 | DL32: 0 | DM32: 0 | DN32: 0 | DO32: 0 | DP32: 0 | DQ32: 0 | DR32: 0 | DS32: 0 | EV32: =+EV29+EV30+EV31 ->  | EY32: =+EY29+EY30+EY31 -> 0 | EZ32: 0 | FA32: 0
I33: =SUM(L33:CD33) -> 174.4090909 | J33: Billing | K33: CDD | L33: =IF(L29>65, (L29-65)*L27,0) -> 0.1590909091 | M33: =IF(M29>65, (M29-65)*M27,0) -> 0.1363636364 | N33: 0 | O33: 0 | P33: 0 | Q33: 0 | R33: 0.2045454545 | S33: 0.4545454545 | T33: 0.3409090909 | U33: =IF(U29>65, (U29-65)*U27,0) -> 0 | V33: 1.5 | W33: 1.636363636 | X33: 2.704545455 | Y33: 2.909090909 | Z33: 3.886363636 | AA33: 4.772727273 | AB33: 6.545454545 | AC33: 6 | AD33: 6.272727273 | AE33: 5.909090909 | AF33: 6.363636364 | AG33: 8.522727273 | AH33: 9.090909091 | AI33: 10.04545455 | AJ33: 9.659090909 | AK33: 5.409090909 | AL33: 1.636363636 | AM33: 0 | AN33: 0 | AO33: 0.4545454545 | AP33: 1.363636364 | AQ33: 3.181818182 | AR33: 4.090909091 | AS33: 4.772727273 | AT33: =IF(AT29>65, (AT29-65)*AT27,0) -> 9.090909091 | AU33: 7.772727273 | AV33: 9 | AW33: 8.204545455 | AX33: 9.931818182 | AY33: 0 | AZ33: 0 | BA33: 1.545454545 | BB33: 0 | BC33: 4.772727273 | BD33: 2.863636364 | BE33: 6.045454545 | BF33: 4.772727273 | BG33: 0 | BH33: 0.2727272727 | BI33: 0.6818181818 | BJ33: 0 | BK33: 0 | BL33: 0.5454545455 | BM33: 0 | BN33: 0 | BO33: 0 | BP33: 0.1363636364 | BQ33: 0.6818181818 | BR33: 0 | BS33: 0 | BT33: 0 | BU33: 0 | BV33: 0 | BW33: 0.06818181818 | BX33: 0 | BY33: =IF(BY29>65, (BY29-65)*BY27,0) -> 0 | BZ33: =IF(BZ29>65, (BZ29-65)*BZ27,0) -> 0 | CA33: 0 | CB33: 0 | CC33: 0 | CD33: 0 | CG33: Check | CH33: =+CH32-CH29-CH30-CH31 -> 
I34: 1.465 | J34: Calendar | K34: Rainfall | L34: =VLOOKUP(L3,Daily!$A:$I,9) -> 0 | M34: =VLOOKUP(M3,Daily!$A:$I,9) -> 0 | N34: =VLOOKUP(N3,Daily!$A:$I,9) -> 0 | O34: =VLOOKUP(O3,Daily!$A:$I,9) -> 0 | P34: =VLOOKUP(P3,Daily!$A:$I,9) -> 0 | Q34: =VLOOKUP(Q3,Daily!$A:$I,9) -> 0 | R34: =VLOOKUP(R3,Daily!$A:$I,9) -> 0 | S34: =VLOOKUP(S3,Daily!$A:$I,9) -> 0 | T34: =VLOOKUP(T3,Daily!$A:$I,9) -> 0 | U34: =VLOOKUP(U3,Daily!$A:$I,9) -> 0 | V34: =VLOOKUP(V3,Daily!$A:$I,9) -> 0 | W34: =VLOOKUP(W3,Daily!$A:$I,9) -> 0 | X34: =VLOOKUP(X3,Daily!$A:$I,9) -> 0 | Y34: =VLOOKUP(Y3,Daily!$A:$I,9) -> 0 | Z34: =VLOOKUP(Z3,Daily!$A:$I,9) -> 0 | AA34: =VLOOKUP(AA3,Daily!$A:$I,9) -> 0 | AB34: =VLOOKUP(AB3,Daily!$A:$I,9) -> 0 | AC34: =VLOOKUP(AC3,Daily!$A:$I,9) -> 0 | AD34: =VLOOKUP(AD3,Daily!$A:$I,9) -> 0 | AE34: =VLOOKUP(AE3,Daily!$A:$I,9) -> 0 | AF34: =VLOOKUP(AF3,Daily!$A:$I,9) -> 0 | AG34: =VLOOKUP(AG3,Daily!$A:$I,9) -> 0 | AH34: =VLOOKUP(AH3,Daily!$A:$I,9) -> 0 | AI34: =VLOOKUP(AI3,Daily!$A:$I,9) -> 0 | AJ34: =VLOOKUP(AJ3,Daily!$A:$I,9) -> 0 | AK34: =VLOOKUP(AK3,Daily!$A:$I,9) -> 0 | AL34: =VLOOKUP(AL3,Daily!$A:$I,9) -> 0 | AM34: =VLOOKUP(AM3,Daily!$A:$I,9) -> 0 | AN34: =VLOOKUP(AN3,Daily!$A:$I,9) -> 0 | AO34: =VLOOKUP(AO3,Daily!$A:$I,9) -> 0 | AP34: =VLOOKUP(AP3,Daily!$A:$I,9) -> 0 | AQ34: =VLOOKUP(AQ3,Daily!$A:$I,9) -> 0 | AR34: =VLOOKUP(AR3,Daily!$A:$I,9) -> 0 | AS34: =VLOOKUP(AS3,Daily!$A:$I,9) -> 0 | AT34: =VLOOKUP(AT3,Daily!$A:$I,9) -> 0 | AU34: =VLOOKUP(AU3,Daily!$A:$I,9) -> 0 | AV34: =VLOOKUP(AV3,Daily!$A:$I,9) -> 0 | AW34: =VLOOKUP(AW3,Daily!$A:$I,9) -> 0 | AX34: =VLOOKUP(AX3,Daily!$A:$I,9) -> 0 | AY34: =VLOOKUP(AY3,Daily!$A:$I,9) -> 0.02 | AZ34: =VLOOKUP(AZ3,Daily!$A:$I,9) -> 0 | BA34: =VLOOKUP(BA3,Daily!$A:$I,9) -> 0 | BB34: =VLOOKUP(BB3,Daily!$A:$I,9) -> 0.001 | BC34: =VLOOKUP(BC3,Daily!$A:$I,9) -> 0.001 | BD34: =VLOOKUP(BD3,Daily!$A:$I,9) -> 0 | BE34: =VLOOKUP(BE3,Daily!$A:$I,9) -> 0 | BF34: =VLOOKUP(BF3,Daily!$A:$I,9) -> 0 | BG34: =VLOOKUP(BG3,Daily!$A:$I,9) -> 0 | BH34: =VLOOKUP(BH3,Daily!$A:$I,9) -> 0 | BI34: =VLOOKUP(BI3,Daily!$A:$I,9) -> 0.001 | BJ34: =VLOOKUP(BJ3,Daily!$A:$I,9) -> 0 | BK34: =VLOOKUP(BK3,Daily!$A:$I,9) -> 0 | BL34: =VLOOKUP(BL3,Daily!$A:$I,9) -> 0.68 | BM34: =VLOOKUP(BM3,Daily!$A:$I,9) -> 0 | BN34: =VLOOKUP(BN3,Daily!$A:$I,9) -> 0 | BO34: =VLOOKUP(BO3,Daily!$A:$I,9) -> 0 | BP34: =VLOOKUP(BP3,Daily!$A:$I,9) -> 0 | BQ34: =VLOOKUP(BQ3,Daily!$A:$I,9) -> 0 | BR34: =VLOOKUP(BR3,Daily!$A:$I,9) -> 0.01 | BS34: =VLOOKUP(BS3,Daily!$A:$I,9) -> 0.001 | BT34: =VLOOKUP(BT3,Daily!$A:$I,9) -> 0 | BU34: =VLOOKUP(BU3,Daily!$A:$I,9) -> 0.67 | BV34: =VLOOKUP(BV3,Daily!$A:$I,9) -> 0.08 | BW34: =VLOOKUP(BW3,Daily!$A:$I,9) -> 0 | BX34: =VLOOKUP(BX3,Daily!$A:$I,9) -> 0.001 | BY34: =VLOOKUP(BY3,Daily!$A:$I,9) -> 0 | BZ34: =VLOOKUP(BZ3,Daily!$A:$I,9) -> 0 | CA34: =VLOOKUP(CA3,Daily!$A:$I,9) -> 0 | CB34: =VLOOKUP(CB3,Daily!$A:$I,9) -> 0 | CC34: =VLOOKUP(CC3,Daily!$A:$I,9) -> 0 | CD34: =VLOOKUP(CD3,Daily!$A:$I,9) -> 0 | CG34: Calendar Rainfall | CI34: =IF(CI32>0,L34,0) -> 0 | CJ34: 0 | CK34: 0 | CL34: 0 | CM34: 0 | CN34: 0 | CO34: 0 | CP34: 0 | CQ34: 0 | CR34: 0 | CS34: 0 | CT34: 0 | CU34: 0 | CV34: 0 | CW34: 0 | CX34: 0 | CY34: 0 | CZ34: 0 | DA34: 0 | DB34: 0 | DC34: 0 | DD34: 0 | DE34: 0 | DF34: 0 | DG34: 0 | DH34: 0 | DI34: 0 | DJ34: 0 | DK34: 0 | DL34: 0 | DM34: 0 | DN34: 0 | DO34: =IF(DO32>0,AR34,0) -> 0 | DP34: 0 | DQ34: 0 | DR34: 0 | DS34: 0 | EU34: =IF(EU32>0,BX34,0) ->  | EY34: =IF(EY32>0,CB34,0) -> 0 | EZ34: 0 | FA34: 0
I35: 0.3670909091 | J35: Billing | K35: Rainfall | L35: =+L34*L27 -> 0 | M35: =+M34*M27 -> 0 | N35: 0 | O35: 0 | P35: 0 | Q35: 0 | R35: 0 | S35: 0 | T35: 0 | U35: 0 | V35: 0 | W35: 0 | X35: 0 | Y35: 0 | Z35: 0 | AA35: 0 | AB35: 0 | AC35: 0 | AD35: 0 | AE35: 0 | AF35: 0 | AG35: 0 | AH35: 0 | AI35: 0 | AJ35: 0 | AK35: 0 | AL35: 0 | AM35: 0 | AN35: 0 | AO35: 0 | AP35: 0 | AQ35: 0 | AR35: 0 | AS35: 0 | AT35: 0 | AU35: 0 | AV35: 0 | AW35: 0 | AX35: 0 | AY35: 0.01727272727 | AZ35: 0 | BA35: 0 | BB35: 0.0007272727273 | BC35: 0.0006818181818 | BD35: 0 | BE35: 0 | BF35: 0 | BG35: 0 | BH35: 0 | BI35: 0.0004545454545 | BJ35: 0 | BK35: 0 | BL35: 0.2472727273 | BM35: 0 | BN35: 0 | BO35: 0 | BP35: 0 | BQ35: 0 | BR35: 0.001818181818 | BS35: 0.0001818181818 | BT35: 0 | BU35: 0.09136363636 | BV35: 0.007272727273 | BW35: =+BW34*BW27 -> 0 | BX35: =+BX34*BX27 -> 4.545454545e-05 | BY35: =+BY34*BY27 -> 0 | BZ35: 0 | CA35: 0 | CB35: =+CB34*CB27 -> 0 | CC35: 0 | CD35: 0 | CG35: Calendar HDD | CI35: =IF(CI32>0,L30,0) -> 0 | CJ35: 0 | CK35: 0 | CL35: 0 | CM35: 0 | CN35: 0 | CO35: 0 | CP35: 0 | CQ35: 0 | CR35: 0 | CS35: 0 | CT35: 0 | CU35: 0 | CV35: 0 | CW35: 0 | CX35: 0 | CY35: 0 | CZ35: 0 | DA35: 0 | DB35: 0 | DC35: 0 | DD35: 0 | DE35: 0 | DF35: 0 | DG35: 0 | DH35: 0 | DI35: 0 | DJ35: 0 | DK35: 0 | DL35: 0 | DM35: 0 | DN35: 0 | DO35: =IF(DO32>0,AR30,0) -> 0 | DP35: 0 | DQ35: 0 | DR35: 0 | DS35: 0 | EU35: =IF(EU32>0,BX30,0) ->  | EY35: =IF(EY32>0,CB30,0) -> 0 | EZ35: 0 | FA35: 0
CG36: Calendar CDD | CI36: =IF(CI32>0,L31,0) -> 0 | CJ36: 0 | CK36: 0 | CL36: 0 | CM36: 0 | CN36: 0 | CO36: 0 | CP36: 0 | CQ36: 0 | CR36: 0 | CS36: 0 | CT36: 0 | CU36: 0 | CV36: 0 | CW36: 0 | CX36: 0 | CY36: 0 | CZ36: 0 | DA36: 0 | DB36: 0 | DC36: 0 | DD36: 0 | DE36: 0 | DF36: 0 | DG36: 0 | DH36: 0 | DI36: 0 | DJ36: 0 | DK36: 0 | DL36: 0 | DM36: 0 | DN36: 0 | DO36: =IF(DO32>0,AR31,0) -> 0 | DP36: 0 | DQ36: 0 | DR36: 0 | DS36: 0 | EU36: =IF(EU32>0,BX31,0) ->  | EY36: =IF(EY32>0,CB31,0) -> 0 | EZ36: 0 | FA36: 0
Y38: =TEXT(DATE(A1,A2,1),"mmm yyyy")&" - Billing Cycle Temperatures" -> Jan 2022 - Billing Cycle Temperatures
CG39: Used in prior Month | CH39: =SUM(CI39:ET39) -> 0 | CI39: =IFERROR(IF(CI2=$A$2,HLOOKUP(CI3,#REF!,23),0),0) -> 0 | CJ39: =IFERROR(IF(CJ2=$A$2,HLOOKUP(CJ3,#REF!,23),0),0) -> 0 | CK39: =IFERROR(IF(CK2=$A$2,HLOOKUP(CK3,#REF!,23),0),0) -> 0 | CL39: =IFERROR(IF(CL2=$A$2,HLOOKUP(CL3,#REF!,23),0),0) -> 0 | CM39: =IFERROR(IF(CM2=$A$2,HLOOKUP(CM3,#REF!,23),0),0) -> 0 | CN39: =IFERROR(IF(CN2=$A$2,HLOOKUP(CN3,#REF!,23),0),0) -> 0 | CO39: =IFERROR(IF(CO2=$A$2,HLOOKUP(CO3,#REF!,23),0),0) -> 0 | CP39: =IFERROR(IF(CP2=$A$2,HLOOKUP(CP3,#REF!,23),0),0) -> 0 | CQ39: =IFERROR(IF(CQ2=$A$2,HLOOKUP(CQ3,#REF!,23),0),0) -> 0 | CR39: =IFERROR(IF(CR2=$A$2,HLOOKUP(CR3,#REF!,23),0),0) -> 0 | CS39: =IFERROR(IF(CS2=$A$2,HLOOKUP(CS3,#REF!,23),0),0) -> 0 | CT39: =IFERROR(IF(CT2=$A$2,HLOOKUP(CT3,#REF!,23),0),0) -> 0 | CU39: =IFERROR(IF(CU2=$A$2,HLOOKUP(CU3,#REF!,23),0),0) -> 0 | CV39: =IFERROR(IF(CV2=$A$2,HLOOKUP(CV3,#REF!,23),0),0) -> 0 | CW39: =IFERROR(IF(CW2=$A$2,HLOOKUP(CW3,#REF!,23),0),0) -> 0 | CX39: =IFERROR(IF(CX2=$A$2,HLOOKUP(CX3,#REF!,23),0),0) -> 0 | CY39: =IFERROR(IF(CY2=$A$2,HLOOKUP(CY3,#REF!,23),0),0) -> 0 | CZ39: =IFERROR(IF(CZ2=$A$2,HLOOKUP(CZ3,#REF!,23),0),0) -> 0 | DA39: =IFERROR(IF(DA2=$A$2,HLOOKUP(DA3,#REF!,23),0),0) -> 0 | DB39: =IFERROR(IF(DB2=$A$2,HLOOKUP(DB3,#REF!,23),0),0) -> 0 | DC39: =IFERROR(IF(DC2=$A$2,HLOOKUP(DC3,#REF!,23),0),0) -> 0 | DD39: =IFERROR(IF(DD2=$A$2,HLOOKUP(DD3,#REF!,23),0),0) -> 0 | DE39: =IFERROR(IF(DE2=$A$2,HLOOKUP(DE3,#REF!,23),0),0) -> 0 | DF39: =IFERROR(IF(DF2=$A$2,HLOOKUP(DF3,#REF!,23),0),0) -> 0 | DG39: =IFERROR(IF(DG2=$A$2,HLOOKUP(DG3,#REF!,23),0),0) -> 0 | DH39: =IFERROR(IF(DH2=$A$2,HLOOKUP(DH3,#REF!,23),0),0) -> 0 | DI39: =IFERROR(IF(DI2=$A$2,HLOOKUP(DI3,#REF!,23),0),0) -> 0 | DJ39: =IFERROR(IF(DJ2=$A$2,HLOOKUP(DJ3,#REF!,23),0),0) -> 0 | DK39: =IFERROR(IF(DK2=$A$2,HLOOKUP(DK3,#REF!,23),0),0) -> 0 | DL39: =IFERROR(IF(DL2=$A$2,HLOOKUP(DL3,#REF!,23),0),0) -> 0 | DM39: =IFERROR(IF(DM2=$A$2,HLOOKUP(DM3,#REF!,23),0),0) -> 0 | DN39: =IFERROR(IF(DN2=$A$2,HLOOKUP(DN3,#REF!,23),0),0) -> 0 | DO39: =IFERROR(IF(DO2=$A$2,HLOOKUP(DO3,#REF!,23),0),0) -> 0 | DP39: =IFERROR(IF(DP2=$A$2,HLOOKUP(DP3,#REF!,23),0),0) -> 0 | DQ39: =IFERROR(IF(DQ2=$A$2,HLOOKUP(DQ3,#REF!,23),0),0) -> 0 | DR39: =IFERROR(IF(DR2=$A$2,HLOOKUP(DR3,#REF!,23),0),0) -> 0 | DS39: =IFERROR(IF(DS2=$A$2,HLOOKUP(DS3,#REF!,23),0),0) -> 0 | DT39: =IFERROR(IF(DT2=$A$2,HLOOKUP(DT3,#REF!,23),0),0) -> 0 | DU39: =IFERROR(IF(DU2=$A$2,HLOOKUP(DU3,#REF!,23),0),0) -> 0 | DV39: =IFERROR(IF(DV2=$A$2,HLOOKUP(DV3,#REF!,23),0),0) -> 0 | DW39: =IFERROR(IF(DW2=$A$2,HLOOKUP(DW3,#REF!,23),0),0) -> 0 | DX39: =IFERROR(IF(DX2=$A$2,HLOOKUP(DX3,#REF!,23),0),0) -> 0 | DY39: =IFERROR(IF(DY2=$A$2,HLOOKUP(DY3,#REF!,23),0),0) -> 0 | DZ39: =IFERROR(IF(DZ2=$A$2,HLOOKUP(DZ3,#REF!,23),0),0) -> 0 | EA39: =IFERROR(IF(EA2=$A$2,HLOOKUP(EA3,#REF!,23),0),0) -> 0 | EB39: =IFERROR(IF(EB2=$A$2,HLOOKUP(EB3,#REF!,23),0),0) -> 0 | EC39: =IFERROR(IF(EC2=$A$2,HLOOKUP(EC3,#REF!,23),0),0) -> 0 | ED39: =IFERROR(IF(ED2=$A$2,HLOOKUP(ED3,#REF!,23),0),0) -> 0 | EE39: =IFERROR(IF(EE2=$A$2,HLOOKUP(EE3,#REF!,23),0),0) -> 0 | EF39: =IFERROR(IF(EF2=$A$2,HLOOKUP(EF3,#REF!,23),0),0) -> 0 | EG39: =IFERROR(IF(EG2=$A$2,HLOOKUP(EG3,#REF!,23),0),0) -> 0 | EH39: =IFERROR(IF(EH2=$A$2,HLOOKUP(EH3,#REF!,23),0),0) -> 0 | EI39: =IFERROR(IF(EI2=$A$2,HLOOKUP(EI3,#REF!,23),0),0) -> 0 | EJ39: =IFERROR(IF(EJ2=$A$2,HLOOKUP(EJ3,#REF!,23),0),0) -> 0 | EK39: =IFERROR(IF(EK2=$A$2,HLOOKUP(EK3,#REF!,23),0),0) -> 0 | EL39: =IFERROR(IF(EL2=$A$2,HLOOKUP(EL3,#REF!,23),0),0) -> 0 | EM39: =IFERROR(IF(EM2=$A$2,HLOOKUP(EM3,#REF!,23),0),0) -> 0 | EN39: =IFERROR(IF(EN2=$A$2,HLOOKUP(EN3,#REF!,23),0),0) -> 0 | EO39: =IFERROR(IF(EO2=$A$2,HLOOKUP(EO3,#REF!,23),0),0) -> 0 | EP39: =IFERROR(IF(EP2=$A$2,HLOOKUP(EP3,#REF!,23),0),0) -> 0 | EQ39: =IFERROR(IF(EQ2=$A$2,HLOOKUP(EQ3,#REF!,23),0),0) -> 0 | ER39: =IFERROR(IF(ER2=$A$2,HLOOKUP(ER3,#REF!,23),0),0) -> 0 | ES39: =IFERROR(IF(ES2=$A$2,HLOOKUP(ES3,#REF!,23),0),0) -> 0 | ET39: =IFERROR(IF(ET2=$A$2,HLOOKUP(ET3,#REF!,23),0),0) -> 0 | EU39: =IFERROR(IF(EU2=$A$2,HLOOKUP(EU3,#REF!,23),0),0) -> 0 | EV39: =IFERROR(IF(EV2=$A$2,HLOOKUP(EV3,#REF!,23),0),0) -> 0 | EW39: =IFERROR(IF(EW2=$A$2,HLOOKUP(EW3,#REF!,23),0),0) -> 0 | EX39: =IFERROR(IF(EX2=$A$2,HLOOKUP(EX3,#REF!,23),0),0) -> 0 | EY39: =IFERROR(IF(EY2=$A$2,HLOOKUP(EY3,#REF!,23),0),0) -> 0 | EZ39: =IFERROR(IF(EZ2=$A$2,HLOOKUP(EZ3,#REF!,23),0),0) -> 0 | FA39: =IFERROR(IF(FA2=$A$2,HLOOKUP(FA3,#REF!,23),0),0) -> 0
CG40: Used in current Month | CH40: =SUM(CI40:ET40) -> 0 | CI40: =+CI29 -> 0 | CJ40: =IFERROR(IF(CJ2=$A$2,HLOOKUP(CJ3,FEB!$CI$3:$ET$26,23),0),0) -> 0 | CK40: =IFERROR(IF(CK2=$A$2,HLOOKUP(CK3,FEB!$CI$3:$ET$26,23),0),0) -> 0 | CL40: =IFERROR(IF(CL2=$A$2,HLOOKUP(CL3,FEB!$CI$3:$ET$26,23),0),0) -> 0 | CM40: =IFERROR(IF(CM2=$A$2,HLOOKUP(CM3,FEB!$CI$3:$ET$26,23),0),0) -> 0 | CN40: =IFERROR(IF(CN2=$A$2,HLOOKUP(CN3,FEB!$CI$3:$ET$26,23),0),0) -> 0 | CO40: =IFERROR(IF(CO2=$A$2,HLOOKUP(CO3,FEB!$CI$3:$ET$26,23),0),0) -> 0 | CP40: =IFERROR(IF(CP2=$A$2,HLOOKUP(CP3,FEB!$CI$3:$ET$26,23),0),0) -> 0 | CQ40: =IFERROR(IF(CQ2=$A$2,HLOOKUP(CQ3,FEB!$CI$3:$ET$26,23),0),0) -> 0 | CR40: =IFERROR(IF(CR2=$A$2,HLOOKUP(CR3,FEB!$CI$3:$ET$26,23),0),0) -> 0 | CS40: =IFERROR(IF(CS2=$A$2,HLOOKUP(CS3,FEB!$CI$3:$ET$26,23),0),0) -> 0 | CT40: =IFERROR(IF(CT2=$A$2,HLOOKUP(CT3,FEB!$CI$3:$ET$26,23),0),0) -> 0 | CU40: =IFERROR(IF(CU2=$A$2,HLOOKUP(CU3,FEB!$CI$3:$ET$26,23),0),0) -> 0 | CV40: =IFERROR(IF(CV2=$A$2,HLOOKUP(CV3,FEB!$CI$3:$ET$26,23),0),0) -> 0 | CW40: =IFERROR(IF(CW2=$A$2,HLOOKUP(CW3,FEB!$CI$3:$ET$26,23),0),0) -> 0 | CX40: =IFERROR(IF(CX2=$A$2,HLOOKUP(CX3,FEB!$CI$3:$ET$26,23),0),0) -> 0 | CY40: =IFERROR(IF(CY2=$A$2,HLOOKUP(CY3,FEB!$CI$3:$ET$26,23),0),0) -> 0 | CZ40: =IFERROR(IF(CZ2=$A$2,HLOOKUP(CZ3,FEB!$CI$3:$ET$26,23),0),0) -> 0 | DA40: =IFERROR(IF(DA2=$A$2,HLOOKUP(DA3,FEB!$CI$3:$ET$26,23),0),0) -> 0 | DB40: =IFERROR(IF(DB2=$A$2,HLOOKUP(DB3,FEB!$CI$3:$ET$26,23),0),0) -> 0 | DC40: =IFERROR(IF(DC2=$A$2,HLOOKUP(DC3,FEB!$CI$3:$ET$26,23),0),0) -> 0 | DD40: =IFERROR(IF(DD2=$A$2,HLOOKUP(DD3,FEB!$CI$3:$ET$26,23),0),0) -> 0 | DE40: =IFERROR(IF(DE2=$A$2,HLOOKUP(DE3,FEB!$CI$3:$ET$26,23),0),0) -> 0 | DF40: =IFERROR(IF(DF2=$A$2,HLOOKUP(DF3,FEB!$CI$3:$ET$26,23),0),0) -> 0 | DG40: =IFERROR(IF(DG2=$A$2,HLOOKUP(DG3,FEB!$CI$3:$ET$26,23),0),0) -> 0 | DH40: =IFERROR(IF(DH2=$A$2,HLOOKUP(DH3,FEB!$CI$3:$ET$26,23),0),0) -> 0 | DI40: =IFERROR(IF(DI2=$A$2,HLOOKUP(DI3,FEB!$CI$3:$ET$26,23),0),0) -> 0 | DJ40: =IFERROR(IF(DJ2=$A$2,HLOOKUP(DJ3,FEB!$CI$3:$ET$26,23),0),0) -> 0 | DK40: =IFERROR(IF(DK2=$A$2,HLOOKUP(DK3,FEB!$CI$3:$ET$26,23),0),0) -> 0 | DL40: =IFERROR(IF(DL2=$A$2,HLOOKUP(DL3,FEB!$CI$3:$ET$26,23),0),0) -> 0 | DM40: =IFERROR(IF(DM2=$A$2,HLOOKUP(DM3,FEB!$CI$3:$ET$26,23),0),0) -> 0 | DN40: =IFERROR(IF(DN2=$A$2,HLOOKUP(DN3,FEB!$CI$3:$ET$26,23),0),0) -> 0 | DO40: =IFERROR(IF(DO2=$A$2,HLOOKUP(DO3,FEB!$CI$3:$ET$26,23),0),0) -> 0 | DP40: =IFERROR(IF(DP2=$A$2,HLOOKUP(DP3,FEB!$CI$3:$ET$26,23),0),0) -> 0 | DQ40: =IFERROR(IF(DQ2=$A$2,HLOOKUP(DQ3,FEB!$CI$3:$ET$26,23),0),0) -> 0 | DR40: =IFERROR(IF(DR2=$A$2,HLOOKUP(DR3,FEB!$CI$3:$ET$26,23),0),0) -> 0 | DS40: =IFERROR(IF(DS2=$A$2,HLOOKUP(DS3,FEB!$CI$3:$ET$26,23),0),0) -> 0 | DT40: =IFERROR(IF(DT2=$A$2,HLOOKUP(DT3,FEB!$CI$3:$ET$26,23),0),0) -> 0 | DU40: =IFERROR(IF(DU2=$A$2,HLOOKUP(DU3,FEB!$CI$3:$ET$26,23),0),0) -> 0 | DV40: =IFERROR(IF(DV2=$A$2,HLOOKUP(DV3,FEB!$CI$3:$ET$26,23),0),0) -> 0 | DW40: =IFERROR(IF(DW2=$A$2,HLOOKUP(DW3,FEB!$CI$3:$ET$26,23),0),0) -> 0 | DX40: =IFERROR(IF(DX2=$A$2,HLOOKUP(DX3,FEB!$CI$3:$ET$26,23),0),0) -> 0 | DY40: =IFERROR(IF(DY2=$A$2,HLOOKUP(DY3,FEB!$CI$3:$ET$26,23),0),0) -> 0 | DZ40: =IFERROR(IF(DZ2=$A$2,HLOOKUP(DZ3,FEB!$CI$3:$ET$26,23),0),0) -> 0 | EA40: =IFERROR(IF(EA2=$A$2,HLOOKUP(EA3,FEB!$CI$3:$ET$26,23),0),0) -> 0 | EB40: =IFERROR(IF(EB2=$A$2,HLOOKUP(EB3,FEB!$CI$3:$ET$26,23),0),0) -> 0 | EC40: =IFERROR(IF(EC2=$A$2,HLOOKUP(EC3,FEB!$CI$3:$ET$26,23),0),0) -> 0 | ED40: =IFERROR(IF(ED2=$A$2,HLOOKUP(ED3,FEB!$CI$3:$ET$26,23),0),0) -> 0 | EE40: =IFERROR(IF(EE2=$A$2,HLOOKUP(EE3,FEB!$CI$3:$ET$26,23),0),0) -> 0 | EF40: =IFERROR(IF(EF2=$A$2,HLOOKUP(EF3,FEB!$CI$3:$ET$26,23),0),0) -> 0 | EG40: =IFERROR(IF(EG2=$A$2,HLOOKUP(EG3,FEB!$CI$3:$ET$26,23),0),0) -> 0 | EH40: =IFERROR(IF(EH2=$A$2,HLOOKUP(EH3,FEB!$CI$3:$ET$26,23),0),0) -> 0 | EI40: =IFERROR(IF(EI2=$A$2,HLOOKUP(EI3,FEB!$CI$3:$ET$26,23),0),0) -> 0 | EJ40: =IFERROR(IF(EJ2=$A$2,HLOOKUP(EJ3,FEB!$CI$3:$ET$26,23),0),0) -> 0 | EK40: =IFERROR(IF(EK2=$A$2,HLOOKUP(EK3,FEB!$CI$3:$ET$26,23),0),0) -> 0 | EL40: =IFERROR(IF(EL2=$A$2,HLOOKUP(EL3,FEB!$CI$3:$ET$26,23),0),0) -> 0 | EM40: =IFERROR(IF(EM2=$A$2,HLOOKUP(EM3,FEB!$CI$3:$ET$26,23),0),0) -> 0 | EN40: =IFERROR(IF(EN2=$A$2,HLOOKUP(EN3,FEB!$CI$3:$ET$26,23),0),0) -> 0 | EO40: =IFERROR(IF(EO2=$A$2,HLOOKUP(EO3,FEB!$CI$3:$ET$26,23),0),0) -> 0 | EP40: =IFERROR(IF(EP2=$A$2,HLOOKUP(EP3,FEB!$CI$3:$ET$26,23),0),0) -> 0 | EQ40: =IFERROR(IF(EQ2=$A$2,HLOOKUP(EQ3,FEB!$CI$3:$ET$26,23),0),0) -> 0 | ER40: =IFERROR(IF(ER2=$A$2,HLOOKUP(ER3,FEB!$CI$3:$ET$26,23),0),0) -> 0 | ES40: =IFERROR(IF(ES2=$A$2,HLOOKUP(ES3,FEB!$CI$3:$ET$26,23),0),0) -> 0 | ET40: =IFERROR(IF(ET2=$A$2,HLOOKUP(ET3,FEB!$CI$3:$ET$26,23),0),0) -> 0 | EU40: =IFERROR(IF(EU2=$A$2,HLOOKUP(EU3,FEB!$CI$3:$ET$26,23),0),0) -> 0 | EV40: =IFERROR(IF(EV2=$A$2,HLOOKUP(EV3,FEB!$CI$3:$ET$26,23),0),0) -> 0 | EW40: =IFERROR(IF(EW2=$A$2,HLOOKUP(EW3,FEB!$CI$3:$ET$26,23),0),0) -> 0 | EX40: =IFERROR(IF(EX2=$A$2,HLOOKUP(EX3,FEB!$CI$3:$ET$26,23),0),0) -> 0 | EY40: =IFERROR(IF(EY2=$A$2,HLOOKUP(EY3,FEB!$CI$3:$ET$26,23),0),0) -> 0 | EZ40: =IFERROR(IF(EZ2=$A$2,HLOOKUP(EZ3,FEB!$CI$3:$ET$26,23),0),0) -> 0 | FA40: =IFERROR(IF(FA2=$A$2,HLOOKUP(FA3,FEB!$CI$3:$ET$26,23),0),0) -> 0
G41: Actual | H41: Budget | I41: Variance | J41: Var % | CG41: U | CI41: =+CI30 -> 0
E42: Calendar | F42: HDD | G42: =I30 -> 133.5 | H42: =VLOOKUP($A$2,Daily!$AB$2:$AF$13,4) -> 172.35 | I42: =G42-H42 -> -38.85 | J42: =G42/H42-1 -> -0.225413403 | CG42: mth after that | CH42: =SUM(CI42:ET42) -> 0 | CI42: =IFERROR(IF(CI2=$A$2,HLOOKUP(CI3,MAR!$CI$3:$ET$26,23),0),0) -> 0 | CJ42: =IFERROR(IF(CJ2=$A$2,HLOOKUP(CJ3,MAR!$CI$3:$ET$26,23),0),0) -> 0 | CK42: =IFERROR(IF(CK2=$A$2,HLOOKUP(CK3,MAR!$CI$3:$ET$26,23),0),0) -> 0 | CL42: =IFERROR(IF(CL2=$A$2,HLOOKUP(CL3,MAR!$CI$3:$ET$26,23),0),0) -> 0 | CM42: =IFERROR(IF(CM2=$A$2,HLOOKUP(CM3,MAR!$CI$3:$ET$26,23),0),0) -> 0 | CN42: =IFERROR(IF(CN2=$A$2,HLOOKUP(CN3,MAR!$CI$3:$ET$26,23),0),0) -> 0 | CO42: =IFERROR(IF(CO2=$A$2,HLOOKUP(CO3,MAR!$CI$3:$ET$26,23),0),0) -> 0 | CP42: =IFERROR(IF(CP2=$A$2,HLOOKUP(CP3,MAR!$CI$3:$ET$26,23),0),0) -> 0 | CQ42: =IFERROR(IF(CQ2=$A$2,HLOOKUP(CQ3,MAR!$CI$3:$ET$26,23),0),0) -> 0 | CR42: =IFERROR(IF(CR2=$A$2,HLOOKUP(CR3,MAR!$CI$3:$ET$26,23),0),0) -> 0 | CS42: =IFERROR(IF(CS2=$A$2,HLOOKUP(CS3,MAR!$CI$3:$ET$26,23),0),0) -> 0 | CT42: =IFERROR(IF(CT2=$A$2,HLOOKUP(CT3,MAR!$CI$3:$ET$26,23),0),0) -> 0 | CU42: =IFERROR(IF(CU2=$A$2,HLOOKUP(CU3,MAR!$CI$3:$ET$26,23),0),0) -> 0 | CV42: =IFERROR(IF(CV2=$A$2,HLOOKUP(CV3,MAR!$CI$3:$ET$26,23),0),0) -> 0 | CW42: =IFERROR(IF(CW2=$A$2,HLOOKUP(CW3,MAR!$CI$3:$ET$26,23),0),0) -> 0 | CX42: =IFERROR(IF(CX2=$A$2,HLOOKUP(CX3,MAR!$CI$3:$ET$26,23),0),0) -> 0 | CY42: =IFERROR(IF(CY2=$A$2,HLOOKUP(CY3,MAR!$CI$3:$ET$26,23),0),0) -> 0 | CZ42: =IFERROR(IF(CZ2=$A$2,HLOOKUP(CZ3,MAR!$CI$3:$ET$26,23),0),0) -> 0 | DA42: =IFERROR(IF(DA2=$A$2,HLOOKUP(DA3,MAR!$CI$3:$ET$26,23),0),0) -> 0 | DB42: =IFERROR(IF(DB2=$A$2,HLOOKUP(DB3,MAR!$CI$3:$ET$26,23),0),0) -> 0 | DC42: =IFERROR(IF(DC2=$A$2,HLOOKUP(DC3,MAR!$CI$3:$ET$26,23),0),0) -> 0 | DD42: =IFERROR(IF(DD2=$A$2,HLOOKUP(DD3,MAR!$CI$3:$ET$26,23),0),0) -> 0 | DE42: =IFERROR(IF(DE2=$A$2,HLOOKUP(DE3,MAR!$CI$3:$ET$26,23),0),0) -> 0 | DF42: =IFERROR(IF(DF2=$A$2,HLOOKUP(DF3,MAR!$CI$3:$ET$26,23),0),0) -> 0 | DG42: =IFERROR(IF(DG2=$A$2,HLOOKUP(DG3,MAR!$CI$3:$ET$26,23),0),0) -> 0 | DH42: =IFERROR(IF(DH2=$A$2,HLOOKUP(DH3,MAR!$CI$3:$ET$26,23),0),0) -> 0 | DI42: =IFERROR(IF(DI2=$A$2,HLOOKUP(DI3,MAR!$CI$3:$ET$26,23),0),0) -> 0 | DJ42: =IFERROR(IF(DJ2=$A$2,HLOOKUP(DJ3,MAR!$CI$3:$ET$26,23),0),0) -> 0 | DK42: =IFERROR(IF(DK2=$A$2,HLOOKUP(DK3,MAR!$CI$3:$ET$26,23),0),0) -> 0 | DL42: =IFERROR(IF(DL2=$A$2,HLOOKUP(DL3,MAR!$CI$3:$ET$26,23),0),0) -> 0 | DM42: =IFERROR(IF(DM2=$A$2,HLOOKUP(DM3,MAR!$CI$3:$ET$26,23),0),0) -> 0 | DN42: =IFERROR(IF(DN2=$A$2,HLOOKUP(DN3,MAR!$CI$3:$ET$26,23),0),0) -> 0 | DO42: =IFERROR(IF(DO2=$A$2,HLOOKUP(DO3,MAR!$CI$3:$ET$26,23),0),0) -> 0 | DP42: =IFERROR(IF(DP2=$A$2,HLOOKUP(DP3,MAR!$CI$3:$ET$26,23),0),0) -> 0 | DQ42: =IFERROR(IF(DQ2=$A$2,HLOOKUP(DQ3,MAR!$CI$3:$ET$26,23),0),0) -> 0 | DR42: =IFERROR(IF(DR2=$A$2,HLOOKUP(DR3,MAR!$CI$3:$ET$26,23),0),0) -> 0 | DS42: =IFERROR(IF(DS2=$A$2,HLOOKUP(DS3,MAR!$CI$3:$ET$26,23),0),0) -> 0 | DT42: =IFERROR(IF(DT2=$A$2,HLOOKUP(DT3,MAR!$CI$3:$ET$26,23),0),0) -> 0 | DU42: =IFERROR(IF(DU2=$A$2,HLOOKUP(DU3,MAR!$CI$3:$ET$26,23),0),0) -> 0 | DV42: =IFERROR(IF(DV2=$A$2,HLOOKUP(DV3,MAR!$CI$3:$ET$26,23),0),0) -> 0 | DW42: =IFERROR(IF(DW2=$A$2,HLOOKUP(DW3,MAR!$CI$3:$ET$26,23),0),0) -> 0 | DX42: =IFERROR(IF(DX2=$A$2,HLOOKUP(DX3,MAR!$CI$3:$ET$26,23),0),0) -> 0 | DY42: =IFERROR(IF(DY2=$A$2,HLOOKUP(DY3,MAR!$CI$3:$ET$26,23),0),0) -> 0 | DZ42: =IFERROR(IF(DZ2=$A$2,HLOOKUP(DZ3,MAR!$CI$3:$ET$26,23),0),0) -> 0 | EA42: =IFERROR(IF(EA2=$A$2,HLOOKUP(EA3,MAR!$CI$3:$ET$26,23),0),0) -> 0 | EB42: =IFERROR(IF(EB2=$A$2,HLOOKUP(EB3,MAR!$CI$3:$ET$26,23),0),0) -> 0 | EC42: =IFERROR(IF(EC2=$A$2,HLOOKUP(EC3,MAR!$CI$3:$ET$26,23),0),0) -> 0 | ED42: =IFERROR(IF(ED2=$A$2,HLOOKUP(ED3,MAR!$CI$3:$ET$26,23),0),0) -> 0 | EE42: =IFERROR(IF(EE2=$A$2,HLOOKUP(EE3,MAR!$CI$3:$ET$26,23),0),0) -> 0 | EF42: =IFERROR(IF(EF2=$A$2,HLOOKUP(EF3,MAR!$CI$3:$ET$26,23),0),0) -> 0 | EG42: =IFERROR(IF(EG2=$A$2,HLOOKUP(EG3,MAR!$CI$3:$ET$26,23),0),0) -> 0 | EH42: =IFERROR(IF(EH2=$A$2,HLOOKUP(EH3,MAR!$CI$3:$ET$26,23),0),0) -> 0 | EI42: =IFERROR(IF(EI2=$A$2,HLOOKUP(EI3,MAR!$CI$3:$ET$26,23),0),0) -> 0 | EJ42: =IFERROR(IF(EJ2=$A$2,HLOOKUP(EJ3,MAR!$CI$3:$ET$26,23),0),0) -> 0 | EK42: =IFERROR(IF(EK2=$A$2,HLOOKUP(EK3,MAR!$CI$3:$ET$26,23),0),0) -> 0 | EL42: =IFERROR(IF(EL2=$A$2,HLOOKUP(EL3,MAR!$CI$3:$ET$26,23),0),0) -> 0 | EM42: =IFERROR(IF(EM2=$A$2,HLOOKUP(EM3,MAR!$CI$3:$ET$26,23),0),0) -> 0 | EN42: =IFERROR(IF(EN2=$A$2,HLOOKUP(EN3,MAR!$CI$3:$ET$26,23),0),0) -> 0 | EO42: =IFERROR(IF(EO2=$A$2,HLOOKUP(EO3,MAR!$CI$3:$ET$26,23),0),0) -> 0 | EP42: =IFERROR(IF(EP2=$A$2,HLOOKUP(EP3,MAR!$CI$3:$ET$26,23),0),0) -> 0 | EQ42: =IFERROR(IF(EQ2=$A$2,HLOOKUP(EQ3,MAR!$CI$3:$ET$26,23),0),0) -> 0 | ER42: =IFERROR(IF(ER2=$A$2,HLOOKUP(ER3,MAR!$CI$3:$ET$26,23),0),0) -> 0 | ES42: =IFERROR(IF(ES2=$A$2,HLOOKUP(ES3,MAR!$CI$3:$ET$26,23),0),0) -> 0 | ET42: =IFERROR(IF(ET2=$A$2,HLOOKUP(ET3,MAR!$CI$3:$ET$26,23),0),0) -> 0 | EU42: =IFERROR(IF(EU2=$A$2,HLOOKUP(EU3,MAR!$CI$3:$ET$26,23),0),0) -> 0 | EV42: =IFERROR(IF(EV2=$A$2,HLOOKUP(EV3,MAR!$CI$3:$ET$26,23),0),0) -> 0 | EW42: =IFERROR(IF(EW2=$A$2,HLOOKUP(EW3,MAR!$CI$3:$ET$26,23),0),0) -> 0 | EX42: =IFERROR(IF(EX2=$A$2,HLOOKUP(EX3,MAR!$CI$3:$ET$26,23),0),0) -> 0 | EY42: =IFERROR(IF(EY2=$A$2,HLOOKUP(EY3,MAR!$CI$3:$ET$26,23),0),0) -> 0 | EZ42: =IFERROR(IF(EZ2=$A$2,HLOOKUP(EZ3,MAR!$CI$3:$ET$26,23),0),0) -> 0 | FA42: =IFERROR(IF(FA2=$A$2,HLOOKUP(FA3,MAR!$CI$3:$ET$26,23),0),0) -> 0
E43: Calendar | F43: CDD | G43: =I31 -> 60 | H43: =VLOOKUP($A$2,Daily!$AB$2:$AF$13,5) -> 54.9 | I43: =G43-H43 -> 5.1 | J43: =G43/H43-1 -> 0.09289617486
E44: Billing | F44: HDD | G44: =I32 -> 31.40909091 | H44: =VLOOKUP($A$2,Daily!$AB$2:$AF$13,2) -> 148 | I44: -116.5909091 | J44: -0.7877764128
E45: Billing | F45: CDD | G45: =I33 -> 174.4090909 | H45: =VLOOKUP($A$2,Daily!$AB$2:$AF$13,3) -> 75 | I45: 99.40909091 | J45: 1.325454545 | CI45: =+CI1 -> 2021 | CJ45: 2021 | CK45: 2021 | CL45: 2021 | CM45: 2021 | CN45: 2021 | CO45: 2021 | CP45: 2021 | CQ45: 2021 | CR45: 2021 | CS45: 2021 | CT45: 2021 | CU45: 2021 | CV45: 2021 | CW45: 2021 | CX45: 2021 | CY45: 2021 | CZ45: 2021 | DA45: 2021 | DB45: 2021 | DC45: 2021 | DD45: 2021 | DE45: 2021 | DF45: 2021 | DG45: 2021 | DH45: 2021 | DI45: 2021 | DJ45: 2021 | DK45: 2021 | DL45: 2021 | DM45: 2021 | DN45: 2021 | DO45: =+DO1 -> 2021 | DP45: 2021 | DQ45: 2021 | DR45: 2021 | DS45: 2021 | DT45: 2022 | DU45: 2022 | DV45: 2022 | DW45: 2022 | DX45: 2022 | DY45: 2022 | DZ45: 2022 | EA45: 2022 | EB45: 2022 | EC45: 2022 | ED45: 2022 | EE45: 2022 | EF45: 2022 | EG45: 2022 | EH45: 2022 | EI45: 2022 | EJ45: 2022 | EK45: 2022 | EL45: 2022 | EM45: 2022 | EN45: 2022 | EO45: 2022 | EP45: 2022 | EQ45: 2022 | ER45: 2022 | ES45: 2022 | ET45: 2022 | EU45: 2022 | EV45: =+EV1 -> 2022 | EW45: 2022 | EX45: 2022 | EY45: =+EY1 -> 2022 | EZ45: 2022 | FA45: 2022
CI46: =+CI2 -> 11 | CJ46: 11 | CK46: 11 | CL46: 11 | CM46: 11 | CN46: 11 | CO46: 12 | CP46: 12 | CQ46: 12 | CR46: 12 | CS46: 12 | CT46: 12 | CU46: 12 | CV46: 12 | CW46: 12 | CX46: 12 | CY46: 12 | CZ46: 12 | DA46: 12 | DB46: 12 | DC46: 12 | DD46: 12 | DE46: 12 | DF46: 12 | DG46: 12 | DH46: 12 | DI46: 12 | DJ46: 12 | DK46: 12 | DL46: 12 | DM46: 12 | DN46: 12 | DO46: =+DO2 -> 12 | DP46: 12 | DQ46: 12 | DR46: 12 | DS46: 12 | DT46: 1 | DU46: 1 | DV46: 1 | DW46: 1 | DX46: 1 | DY46: 1 | DZ46: 1 | EA46: 1 | EB46: 1 | EC46: 1 | ED46: 1 | EE46: 1 | EF46: 1 | EG46: 1 | EH46: 1 | EI46: 1 | EJ46: 1 | EK46: 1 | EL46: 1 | EM46: 1 | EN46: 1 | EO46: 1 | EP46: 1 | EQ46: 1 | ER46: 1 | ES46: 1 | ET46: 1 | EU46: 1 | EV46: =+EV2 -> 1 | EW46: 1 | EX46: 1 | EY46: =+EY2 -> 2 | EZ46: 2 | FA46: 2
CH47: Cycle | CI47: =+CI3 -> 2021-11-25 | CJ47: 2021-11-26 | CK47: 2021-11-27 | CL47: 2021-11-28 | CM47: 2021-11-29 | CN47: 2021-11-30 | CO47: 2021-12-01 | CP47: 2021-12-02 | CQ47: 2021-12-03 | CR47: 2021-12-04 | CS47: 2021-12-05 | CT47: 2021-12-06 | CU47: 2021-12-07 | CV47: 2021-12-08 | CW47: 2021-12-09 | CX47: 2021-12-10 | CY47: 2021-12-11 | CZ47: 2021-12-12 | DA47: 2021-12-13 | DB47: 2021-12-14 | DC47: 2021-12-15 | DD47: 2021-12-16 | DE47: 2021-12-17 | DF47: 2021-12-18 | DG47: 2021-12-19 | DH47: 2021-12-20 | DI47: 2021-12-21 | DJ47: 2021-12-22 | DK47: 2021-12-23 | DL47: 2021-12-24 | DM47: 2021-12-25 | DN47: 2021-12-26 | DO47: =+DO3 -> 2021-12-27 | DP47: 2021-12-28 | DQ47: 2021-12-29 | DR47: 2021-12-30 | DS47: 2021-12-31 | DT47: 2022-01-01 | DU47: 2022-01-02 | DV47: 2022-01-03 | DW47: 2022-01-04 | DX47: 2022-01-05 | DY47: 2022-01-06 | DZ47: 2022-01-07 | EA47: 2022-01-08 | EB47: 2022-01-09 | EC47: 2022-01-10 | ED47: 2022-01-11 | EE47: 2022-01-12 | EF47: 2022-01-13 | EG47: 2022-01-14 | EH47: 2022-01-15 | EI47: 2022-01-16 | EJ47: 2022-01-17 | EK47: 2022-01-18 | EL47: 2022-01-19 | EM47: 2022-01-20 | EN47: 2022-01-21 | EO47: 2022-01-22 | EP47: 2022-01-23 | EQ47: 2022-01-24 | ER47: 2022-01-25 | ES47: 2022-01-26 | ET47: 2022-01-27 | EU47: 2022-01-28 | EV47: =+EV3 -> 2022-01-29 | EW47: 2022-01-30 | EX47: 2022-01-31 | EY47: =+EY3 -> 2022-02-01 | EZ47: 2022-02-02 | FA47: 2022-02-03
G48: Actual | H48: Budget | I48: Variance | J48: Var % | CG48: =SUM(CI48:FA48) -> 0 | CH48: 1 | CI48: =IF(L4=1,CI$71,0) -> 0 | CJ48: =IF(M4=1,CJ$71,0) -> 0 | CK48: =IF(N4=1,CK$71,0) -> 0 | CL48: =IF(O4=1,CL$71,0) -> 0 | CM48: =IF(P4=1,CM$71,0) -> 0 | CN48: =IF(Q4=1,CN$71,0) -> 0 | CO48: =IF(R4=1,CO$71,0) -> 0 | CP48: =IF(S4=1,CP$71,0) -> 0 | CQ48: =IF(T4=1,CQ$71,0) -> 0 | CR48: =IF(U4=1,CR$71,0) -> 0 | CS48: =IF(V4=1,CS$71,0) -> 0 | CT48: =IF(W4=1,CT$71,0) -> 0 | CU48: =IF(X4=1,CU$71,0) -> 0 | CV48: =IF(Y4=1,CV$71,0) -> 0 | CW48: =IF(Z4=1,CW$71,0) -> 0 | CX48: =IF(AA4=1,CX$71,0) -> 0 | CY48: =IF(AB4=1,CY$71,0) -> 0 | CZ48: =IF(AC4=1,CZ$71,0) -> 0 | DA48: =IF(AD4=1,DA$71,0) -> 0 | DB48: =IF(AE4=1,DB$71,0) -> 0 | DC48: =IF(AF4=1,DC$71,0) -> 0 | DD48: =IF(AG4=1,DD$71,0) -> 0 | DE48: =IF(AH4=1,DE$71,0) -> 0 | DF48: =IF(AI4=1,DF$71,0) -> 0 | DG48: =IF(AJ4=1,DG$71,0) -> 0 | DH48: =IF(AK4=1,DH$71,0) -> 0 | DI48: =IF(AL4=1,DI$71,0) -> 0 | DJ48: =IF(AM4=1,DJ$71,0) -> 0 | DK48: =IF(AN4=1,DK$71,0) -> 0 | DL48: =IF(AO4=1,DL$71,0) -> 0 | DM48: =IF(AP4=1,DM$71,0) -> 0 | DN48: =IF(AQ4=1,DN$71,0) -> 0 | DO48: =IF(AR4=1,DO$71,0) -> 0 | DP48: =IF(AS4=1,DP$71,0) -> 0 | DQ48: =IF(AT4=1,DQ$71,0) -> 0 | DR48: =IF(AU4=1,DR$71,0) -> 0 | DS48: =IF(AV4=1,DS$71,0) -> 0 | DT48: =IF(AW4=1,DT$71,0) -> 0 | DU48: =IF(AX4=1,DU$71,0) -> 0 | DV48: =IF(AY4=1,DV$71,0) -> 0 | DW48: =IF(AZ4=1,DW$71,0) -> 0 | DX48: =IF(BA4=1,DX$71,0) -> 0 | DY48: =IF(BB4=1,DY$71,0) -> 0 | DZ48: =IF(BC4=1,DZ$71,0) -> 0 | EA48: =IF(BD4=1,EA$71,0) -> 0 | EB48: =IF(BE4=1,EB$71,0) -> 0 | EC48: =IF(BF4=1,EC$71,0) -> 0 | ED48: =IF(BG4=1,ED$71,0) -> 0 | EE48: =IF(BH4=1,EE$71,0) -> 0 | EF48: =IF(BI4=1,EF$71,0) -> 0 | EG48: =IF(BJ4=1,EG$71,0) -> 0 | EH48: =IF(BK4=1,EH$71,0) -> 0 | EI48: =IF(BL4=1,EI$71,0) -> 0 | EJ48: =IF(BM4=1,EJ$71,0) -> 0 | EK48: =IF(BN4=1,EK$71,0) -> 0 | EL48: =IF(BO4=1,EL$71,0) -> 0 | EM48: =IF(BP4=1,EM$71,0) -> 0 | EN48: =IF(BQ4=1,EN$71,0) -> 0 | EO48: =IF(BR4=1,EO$71,0) -> 0 | EP48: =IF(BS4=1,EP$71,0) -> 0 | EQ48: =IF(BT4=1,EQ$71,0) -> 0 | ER48: =IF(BU4=1,ER$71,0) -> 0 | ES48: =IF(BV4=1,ES$71,0) -> 0 | ET48: =IF(BW4=1,ET$71,0) -> 0 | EU48: =IF(BX4=1,EU$71,0) -> 0 | EV48: =IF(BY4=1,EV$71,0) -> 0 | EW48: =IF(BZ4=1,EW$71,0) -> 0 | EX48: =IF(CA4=1,EX$71,0) -> 0 | EY48: =IF(CB4=1,EY$71,0) -> 0 | EZ48: =IF(CC4=1,EZ$71,0) -> 0 | FA48: =IF(CD4=1,FA$71,0) -> 0
E49: Calendar | F49: Total DD | G49: =G42+G43 -> 193.5 | H49: =H42+H43 -> 227.25 | I49: =G49-H49 -> -33.75 | J49: =G49/H49-1 -> -0.1485148515 | CG49: =SUM(CI49:FA49) -> 0 | CH49: 2 | CI49: 0 | CJ49: 0 | CK49: 0 | CL49: 0 | CM49: 0 | CN49: 0 | CO49: 0 | CP49: 0 | CQ49: 0 | CR49: 0 | CS49: 0 | CT49: 0 | CU49: 0 | CV49: 0 | CW49: 0 | CX49: 0 | CY49: 0 | CZ49: 0 | DA49: 0 | DB49: 0 | DC49: 0 | DD49: 0 | DE49: 0 | DF49: 0 | DG49: 0 | DH49: 0 | DI49: 0 | DJ49: 0 | DK49: 0 | DL49: 0 | DM49: 0 | DN49: 0 | DO49: 0 | DP49: 0 | DQ49: 0 | DR49: 0 | DS49: 0 | DT49: 0 | DU49: 0 | DV49: 0 | DW49: 0 | DX49: 0 | DY49: 0 | DZ49: 0 | EA49: 0 | EB49: 0 | EC49: 0 | ED49: 0 | EE49: 0 | EF49: 0 | EG49: 0 | EH49: 0 | EI49: 0 | EJ49: 0 | EK49: 0 | EL49: 0 | EM49: 0 | EN49: 0 | EO49: 0 | EP49: 0 | EQ49: 0 | ER49: 0 | ES49: 0 | ET49: 0 | EU49: 0 | EV49: 0 | EW49: 0 | EX49: 0 | EY49: 0 | EZ49: 0 | FA49: 0
E50: Billing | F50: Total DD | G50: =G44+G45 -> 205.8181818 | H50: =H44+H45 -> 223 | I50: =G50-H50 -> -17.18181818 | J50: =G50/H50-1 -> -0.07704851203 | CG50: 0 | CH50: 3 | CI50: 0 | CJ50: 0 | CK50: 0 | CL50: 0 | CM50: 0 | CN50: 0 | CO50: 0 | CP50: 0 | CQ50: 0 | CR50: 0 | CS50: 0 | CT50: 0 | CU50: 0 | CV50: 0 | CW50: 0 | CX50: 0 | CY50: 0 | CZ50: 0 | DA50: 0 | DB50: 0 | DC50: 0 | DD50: 0 | DE50: 0 | DF50: 0 | DG50: 0 | DH50: 0 | DI50: 0 | DJ50: 0 | DK50: 0 | DL50: 0 | DM50: 0 | DN50: 0 | DO50: 0 | DP50: 0 | DQ50: 0 | DR50: 0 | DS50: 0 | DT50: 0 | DU50: 0 | DV50: 0 | DW50: 0 | DX50: 0 | DY50: 0 | DZ50: 0 | EA50: 0 | EB50: 0 | EC50: 0 | ED50: 0 | EE50: 0 | EF50: 0 | EG50: 0 | EH50: 0 | EI50: 0 | EJ50: 0 | EK50: 0 | EL50: 0 | EM50: 0 | EN50: 0 | EO50: 0 | EP50: 0 | EQ50: 0 | ER50: 0 | ES50: 0 | ET50: 0 | EU50: 0 | EV50: 0 | EW50: 0 | EX50: 0 | EY50: 0 | EZ50: 0 | FA50: 0
CG51: 0 | CH51: 4 | CI51: 0 | CJ51: 0 | CK51: 0 | CL51: 0 | CM51: 0 | CN51: 0 | CO51: 0 | CP51: 0 | CQ51: 0 | CR51: 0 | CS51: 0 | CT51: 0 | CU51: 0 | CV51: 0 | CW51: 0 | CX51: 0 | CY51: 0 | CZ51: 0 | DA51: 0 | DB51: 0 | DC51: 0 | DD51: 0 | DE51: 0 | DF51: 0 | DG51: 0 | DH51: 0 | DI51: 0 | DJ51: 0 | DK51: 0 | DL51: 0 | DM51: 0 | DN51: 0 | DO51: 0 | DP51: 0 | DQ51: 0 | DR51: 0 | DS51: 0 | DT51: 0 | DU51: 0 | DV51: 0 | DW51: 0 | DX51: 0 | DY51: 0 | DZ51: 0 | EA51: 0 | EB51: 0 | EC51: 0 | ED51: 0 | EE51: 0 | EF51: 0 | EG51: 0 | EH51: 0 | EI51: 0 | EJ51: 0 | EK51: 0 | EL51: 0 | EM51: 0 | EN51: 0 | EO51: 0 | EP51: 0 | EQ51: 0 | ER51: 0 | ES51: 0 | ET51: 0 | EU51: 0 | EV51: 0 | EW51: 0 | EX51: 0 | EY51: 0 | EZ51: 0 | FA51: 0
CG52: 0 | CH52: 5 | CI52: 0 | CJ52: 0 | CK52: 0 | CL52: 0 | CM52: 0 | CN52: 0 | CO52: 0 | CP52: 0 | CQ52: 0 | CR52: 0 | CS52: 0 | CT52: 0 | CU52: 0 | CV52: 0 | CW52: 0 | CX52: 0 | CY52: 0 | CZ52: 0 | DA52: 0 | DB52: 0 | DC52: 0 | DD52: 0 | DE52: 0 | DF52: 0 | DG52: 0 | DH52: 0 | DI52: 0 | DJ52: 0 | DK52: 0 | DL52: 0 | DM52: 0 | DN52: 0 | DO52: 0 | DP52: 0 | DQ52: 0 | DR52: 0 | DS52: 0 | DT52: 0 | DU52: 0 | DV52: 0 | DW52: 0 | DX52: 0 | DY52: 0 | DZ52: 0 | EA52: 0 | EB52: 0 | EC52: 0 | ED52: 0 | EE52: 0 | EF52: 0 | EG52: 0 | EH52: 0 | EI52: 0 | EJ52: 0 | EK52: 0 | EL52: 0 | EM52: 0 | EN52: 0 | EO52: 0 | EP52: 0 | EQ52: 0 | ER52: 0 | ES52: 0 | ET52: 0 | EU52: 0 | EV52: 0 | EW52: 0 | EX52: 0 | EY52: 0 | EZ52: 0 | FA52: 0
CG53: 0 | CH53: 6 | CI53: 0 | CJ53: 0 | CK53: 0 | CL53: 0 | CM53: 0 | CN53: 0 | CO53: 0 | CP53: 0 | CQ53: 0 | CR53: 0 | CS53: 0 | CT53: 0 | CU53: 0 | CV53: 0 | CW53: 0 | CX53: 0 | CY53: 0 | CZ53: 0 | DA53: 0 | DB53: 0 | DC53: 0 | DD53: 0 | DE53: 0 | DF53: 0 | DG53: 0 | DH53: 0 | DI53: 0 | DJ53: 0 | DK53: 0 | DL53: 0 | DM53: 0 | DN53: 0 | DO53: 0 | DP53: 0 | DQ53: 0 | DR53: 0 | DS53: 0 | DT53: 0 | DU53: 0 | DV53: 0 | DW53: 0 | DX53: 0 | DY53: 0 | DZ53: 0 | EA53: 0 | EB53: 0 | EC53: 0 | ED53: 0 | EE53: 0 | EF53: 0 | EG53: 0 | EH53: 0 | EI53: 0 | EJ53: 0 | EK53: 0 | EL53: 0 | EM53: 0 | EN53: 0 | EO53: 0 | EP53: 0 | EQ53: 0 | ER53: 0 | ES53: 0 | ET53: 0 | EU53: 0 | EV53: 0 | EW53: 0 | EX53: 0 | EY53: 0 | EZ53: 0 | FA53: 0
CG54: 0 | CH54: 7 | CI54: 0 | CJ54: 0 | CK54: 0 | CL54: 0 | CM54: 0 | CN54: 0 | CO54: 0 | CP54: 0 | CQ54: 0 | CR54: 0 | CS54: 0 | CT54: 0 | CU54: 0 | CV54: 0 | CW54: 0 | CX54: 0 | CY54: 0 | CZ54: 0 | DA54: 0 | DB54: 0 | DC54: 0 | DD54: 0 | DE54: 0 | DF54: 0 | DG54: 0 | DH54: 0 | DI54: 0 | DJ54: 0 | DK54: 0 | DL54: 0 | DM54: 0 | DN54: 0 | DO54: 0 | DP54: 0 | DQ54: 0 | DR54: 0 | DS54: 0 | DT54: 0 | DU54: 0 | DV54: 0 | DW54: 0 | DX54: 0 | DY54: 0 | DZ54: 0 | EA54: 0 | EB54: 0 | EC54: 0 | ED54: 0 | EE54: 0 | EF54: 0 | EG54: 0 | EH54: 0 | EI54: 0 | EJ54: 0 | EK54: 0 | EL54: 0 | EM54: 0 | EN54: 0 | EO54: 0 | EP54: 0 | EQ54: 0 | ER54: 0 | ES54: 0 | ET54: 0 | EU54: 0 | EV54: 0 | EW54: 0 | EX54: 0 | EY54: 0 | EZ54: 0 | FA54: 0
CG55: 0 | CH55: 8 | CI55: 0 | CJ55: 0 | CK55: 0 | CL55: 0 | CM55: 0 | CN55: 0 | CO55: 0 | CP55: 0 | CQ55: 0 | CR55: 0 | CS55: 0 | CT55: 0 | CU55: 0 | CV55: 0 | CW55: 0 | CX55: 0 | CY55: 0 | CZ55: 0 | DA55: 0 | DB55: 0 | DC55: 0 | DD55: 0 | DE55: 0 | DF55: 0 | DG55: 0 | DH55: 0 | DI55: 0 | DJ55: 0 | DK55: 0 | DL55: 0 | DM55: 0 | DN55: 0 | DO55: 0 | DP55: 0 | DQ55: 0 | DR55: 0 | DS55: 0 | DT55: 0 | DU55: 0 | DV55: 0 | DW55: 0 | DX55: 0 | DY55: 0 | DZ55: 0 | EA55: 0 | EB55: 0 | EC55: 0 | ED55: 0 | EE55: 0 | EF55: 0 | EG55: 0 | EH55: 0 | EI55: 0 | EJ55: 0 | EK55: 0 | EL55: 0 | EM55: 0 | EN55: 0 | EO55: 0 | EP55: 0 | EQ55: 0 | ER55: 0 | ES55: 0 | ET55: 0 | EU55: 0 | EV55: 0 | EW55: 0 | EX55: 0 | EY55: 0 | EZ55: 0 | FA55: 0
CG56: 0 | CH56: 9 | CI56: 0 | CJ56: 0 | CK56: 0 | CL56: 0 | CM56: 0 | CN56: 0 | CO56: 0 | CP56: 0 | CQ56: 0 | CR56: 0 | CS56: 0 | CT56: 0 | CU56: 0 | CV56: 0 | CW56: 0 | CX56: 0 | CY56: 0 | CZ56: 0 | DA56: 0 | DB56: 0 | DC56: 0 | DD56: 0 | DE56: 0 | DF56: 0 | DG56: 0 | DH56: 0 | DI56: 0 | DJ56: 0 | DK56: 0 | DL56: 0 | DM56: 0 | DN56: 0 | DO56: 0 | DP56: 0 | DQ56: 0 | DR56: 0 | DS56: 0 | DT56: 0 | DU56: 0 | DV56: 0 | DW56: 0 | DX56: 0 | DY56: 0 | DZ56: 0 | EA56: 0 | EB56: 0 | EC56: 0 | ED56: 0 | EE56: 0 | EF56: 0 | EG56: 0 | EH56: 0 | EI56: 0 | EJ56: 0 | EK56: 0 | EL56: 0 | EM56: 0 | EN56: 0 | EO56: 0 | EP56: 0 | EQ56: 0 | ER56: 0 | ES56: 0 | ET56: 0 | EU56: 0 | EV56: 0 | EW56: 0 | EX56: 0 | EY56: 0 | EZ56: 0 | FA56: 0
CG57: 0 | CH57: 10 | CI57: 0 | CJ57: 0 | CK57: 0 | CL57: 0 | CM57: 0 | CN57: 0 | CO57: 0 | CP57: 0 | CQ57: 0 | CR57: 0 | CS57: 0 | CT57: 0 | CU57: 0 | CV57: 0 | CW57: 0 | CX57: 0 | CY57: 0 | CZ57: 0 | DA57: 0 | DB57: 0 | DC57: 0 | DD57: 0 | DE57: 0 | DF57: 0 | DG57: 0 | DH57: 0 | DI57: 0 | DJ57: 0 | DK57: 0 | DL57: 0 | DM57: 0 | DN57: 0 | DO57: 0 | DP57: 0 | DQ57: 0 | DR57: 0 | DS57: 0 | DT57: 0 | DU57: 0 | DV57: 0 | DW57: 0 | DX57: 0 | DY57: 0 | DZ57: 0 | EA57: 0 | EB57: 0 | EC57: 0 | ED57: 0 | EE57: 0 | EF57: 0 | EG57: 0 | EH57: 0 | EI57: 0 | EJ57: 0 | EK57: 0 | EL57: 0 | EM57: 0 | EN57: 0 | EO57: 0 | EP57: 0 | EQ57: 0 | ER57: 0 | ES57: 0 | ET57: 0 | EU57: 0 | EV57: 0 | EW57: 0 | EX57: 0 | EY57: 0 | EZ57: 0 | FA57: 0
CG58: 0 | CH58: 11 | CI58: 0 | CJ58: 0 | CK58: 0 | CL58: 0 | CM58: 0 | CN58: 0 | CO58: 0 | CP58: 0 | CQ58: 0 | CR58: 0 | CS58: 0 | CT58: 0 | CU58: 0 | CV58: 0 | CW58: 0 | CX58: 0 | CY58: 0 | CZ58: 0 | DA58: 0 | DB58: 0 | DC58: 0 | DD58: 0 | DE58: 0 | DF58: 0 | DG58: 0 | DH58: 0 | DI58: 0 | DJ58: 0 | DK58: 0 | DL58: 0 | DM58: 0 | DN58: 0 | DO58: 0 | DP58: 0 | DQ58: 0 | DR58: 0 | DS58: 0 | DT58: 0 | DU58: 0 | DV58: 0 | DW58: 0 | DX58: 0 | DY58: 0 | DZ58: 0 | EA58: 0 | EB58: 0 | EC58: 0 | ED58: 0 | EE58: 0 | EF58: 0 | EG58: 0 | EH58: 0 | EI58: 0 | EJ58: 0 | EK58: 0 | EL58: 0 | EM58: 0 | EN58: 0 | EO58: 0 | EP58: 0 | EQ58: 0 | ER58: 0 | ES58: 0 | ET58: 0 | EU58: 0 | EV58: 0 | EW58: 0 | EX58: 0 | EY58: 0 | EZ58: 0 | FA58: 0
Y59: =TEXT(DATE(A1,A2,1),"mmm yyyy")&" - Billing Cycle Rainfall" -> Jan 2022 - Billing Cycle Rainfall | CG59: 0 | CH59: 12 | CI59: 0 | CJ59: 0 | CK59: 0 | CL59: 0 | CM59: 0 | CN59: 0 | CO59: 0 | CP59: 0 | CQ59: 0 | CR59: 0 | CS59: 0 | CT59: 0 | CU59: 0 | CV59: 0 | CW59: 0 | CX59: 0 | CY59: 0 | CZ59: 0 | DA59: 0 | DB59: 0 | DC59: 0 | DD59: 0 | DE59: 0 | DF59: 0 | DG59: 0 | DH59: 0 | DI59: 0 | DJ59: 0 | DK59: 0 | DL59: 0 | DM59: 0 | DN59: 0 | DO59: 0 | DP59: 0 | DQ59: 0 | DR59: 0 | DS59: 0 | DT59: 0 | DU59: 0 | DV59: 0 | DW59: 0 | DX59: 0 | DY59: 0 | DZ59: 0 | EA59: 0 | EB59: 0 | EC59: 0 | ED59: 0 | EE59: 0 | EF59: 0 | EG59: 0 | EH59: 0 | EI59: 0 | EJ59: 0 | EK59: 0 | EL59: 0 | EM59: 0 | EN59: 0 | EO59: 0 | EP59: 0 | EQ59: 0 | ER59: 0 | ES59: 0 | ET59: 0 | EU59: 0 | EV59: 0 | EW59: 0 | EX59: 0 | EY59: 0 | EZ59: 0 | FA59: 0
CG60: 0 | CH60: 13 | CI60: 0 | CJ60: 0 | CK60: 0 | CL60: 0 | CM60: 0 | CN60: 0 | CO60: 0 | CP60: 0 | CQ60: 0 | CR60: 0 | CS60: 0 | CT60: 0 | CU60: 0 | CV60: 0 | CW60: 0 | CX60: 0 | CY60: 0 | CZ60: 0 | DA60: 0 | DB60: 0 | DC60: 0 | DD60: 0 | DE60: 0 | DF60: 0 | DG60: 0 | DH60: 0 | DI60: 0 | DJ60: 0 | DK60: 0 | DL60: 0 | DM60: 0 | DN60: 0 | DO60: 0 | DP60: 0 | DQ60: 0 | DR60: 0 | DS60: 0 | DT60: 0 | DU60: 0 | DV60: 0 | DW60: 0 | DX60: 0 | DY60: 0 | DZ60: 0 | EA60: 0 | EB60: 0 | EC60: 0 | ED60: 0 | EE60: 0 | EF60: 0 | EG60: 0 | EH60: 0 | EI60: 0 | EJ60: 0 | EK60: 0 | EL60: 0 | EM60: 0 | EN60: 0 | EO60: 0 | EP60: 0 | EQ60: 0 | ER60: 0 | ES60: 0 | ET60: 0 | EU60: 0 | EV60: 0 | EW60: 0 | EX60: 0 | EY60: 0 | EZ60: 0 | FA60: 0
CG61: 0 | CH61: 14 | CI61: 0 | CJ61: 0 | CK61: 0 | CL61: 0 | CM61: 0 | CN61: 0 | CO61: 0 | CP61: 0 | CQ61: 0 | CR61: 0 | CS61: 0 | CT61: 0 | CU61: 0 | CV61: 0 | CW61: 0 | CX61: 0 | CY61: 0 | CZ61: 0 | DA61: 0 | DB61: 0 | DC61: 0 | DD61: 0 | DE61: 0 | DF61: 0 | DG61: 0 | DH61: 0 | DI61: 0 | DJ61: 0 | DK61: 0 | DL61: 0 | DM61: 0 | DN61: 0 | DO61: 0 | DP61: 0 | DQ61: 0 | DR61: 0 | DS61: 0 | DT61: 0 | DU61: 0 | DV61: 0 | DW61: 0 | DX61: 0 | DY61: 0 | DZ61: 0 | EA61: 0 | EB61: 0 | EC61: 0 | ED61: 0 | EE61: 0 | EF61: 0 | EG61: 0 | EH61: 0 | EI61: 0 | EJ61: 0 | EK61: 0 | EL61: 0 | EM61: 0 | EN61: 0 | EO61: 0 | EP61: 0 | EQ61: 0 | ER61: 0 | ES61: 0 | ET61: 0 | EU61: 0 | EV61: 0 | EW61: 0 | EX61: 0 | EY61: 0 | EZ61: 0 | FA61: 0
CG62: 0 | CH62: 15 | CI62: 0 | CJ62: 0 | CK62: 0 | CL62: 0 | CM62: 0 | CN62: 0 | CO62: 0 | CP62: 0 | CQ62: 0 | CR62: 0 | CS62: 0 | CT62: 0 | CU62: 0 | CV62: 0 | CW62: 0 | CX62: 0 | CY62: 0 | CZ62: 0 | DA62: 0 | DB62: 0 | DC62: 0 | DD62: 0 | DE62: 0 | DF62: 0 | DG62: 0 | DH62: 0 | DI62: 0 | DJ62: 0 | DK62: 0 | DL62: 0 | DM62: 0 | DN62: 0 | DO62: 0 | DP62: 0 | DQ62: 0 | DR62: 0 | DS62: 0 | DT62: 0 | DU62: 0 | DV62: 0 | DW62: 0 | DX62: 0 | DY62: 0 | DZ62: 0 | EA62: 0 | EB62: 0 | EC62: 0 | ED62: 0 | EE62: 0 | EF62: 0 | EG62: 0 | EH62: 0 | EI62: 0 | EJ62: 0 | EK62: 0 | EL62: 0 | EM62: 0 | EN62: 0 | EO62: 0 | EP62: 0 | EQ62: 0 | ER62: 0 | ES62: 0 | ET62: 0 | EU62: 0 | EV62: 0 | EW62: 0 | EX62: 0 | EY62: 0 | EZ62: 0 | FA62: 0
CG63: 0 | CH63: 16 | CI63: 0 | CJ63: 0 | CK63: 0 | CL63: 0 | CM63: 0 | CN63: 0 | CO63: 0 | CP63: 0 | CQ63: 0 | CR63: 0 | CS63: 0 | CT63: 0 | CU63: 0 | CV63: 0 | CW63: 0 | CX63: 0 | CY63: 0 | CZ63: 0 | DA63: 0 | DB63: 0 | DC63: 0 | DD63: 0 | DE63: 0 | DF63: 0 | DG63: 0 | DH63: 0 | DI63: 0 | DJ63: 0 | DK63: 0 | DL63: 0 | DM63: 0 | DN63: 0 | DO63: 0 | DP63: 0 | DQ63: 0 | DR63: 0 | DS63: 0 | DT63: 0 | DU63: 0 | DV63: 0 | DW63: 0 | DX63: 0 | DY63: 0 | DZ63: 0 | EA63: 0 | EB63: 0 | EC63: 0 | ED63: 0 | EE63: 0 | EF63: 0 | EG63: 0 | EH63: 0 | EI63: 0 | EJ63: 0 | EK63: 0 | EL63: 0 | EM63: 0 | EN63: 0 | EO63: 0 | EP63: 0 | EQ63: 0 | ER63: 0 | ES63: 0 | ET63: 0 | EU63: 0 | EV63: 0 | EW63: 0 | EX63: 0 | EY63: 0 | EZ63: 0 | FA63: 0
CG64: 0 | CH64: 17 | CI64: 0 | CJ64: 0 | CK64: 0 | CL64: 0 | CM64: 0 | CN64: 0 | CO64: 0 | CP64: 0 | CQ64: 0 | CR64: 0 | CS64: 0 | CT64: 0 | CU64: 0 | CV64: 0 | CW64: 0 | CX64: 0 | CY64: 0 | CZ64: 0 | DA64: 0 | DB64: 0 | DC64: 0 | DD64: 0 | DE64: 0 | DF64: 0 | DG64: 0 | DH64: 0 | DI64: 0 | DJ64: 0 | DK64: 0 | DL64: 0 | DM64: 0 | DN64: 0 | DO64: 0 | DP64: 0 | DQ64: 0 | DR64: 0 | DS64: 0 | DT64: 0 | DU64: 0 | DV64: 0 | DW64: 0 | DX64: 0 | DY64: 0 | DZ64: 0 | EA64: 0 | EB64: 0 | EC64: 0 | ED64: 0 | EE64: 0 | EF64: 0 | EG64: 0 | EH64: 0 | EI64: 0 | EJ64: 0 | EK64: 0 | EL64: 0 | EM64: 0 | EN64: 0 | EO64: 0 | EP64: 0 | EQ64: 0 | ER64: 0 | ES64: 0 | ET64: 0 | EU64: 0 | EV64: 0 | EW64: 0 | EX64: 0 | EY64: 0 | EZ64: 0 | FA64: 0
CG65: 0 | CH65: 18 | CI65: 0 | CJ65: 0 | CK65: 0 | CL65: 0 | CM65: 0 | CN65: 0 | CO65: 0 | CP65: 0 | CQ65: 0 | CR65: 0 | CS65: 0 | CT65: 0 | CU65: 0 | CV65: 0 | CW65: 0 | CX65: 0 | CY65: 0 | CZ65: 0 | DA65: 0 | DB65: 0 | DC65: 0 | DD65: 0 | DE65: 0 | DF65: 0 | DG65: 0 | DH65: 0 | DI65: 0 | DJ65: 0 | DK65: 0 | DL65: 0 | DM65: 0 | DN65: 0 | DO65: 0 | DP65: 0 | DQ65: 0 | DR65: 0 | DS65: 0 | DT65: 0 | DU65: 0 | DV65: 0 | DW65: 0 | DX65: 0 | DY65: 0 | DZ65: 0 | EA65: 0 | EB65: 0 | EC65: 0 | ED65: 0 | EE65: 0 | EF65: 0 | EG65: 0 | EH65: 0 | EI65: 0 | EJ65: 0 | EK65: 0 | EL65: 0 | EM65: 0 | EN65: 0 | EO65: 0 | EP65: 0 | EQ65: 0 | ER65: 0 | ES65: 0 | ET65: 0 | EU65: 0 | EV65: 0 | EW65: 0 | EX65: 0 | EY65: 0 | EZ65: 0 | FA65: 0
CG66: 0 | CH66: 19 | CI66: 0 | CJ66: 0 | CK66: 0 | CL66: 0 | CM66: 0 | CN66: 0 | CO66: 0 | CP66: 0 | CQ66: 0 | CR66: 0 | CS66: 0 | CT66: 0 | CU66: 0 | CV66: 0 | CW66: 0 | CX66: 0 | CY66: 0 | CZ66: 0 | DA66: 0 | DB66: 0 | DC66: 0 | DD66: 0 | DE66: 0 | DF66: 0 | DG66: 0 | DH66: 0 | DI66: 0 | DJ66: 0 | DK66: 0 | DL66: 0 | DM66: 0 | DN66: 0 | DO66: 0 | DP66: 0 | DQ66: 0 | DR66: 0 | DS66: 0 | DT66: 0 | DU66: 0 | DV66: 0 | DW66: 0 | DX66: 0 | DY66: 0 | DZ66: 0 | EA66: 0 | EB66: 0 | EC66: 0 | ED66: 0 | EE66: 0 | EF66: 0 | EG66: 0 | EH66: 0 | EI66: 0 | EJ66: 0 | EK66: 0 | EL66: 0 | EM66: 0 | EN66: 0 | EO66: 0 | EP66: 0 | EQ66: 0 | ER66: 0 | ES66: 0 | ET66: 0 | EU66: 0 | EV66: 0 | EW66: 0 | EX66: 0 | EY66: 0 | EZ66: 0 | FA66: 0
CG67: 0 | CH67: 20 | CI67: 0 | CJ67: 0 | CK67: 0 | CL67: 0 | CM67: 0 | CN67: 0 | CO67: 0 | CP67: 0 | CQ67: 0 | CR67: 0 | CS67: 0 | CT67: 0 | CU67: 0 | CV67: 0 | CW67: 0 | CX67: 0 | CY67: 0 | CZ67: 0 | DA67: 0 | DB67: 0 | DC67: 0 | DD67: 0 | DE67: 0 | DF67: 0 | DG67: 0 | DH67: 0 | DI67: 0 | DJ67: 0 | DK67: 0 | DL67: 0 | DM67: 0 | DN67: 0 | DO67: 0 | DP67: 0 | DQ67: 0 | DR67: 0 | DS67: 0 | DT67: 0 | DU67: 0 | DV67: 0 | DW67: 0 | DX67: 0 | DY67: 0 | DZ67: 0 | EA67: 0 | EB67: 0 | EC67: 0 | ED67: 0 | EE67: 0 | EF67: 0 | EG67: 0 | EH67: 0 | EI67: 0 | EJ67: 0 | EK67: 0 | EL67: 0 | EM67: 0 | EN67: 0 | EO67: 0 | EP67: 0 | EQ67: 0 | ER67: 0 | ES67: 0 | ET67: 0 | EU67: 0 | EV67: 0 | EW67: 0 | EX67: 0 | EY67: 0 | EZ67: 0 | FA67: 0
CG68: 0 | CH68: 21 | CI68: 0 | CJ68: 0 | CK68: 0 | CL68: 0 | CM68: 0 | CN68: 0 | CO68: 0 | CP68: 0 | CQ68: 0 | CR68: 0 | CS68: 0 | CT68: 0 | CU68: 0 | CV68: 0 | CW68: 0 | CX68: 0 | CY68: 0 | CZ68: 0 | DA68: 0 | DB68: 0 | DC68: 0 | DD68: 0 | DE68: 0 | DF68: 0 | DG68: 0 | DH68: 0 | DI68: 0 | DJ68: 0 | DK68: 0 | DL68: 0 | DM68: 0 | DN68: 0 | DO68: 0 | DP68: 0 | DQ68: 0 | DR68: 0 | DS68: 0 | DT68: 0 | DU68: 0 | DV68: 0 | DW68: 0 | DX68: 0 | DY68: 0 | DZ68: 0 | EA68: 0 | EB68: 0 | EC68: 0 | ED68: 0 | EE68: 0 | EF68: 0 | EG68: 0 | EH68: 0 | EI68: 0 | EJ68: 0 | EK68: 0 | EL68: 0 | EM68: 0 | EN68: 0 | EO68: 0 | EP68: 0 | EQ68: 0 | ER68: 0 | ES68: 0 | ET68: 0 | EU68: 0 | EV68: 0 | EW68: 0 | EX68: 0 | EY68: 0 | EZ68: 0 | FA68: 0
CG69: 0 | CH69: 23 | CI69: 0 | CJ69: 0 | CK69: 0 | CL69: 0 | CM69: 0 | CN69: 0 | CO69: 0 | CP69: 0 | CQ69: 0 | CR69: 0 | CS69: 0 | CT69: 0 | CU69: 0 | CV69: 0 | CW69: 0 | CX69: 0 | CY69: 0 | CZ69: 0 | DA69: 0 | DB69: 0 | DC69: 0 | DD69: 0 | DE69: 0 | DF69: 0 | DG69: 0 | DH69: 0 | DI69: 0 | DJ69: 0 | DK69: 0 | DL69: 0 | DM69: 0 | DN69: 0 | DO69: 0 | DP69: 0 | DQ69: 0 | DR69: 0 | DS69: 0 | DT69: 0 | DU69: 0 | DV69: 0 | DW69: 0 | DX69: 0 | DY69: 0 | DZ69: 0 | EA69: 0 | EB69: 0 | EC69: 0 | ED69: 0 | EE69: 0 | EF69: 0 | EG69: 0 | EH69: 0 | EI69: 0 | EJ69: 0 | EK69: 0 | EL69: 0 | EM69: 0 | EN69: 0 | EO69: 0 | EP69: 0 | EQ69: 0 | ER69: 0 | ES69: 0 | ET69: 0 | EU69: 0 | EV69: 0 | EW69: 0 | EX69: 0 | EY69: 0 | EZ69: 0 | FA69: 0
CH70: =SUM(CI70:EX70) -> 0 | CI70: =SUM(CI48:CI69) -> 0 | CJ70: =SUM(CJ48:CJ69) -> 0 | CK70: 0 | CL70: 0 | CM70: 0 | CN70: 0 | CO70: 0 | CP70: 0 | CQ70: 0 | CR70: 0 | CS70: 0 | CT70: 0 | CU70: 0 | CV70: 0 | CW70: 0 | CX70: 0 | CY70: 0 | CZ70: 0 | DA70: 0 | DB70: 0 | DC70: 0 | DD70: 0 | DE70: 0 | DF70: 0 | DG70: 0 | DH70: 0 | DI70: 0 | DJ70: 0 | DK70: 0 | DL70: 0 | DM70: 0 | DN70: 0 | DO70: 0 | DP70: 0 | DQ70: 0 | DR70: 0 | DS70: 0 | DT70: 0 | DU70: 0 | DV70: 0 | DW70: 0 | DX70: 0 | DY70: 0 | DZ70: 0 | EA70: 0 | EB70: 0 | EC70: 0 | ED70: 0 | EE70: 0 | EF70: 0 | EG70: 0 | EH70: 0 | EI70: 0 | EJ70: 0 | EK70: 0 | EL70: 0 | EM70: 0 | EN70: 0 | EO70: 0 | EP70: 0 | EQ70: 0 | ER70: 0 | ES70: 0 | ET70: 0 | EU70: 0 | EV70: =SUM(EV48:EV69) -> 0 | EW70: 0 | EX70: 0 | EY70: 0 | EZ70: 0 | FA70: 0
CH71: =SUM(CI71:EU71) -> 0 | CI71: =VLOOKUP(CI47,Daily!$A$2:$H$459,8) -> 0 | CJ71: =VLOOKUP(CJ47,Daily!$A$2:$H$459,8) -> 0 | CK71: =VLOOKUP(CK47,Daily!$A$2:$H$459,8) -> 0 | CL71: =VLOOKUP(CL47,Daily!$A$2:$H$459,8) -> 0 | CM71: =VLOOKUP(CM47,Daily!$A$2:$H$459,8) -> 0 | CN71: =VLOOKUP(CN47,Daily!$A$2:$H$459,8) -> 0 | CO71: =VLOOKUP(CO47,Daily!$A$2:$H$459,8) -> 0 | CP71: =VLOOKUP(CP47,Daily!$A$2:$H$459,8) -> 0 | CQ71: =VLOOKUP(CQ47,Daily!$A$2:$H$459,8) -> 0 | CR71: =VLOOKUP(CR47,Daily!$A$2:$H$459,8) -> 0 | CS71: =VLOOKUP(CS47,Daily!$A$2:$H$459,8) -> 0 | CT71: =VLOOKUP(CT47,Daily!$A$2:$H$459,8) -> 0 | CU71: =VLOOKUP(CU47,Daily!$A$2:$H$459,8) -> 0 | CV71: =VLOOKUP(CV47,Daily!$A$2:$H$459,8) -> 0 | CW71: =VLOOKUP(CW47,Daily!$A$2:$H$459,8) -> 0 | CX71: =VLOOKUP(CX47,Daily!$A$2:$H$459,8) -> 0 | CY71: =VLOOKUP(CY47,Daily!$A$2:$H$459,8) -> 0 | CZ71: =VLOOKUP(CZ47,Daily!$A$2:$H$459,8) -> 0 | DA71: =VLOOKUP(DA47,Daily!$A$2:$H$459,8) -> 0 | DB71: =VLOOKUP(DB47,Daily!$A$2:$H$459,8) -> 0 | DC71: =VLOOKUP(DC47,Daily!$A$2:$H$459,8) -> 0 | DD71: =VLOOKUP(DD47,Daily!$A$2:$H$459,8) -> 0 | DE71: =VLOOKUP(DE47,Daily!$A$2:$H$459,8) -> 0 | DF71: =VLOOKUP(DF47,Daily!$A$2:$H$459,8) -> 0 | DG71: =VLOOKUP(DG47,Daily!$A$2:$H$459,8) -> 0 | DH71: =VLOOKUP(DH47,Daily!$A$2:$H$459,8) -> 0 | DI71: =VLOOKUP(DI47,Daily!$A$2:$H$459,8) -> 0 | DJ71: =VLOOKUP(DJ47,Daily!$A$2:$H$459,8) -> 0 | DK71: =VLOOKUP(DK47,Daily!$A$2:$H$459,8) -> 0 | DL71: =VLOOKUP(DL47,Daily!$A$2:$H$459,8) -> 0 | DM71: =VLOOKUP(DM47,Daily!$A$2:$H$459,8) -> 0 | DN71: =VLOOKUP(DN47,Daily!$A$2:$H$459,8) -> 0 | DO71: =VLOOKUP(DO47,Daily!$A$2:$H$459,8) -> 0 | DP71: =VLOOKUP(DP47,Daily!$A$2:$H$459,8) -> 0 | DQ71: =VLOOKUP(DQ47,Daily!$A$2:$H$459,8) -> 0 | DR71: =VLOOKUP(DR47,Daily!$A$2:$H$459,8) -> 0 | DS71: =VLOOKUP(DS47,Daily!$A$2:$H$459,8) -> 0 | DT71: =VLOOKUP(DT47,Daily!$A$2:$H$459,8) -> 0 | DU71: =VLOOKUP(DU47,Daily!$A$2:$H$459,8) -> 0 | DV71: =VLOOKUP(DV47,Daily!$A$2:$H$459,8) -> 0 | DW71: =VLOOKUP(DW47,Daily!$A$2:$H$459,8) -> 0 | DX71: =VLOOKUP(DX47,Daily!$A$2:$H$459,8) -> 0 | DY71: =VLOOKUP(DY47,Daily!$A$2:$H$459,8) -> 0 | DZ71: =VLOOKUP(DZ47,Daily!$A$2:$H$459,8) -> 0 | EA71: =VLOOKUP(EA47,Daily!$A$2:$H$459,8) -> 0 | EB71: =VLOOKUP(EB47,Daily!$A$2:$H$459,8) -> 0 | EC71: =VLOOKUP(EC47,Daily!$A$2:$H$459,8) -> 0 | ED71: =VLOOKUP(ED47,Daily!$A$2:$H$459,8) -> 0 | EE71: =VLOOKUP(EE47,Daily!$A$2:$H$459,8) -> 0 | EF71: =VLOOKUP(EF47,Daily!$A$2:$H$459,8) -> 0 | EG71: =VLOOKUP(EG47,Daily!$A$2:$H$459,8) -> 0 | EH71: =VLOOKUP(EH47,Daily!$A$2:$H$459,8) -> 0 | EI71: =VLOOKUP(EI47,Daily!$A$2:$H$459,8) -> 0 | EJ71: =VLOOKUP(EJ47,Daily!$A$2:$H$459,8) -> 0 | EK71: =VLOOKUP(EK47,Daily!$A$2:$H$459,8) -> 0 | EL71: =VLOOKUP(EL47,Daily!$A$2:$H$459,8) -> 0 | EM71: =VLOOKUP(EM47,Daily!$A$2:$H$459,8) -> 0 | EN71: =VLOOKUP(EN47,Daily!$A$2:$H$459,8) -> 0 | EO71: =VLOOKUP(EO47,Daily!$A$2:$H$459,8) -> 0 | EP71: =VLOOKUP(EP47,Daily!$A$2:$H$459,8) -> 0 | EQ71: =VLOOKUP(EQ47,Daily!$A$2:$H$459,8) -> 0 | ER71: =VLOOKUP(ER47,Daily!$A$2:$H$459,8) -> 0 | ES71: =VLOOKUP(ES47,Daily!$A$2:$H$459,8) -> 0 | ET71: =VLOOKUP(ET47,Daily!$A$2:$H$459,8) -> 0 | EU71: =VLOOKUP(EU47,Daily!$A$2:$H$459,8) -> 0 | EV71: =VLOOKUP(EV47,Daily!$A$2:$H$459,8) -> 0 | EW71: =VLOOKUP(EW47,Daily!$A$2:$H$459,8) -> 0 | EX71: =VLOOKUP(EX47,Daily!$A$2:$H$459,8) -> 0 | EY71: =VLOOKUP(EY47,Daily!$A$2:$H$459,8) -> 0 | EZ71: =VLOOKUP(EZ47,Daily!$A$2:$H$459,8) -> 0 | FA71: =VLOOKUP(FA47,Daily!$A$2:$H$459,8) -> 0
CI72: =+CI71/$CH71 ->  | DO72: =+DO71/$CH71 ->  | EU72: =+EU71/$CH71 ->  | EY72: =+EY71/$CH71 -> 
J85: CHECK POINT (LC) | L85: =+L3 -> 2021-11-25 | M85: =+M3 -> 2021-11-26 | N85: 2021-11-27 | O85: 2021-11-28 | P85: 2021-11-29 | Q85: 2021-11-30 | R85: 2021-12-01 | S85: 2021-12-02 | T85: 2021-12-03 | U85: 2021-12-04 | V85: 2021-12-05 | W85: 2021-12-06 | X85: 2021-12-07 | Y85: 2021-12-08 | Z85: 2021-12-09 | AA85: 2021-12-10 | AB85: 2021-12-11 | AC85: 2021-12-12 | AD85: 2021-12-13 | AE85: 2021-12-14 | AF85: 2021-12-15 | AG85: 2021-12-16 | AH85: 2021-12-17 | AI85: 2021-12-18 | AJ85: 2021-12-19 | AK85: 2021-12-20 | AL85: 2021-12-21 | AM85: 2021-12-22 | AN85: 2021-12-23 | AO85: 2021-12-24 | AP85: 2021-12-25 | AQ85: 2021-12-26 | AR85: 2021-12-27 | AS85: 2021-12-28 | AT85: 2021-12-29 | AU85: 2021-12-30 | AV85: 2021-12-31 | AW85: 2022-01-01 | AX85: 2022-01-02 | AY85: 2022-01-03 | AZ85: 2022-01-04 | BA85: 2022-01-05 | BB85: 2022-01-06 | BC85: 2022-01-07 | BD85: 2022-01-08 | BE85: 2022-01-09 | BF85: 2022-01-10 | BG85: 2022-01-11 | BH85: 2022-01-12 | BI85: 2022-01-13 | BJ85: 2022-01-14 | BK85: 2022-01-15 | BL85: 2022-01-16 | BM85: 2022-01-17 | BN85: 2022-01-18 | BO85: 2022-01-19 | BP85: 2022-01-20 | BQ85: 2022-01-21 | BR85: 2022-01-22 | BS85: 2022-01-23 | BT85: 2022-01-24 | BU85: 2022-01-25 | BV85: 2022-01-26 | BW85: 2022-01-27 | BX85: 2022-01-28 | BY85: =+BY3 -> 2022-01-29 | BZ85: 2022-01-30 | CA85: 2022-01-31 | CB85: 2022-02-01 | CC85: 2022-02-02 | CD85: 2022-02-03
J86: Calendar | K86: HDD | L86: =IF(L29<65, (65-L29),0) -> 0 | M86: =IF(M29<65, (65-M29),0) -> 0 | N86: 2.5 | O86: 2.5 | P86: 1 | Q86: 3.5 | R86: 0 | S86: 0 | T86: 0 | U86: 0 | V86: 0 | W86: 0 | X86: 0 | Y86: 0 | Z86: 0 | AA86: 0 | AB86: 0 | AC86: 0 | AD86: 0 | AE86: 0 | AF86: 0 | AG86: 0 | AH86: 0 | AI86: 0 | AJ86: 0 | AK86: 0 | AL86: 0 | AM86: 5 | AN86: 4.5 | AO86: 0 | AP86: 0 | AQ86: 0 | AR86: 0 | AS86: 0 | AT86: 0 | AU86: 0 | AV86: 0 | AW86: 0 | AX86: 0 | AY86: 0 | AZ86: 2 | BA86: 0 | BB86: 0 | BC86: 0 | BD86: 0 | BE86: 0 | BF86: 0 | BG86: 1.5 | BH86: 0 | BI86: 0 | BJ86: 1.5 | BK86: 2.5 | BL86: 0 | BM86: 4 | BN86: 12 | BO86: 4 | BP86: 0 | BQ86: 0 | BR86: 10.5 | BS86: 13.5 | BT86: 13.5 | BU86: 11.5 | BV86: 6.5 | BW86: 0 | BX86: 4.5 | BY86: =IF(BY29<65, (65-BY29),0) -> 17 | BZ86: 18 | CA86: 11 | CB86: 2.5 | CC86: 0 | CD86: 0
K87: CDD | L87: =IF(L29>65, (L29-65),0) -> 3.5 | M87: =IF(M29>65, (M29-65),0) -> 3 | N87: 0 | O87: 0 | P87: 0 | Q87: 0 | R87: 1.5 | S87: 2.5 | T87: 1.5 | U87: 0 | V87: 5.5 | W87: 6 | X87: 8.5 | Y87: 8 | Z87: 9.5 | AA87: 10.5 | AB87: 12 | AC87: 11 | AD87: 11.5 | AE87: 10 | AF87: 10 | AG87: 12.5 | AH87: 12.5 | AI87: 13 | AJ87: 12.5 | AK87: 7 | AL87: 2 | AM87: 0 | AN87: 0 | AO87: 0.5 | AP87: 1.5 | AQ87: 3.5 | AR87: 4.5 | AS87: 5 | AT87: 10 | AU87: 9 | AV87: 11 | AW87: 9.5 | AX87: 11.5 | AY87: 0 | AZ87: 0 | BA87: 2 | BB87: 0 | BC87: 7 | BD87: 4.5 | BE87: 9.5 | BF87: 7.5 | BG87: 0 | BH87: 0.5 | BI87: 1.5 | BJ87: 0 | BK87: 0 | BL87: 1.5 | BM87: 0 | BN87: 0 | BO87: 0 | BP87: 0.5 | BQ87: 3 | BR87: 0 | BS87: 0 | BT87: 0 | BU87: 0 | BV87: 0 | BW87: 1.5 | BX87: 0 | BY87: =IF(BY29>65, (BY29-65),0) -> 0 | BZ87: 0 | CA87: 0 | CB87: 0 | CC87: 4.5 | CD87: 10.5
J89: Billing | K89: HDD | L89: =+L32 -> 0 | M89: 0 | N89: 0.1136363636 | O89: 0.1136363636 | P89: 0.04545454545 | Q89: 0.3181818182 | R89: 0 | S89: 0 | T89: 0 | U89: 0 | V89: 0 | W89: 0 | X89: 0 | Y89: 0 | Z89: 0 | AA89: 0 | AB89: 0 | AC89: 0 | AD89: 0 | AE89: 0 | AF89: 0 | AG89: 0 | AH89: 0 | AI89: 0 | AJ89: 0 | AK89: 0 | AL89: 0 | AM89: 4.318181818 | AN89: 4.090909091 | AO89: 0 | AP89: 0 | AQ89: 0 | AR89: =+AR32 -> 0 | AS89: 0 | AT89: 0 | AU89: 0 | AV89: 0 | AW89: 0 | AX89: 0 | AY89: 0 | AZ89: 1.636363636 | BA89: 0 | BB89: 0 | BC89: 0 | BD89: 0 | BE89: 0 | BF89: 0 | BG89: 0.8863636364 | BH89: 0 | BI89: 0 | BJ89: 0.6136363636 | BK89: 0.9090909091 | BL89: 0 | BM89: 1.454545455 | BN89: 4.363636364 | BO89: 1.272727273 | BP89: 0 | BQ89: 0 | BR89: 1.909090909 | BS89: 2.454545455 | BT89: 2.454545455 | BU89: 1.568181818 | BV89: 0.5909090909 | BW89: 0 | BX89: =+BX32 -> 0.2045454545 | BY89: 0.7727272727 | BZ89: 0.8181818182 | CA89: 0.5 | CB89: 0 | CC89: 0 | CD89: 0
K90: CDD | L90: =+L33 -> 0.1590909091 | M90: 0.1363636364 | N90: 0 | O90: 0 | P90: 0 | Q90: 0 | R90: 0.2045454545 | S90: 0.4545454545 | T90: 0.3409090909 | U90: 0 | V90: 1.5 | W90: 1.636363636 | X90: 2.704545455 | Y90: 2.909090909 | Z90: 3.886363636 | AA90: 4.772727273 | AB90: 6.545454545 | AC90: 6 | AD90: 6.272727273 | AE90: 5.909090909 | AF90: 6.363636364 | AG90: 8.522727273 | AH90: 9.090909091 | AI90: 10.04545455 | AJ90: 9.659090909 | AK90: 5.409090909 | AL90: 1.636363636 | AM90: 0 | AN90: 0 | AO90: 0.4545454545 | AP90: 1.363636364 | AQ90: 3.181818182 | AR90: =+AR33 -> 4.090909091 | AS90: 4.772727273 | AT90: 9.090909091 | AU90: 7.772727273 | AV90: 9 | AW90: 8.204545455 | AX90: 9.931818182 | AY90: 0 | AZ90: 0 | BA90: 1.545454545 | BB90: 0 | BC90: 4.772727273 | BD90: 2.863636364 | BE90: 6.045454545 | BF90: 4.772727273 | BG90: 0 | BH90: 0.2727272727 | BI90: 0.6818181818 | BJ90: 0 | BK90: 0 | BL90: 0.5454545455 | BM90: 0 | BN90: 0 | BO90: 0 | BP90: 0.1363636364 | BQ90: 0.6818181818 | BR90: 0 | BS90: 0 | BT90: 0 | BU90: 0 | BV90: 0 | BW90: 0.06818181818 | BX90: =+BX33 -> 0 | BY90: 0 | BZ90: 0 | CA90: 0 | CB90: 0 | CC90: 0 | CD90: 0

Sheet FEB
A1: =+JAN!A1 -> 2022 | CI1: =YEAR(CI3) -> 2021 | CJ1: =YEAR(CJ3) -> 2021 | CK1: 2021 | CL1: 2022 | CM1: 2022 | CN1: 2022 | CO1: 2022 | CP1: 2022 | CQ1: 2022 | CR1: 2022 | CS1: 2022 | CT1: 2022 | CU1: 2022 | CV1: 2022 | CW1: 2022 | CX1: 2022 | CY1: 2022 | CZ1: 2022 | DA1: 2022 | DB1: 2022 | DC1: 2022 | DD1: 2022 | DE1: 2022 | DF1: 2022 | DG1: 2022 | DH1: 2022 | DI1: 2022 | DJ1: 2022 | DK1: 2022 | DL1: 2022 | DM1: 2022 | DN1: 2022 | DO1: 2022 | DP1: 2022 | DQ1: 2022 | DR1: 2022 | DS1: 2022 | DT1: 2022 | DU1: 2022 | DV1: 2022 | DW1: 2022 | DX1: 2022 | DY1: 2022 | DZ1: 2022 | EA1: 2022 | EB1: 2022 | EC1: 2022 | ED1: 2022 | EE1: 2022 | EF1: 2022 | EG1: 2022 | EH1: 2022 | EI1: 2022 | EJ1: 2022 | EK1: 2022 | EL1: 2022 | EM1: 2022 | EN1: 2022 | EO1: 2022 | EP1: 2022 | EQ1: 2022 | ER1: 2022 | ES1: 2022 | ET1: 2022 | EU1: =YEAR(EU3) -> 2022 | EV1: =YEAR(EV3) -> 2022 | EW1: 2022 | EX1: 2022 | EY1: =YEAR(EY3) -> 2022 | EZ1: 2022 | FA1: 2022
A2: 2 | B2: Published Billing Schedule | CI2: =MONTH(CI3) -> 12 | CJ2: =MONTH(CJ3) -> 12 | CK2: 12 | CL2: 1 | CM2: 1 | CN2: 1 | CO2: 1 | CP2: 1 | CQ2: 1 | CR2: 1 | CS2: 1 | CT2: 1 | CU2: 1 | CV2: 1 | CW2: 1 | CX2: 1 | CY2: 1 | CZ2: 1 | DA2: 1 | DB2: 1 | DC2: 1 | DD2: 1 | DE2: 1 | DF2: 1 | DG2: 1 | DH2: 1 | DI2: 1 | DJ2: 1 | DK2: 1 | DL2: 1 | DM2: 1 | DN2: 1 | DO2: 1 | DP2: 1 | DQ2: 2 | DR2: 2 | DS2: 2 | DT2: 2 | DU2: 2 | DV2: 2 | DW2: 2 | DX2: 2 | DY2: 2 | DZ2: 2 | EA2: 2 | EB2: 2 | EC2: 2 | ED2: 2 | EE2: 2 | EF2: 2 | EG2: 2 | EH2: 2 | EI2: 2 | EJ2: 2 | EK2: 2 | EL2: 2 | EM2: 2 | EN2: 2 | EO2: 2 | EP2: 2 | EQ2: 2 | ER2: 2 | ES2: 3 | ET2: 3 | EU2: 3 | EV2: 3 | EW2: =MONTH(EW3) -> 3 | EX2: 3 | EY2: 3 | EZ2: 3 | FA2: 3
A3: Lookup | B3: Year | C3: Month | D3: Cycle | E3: StartBilling | F3: EndBilling | G3: No.Days | K3: Date | L3: =+E4 -> 2021-12-29 | M3: =+L3+1 -> 2021-12-30 | N3: =+M3+1 -> 2021-12-31 | O3: 2022-01-01 | P3: 2022-01-02 | Q3: 2022-01-03 | R3: 2022-01-04 | S3: 2022-01-05 | T3: 2022-01-06 | U3: 2022-01-07 | V3: 2022-01-08 | W3: 2022-01-09 | X3: 2022-01-10 | Y3: 2022-01-11 | Z3: 2022-01-12 | AA3: 2022-01-13 | AB3: 2022-01-14 | AC3: 2022-01-15 | AD3: 2022-01-16 | AE3: 2022-01-17 | AF3: 2022-01-18 | AG3: 2022-01-19 | AH3: 2022-01-20 | AI3: 2022-01-21 | AJ3: 2022-01-22 | AK3: 2022-01-23 | AL3: 2022-01-24 | AM3: 2022-01-25 | AN3: 2022-01-26 | AO3: 2022-01-27 | AP3: 2022-01-28 | AQ3: 2022-01-29 | AR3: 2022-01-30 | AS3: 2022-01-31 | AT3: 2022-02-01 | AU3: 2022-02-02 | AV3: 2022-02-03 | AW3: 2022-02-04 | AX3: 2022-02-05 | AY3: 2022-02-06 | AZ3: 2022-02-07 | BA3: 2022-02-08 | BB3: 2022-02-09 | BC3: 2022-02-10 | BD3: 2022-02-11 | BE3: 2022-02-12 | BF3: 2022-02-13 | BG3: 2022-02-14 | BH3: 2022-02-15 | BI3: 2022-02-16 | BJ3: 2022-02-17 | BK3: 2022-02-18 | BL3: 2022-02-19 | BM3: 2022-02-20 | BN3: 2022-02-21 | BO3: 2022-02-22 | BP3: 2022-02-23 | BQ3: 2022-02-24 | BR3: 2022-02-25 | BS3: 2022-02-26 | BT3: 2022-02-27 | BU3: 2022-02-28 | BV3: 2022-03-01 | BW3: =+BV3+1 -> 2022-03-02 | BX3: =+BW3+1 -> 2022-03-03 | BY3: =+BX3+1 -> 2022-03-04 | BZ3: 2022-03-05 | CA3: 2022-03-06 | CB3: =+CA3+1 -> 2022-03-07 | CC3: =+CB3+1 -> 2022-03-08 | CD3: =+CC3+1 -> 2022-03-09 | CH3: Cycle | CI3: =+L3 -> 2021-12-29 | CJ3: 2021-12-30 | CK3: 2021-12-31 | CL3: 2022-01-01 | CM3: 2022-01-02 | CN3: 2022-01-03 | CO3: 2022-01-04 | CP3: 2022-01-05 | CQ3: 2022-01-06 | CR3: 2022-01-07 | CS3: 2022-01-08 | CT3: 2022-01-09 | CU3: 2022-01-10 | CV3: 2022-01-11 | CW3: 2022-01-12 | CX3: 2022-01-13 | CY3: 2022-01-14 | CZ3: 2022-01-15 | DA3: 2022-01-16 | DB3: 2022-01-17 | DC3: 2022-01-18 | DD3: 2022-01-19 | DE3: 2022-01-20 | DF3: 2022-01-21 | DG3: 2022-01-22 | DH3: 2022-01-23 | DI3: 2022-01-24 | DJ3: 2022-01-25 | DK3: 2022-01-26 | DL3: 2022-01-27 | DM3: 2022-01-28 | DN3: 2022-01-29 | DO3: =+AR3 -> 2022-01-30 | DP3: 2022-01-31 | DQ3: 2022-02-01 | DR3: 2022-02-02 | DS3: 2022-02-03 | DT3: 2022-02-04 | DU3: 2022-02-05 | DV3: 2022-02-06 | DW3: 2022-02-07 | DX3: 2022-02-08 | DY3: 2022-02-09 | DZ3: 2022-02-10 | EA3: 2022-02-11 | EB3: 2022-02-12 | EC3: 2022-02-13 | ED3: 2022-02-14 | EE3: 2022-02-15 | EF3: 2022-02-16 | EG3: 2022-02-17 | EH3: 2022-02-18 | EI3: 2022-02-19 | EJ3: 2022-02-20 | EK3: 2022-02-21 | EL3: 2022-02-22 | EM3: 2022-02-23 | EN3: 2022-02-24 | EO3: 2022-02-25 | EP3: 2022-02-26 | EQ3: 2022-02-27 | ER3: 2022-02-28 | ES3: 2022-03-01 | ET3: 2022-03-02 | EU3: =+BX3 -> 2022-03-03 | EV3: =+BY3 -> 2022-03-04 | EW3: =+BZ3 -> 2022-03-05 | EX3: =+CA3 -> 2022-03-06 | EY3: =+CB3 -> 2022-03-07 | EZ3: 2022-03-08 | FA3: 2022-03-09
A4: =+$A$1*10000+A2*100+1 -> 20220201 | B4: =+A1 -> 2022 | C4: =+A2 -> 2 | D4: 1 | E4: =+JAN!F4+1 -> 2021-12-29 | F4: 2022-01-27 | G4: =+F4-E4+1 -> 30 | H4: =+E4-JAN!F4 -> 1 | J4: Billing Cycles | K4: 1 | L4: =IF(AND(L$3>=$E4,L$3<=$F4),1,0) -> 1 | M4: =IF(AND(M$3>=$E4,M$3<=$F4),1,0) -> 1 | N4: 1 | O4: 1 | P4: 1 | Q4: 1 | R4: 1 | S4: 1 | T4: 1 | U4: 1 | V4: 1 | W4: 1 | X4: 1 | Y4: 1 | Z4: 1 | AA4: 1 | AB4: 1 | AC4: 1 | AD4: 1 | AE4: 1 | AF4: 1 | AG4: 1 | AH4: 1 | AI4: 1 | AJ4: 1 | AK4: 1 | AL4: 1 | AM4: 1 | AN4: 1 | AO4: 1 | AP4: 0 | AQ4: 0 | AR4: 0 | AS4: 0 | AT4: 0 | AU4: 0 | AV4: 0 | AW4: 0 | AX4: 0 | AY4: 0 | AZ4: 0 | BA4: 0 | BB4: 0 | BC4: 0 | BD4: 0 | BE4: 0 | BF4: 0 | BG4: 0 | BH4: 0 | BI4: 0 | BJ4: 0 | BK4: 0 | BL4: 0 | BM4: 0 | BN4: 0 | BO4: 0 | BP4: 0 | BQ4: 0 | BR4: 0 | BS4: 0 | BT4: 0 | BU4: 0 | BV4: 0 | BW4: 0 | BX4: 0 | BY4: =IF(AND(BY$3>=$E4,BY$3<=$F4),1,0) -> 0 | BZ4: 0 | CA4: 0 | CB4: 0 | CC4: 0 | CD4: 0 | CF4: =SUM(CI4:FA4)-CG4/1000 ->  | CG4: 36077419 | CH4: 1 | CI4: =((CI48/$CG48))*($CG4/1000) ->  | DO4: =((DO48/$CG48))*($CG4/1000) ->  | EV4: =((EV48/$CG48))*($CG4/1000) ->  | EY4: =((EY48/$CG48))*($CG4/1000) -> 
A5: =+A4+1 -> 20220202 | B5: =+B4 -> 2022 | C5: =+C4 -> 2 | D5: =+D4+1 -> 2 | E5: =+JAN!F5+1 -> 2021-12-30 | F5: 2022-01-28 | G5: =+F5-E5+1 -> 30 | H5: =+E5-JAN!F5 -> 1 | K5: 2 | L5: =IF(AND(L$3>=$E5,L$3<=$F5),1,0) -> 0 | M5: 1 | N5: 1 | O5: 1 | P5: 1 | Q5: 1 | R5: 1 | S5: 1 | T5: 1 | U5: 1 | V5: 1 | W5: 1 | X5: 1 | Y5: 1 | Z5: 1 | AA5: 1 | AB5: 1 | AC5: 1 | AD5: 1 | AE5: 1 | AF5: 1 | AG5: 1 | AH5: 1 | AI5: 1 | AJ5: 1 | AK5: 1 | AL5: 1 | AM5: 1 | AN5: 1 | AO5: 1 | AP5: 1 | AQ5: 0 | AR5: 0 | AS5: 0 | AT5: 0 | AU5: 0 | AV5: 0 | AW5: 0 | AX5: 0 | AY5: 0 | AZ5: 0 | BA5: 0 | BB5: 0 | BC5: 0 | BD5: 0 | BE5: 0 | BF5: 0 | BG5: 0 | BH5: 0 | BI5: 0 | BJ5: 0 | BK5: 0 | BL5: 0 | BM5: 0 | BN5: 0 | BO5: 0 | BP5: 0 | BQ5: 0 | BR5: 0 | BS5: 0 | BT5: 0 | BU5: 0 | BV5: 0 | BW5: 0 | BX5: 0 | BY5: 0 | BZ5: 0 | CA5: 0 | CB5: 0 | CC5: 0 | CD5: 0 | CG5: 71680466 | CH5: 2 | CI5: =((CI49/$CG49))*($CG5/1000) ->  | DO5: =((DO49/$CG49))*($CG5/1000) ->  | EV5: =((EV49/$CG49))*($CG5/1000) ->  | EY5: =((EY49/$CG49))*($CG5/1000) -> 
A6: =+A5+1 -> 20220203 | B6: =+B5 -> 2022 | C6: 2 | D6: =+D5+1 -> 3 | E6: =+JAN!F6+1 -> 2021-12-31 | F6: 2022-01-31 | G6: 32 | H6: =+E6-JAN!F6 -> 1 | K6: 3 | L6: 0 | M6: 0 | N6: 1 | O6: 1 | P6: 1 | Q6: 1 | R6: 1 | S6: 1 | T6: 1 | U6: 1 | V6: 1 | W6: 1 | X6: 1 | Y6: 1 | Z6: 1 | AA6: 1 | AB6: 1 | AC6: 1 | AD6: 1 | AE6: 1 | AF6: 1 | AG6: 1 | AH6: 1 | AI6: 1 | AJ6: 1 | AK6: 1 | AL6: 1 | AM6: 1 | AN6: 1 | AO6: 1 | AP6: 1 | AQ6: 1 | AR6: 1 | AS6: 1 | AT6: 0 | AU6: 0 | AV6: 0 | AW6: 0 | AX6: 0 | AY6: 0 | AZ6: 0 | BA6: 0 | BB6: 0 | BC6: 0 | BD6: 0 | BE6: 0 | BF6: 0 | BG6: 0 | BH6: 0 | BI6: 0 | BJ6: 0 | BK6: 0 | BL6: 0 | BM6: 0 | BN6: 0 | BO6: 0 | BP6: 0 | BQ6: 0 | BR6: 0 | BS6: 0 | BT6: 0 | BU6: 0 | BV6: 0 | BW6: 0 | BX6: 0 | BY6: 0 | BZ6: 0 | CA6: 0 | CB6: 0 | CC6: 0 | CD6: 0 | CG6: 47990773 | CH6: 3 | CI6: =((CI50/$CG50))*($CG6/1000) ->  | DO6: =((DO50/$CG50))*($CG6/1000) ->  | EV6: =((EV50/$CG50))*($CG6/1000) ->  | EY6: =((EY50/$CG50))*($CG6/1000) -> 
A7: 20220204 | B7: 2022 | C7: 2 | D7: 4 | E7: =+JAN!F7+1 -> 2022-01-04 | F7: 2022-02-01 | G7: 29 | H7: =+E7-JAN!F7 -> 1 | K7: 4 | L7: 0 | M7: 0 | N7: 0 | O7: 0 | P7: 0 | Q7: 0 | R7: 1 | S7: 1 | T7: 1 | U7: 1 | V7: 1 | W7: 1 | X7: 1 | Y7: 1 | Z7: 1 | AA7: 1 | AB7: 1 | AC7: 1 | AD7: 1 | AE7: 1 | AF7: 1 | AG7: 1 | AH7: 1 | AI7: 1 | AJ7: 1 | AK7: 1 | AL7: 1 | AM7: 1 | AN7: 1 | AO7: 1 | AP7: 1 | AQ7: 1 | AR7: 1 | AS7: 1 | AT7: 1 | AU7: 0 | AV7: 0 | AW7: 0 | AX7: 0 | AY7: 0 | AZ7: 0 | BA7: 0 | BB7: 0 | BC7: 0 | BD7: 0 | BE7: 0 | BF7: 0 | BG7: 0 | BH7: 0 | BI7: 0 | BJ7: 0 | BK7: 0 | BL7: 0 | BM7: 0 | BN7: 0 | BO7: 0 | BP7: 0 | BQ7: 0 | BR7: 0 | BS7: 0 | BT7: 0 | BU7: 0 | BV7: 0 | BW7: 0 | BX7: 0 | BY7: 0 | BZ7: 0 | CA7: 0 | CB7: 0 | CC7: 0 | CD7: 0 | CG7: 69322873 | CH7: 4 | CI7: =((CI51/$CG51))*($CG7/1000) ->  | DO7: =((DO51/$CG51))*($CG7/1000) ->  | EV7: =((EV51/$CG51))*($CG7/1000) ->  | EY7: =((EY51/$CG51))*($CG7/1000) -> 
A8: 20220205 | B8: 2022 | C8: 2 | D8: 5 | E8: =+JAN!F8+1 -> 2022-01-05 | F8: 2022-02-02 | G8: 29 | H8: =+E8-JAN!F8 -> 1 | K8: 5 | L8: 0 | M8: 0 | N8: 0 | O8: 0 | P8: 0 | Q8: 0 | R8: 0 | S8: 1 | T8: 1 | U8: 1 | V8: 1 | W8: 1 | X8: 1 | Y8: 1 | Z8: 1 | AA8: =IF(AND(AA$3>=$E8,AA$3<=$F8),1,0) -> 1 | AB8: 1 | AC8: 1 | AD8: 1 | AE8: 1 | AF8: 1 | AG8: 1 | AH8: 1 | AI8: 1 | AJ8: 1 | AK8: 1 | AL8: 1 | AM8: 1 | AN8: 1 | AO8: 1 | AP8: 1 | AQ8: 1 | AR8: 1 | AS8: 1 | AT8: 1 | AU8: 1 | AV8: 0 | AW8: 0 | AX8: 0 | AY8: 0 | AZ8: 0 | BA8: 0 | BB8: 0 | BC8: 0 | BD8: 0 | BE8: 0 | BF8: 0 | BG8: 0 | BH8: 0 | BI8: 0 | BJ8: 0 | BK8: 0 | BL8: 0 | BM8: 0 | BN8: 0 | BO8: 0 | BP8: 0 | BQ8: 0 | BR8: 0 | BS8: 0 | BT8: 0 | BU8: 0 | BV8: 0 | BW8: 0 | BX8: 0 | BY8: 0 | BZ8: 0 | CA8: 0 | CB8: 0 | CC8: 0 | CD8: 0 | CG8: 102852265 | CH8: 5 | CI8: =((CI52/$CG52))*($CG8/1000) ->  | DO8: =((DO52/$CG52))*($CG8/1000) ->  | EV8: =((EV52/$CG52))*($CG8/1000) ->  | EY8: =((EY52/$CG52))*($CG8/1000) -> 
A9: 20220206 | B9: 2022 | C9: 2 | D9: 6 | E9: =+JAN!F9+1 -> 2022-01-06 | F9: 2022-02-03 | G9: 29 | H9: =+E9-JAN!F9 -> 1 | K9: 6 | L9: 0 | M9: 0 | N9: 0 | O9: 0 | P9: 0 | Q9: 0 | R9: 0 | S9: 0 | T9: 1 | U9: 1 | V9: 1 | W9: 1 | X9: 1 | Y9: 1 | Z9: 1 | AA9: 1 | AB9: 1 | AC9: 1 | AD9: 1 | AE9: 1 | AF9: 1 | AG9: 1 | AH9: 1 | AI9: 1 | AJ9: 1 | AK9: 1 | AL9: 1 | AM9: 1 | AN9: 1 | AO9: 1 | AP9: 1 | AQ9: 1 | AR9: 1 | AS9: 1 | AT9: 1 | AU9: 1 | AV9: 1 | AW9: 0 | AX9: 0 | AY9: 0 | AZ9: 0 | BA9: 0 | BB9: 0 | BC9: 0 | BD9: 0 | BE9: 0 | BF9: 0 | BG9: 0 | BH9: 0 | BI9: 0 | BJ9: 0 | BK9: 0 | BL9: 0 | BM9: 0 | BN9: 0 | BO9: 0 | BP9: 0 | BQ9: 0 | BR9: 0 | BS9: 0 | BT9: 0 | BU9: 0 | BV9: 0 | BW9: 0 | BX9: 0 | BY9: 0 | BZ9: 0 | CA9: 0 | CB9: 0 | CC9: 0 | CD9: 0 | CG9: 40404344 | CH9: 6 | CI9: =((CI53/$CG53))*($CG9/1000) ->  | DO9: =((DO53/$CG53))*($CG9/1000) ->  | EV9: =((EV53/$CG53))*($CG9/1000) ->  | EY9: =((EY53/$CG53))*($CG9/1000) -> 
A10: 20220207 | B10: 2022 | C10: 2 | D10: 7 | E10: =+JAN!F10+1 -> 2022-01-07 | F10: 2022-02-04 | G10: 29 | H10: =+E10-JAN!F10 -> 1 | K10: 7 | L10: 0 | M10: 0 | N10: 0 | O10: 0 | P10: 0 | Q10: 0 | R10: 0 | S10: 0 | T10: 0 | U10: 1 | V10: 1 | W10: 1 | X10: 1 | Y10: 1 | Z10: 1 | AA10: 1 | AB10: 1 | AC10: 1 | AD10: 1 | AE10: 1 | AF10: 1 | AG10: 1 | AH10: 1 | AI10: 1 | AJ10: 1 | AK10: 1 | AL10: 1 | AM10: 1 | AN10: 1 | AO10: 1 | AP10: 1 | AQ10: 1 | AR10: 1 | AS10: 1 | AT10: 1 | AU10: 1 | AV10: 1 | AW10: 1 | AX10: 0 | AY10: 0 | AZ10: 0 | BA10: 0 | BB10: 0 | BC10: 0 | BD10: 0 | BE10: 0 | BF10: 0 | BG10: 0 | BH10: 0 | BI10: 0 | BJ10: 0 | BK10: 0 | BL10: 0 | BM10: 0 | BN10: 0 | BO10: 0 | BP10: 0 | BQ10: 0 | BR10: 0 | BS10: 0 | BT10: 0 | BU10: 0 | BV10: 0 | BW10: 0 | BX10: 0 | BY10: 0 | BZ10: 0 | CA10: 0 | CB10: 0 | CC10: 0 | CD10: 0 | CG10: 43092515 | CH10: 7 | CI10: =((CI54/$CG54))*($CG10/1000) ->  | DO10: =((DO54/$CG54))*($CG10/1000) ->  | EV10: =((EV54/$CG54))*($CG10/1000) ->  | EY10: =((EY54/$CG54))*($CG10/1000) -> 
A11: 20220208 | B11: 2022 | C11: 2 | D11: 8 | E11: =+JAN!F11+1 -> 2022-01-08 | F11: 2022-02-07 | G11: 31 | H11: =+E11-JAN!F11 -> 1 | K11: 8 | L11: 0 | M11: 0 | N11: 0 | O11: 0 | P11: 0 | Q11: 0 | R11: 0 | S11: 0 | T11: 0 | U11: 0 | V11: 1 | W11: 1 | X11: 1 | Y11: 1 | Z11: 1 | AA11: 1 | AB11: 1 | AC11: 1 | AD11: 1 | AE11: 1 | AF11: 1 | AG11: 1 | AH11: 1 | AI11: 1 | AJ11: 1 | AK11: 1 | AL11: 1 | AM11: 1 | AN11: 1 | AO11: 1 | AP11: 1 | AQ11: 1 | AR11: 1 | AS11: 1 | AT11: 1 | AU11: 1 | AV11: 1 | AW11: 1 | AX11: 1 | AY11: 1 | AZ11: 1 | BA11: 0 | BB11: 0 | BC11: 0 | BD11: 0 | BE11: 0 | BF11: 0 | BG11: 0 | BH11: 0 | BI11: 0 | BJ11: 0 | BK11: 0 | BL11: 0 | BM11: 0 | BN11: 0 | BO11: 0 | BP11: 0 | BQ11: 0 | BR11: 0 | BS11: 0 | BT11: 0 | BU11: 0 | BV11: 0 | BW11: 0 | BX11: 0 | BY11: 0 | BZ11: 0 | CA11: 0 | CB11: 0 | CC11: 0 | CD11: 0 | CG11: 58022566 | CH11: 8 | CI11: =((CI55/$CG55))*($CG11/1000) ->  | DO11: =((DO55/$CG55))*($CG11/1000) ->  | EV11: =((EV55/$CG55))*($CG11/1000) ->  | EY11: =((EY55/$CG55))*($CG11/1000) -> 
A12: 20220209 | B12: 2022 | C12: 2 | D12: 9 | E12: =+JAN!F12+1 -> 2022-01-11 | F12: 2022-02-08 | G12: 29 | H12: =+E12-JAN!F12 -> 1 | K12: 9 | L12: 0 | M12: 0 | N12: 0 | O12: 0 | P12: 0 | Q12: 0 | R12: 0 | S12: 0 | T12: 0 | U12: 0 | V12: 0 | W12: 0 | X12: 0 | Y12: 1 | Z12: 1 | AA12: 1 | AB12: 1 | AC12: 1 | AD12: 1 | AE12: 1 | AF12: 1 | AG12: 1 | AH12: 1 | AI12: 1 | AJ12: 1 | AK12: 1 | AL12: 1 | AM12: 1 | AN12: 1 | AO12: 1 | AP12: 1 | AQ12: 1 | AR12: 1 | AS12: 1 | AT12: 1 | AU12: 1 | AV12: 1 | AW12: 1 | AX12: 1 | AY12: 1 | AZ12: 1 | BA12: 1 | BB12: 0 | BC12: 0 | BD12: 0 | BE12: 0 | BF12: 0 | BG12: 0 | BH12: 0 | BI12: 0 | BJ12: 0 | BK12: 0 | BL12: 0 | BM12: 0 | BN12: 0 | BO12: 0 | BP12: 0 | BQ12: 0 | BR12: 0 | BS12: 0 | BT12: 0 | BU12: 0 | BV12: 0 | BW12: 0 | BX12: 0 | BY12: 0 | BZ12: 0 | CA12: 0 | CB12: 0 | CC12: 0 | CD12: 0 | CG12: 52531546 | CH12: 9 | CI12: =((CI56/$CG56))*($CG12/1000) ->  | DO12: =((DO56/$CG56))*($CG12/1000) ->  | EV12: =((EV56/$CG56))*($CG12/1000) ->  | EY12: =((EY56/$CG56))*($CG12/1000) -> 
A13: 20220210 | B13: 2022 | C13: 2 | D13: 10 | E13: =+JAN!F13+1 -> 2022-01-12 | F13: 2022-02-09 | G13: 29 | H13: =+E13-JAN!F13 -> 1 | K13: 10 | L13: 0 | M13: 0 | N13: 0 | O13: 0 | P13: 0 | Q13: 0 | R13: 0 | S13: 0 | T13: 0 | U13: 0 | V13: 0 | W13: 0 | X13: 0 | Y13: 0 | Z13: 1 | AA13: 1 | AB13: 1 | AC13: 1 | AD13: 1 | AE13: 1 | AF13: 1 | AG13: 1 | AH13: 1 | AI13: 1 | AJ13: 1 | AK13: =IF(AND(AK$3>=$E13,AK$3<=$F13),1,0) -> 1 | AL13: 1 | AM13: 1 | AN13: 1 | AO13: 1 | AP13: 1 | AQ13: 1 | AR13: 1 | AS13: 1 | AT13: 1 | AU13: 1 | AV13: 1 | AW13: 1 | AX13: 1 | AY13: 1 | AZ13: 1 | BA13: 1 | BB13: 1 | BC13: 0 | BD13: 0 | BE13: 0 | BF13: 0 | BG13: 0 | BH13: 0 | BI13: 0 | BJ13: 0 | BK13: 0 | BL13: 0 | BM13: 0 | BN13: 0 | BO13: 0 | BP13: 0 | BQ13: 0 | BR13: 0 | BS13: 0 | BT13: 0 | BU13: 0 | BV13: 0 | BW13: 0 | BX13: 0 | BY13: 0 | BZ13: 0 | CA13: 0 | CB13: 0 | CC13: 0 | CD13: 0 | CG13: 112428656 | CH13: 10 | CI13: =((CI57/$CG57))*($CG13/1000) ->  | DO13: =((DO57/$CG57))*($CG13/1000) ->  | EV13: =((EV57/$CG57))*($CG13/1000) ->  | EY13: =((EY57/$CG57))*($CG13/1000) -> 
A14: 20220211 | B14: 2022 | C14: 2 | D14: 11 | E14: =+JAN!F14+1 -> 2022-01-13 | F14: 2022-02-10 | G14: 29 | H14: =+E14-JAN!F14 -> 1 | K14: 11 | L14: 0 | M14: 0 | N14: 0 | O14: 0 | P14: 0 | Q14: 0 | R14: 0 | S14: 0 | T14: 0 | U14: 0 | V14: 0 | W14: 0 | X14: 0 | Y14: 0 | Z14: 0 | AA14: 1 | AB14: =IF(AND(AB$3>=$E14,AB$3<=$F14),1,0) -> 1 | AC14: 1 | AD14: 1 | AE14: 1 | AF14: 1 | AG14: 1 | AH14: 1 | AI14: 1 | AJ14: 1 | AK14: 1 | AL14: 1 | AM14: 1 | AN14: 1 | AO14: 1 | AP14: 1 | AQ14: 1 | AR14: 1 | AS14: 1 | AT14: 1 | AU14: 1 | AV14: 1 | AW14: 1 | AX14: 1 | AY14: 1 | AZ14: 1 | BA14: 1 | BB14: 1 | BC14: 1 | BD14: 0 | BE14: 0 | BF14: 0 | BG14: 0 | BH14: 0 | BI14: 0 | BJ14: 0 | BK14: 0 | BL14: 0 | BM14: 0 | BN14: 0 | BO14: 0 | BP14: 0 | BQ14: 0 | BR14: 0 | BS14: 0 | BT14: 0 | BU14: 0 | BV14: 0 | BW14: 0 | BX14: 0 | BY14: 0 | BZ14: 0 | CA14: 0 | CB14: 0 | CC14: 0 | CD14: 0 | CG14: 44483400 | CH14: 11 | CI14: =((CI58/$CG58))*($CG14/1000) ->  | DO14: =((DO58/$CG58))*($CG14/1000) ->  | EV14: =((EV58/$CG58))*($CG14/1000) ->  | EY14: =((EY58/$CG58))*($CG14/1000) -> 
A15: 20220212 | B15: 2022 | C15: 2 | D15: 12 | E15: =+JAN!F15+1 -> 2022-01-13 | F15: 2022-02-11 | G15: 30 | H15: =+E15-JAN!F15 -> 1 | K15: 12 | L15: 0 | M15: 0 | N15: 0 | O15: 0 | P15: 0 | Q15: 0 | R15: 0 | S15: 0 | T15: 0 | U15: 0 | V15: 0 | W15: 0 | X15: 0 | Y15: 0 | Z15: 0 | AA15: 1 | AB15: 1 | AC15: 1 | AD15: 1 | AE15: 1 | AF15: 1 | AG15: 1 | AH15: 1 | AI15: 1 | AJ15: 1 | AK15: 1 | AL15: 1 | AM15: 1 | AN15: 1 | AO15: 1 | AP15: 1 | AQ15: 1 | AR15: 1 | AS15: 1 | AT15: 1 | AU15: 1 | AV15: 1 | AW15: 1 | AX15: 1 | AY15: 1 | AZ15: 1 | BA15: 1 | BB15: 1 | BC15: 1 | BD15: 1 | BE15: 0 | BF15: 0 | BG15: 0 | BH15: 0 | BI15: 0 | BJ15: 0 | BK15: 0 | BL15: 0 | BM15: 0 | BN15: 0 | BO15: 0 | BP15: 0 | BQ15: 0 | BR15: 0 | BS15: 0 | BT15: 0 | BU15: 0 | BV15: 0 | BW15: 0 | BX15: 0 | BY15: 0 | BZ15: 0 | CA15: 0 | CB15: 0 | CC15: 0 | CD15: 0 | CG15: 43226890 | CH15: 12 | CI15: =((CI59/$CG59))*($CG15/1000) ->  | DO15: =((DO59/$CG59))*($CG15/1000) ->  | EV15: =((EV59/$CG59))*($CG15/1000) ->  | EY15: =((EY59/$CG59))*($CG15/1000) -> 
A16: 20220213 | B16: 2022 | C16: 2 | D16: 13 | E16: =+JAN!F16+1 -> 2022-01-14 | F16: 2022-02-14 | G16: 32 | H16: =+E16-JAN!F16 -> 1 | K16: 13 | L16: 0 | M16: 0 | N16: 0 | O16: 0 | P16: 0 | Q16: 0 | R16: 0 | S16: 0 | T16: 0 | U16: 0 | V16: 0 | W16: 0 | X16: 0 | Y16: 0 | Z16: 0 | AA16: 0 | AB16: 1 | AC16: 1 | AD16: 1 | AE16: 1 | AF16: 1 | AG16: 1 | AH16: 1 | AI16: 1 | AJ16: 1 | AK16: 1 | AL16: 1 | AM16: 1 | AN16: 1 | AO16: 1 | AP16: 1 | AQ16: 1 | AR16: 1 | AS16: 1 | AT16: 1 | AU16: 1 | AV16: 1 | AW16: 1 | AX16: 1 | AY16: 1 | AZ16: 1 | BA16: 1 | BB16: 1 | BC16: 1 | BD16: 1 | BE16: 1 | BF16: 1 | BG16: 1 | BH16: 0 | BI16: 0 | BJ16: 0 | BK16: 0 | BL16: 0 | BM16: 0 | BN16: 0 | BO16: 0 | BP16: 0 | BQ16: 0 | BR16: 0 | BS16: 0 | BT16: 0 | BU16: 0 | BV16: 0 | BW16: 0 | BX16: 0 | BY16: 0 | BZ16: 0 | CA16: 0 | CB16: 0 | CC16: 0 | CD16: 0 | CG16: 47659881 | CH16: 13 | CI16: =((CI60/$CG60))*($CG16/1000) ->  | DO16: =((DO60/$CG60))*($CG16/1000) ->  | EV16: =((EV60/$CG60))*($CG16/1000) ->  | EY16: =((EY60/$CG60))*($CG16/1000) -> 
A17: 20220214 | B17: 2022 | C17: 2 | D17: 14 | E17: =+JAN!F17+1 -> 2022-01-15 | F17: 2022-02-15 | G17: 32 | H17: =+E17-JAN!F17 -> 1 | K17: 14 | L17: 0 | M17: 0 | N17: 0 | O17: 0 | P17: 0 | Q17: 0 | R17: 0 | S17: 0 | T17: 0 | U17: 0 | V17: 0 | W17: 0 | X17: 0 | Y17: 0 | Z17: 0 | AA17: 0 | AB17: 0 | AC17: 1 | AD17: 1 | AE17: 1 | AF17: 1 | AG17: 1 | AH17: 1 | AI17: 1 | AJ17: 1 | AK17: 1 | AL17: 1 | AM17: 1 | AN17: 1 | AO17: 1 | AP17: 1 | AQ17: 1 | AR17: 1 | AS17: 1 | AT17: 1 | AU17: 1 | AV17: 1 | AW17: 1 | AX17: 1 | AY17: 1 | AZ17: 1 | BA17: 1 | BB17: 1 | BC17: 1 | BD17: 1 | BE17: 1 | BF17: 1 | BG17: 1 | BH17: 1 | BI17: 0 | BJ17: 0 | BK17: 0 | BL17: 0 | BM17: 0 | BN17: 0 | BO17: 0 | BP17: 0 | BQ17: 0 | BR17: 0 | BS17: 0 | BT17: 0 | BU17: 0 | BV17: 0 | BW17: 0 | BX17: 0 | BY17: 0 | BZ17: 0 | CA17: 0 | CB17: 0 | CC17: 0 | CD17: 0 | CG17: 68349599 | CH17: 14 | CI17: =((CI61/$CG61))*($CG17/1000) ->  | DO17: =((DO61/$CG61))*($CG17/1000) ->  | EV17: =((EV61/$CG61))*($CG17/1000) ->  | EY17: =((EY61/$CG61))*($CG17/1000) -> 
A18: 20220215 | B18: 2022 | C18: 2 | D18: 15 | E18: =+JAN!F18+1 -> 2022-01-19 | F18: 2022-02-16 | G18: 29 | H18: =+E18-JAN!F18 -> 1 | K18: 15 | L18: 0 | M18: 0 | N18: 0 | O18: 0 | P18: 0 | Q18: 0 | R18: 0 | S18: 0 | T18: 0 | U18: 0 | V18: 0 | W18: 0 | X18: 0 | Y18: 0 | Z18: 0 | AA18: 0 | AB18: 0 | AC18: 0 | AD18: 0 | AE18: 0 | AF18: 0 | AG18: 1 | AH18: 1 | AI18: 1 | AJ18: 1 | AK18: 1 | AL18: 1 | AM18: 1 | AN18: 1 | AO18: 1 | AP18: 1 | AQ18: 1 | AR18: 1 | AS18: 1 | AT18: 1 | AU18: 1 | AV18: 1 | AW18: 1 | AX18: 1 | AY18: 1 | AZ18: 1 | BA18: 1 | BB18: 1 | BC18: 1 | BD18: 1 | BE18: 1 | BF18: 1 | BG18: 1 | BH18: 1 | BI18: 1 | BJ18: 0 | BK18: 0 | BL18: 0 | BM18: 0 | BN18: 0 | BO18: 0 | BP18: 0 | BQ18: 0 | BR18: 0 | BS18: 0 | BT18: 0 | BU18: 0 | BV18: 0 | BW18: 0 | BX18: 0 | BY18: 0 | BZ18: 0 | CA18: 0 | CB18: 0 | CC18: 0 | CD18: 0 | CG18: 102102187 | CH18: 15 | CI18: =((CI62/$CG62))*($CG18/1000) ->  | DO18: =((DO62/$CG62))*($CG18/1000) ->  | EV18: =((EV62/$CG62))*($CG18/1000) ->  | EY18: =((EY62/$CG62))*($CG18/1000) -> 
A19: 20220216 | B19: 2022 | C19: 2 | D19: 16 | E19: =+JAN!F19+1 -> 2022-01-20 | F19: 2022-02-17 | G19: 29 | H19: =+E19-JAN!F19 -> 1 | K19: 16 | L19: 0 | M19: 0 | N19: 0 | O19: 0 | P19: 0 | Q19: 0 | R19: 0 | S19: 0 | T19: 0 | U19: 0 | V19: 0 | W19: 0 | X19: 0 | Y19: 0 | Z19: 0 | AA19: 0 | AB19: 0 | AC19: 0 | AD19: 0 | AE19: 0 | AF19: 0 | AG19: 0 | AH19: 1 | AI19: 1 | AJ19: 1 | AK19: 1 | AL19: =IF(AND(AL$3>=$E19,AL$3<=$F19),1,0) -> 1 | AM19: 1 | AN19: 1 | AO19: 1 | AP19: 1 | AQ19: 1 | AR19: 1 | AS19: 1 | AT19: 1 | AU19: 1 | AV19: 1 | AW19: 1 | AX19: 1 | AY19: 1 | AZ19: 1 | BA19: 1 | BB19: 1 | BC19: 1 | BD19: 1 | BE19: 1 | BF19: 1 | BG19: 1 | BH19: 1 | BI19: 1 | BJ19: 1 | BK19: 0 | BL19: 0 | BM19: 0 | BN19: 0 | BO19: 0 | BP19: 0 | BQ19: 0 | BR19: 0 | BS19: 0 | BT19: 0 | BU19: 0 | BV19: 0 | BW19: 0 | BX19: 0 | BY19: 0 | BZ19: 0 | CA19: 0 | CB19: 0 | CC19: 0 | CD19: 0 | CG19: 47460173 | CH19: 16 | CI19: =((CI63/$CG63))*($CG19/1000) ->  | DO19: =((DO63/$CG63))*($CG19/1000) ->  | EV19: =((EV63/$CG63))*($CG19/1000) ->  | EY19: =((EY63/$CG63))*($CG19/1000) -> 
A20: 20220217 | B20: 2022 | C20: 2 | D20: 17 | E20: =+JAN!F20+1 -> 2022-01-21 | F20: 2022-02-18 | G20: 29 | H20: =+E20-JAN!F20 -> 1 | K20: 17 | L20: 0 | M20: 0 | N20: 0 | O20: 0 | P20: 0 | Q20: 0 | R20: 0 | S20: 0 | T20: 0 | U20: 0 | V20: 0 | W20: 0 | X20: 0 | Y20: 0 | Z20: 0 | AA20: 0 | AB20: =IF(AND(AB$3>=$E20,AB$3<=$F20),1,0) -> 0 | AC20: 0 | AD20: 0 | AE20: 0 | AF20: 0 | AG20: 0 | AH20: 0 | AI20: 1 | AJ20: 1 | AK20: 1 | AL20: 1 | AM20: 1 | AN20: 1 | AO20: 1 | AP20: 1 | AQ20: 1 | AR20: 1 | AS20: 1 | AT20: 1 | AU20: 1 | AV20: 1 | AW20: 1 | AX20: 1 | AY20: 1 | AZ20: 1 | BA20: 1 | BB20: 1 | BC20: 1 | BD20: 1 | BE20: 1 | BF20: 1 | BG20: 1 | BH20: 1 | BI20: 1 | BJ20: 1 | BK20: 1 | BL20: 0 | BM20: 0 | BN20: 0 | BO20: 0 | BP20: 0 | BQ20: 0 | BR20: 0 | BS20: 0 | BT20: 0 | BU20: 0 | BV20: 0 | BW20: 0 | BX20: 0 | BY20: 0 | BZ20: 0 | CA20: 0 | CB20: =IF(AND(CB$3>=$E20,CB$3<=$F20),1,0) -> 0 | CC20: 0 | CD20: 0 | CG20: 34161086 | CH20: 17 | CI20: =((CI64/$CG64))*($CG20/1000) ->  | DO20: =((DO64/$CG64))*($CG20/1000) ->  | EV20: =((EV64/$CG64))*($CG20/1000) ->  | EY20: =((EY64/$CG64))*($CG20/1000) -> 
A21: 20220218 | B21: 2022 | C21: 2 | D21: 18 | E21: =+JAN!F21+1 -> 2022-01-22 | F21: 2022-02-21 | G21: 31 | H21: =+E21-JAN!F21 -> 1 | K21: 18 | L21: 0 | M21: 0 | N21: 0 | O21: 0 | P21: 0 | Q21: 0 | R21: 0 | S21: 0 | T21: 0 | U21: 0 | V21: 0 | W21: 0 | X21: 0 | Y21: 0 | Z21: 0 | AA21: 0 | AB21: 0 | AC21: 0 | AD21: 0 | AE21: 0 | AF21: 0 | AG21: 0 | AH21: 0 | AI21: 0 | AJ21: 1 | AK21: 1 | AL21: 1 | AM21: 1 | AN21: 1 | AO21: 1 | AP21: 1 | AQ21: 1 | AR21: 1 | AS21: 1 | AT21: 1 | AU21: 1 | AV21: 1 | AW21: 1 | AX21: 1 | AY21: 1 | AZ21: 1 | BA21: 1 | BB21: 1 | BC21: 1 | BD21: 1 | BE21: 1 | BF21: 1 | BG21: 1 | BH21: 1 | BI21: 1 | BJ21: 1 | BK21: 1 | BL21: 1 | BM21: 1 | BN21: 1 | BO21: 0 | BP21: 0 | BQ21: 0 | BR21: 0 | BS21: 0 | BT21: 0 | BU21: 0 | BV21: 0 | BW21: 0 | BX21: 0 | BY21: 0 | BZ21: 0 | CA21: 0 | CB21: 0 | CC21: 0 | CD21: 0 | CG21: 96293226 | CH21: 18 | CI21: =((CI65/$CG65))*($CG21/1000) ->  | DO21: =((DO65/$CG65))*($CG21/1000) ->  | EV21: =((EV65/$CG65))*($CG21/1000) ->  | EY21: =((EY65/$CG65))*($CG21/1000) -> 
A22: 20220219 | B22: 2022 | C22: 2 | D22: 19 | E22: =+JAN!F22+1 -> 2022-01-25 | F22: 2022-02-22 | G22: 29 | H22: =+E22-JAN!F22 -> 1 | K22: 19 | L22: 0 | M22: 0 | N22: 0 | O22: 0 | P22: 0 | Q22: 0 | R22: 0 | S22: 0 | T22: 0 | U22: 0 | V22: 0 | W22: 0 | X22: 0 | Y22: 0 | Z22: 0 | AA22: 0 | AB22: 0 | AC22: 0 | AD22: 0 | AE22: 0 | AF22: 0 | AG22: 0 | AH22: 0 | AI22: 0 | AJ22: 0 | AK22: 0 | AL22: 0 | AM22: 1 | AN22: 1 | AO22: 1 | AP22: 1 | AQ22: 1 | AR22: 1 | AS22: 1 | AT22: 1 | AU22: 1 | AV22: 1 | AW22: 1 | AX22: 1 | AY22: 1 | AZ22: 1 | BA22: 1 | BB22: 1 | BC22: 1 | BD22: 1 | BE22: 1 | BF22: 1 | BG22: 1 | BH22: 1 | BI22: 1 | BJ22: 1 | BK22: 1 | BL22: 1 | BM22: 1 | BN22: 1 | BO22: 1 | BP22: 0 | BQ22: 0 | BR22: 0 | BS22: 0 | BT22: 0 | BU22: 0 | BV22: 0 | BW22: 0 | BX22: 0 | BY22: 0 | BZ22: 0 | CA22: 0 | CB22: 0 | CC22: 0 | CD22: 0 | CG22: 43451164 | CH22: 19 | CI22: =((CI66/$CG66))*($CG22/1000) ->  | DO22: =((DO66/$CG66))*($CG22/1000) ->  | EV22: =((EV66/$CG66))*($CG22/1000) ->  | EY22: =((EY66/$CG66))*($CG22/1000) -> 
A23: 20220220 | B23: 2022 | C23: 2 | D23: 20 | E23: =+JAN!F23+1 -> 2022-01-26 | F23: 2022-02-23 | G23: 29 | H23: =+E23-JAN!F23 -> 1 | K23: 20 | L23: 0 | M23: 0 | N23: 0 | O23: 0 | P23: 0 | Q23: 0 | R23: 0 | S23: 0 | T23: 0 | U23: 0 | V23: 0 | W23: 0 | X23: =IF(AND(X$3>=$E23,X$3<=$F23),1,0) -> 0 | Y23: 0 | Z23: 0 | AA23: 0 | AB23: 0 | AC23: 0 | AD23: 0 | AE23: 0 | AF23: 0 | AG23: 0 | AH23: 0 | AI23: 0 | AJ23: 0 | AK23: 0 | AL23: 0 | AM23: 0 | AN23: 1 | AO23: 1 | AP23: 1 | AQ23: 1 | AR23: 1 | AS23: 1 | AT23: 1 | AU23: 1 | AV23: 1 | AW23: 1 | AX23: 1 | AY23: 1 | AZ23: 1 | BA23: 1 | BB23: 1 | BC23: 1 | BD23: 1 | BE23: 1 | BF23: 1 | BG23: 1 | BH23: 1 | BI23: 1 | BJ23: 1 | BK23: 1 | BL23: 1 | BM23: 1 | BN23: 1 | BO23: 1 | BP23: 1 | BQ23: 0 | BR23: 0 | BS23: 0 | BT23: 0 | BU23: 0 | BV23: 0 | BW23: 0 | BX23: 0 | BY23: 0 | BZ23: 0 | CA23: 0 | CB23: 0 | CC23: 0 | CD23: 0 | CG23: 41259392 | CH23: 20 | CI23: =((CI67/$CG67))*($CG23/1000) ->  | DO23: =((DO67/$CG67))*($CG23/1000) ->  | EV23: =((EV67/$CG67))*($CG23/1000) ->  | EY23: =((EY67/$CG67))*($CG23/1000) -> 
A24: 20220221 | B24: 2022 | C24: 2 | D24: 21 | E24: =+JAN!F24+1 -> 2022-01-27 | F24: 2022-02-24 | G24: 29 | H24: =+E24-JAN!F24 -> 1 | K24: 21 | L24: =IF(AND(L$3>=$E24,L$3<=$F24),1,0) -> 0 | M24: 0 | N24: 0 | O24: 0 | P24: 0 | Q24: 0 | R24: 0 | S24: 0 | T24: 0 | U24: 0 | V24: 0 | W24: 0 | X24: 0 | Y24: 0 | Z24: 0 | AA24: 0 | AB24: 0 | AC24: 0 | AD24: 0 | AE24: 0 | AF24: 0 | AG24: 0 | AH24: 0 | AI24: 0 | AJ24: 0 | AK24: 0 | AL24: 0 | AM24: 0 | AN24: 0 | AO24: 1 | AP24: 1 | AQ24: 1 | AR24: 1 | AS24: 1 | AT24: 1 | AU24: 1 | AV24: 1 | AW24: 1 | AX24: 1 | AY24: 1 | AZ24: 1 | BA24: 1 | BB24: 1 | BC24: 1 | BD24: 1 | BE24: 1 | BF24: 1 | BG24: 1 | BH24: 1 | BI24: 1 | BJ24: 1 | BK24: 1 | BL24: 1 | BM24: 1 | BN24: 1 | BO24: 1 | BP24: 1 | BQ24: 1 | BR24: 0 | BS24: 0 | BT24: 0 | BU24: 0 | BV24: 0 | BW24: 0 | BX24: 0 | BY24: 0 | BZ24: 0 | CA24: 0 | CB24: 0 | CC24: 0 | CD24: 0 | CG24: 78270537 | CH24: 21 | CI24: =((CI68/$CG68))*($CG24/1000) ->  | DO24: =((DO68/$CG68))*($CG24/1000) ->  | EV24: =((EV68/$CG68))*($CG24/1000) ->  | EY24: =((EY68/$CG68))*($CG24/1000) -> 
A25: =+A24+2 -> 20220223 | B25: 2022 | C25: 2 | D25: 23 | E25: =+JAN!F25+1 -> 2022-02-01 | F25: =DATE(A1,A2,28) -> 2022-02-28 | G25: 28 | H25: =+E25-JAN!F25 -> 1 | K25: 23 | L25: 0 | M25: 0 | N25: 0 | O25: 0 | P25: 0 | Q25: 0 | R25: 0 | S25: 0 | T25: 0 | U25: 0 | V25: 0 | W25: 0 | X25: 0 | Y25: 0 | Z25: 0 | AA25: 0 | AB25: 0 | AC25: 0 | AD25: 0 | AE25: 0 | AF25: 0 | AG25: 0 | AH25: 0 | AI25: 0 | AJ25: 0 | AK25: 0 | AL25: 0 | AM25: 0 | AN25: 0 | AO25: 0 | AP25: 0 | AQ25: 0 | AR25: 0 | AS25: 0 | AT25: 1 | AU25: 1 | AV25: 1 | AW25: 1 | AX25: 1 | AY25: 1 | AZ25: 1 | BA25: 1 | BB25: 1 | BC25: 1 | BD25: 1 | BE25: 1 | BF25: 1 | BG25: 1 | BH25: 1 | BI25: 1 | BJ25: 1 | BK25: 1 | BL25: 1 | BM25: 1 | BN25: 1 | BO25: 1 | BP25: 1 | BQ25: 1 | BR25: 1 | BS25: 1 | BT25: 1 | BU25: 1 | BV25: 0 | BW25: 0 | BX25: 0 | BY25: 0 | BZ25: =IF(AND(BZ$3>=$E25,BZ$3<=$F25+1),1,0) -> 0 | CA25: =IF(AND(CA$3>=$E25,CA$3<=$F25+1),1,0) -> 0 | CB25: =IF(AND(CB$3>=$E25,CB$3<=$F25+1),1,0) -> 0 | CC25: 0 | CD25: 0 | CF25: =SUM(CI25:FA25)-CG25/1000 ->  | CG25: 95873374 | CH25: 23 | CI25: =((CI69/$CG69))*($CG25/1000) ->  | DO25: =((DO69/$CG69))*($CG25/1000) ->  | EV25: =((EV69/$CG69))*($CG25/1000) ->  | EY25: =((EY69/$CG69))*($CG25/1000) -> 
G26: =AVERAGE(G4:G25) -> 29.68181818 | K26: Cnt | L26: =SUM(L4:L25) -> 1 | M26: =SUM(M4:M25) -> 2 | N26: 3 | O26: 3 | P26: 3 | Q26: 3 | R26: 4 | S26: 5 | T26: 6 | U26: 7 | V26: 8 | W26: 8 | X26: 8 | Y26: 9 | Z26: 10 | AA26: 12 | AB26: 13 | AC26: 14 | AD26: 14 | AE26: 14 | AF26: 14 | AG26: 15 | AH26: 16 | AI26: 17 | AJ26: 18 | AK26: 18 | AL26: 18 | AM26: 19 | AN26: 20 | AO26: 21 | AP26: 20 | AQ26: 19 | AR26: 19 | AS26: 19 | AT26: 19 | AU26: 18 | AV26: 17 | AW26: 16 | AX26: 15 | AY26: 15 | AZ26: 15 | BA26: 14 | BB26: 13 | BC26: 12 | BD26: 11 | BE26: 10 | BF26: 10 | BG26: 10 | BH26: 9 | BI26: 8 | BJ26: 7 | BK26: 6 | BL26: 5 | BM26: 5 | BN26: 5 | BO26: 4 | BP26: 3 | BQ26: 2 | BR26: 1 | BS26: 1 | BT26: 1 | BU26: 1 | BV26: 0 | BW26: 0 | BX26: 0 | BY26: =SUM(BY4:BY25) -> 0 | BZ26: 0 | CA26: 0 | CB26: 0 | CC26: 0 | CD26: 0 | CF26: =SUM(CI26:FA26)-CG26/1000 ->  | CG26: =SUM(CG4:CG25) -> 1376994332 | CH26: =SUM(CI26:FA26) ->  | CI26: =SUM(CI4:CI25) ->  | CJ26: =SUM(CJ4:CJ25) ->  | EV26: =SUM(EV4:EV25) ->  | EY26: =SUM(EY4:EY25) -> 
F27: Check | G27: =+CD3 -> 2022-03-09 | I27: =SUM(L27:CD27) -> 29.68181818 | K27: PctOn | L27: =+L26/22 -> 0.04545454545 | M27: =+M26/22 -> 0.09090909091 | N27: 0.1363636364 | O27: 0.1363636364 | P27: 0.1363636364 | Q27: 0.1363636364 | R27: 0.1818181818 | S27: 0.2272727273 | T27: 0.2727272727 | U27: 0.3181818182 | V27: 0.3636363636 | W27: 0.3636363636 | X27: 0.3636363636 | Y27: 0.4090909091 | Z27: 0.4545454545 | AA27: 0.5454545455 | AB27: 0.5909090909 | AC27: 0.6363636364 | AD27: 0.6363636364 | AE27: 0.6363636364 | AF27: 0.6363636364 | AG27: 0.6818181818 | AH27: 0.7272727273 | AI27: 0.7727272727 | AJ27: 0.8181818182 | AK27: 0.8181818182 | AL27: 0.8181818182 | AM27: 0.8636363636 | AN27: 0.9090909091 | AO27: 0.9545454545 | AP27: 0.9090909091 | AQ27: 0.8636363636 | AR27: 0.8636363636 | AS27: 0.8636363636 | AT27: 0.8636363636 | AU27: 0.8181818182 | AV27: 0.7727272727 | AW27: 0.7272727273 | AX27: 0.6818181818 | AY27: 0.6818181818 | AZ27: 0.6818181818 | BA27: 0.6363636364 | BB27: 0.5909090909 | BC27: 0.5454545455 | BD27: 0.5 | BE27: 0.4545454545 | BF27: 0.4545454545 | BG27: 0.4545454545 | BH27: 0.4090909091 | BI27: 0.3636363636 | BJ27: 0.3181818182 | BK27: 0.2727272727 | BL27: 0.2272727273 | BM27: 0.2272727273 | BN27: 0.2272727273 | BO27: 0.1818181818 | BP27: 0.1363636364 | BQ27: 0.09090909091 | BR27: 0.04545454545 | BS27: 0.04545454545 | BT27: 0.04545454545 | BU27: 0.04545454545 | BV27: 0 | BW27: 0 | BX27: 0 | BY27: =+BY26/22 -> 0 | BZ27: 0 | CA27: 0 | CB27: 0 | CC27: 0 | CD27: 0 | CH27: NEL---->>> | CI27: =VLOOKUP(CI3,Daily!$A$2:$H$459,8) -> 0 | CJ27: =VLOOKUP(CJ3,Daily!$A$2:$H$459,8) -> 0 | CK27: =VLOOKUP(CK3,Daily!$A$2:$H$459,8) -> 0 | CL27: =VLOOKUP(CL3,Daily!$A$2:$H$459,8) -> 0 | CM27: =VLOOKUP(CM3,Daily!$A$2:$H$459,8) -> 0 | CN27: =VLOOKUP(CN3,Daily!$A$2:$H$459,8) -> 0 | CO27: =VLOOKUP(CO3,Daily!$A$2:$H$459,8) -> 0 | CP27: =VLOOKUP(CP3,Daily!$A$2:$H$459,8) -> 0 | CQ27: =VLOOKUP(CQ3,Daily!$A$2:$H$459,8) -> 0 | CR27: =VLOOKUP(CR3,Daily!$A$2:$H$459,8) -> 0 | CS27: =VLOOKUP(CS3,Daily!$A$2:$H$459,8) -> 0 | CT27: =VLOOKUP(CT3,Daily!$A$2:$H$459,8) -> 0 | CU27: =VLOOKUP(CU3,Daily!$A$2:$H$459,8) -> 0 | CV27: =VLOOKUP(CV3,Daily!$A$2:$H$459,8) -> 0 | CW27: =VLOOKUP(CW3,Daily!$A$2:$H$459,8) -> 0 | CX27: =VLOOKUP(CX3,Daily!$A$2:$H$459,8) -> 0 | CY27: =VLOOKUP(CY3,Daily!$A$2:$H$459,8) -> 0 | CZ27: =VLOOKUP(CZ3,Daily!$A$2:$H$459,8) -> 0 | DA27: =VLOOKUP(DA3,Daily!$A$2:$H$459,8) -> 0 | DB27: =VLOOKUP(DB3,Daily!$A$2:$H$459,8) -> 0 | DC27: =VLOOKUP(DC3,Daily!$A$2:$H$459,8) -> 0 | DD27: =VLOOKUP(DD3,Daily!$A$2:$H$459,8) -> 0 | DE27: =VLOOKUP(DE3,Daily!$A$2:$H$459,8) -> 0 | DF27: =VLOOKUP(DF3,Daily!$A$2:$H$459,8) -> 0 | DG27: =VLOOKUP(DG3,Daily!$A$2:$H$459,8) -> 0 | DH27: =VLOOKUP(DH3,Daily!$A$2:$H$459,8) -> 0 | DI27: =VLOOKUP(DI3,Daily!$A$2:$H$459,8) -> 0 | DJ27: =VLOOKUP(DJ3,Daily!$A$2:$H$459,8) -> 0 | DK27: =VLOOKUP(DK3,Daily!$A$2:$H$459,8) -> 0 | DL27: =VLOOKUP(DL3,Daily!$A$2:$H$459,8) -> 0 | DM27: =VLOOKUP(DM3,Daily!$A$2:$H$459,8) -> 0 | DN27: =VLOOKUP(DN3,Daily!$A$2:$H$459,8) -> 0 | DO27: =VLOOKUP(DO3,Daily!$A$2:$H$459,8) -> 0 | DP27: =VLOOKUP(DP3,Daily!$A$2:$H$459,8) -> 0 | DQ27: =VLOOKUP(DQ3,Daily!$A$2:$H$459,8) -> 0 | DR27: =VLOOKUP(DR3,Daily!$A$2:$H$459,8) -> 0 | DS27: =VLOOKUP(DS3,Daily!$A$2:$H$459,8) -> 0 | DT27: =VLOOKUP(DT3,Daily!$A$2:$H$459,8) -> 0 | DU27: =VLOOKUP(DU3,Daily!$A$2:$H$459,8) -> 0 | DV27: =VLOOKUP(DV3,Daily!$A$2:$H$459,8) -> 0 | DW27: =VLOOKUP(DW3,Daily!$A$2:$H$459,8) -> 0 | DX27: =VLOOKUP(DX3,Daily!$A$2:$H$459,8) -> 0 | DY27: =VLOOKUP(DY3,Daily!$A$2:$H$459,8) -> 0 | DZ27: =VLOOKUP(DZ3,Daily!$A$2:$H$459,8) -> 0 | EA27: =VLOOKUP(EA3,Daily!$A$2:$H$459,8) -> 0 | EB27: =VLOOKUP(EB3,Daily!$A$2:$H$459,8) -> 0 | EC27: =VLOOKUP(EC3,Daily!$A$2:$H$459,8) -> 0 | ED27: =VLOOKUP(ED3,Daily!$A$2:$H$459,8) -> 0 | EE27: =VLOOKUP(EE3,Daily!$A$2:$H$459,8) -> 0 | EF27: =VLOOKUP(EF3,Daily!$A$2:$H$459,8) -> 0 | EG27: =VLOOKUP(EG3,Daily!$A$2:$H$459,8) -> 0 | EH27: =VLOOKUP(EH3,Daily!$A$2:$H$459,8) -> 0 | EI27: =VLOOKUP(EI3,Daily!$A$2:$H$459,8) -> 0 | EJ27: =VLOOKUP(EJ3,Daily!$A$2:$H$459,8) -> 0 | EK27: =VLOOKUP(EK3,Daily!$A$2:$H$459,8) -> 0 | EL27: =VLOOKUP(EL3,Daily!$A$2:$H$459,8) -> 0 | EM27: =VLOOKUP(EM3,Daily!$A$2:$H$459,8) -> 0 | EN27: =VLOOKUP(EN3,Daily!$A$2:$H$459,8) -> 0 | EO27: =VLOOKUP(EO3,Daily!$A$2:$H$459,8) -> 0 | EP27: =VLOOKUP(EP3,Daily!$A$2:$H$459,8) -> 0 | EQ27: =VLOOKUP(EQ3,Daily!$A$2:$H$459,8) -> 0 | ER27: =VLOOKUP(ER3,Daily!$A$2:$H$459,8) -> 0 | ES27: =VLOOKUP(ES3,Daily!$A$2:$H$459,8) -> 0 | ET27: =VLOOKUP(ET3,Daily!$A$2:$H$459,8) -> 0 | EU27: =VLOOKUP(EU3,Daily!$A$2:$H$459,8) -> 0 | EV27: =VLOOKUP(EV3,Daily!$A$2:$H$459,8) -> 0 | EW27: =VLOOKUP(EW3,Daily!$A$2:$H$459,8) -> 0 | EX27: =VLOOKUP(EX3,Daily!$A$2:$H$459,8) -> 0 | EY27: =VLOOKUP(EY3,Daily!$A$2:$H$459,8) -> 0 | EZ27: =VLOOKUP(EZ3,Daily!$A$2:$H$459,8) -> 0 | FA27: =VLOOKUP(FA3,Daily!$A$2:$H$459,8) -> 0
K28: PctOff | L28: =1-L27 -> 0.9545454545 | M28: =1-M27 -> 0.9090909091 | N28: 0.8636363636 | O28: 0.8636363636 | P28: 0.8636363636 | Q28: 0.8636363636 | R28: 0.8181818182 | S28: 0.7727272727 | T28: 0.7272727273 | U28: 0.6818181818 | V28: 0.6363636364 | W28: 0.6363636364 | X28: 0.6363636364 | Y28: 0.5909090909 | Z28: 0.5454545455 | AA28: 0.4545454545 | AB28: 0.4090909091 | AC28: 0.3636363636 | AD28: 0.3636363636 | AE28: 0.3636363636 | AF28: 0.3636363636 | AG28: 0.3181818182 | AH28: 0.2727272727 | AI28: 0.2272727273 | AJ28: 0.1818181818 | AK28: 0.1818181818 | AL28: 0.1818181818 | AM28: 0.1363636364 | AN28: 0.09090909091 | AO28: 0.04545454545 | AP28: 0.09090909091 | AQ28: 0.1363636364 | AR28: 0.1363636364 | AS28: 0.1363636364 | AT28: 0.1363636364 | AU28: 0.1818181818 | AV28: 0.2272727273 | AW28: 0.2727272727 | AX28: 0.3181818182 | AY28: 0.3181818182 | AZ28: 0.3181818182 | BA28: 0.3636363636 | BB28: 0.4090909091 | BC28: 0.4545454545 | BD28: 0.5 | BE28: 0.5454545455 | BF28: 0.5454545455 | BG28: 0.5454545455 | BH28: 0.5909090909 | BI28: 0.6363636364 | BJ28: 0.6818181818 | BK28: 0.7272727273 | BL28: 0.7727272727 | BM28: 0.7727272727 | BN28: 0.7727272727 | BO28: 0.8181818182 | BP28: 0.8636363636 | BQ28: 0.9090909091 | BR28: 0.9545454545 | BS28: 0.9545454545 | BT28: 0.9545454545 | BU28: 0.9545454545 | BV28: 1 | BW28: =1-BW27 -> 1 | BX28: =1-BX27 -> 1 | BY28: =1-BY27 -> 1 | BZ28: 1 | CA28: 1 | CB28: =1-CB27 -> 1 | CC28: 1 | CD28: 1 | CG28: January:
J29: Average | K29: Temp | L29: =VLOOKUP(L3,Daily!$A:$D,4) -> 75 | M29: =VLOOKUP(M3,Daily!$A:$D,4) -> 74 | N29: =VLOOKUP(N3,Daily!$A:$D,4) -> 76 | O29: =VLOOKUP(O3,Daily!$A:$D,4) -> 74.5 | P29: =VLOOKUP(P3,Daily!$A:$D,4) -> 76.5 | Q29: =VLOOKUP(Q3,Daily!$A:$D,4) -> 65 | R29: =VLOOKUP(R3,Daily!$A:$D,4) -> 63 | S29: =VLOOKUP(S3,Daily!$A:$D,4) -> 67 | T29: =VLOOKUP(T3,Daily!$A:$D,4) -> 65 | U29: =VLOOKUP(U3,Daily!$A:$D,4) -> 72 | V29: =VLOOKUP(V3,Daily!$A:$D,4) -> 69.5 | W29: =VLOOKUP(W3,Daily!$A:$D,4) -> 74.5 | X29: =VLOOKUP(X3,Daily!$A:$D,4) -> 72.5 | Y29: =VLOOKUP(Y3,Daily!$A:$D,4) -> 63.5 | Z29: =VLOOKUP(Z3,Daily!$A:$D,4) -> 65.5 | AA29: =VLOOKUP(AA3,Daily!$A:$D,4) -> 66.5 | AB29: =VLOOKUP(AB3,Daily!$A:$D,4) -> 63.5 | AC29: =VLOOKUP(AC3,Daily!$A:$D,4) -> 62.5 | AD29: =VLOOKUP(AD3,Daily!$A:$D,4) -> 66.5 | AE29: =VLOOKUP(AE3,Daily!$A:$D,4) -> 61 | AF29: =VLOOKUP(AF3,Daily!$A:$D,4) -> 53 | AG29: =VLOOKUP(AG3,Daily!$A:$D,4) -> 61 | AH29: =VLOOKUP(AH3,Daily!$A:$D,4) -> 65.5 | AI29: =VLOOKUP(AI3,Daily!$A:$D,4) -> 68 | AJ29: =VLOOKUP(AJ3,Daily!$A:$D,4) -> 54.5 | AK29: =VLOOKUP(AK3,Daily!$A:$D,4) -> 51.5 | AL29: =VLOOKUP(AL3,Daily!$A:$D,4) -> 51.5 | AM29: =VLOOKUP(AM3,Daily!$A:$D,4) -> 53.5 | AN29: =VLOOKUP(AN3,Daily!$A:$D,4) -> 58.5 | AO29: =VLOOKUP(AO3,Daily!$A:$D,4) -> 66.5 | AP29: =VLOOKUP(AP3,Daily!$A:$D,4) -> 60.5 | AQ29: =VLOOKUP(AQ3,Daily!$A:$D,4) -> 48 | AR29: =VLOOKUP(AR3,Daily!$A:$D,4) -> 47 | AS29: =VLOOKUP(AS3,Daily!$A:$D,4) -> 54 | AT29: =VLOOKUP(AT3,Daily!$A:$D,4) -> 62.5 | AU29: =VLOOKUP(AU3,Daily!$A:$D,4) -> 69.5 | AV29: =VLOOKUP(AV3,Daily!$A:$D,4) -> 75.5 | AW29: =VLOOKUP(AW3,Daily!$A:$D,4) -> 75 | AX29: =VLOOKUP(AX3,Daily!$A:$D,4) -> 63 | AY29: =VLOOKUP(AY3,Daily!$A:$D,4) -> 59 | AZ29: =VLOOKUP(AZ3,Daily!$A:$D,4) -> 62 | BA29: =VLOOKUP(BA3,Daily!$A:$D,4) -> 54.5 | BB29: =VLOOKUP(BB3,Daily!$A:$D,4) -> 59 | BC29: =VLOOKUP(BC3,Daily!$A:$D,4) -> 59.5 | BD29: =VLOOKUP(BD3,Daily!$A:$D,4) -> 65 | BE29: =VLOOKUP(BE3,Daily!$A:$D,4) -> 67.5 | BF29: =VLOOKUP(BF3,Daily!$A:$D,4) -> 66 | BG29: =VLOOKUP(BG3,Daily!$A:$D,4) -> 57 | BH29: =VLOOKUP(BH3,Daily!$A:$D,4) -> 61 | BI29: =VLOOKUP(BI3,Daily!$A:$D,4) -> 71.5 | BJ29: =VLOOKUP(BJ3,Daily!$A:$D,4) -> 76.5 | BK29: =VLOOKUP(BK3,Daily!$A:$D,4) -> 74.5 | BL29: =VLOOKUP(BL3,Daily!$A:$D,4) -> 68.5 | BM29: =VLOOKUP(BM3,Daily!$A:$D,4) -> 68 | BN29: =VLOOKUP(BN3,Daily!$A:$D,4) -> 74.5 | BO29: =VLOOKUP(BO3,Daily!$A:$D,4) -> 77 | BP29: =VLOOKUP(BP3,Daily!$A:$D,4) -> 78 | BQ29: =VLOOKUP(BQ3,Daily!$A:$D,4) -> 77 | BR29: =VLOOKUP(BR3,Daily!$A:$D,4) -> 76 | BS29: =VLOOKUP(BS3,Daily!$A:$D,4) -> 76 | BT29: =VLOOKUP(BT3,Daily!$A:$D,4) -> 75.5 | BU29: =VLOOKUP(BU3,Daily!$A:$D,4) -> 72 | BV29: =VLOOKUP(BV3,Daily!$A:$D,4) -> 69.5 | BW29: =VLOOKUP(BW3,Daily!$A:$D,4) -> 68 | BX29: =VLOOKUP(BX3,Daily!$A:$D,4) -> 71 | BY29: =VLOOKUP(BY3,Daily!$A:$D,4) -> 77 | BZ29: =VLOOKUP(BZ3,Daily!$A:$D,4) -> 76 | CA29: =VLOOKUP(CA3,Daily!$A:$D,4) -> 77.5 | CB29: =VLOOKUP(CB3,Daily!$A:$D,4) -> 79.5 | CC29: =VLOOKUP(CC3,Daily!$A:$D,4) -> 80 | CD29: =VLOOKUP(CD3,Daily!$A:$D,4) -> 80.5 | CG29: Billed | CH29: =SUM(CI29:FA29) ->  | CI29: =IF(CI2=$A$2,CI26,0) -> 0 | CJ29: 0 | CK29: 0 | CL29: 0 | CM29: 0 | CN29: 0 | CO29: 0 | CP29: 0 | CQ29: 0 | CR29: 0 | CS29: 0 | CT29: 0 | CU29: 0 | CV29: 0 | CW29: 0 | CX29: 0 | CY29: 0 | CZ29: 0 | DA29: 0 | DB29: 0 | DC29: 0 | DD29: 0 | DE29: 0 | DF29: 0 | DG29: 0 | DH29: 0 | DI29: 0 | DJ29: 0 | DK29: 0 | DL29: 0 | DM29: 0 | DN29: 0 | DO29: =IF(DO2=$A$2,DO26,0) -> 0 | DP29: =IF(DP2=$A$2,DP26,0) -> 0 | ES29: 0 | ET29: 0 | EU29: 0 | EV29: =IF(EV2=$A$2,EV26,0) -> 0 | EW29: 0 | EX29: 0 | EY29: =IF(EY2=$A$2,EY26,0) -> 0 | EZ29: 0 | FA29: 0
I30: =SUM(L30:CD30) -> 47.5 | J30: Calendar | K30: HDD | L30: =IF((L3>=DATE($A$1,$A$2,1))*(L3<=DATE($A$1,$A$2,DAY(EOMONTH(DATE($A$1,$A$2,1),0)))), IF(L29<65,65-L29,0),0) -> 0 | M30: =IF((M3>=DATE($A$1,$A$2,1))*(M3<=DATE($A$1,$A$2,DAY(EOMONTH(DATE($A$1,$A$2,1),0)))), IF(M29<65,65-M29,0),0) -> 0 | N30: 0 | O30: 0 | P30: 0 | Q30: 0 | R30: 0 | S30: 0 | T30: 0 | U30: 0 | V30: 0 | W30: 0 | X30: 0 | Y30: 0 | Z30: 0 | AA30: 0 | AB30: 0 | AC30: 0 | AD30: 0 | AE30: 0 | AF30: 0 | AG30: 0 | AH30: 0 | AI30: 0 | AJ30: 0 | AK30: 0 | AL30: 0 | AM30: 0 | AN30: 0 | AO30: 0 | AP30: 0 | AQ30: 0 | AR30: 0 | AS30: 0 | AT30: 2.5 | AU30: 0 | AV30: 0 | AW30: 0 | AX30: 2 | AY30: 6 | AZ30: 3 | BA30: 10.5 | BB30: 6 | BC30: 5.5 | BD30: 0 | BE30: 0 | BF30: 0 | BG30: 8 | BH30: 4 | BI30: 0 | BJ30: 0 | BK30: 0 | BL30: 0 | BM30: 0 | BN30: 0 | BO30: 0 | BP30: 0 | BQ30: 0 | BR30: 0 | BS30: 0 | BT30: 0 | BU30: 0 | BV30: 0 | BW30: 0 | BX30: 0 | BY30: =IF((BY3>=DATE($A$1,$A$2,1))*(BY3<=DATE($A$1,$A$2,DAY(EOMONTH(DATE($A$1,$A$2,1),0)))), IF(BY29<65,65-BY29,0),0) -> 0 | BZ30: 0 | CA30: 0 | CB30: 0 | CC30: 0 | CD30: 0 | CG30: Unbilled1 | CH30: =SUM(CI30:FA30) ->  | CI30: =IF(CI2=$A$2,HLOOKUP(CI3,MAR!$CI$3:$ET$26,24),0) -> 0 | CJ30: =IF(CJ2=$A$2,HLOOKUP(CJ3,MAR!$CI$3:$ET$26,24),0) -> 0 | CK30: =IF(CK2=$A$2,HLOOKUP(CK3,MAR!$CI$3:$ET$26,24),0) -> 0 | CL30: =IF(CL2=$A$2,HLOOKUP(CL3,MAR!$CI$3:$ET$26,24),0) -> 0 | CM30: =IF(CM2=$A$2,HLOOKUP(CM3,MAR!$CI$3:$ET$26,24),0) -> 0 | CN30: =IF(CN2=$A$2,HLOOKUP(CN3,MAR!$CI$3:$ET$26,24),0) -> 0 | CO30: =IF(CO2=$A$2,HLOOKUP(CO3,MAR!$CI$3:$ET$26,24),0) -> 0 | CP30: =IF(CP2=$A$2,HLOOKUP(CP3,MAR!$CI$3:$ET$26,24),0) -> 0 | CQ30: =IF(CQ2=$A$2,HLOOKUP(CQ3,MAR!$CI$3:$ET$26,24),0) -> 0 | CR30: =IF(CR2=$A$2,HLOOKUP(CR3,MAR!$CI$3:$ET$26,24),0) -> 0 | CS30: =IF(CS2=$A$2,HLOOKUP(CS3,MAR!$CI$3:$ET$26,24),0) -> 0 | CT30: =IF(CT2=$A$2,HLOOKUP(CT3,MAR!$CI$3:$ET$26,24),0) -> 0 | CU30: =IF(CU2=$A$2,HLOOKUP(CU3,MAR!$CI$3:$ET$26,24),0) -> 0 | CV30: =IF(CV2=$A$2,HLOOKUP(CV3,MAR!$CI$3:$ET$26,24),0) -> 0 | CW30: =IF(CW2=$A$2,HLOOKUP(CW3,MAR!$CI$3:$ET$26,24),0) -> 0 | CX30: =IF(CX2=$A$2,HLOOKUP(CX3,MAR!$CI$3:$ET$26,24),0) -> 0 | CY30: =IF(CY2=$A$2,HLOOKUP(CY3,MAR!$CI$3:$ET$26,24),0) -> 0 | CZ30: =IF(CZ2=$A$2,HLOOKUP(CZ3,MAR!$CI$3:$ET$26,24),0) -> 0 | DA30: =IF(DA2=$A$2,HLOOKUP(DA3,MAR!$CI$3:$ET$26,24),0) -> 0 | DB30: =IF(DB2=$A$2,HLOOKUP(DB3,MAR!$CI$3:$ET$26,24),0) -> 0 | DC30: =IF(DC2=$A$2,HLOOKUP(DC3,MAR!$CI$3:$ET$26,24),0) -> 0 | DD30: =IF(DD2=$A$2,HLOOKUP(DD3,MAR!$CI$3:$ET$26,24),0) -> 0 | DE30: =IF(DE2=$A$2,HLOOKUP(DE3,MAR!$CI$3:$ET$26,24),0) -> 0 | DF30: =IF(DF2=$A$2,HLOOKUP(DF3,MAR!$CI$3:$ET$26,24),0) -> 0 | DG30: =IF(DG2=$A$2,HLOOKUP(DG3,MAR!$CI$3:$ET$26,24),0) -> 0 | DH30: =IF(DH2=$A$2,HLOOKUP(DH3,MAR!$CI$3:$ET$26,24),0) -> 0 | DI30: =IF(DI2=$A$2,HLOOKUP(DI3,MAR!$CI$3:$ET$26,24),0) -> 0 | DJ30: =IF(DJ2=$A$2,HLOOKUP(DJ3,MAR!$CI$3:$ET$26,24),0) -> 0 | DK30: =IF(DK2=$A$2,HLOOKUP(DK3,MAR!$CI$3:$ET$26,24),0) -> 0 | DL30: =IF(DL2=$A$2,HLOOKUP(DL3,MAR!$CI$3:$ET$26,24),0) -> 0 | DM30: =IF(DM2=$A$2,HLOOKUP(DM3,MAR!$CI$3:$ET$26,24),0) -> 0 | DN30: =IF(DN2=$A$2,HLOOKUP(DN3,MAR!$CI$3:$ET$26,24),0) -> 0 | DO30: =IF(DO2=$A$2,HLOOKUP(DO3,MAR!$CI$3:$ET$26,24),0) -> 0 | DP30: =IF(DP2=$A$2,HLOOKUP(DP3,MAR!$CI$3:$ET$26,24),0) -> 0 | DQ30: =IF(DQ2=$A$2,HLOOKUP(DQ3,MAR!$CI$3:$ET$26,24),0) ->  | DR30: =IF(DR2=$A$2,HLOOKUP(DR3,MAR!$CI$3:$ET$26,24),0) ->  | DS30: =IF(DS2=$A$2,HLOOKUP(DS3,MAR!$CI$3:$ET$26,24),0) ->  | DT30: =IF(DT2=$A$2,HLOOKUP(DT3,MAR!$CI$3:$ET$26,24),0) ->  | DU30: =IF(DU2=$A$2,HLOOKUP(DU3,MAR!$CI$3:$ET$26,24),0) ->  | DV30: =IF(DV2=$A$2,HLOOKUP(DV3,MAR!$CI$3:$ET$26,24),0) ->  | DW30: =IF(DW2=$A$2,HLOOKUP(DW3,MAR!$CI$3:$ET$26,24),0) ->  | DX30: =IF(DX2=$A$2,HLOOKUP(DX3,MAR!$CI$3:$ET$26,24),0) ->  | DY30: =IF(DY2=$A$2,HLOOKUP(DY3,MAR!$CI$3:$ET$26,24),0) ->  | DZ30: =IF(DZ2=$A$2,HLOOKUP(DZ3,MAR!$CI$3:$ET$26,24),0) ->  | EA30: =IF(EA2=$A$2,HLOOKUP(EA3,MAR!$CI$3:$ET$26,24),0) ->  | EB30: =IF(EB2=$A$2,HLOOKUP(EB3,MAR!$CI$3:$ET$26,24),0) ->  | EC30: =IF(EC2=$A$2,HLOOKUP(EC3,MAR!$CI$3:$ET$26,24),0) ->  | ED30: =IF(ED2=$A$2,HLOOKUP(ED3,MAR!$CI$3:$ET$26,24),0) ->  | EE30: =IF(EE2=$A$2,HLOOKUP(EE3,MAR!$CI$3:$ET$26,24),0) ->  | EF30: =IF(EF2=$A$2,HLOOKUP(EF3,MAR!$CI$3:$ET$26,24),0) ->  | EG30: =IF(EG2=$A$2,HLOOKUP(EG3,MAR!$CI$3:$ET$26,24),0) ->  | EH30: =IF(EH2=$A$2,HLOOKUP(EH3,MAR!$CI$3:$ET$26,24),0) ->  | EI30: =IF(EI2=$A$2,HLOOKUP(EI3,MAR!$CI$3:$ET$26,24),0) ->  | EJ30: =IF(EJ2=$A$2,HLOOKUP(EJ3,MAR!$CI$3:$ET$26,24),0) ->  | EK30: =IF(EK2=$A$2,HLOOKUP(EK3,MAR!$CI$3:$ET$26,24),0) ->  | EL30: =IF(EL2=$A$2,HLOOKUP(EL3,MAR!$CI$3:$ET$26,24),0) ->  | EM30: =IF(EM2=$A$2,HLOOKUP(EM3,MAR!$CI$3:$ET$26,24),0) ->  | EN30: =IF(EN2=$A$2,HLOOKUP(EN3,MAR!$CI$3:$ET$26,24),0) ->  | EO30: =IF(EO2=$A$2,HLOOKUP(EO3,MAR!$CI$3:$ET$26,24),0) ->  | EP30: =IF(EP2=$A$2,HLOOKUP(EP3,MAR!$CI$3:$ET$26,24),0) ->  | EQ30: =IF(EQ2=$A$2,HLOOKUP(EQ3,MAR!$CI$3:$ET$26,24),0) ->  | ER30: =IF(ER2=$A$2,HLOOKUP(ER3,MAR!$CI$3:$ET$26,24),0) ->  | ES30: =IF(ES2=$A$2,HLOOKUP(ES3,MAR!$CI$3:$ET$26,24),0) -> 0 | ET30: =IF(ET2=$A$2,HLOOKUP(ET3,MAR!$CI$3:$ET$26,24),0) -> 0 | EU30: =IF(EU2=$A$2,HLOOKUP(EU3,MAR!$CI$3:$ET$26,24),0) -> 0 | EV30: =IF(EV2=$A$2,HLOOKUP(EV3,MAR!$CI$3:$ET$26,24),0) -> 0 | EW30: =IF(EW2=$A$2,HLOOKUP(EW3,MAR!$CI$3:$ET$26,24),0) -> 0 | EX30: =IF(EX2=$A$2,HLOOKUP(EX3,MAR!$CI$3:$ET$26,24),0) -> 0 | EY30: =IF(EY2=$A$2,HLOOKUP(EY3,MAR!$CI$3:$ET$26,24),0) -> 0 | EZ30: =IF(EZ2=$A$2,HLOOKUP(EZ3,MAR!$CI$3:$ET$26,24),0) -> 0 | FA30: =IF(FA2=$A$2,HLOOKUP(FA3,MAR!$CI$3:$ET$26,24),0) -> 0
I31: 148.5 | J31: Calendar | K31: CDD | L31: =IF((L3>=DATE($A$1,$A$2,1))*(L3<=DATE($A$1,$A$2,DAY(EOMONTH(DATE($A$1,$A$2,1),0)))), IF(L29>65,L29-65,0),0) -> 0 | M31: =IF((M3>=DATE($A$1,$A$2,1))*(M3<=DATE($A$1,$A$2,DAY(EOMONTH(DATE($A$1,$A$2,1),0)))), IF(M29>65,M29-65,0),0) -> 0 | N31: 0 | O31: 0 | P31: 0 | Q31: 0 | R31: 0 | S31: 0 | T31: 0 | U31: 0 | V31: 0 | W31: 0 | X31: 0 | Y31: 0 | Z31: 0 | AA31: 0 | AB31: 0 | AC31: 0 | AD31: 0 | AE31: 0 | AF31: 0 | AG31: 0 | AH31: 0 | AI31: 0 | AJ31: 0 | AK31: 0 | AL31: 0 | AM31: 0 | AN31: 0 | AO31: 0 | AP31: 0 | AQ31: 0 | AR31: 0 | AS31: 0 | AT31: 0 | AU31: 4.5 | AV31: 10.5 | AW31: 10 | AX31: 0 | AY31: 0 | AZ31: 0 | BA31: 0 | BB31: 0 | BC31: 0 | BD31: 0 | BE31: 2.5 | BF31: 1 | BG31: 0 | BH31: 0 | BI31: 6.5 | BJ31: 11.5 | BK31: 9.5 | BL31: 3.5 | BM31: 3 | BN31: 9.5 | BO31: 12 | BP31: 13 | BQ31: 12 | BR31: 11 | BS31: 11 | BT31: 10.5 | BU31: 7 | BV31: 0 | BW31: 0 | BX31: 0 | BY31: =IF((BY3>=DATE($A$1,$A$2,1))*(BY3<=DATE($A$1,$A$2,DAY(EOMONTH(DATE($A$1,$A$2,1),0)))), IF(BY29>65,BY29-65,0),0) -> 0 | BZ31: 0 | CA31: 0 | CB31: 0 | CC31: 0 | CD31: 0 | CG31: Unbilled2 | CH31: 0 | CI31: =IFERROR(IF(CI2=$A$2,HLOOKUP(CI3,APR!$CI$3:$ET$26,24),0),0) -> 0 | CJ31: =IFERROR(IF(CJ2=$A$2,HLOOKUP(CJ3,APR!$CI$3:$ET$26,24),0),0) -> 0 | CK31: =IFERROR(IF(CK2=$A$2,HLOOKUP(CK3,APR!$CI$3:$ET$26,24),0),0) -> 0 | CL31: =IFERROR(IF(CL2=$A$2,HLOOKUP(CL3,APR!$CI$3:$ET$26,24),0),0) -> 0 | CM31: =IFERROR(IF(CM2=$A$2,HLOOKUP(CM3,APR!$CI$3:$ET$26,24),0),0) -> 0 | CN31: =IFERROR(IF(CN2=$A$2,HLOOKUP(CN3,APR!$CI$3:$ET$26,24),0),0) -> 0 | CO31: =IFERROR(IF(CO2=$A$2,HLOOKUP(CO3,APR!$CI$3:$ET$26,24),0),0) -> 0 | CP31: =IFERROR(IF(CP2=$A$2,HLOOKUP(CP3,APR!$CI$3:$ET$26,24),0),0) -> 0 | CQ31: =IFERROR(IF(CQ2=$A$2,HLOOKUP(CQ3,APR!$CI$3:$ET$26,24),0),0) -> 0 | CR31: =IFERROR(IF(CR2=$A$2,HLOOKUP(CR3,APR!$CI$3:$ET$26,24),0),0) -> 0 | CS31: =IFERROR(IF(CS2=$A$2,HLOOKUP(CS3,APR!$CI$3:$ET$26,24),0),0) -> 0 | CT31: =IFERROR(IF(CT2=$A$2,HLOOKUP(CT3,APR!$CI$3:$ET$26,24),0),0) -> 0 | CU31: =IFERROR(IF(CU2=$A$2,HLOOKUP(CU3,APR!$CI$3:$ET$26,24),0),0) -> 0 | CV31: =IFERROR(IF(CV2=$A$2,HLOOKUP(CV3,APR!$CI$3:$ET$26,24),0),0) -> 0 | CW31: =IFERROR(IF(CW2=$A$2,HLOOKUP(CW3,APR!$CI$3:$ET$26,24),0),0) -> 0 | CX31: =IFERROR(IF(CX2=$A$2,HLOOKUP(CX3,APR!$CI$3:$ET$26,24),0),0) -> 0 | CY31: =IFERROR(IF(CY2=$A$2,HLOOKUP(CY3,APR!$CI$3:$ET$26,24),0),0) -> 0 | CZ31: =IFERROR(IF(CZ2=$A$2,HLOOKUP(CZ3,APR!$CI$3:$ET$26,24),0),0) -> 0 | DA31: =IFERROR(IF(DA2=$A$2,HLOOKUP(DA3,APR!$CI$3:$ET$26,24),0),0) -> 0 | DB31: =IFERROR(IF(DB2=$A$2,HLOOKUP(DB3,APR!$CI$3:$ET$26,24),0),0) -> 0 | DC31: =IFERROR(IF(DC2=$A$2,HLOOKUP(DC3,APR!$CI$3:$ET$26,24),0),0) -> 0 | DD31: =IFERROR(IF(DD2=$A$2,HLOOKUP(DD3,APR!$CI$3:$ET$26,24),0),0) -> 0 | DE31: =IFERROR(IF(DE2=$A$2,HLOOKUP(DE3,APR!$CI$3:$ET$26,24),0),0) -> 0 | DF31: =IFERROR(IF(DF2=$A$2,HLOOKUP(DF3,APR!$CI$3:$ET$26,24),0),0) -> 0 | DG31: =IFERROR(IF(DG2=$A$2,HLOOKUP(DG3,APR!$CI$3:$ET$26,24),0),0) -> 0 | DH31: =IFERROR(IF(DH2=$A$2,HLOOKUP(DH3,APR!$CI$3:$ET$26,24),0),0) -> 0 | DI31: =IFERROR(IF(DI2=$A$2,HLOOKUP(DI3,APR!$CI$3:$ET$26,24),0),0) -> 0 | DJ31: =IFERROR(IF(DJ2=$A$2,HLOOKUP(DJ3,APR!$CI$3:$ET$26,24),0),0) -> 0 | DK31: =IFERROR(IF(DK2=$A$2,HLOOKUP(DK3,APR!$CI$3:$ET$26,24),0),0) -> 0 | DL31: =IFERROR(IF(DL2=$A$2,HLOOKUP(DL3,APR!$CI$3:$ET$26,24),0),0) -> 0 | DM31: =IFERROR(IF(DM2=$A$2,HLOOKUP(DM3,APR!$CI$3:$ET$26,24),0),0) -> 0 | DN31: =IFERROR(IF(DN2=$A$2,HLOOKUP(DN3,APR!$CI$3:$ET$26,24),0),0) -> 0 | DO31: =IFERROR(IF(DO2=$A$2,HLOOKUP(DO3,APR!$CI$3:$ET$26,24),0),0) -> 0 | DP31: =IFERROR(IF(DP2=$A$2,HLOOKUP(DP3,APR!$CI$3:$ET$26,24),0),0) -> 0 | DQ31: =IFERROR(IF(DQ2=$A$2,HLOOKUP(DQ3,APR!$CI$3:$ET$26,24),0),0) -> 0 | DR31: =IFERROR(IF(DR2=$A$2,HLOOKUP(DR3,APR!$CI$3:$ET$26,24),0),0) -> 0 | DS31: =IFERROR(IF(DS2=$A$2,HLOOKUP(DS3,APR!$CI$3:$ET$26,24),0),0) -> 0 | DT31: =IFERROR(IF(DT2=$A$2,HLOOKUP(DT3,APR!$CI$3:$ET$26,24),0),0) -> 0 | DU31: =IFERROR(IF(DU2=$A$2,HLOOKUP(DU3,APR!$CI$3:$ET$26,24),0),0) -> 0 | DV31: =IFERROR(IF(DV2=$A$2,HLOOKUP(DV3,APR!$CI$3:$ET$26,24),0),0) -> 0 | DW31: =IFERROR(IF(DW2=$A$2,HLOOKUP(DW3,APR!$CI$3:$ET$26,24),0),0) -> 0 | DX31: =IFERROR(IF(DX2=$A$2,HLOOKUP(DX3,APR!$CI$3:$ET$26,24),0),0) -> 0 | DY31: =IFERROR(IF(DY2=$A$2,HLOOKUP(DY3,APR!$CI$3:$ET$26,24),0),0) -> 0 | DZ31: =IFERROR(IF(DZ2=$A$2,HLOOKUP(DZ3,APR!$CI$3:$ET$26,24),0),0) -> 0 | EA31: =IFERROR(IF(EA2=$A$2,HLOOKUP(EA3,APR!$CI$3:$ET$26,24),0),0) -> 0 | EB31: =IFERROR(IF(EB2=$A$2,HLOOKUP(EB3,APR!$CI$3:$ET$26,24),0),0) -> 0 | EC31: =IFERROR(IF(EC2=$A$2,HLOOKUP(EC3,APR!$CI$3:$ET$26,24),0),0) -> 0 | ED31: =IFERROR(IF(ED2=$A$2,HLOOKUP(ED3,APR!$CI$3:$ET$26,24),0),0) -> 0 | EE31: =IFERROR(IF(EE2=$A$2,HLOOKUP(EE3,APR!$CI$3:$ET$26,24),0),0) -> 0 | EF31: =IFERROR(IF(EF2=$A$2,HLOOKUP(EF3,APR!$CI$3:$ET$26,24),0),0) -> 0 | EG31: =IFERROR(IF(EG2=$A$2,HLOOKUP(EG3,APR!$CI$3:$ET$26,24),0),0) -> 0 | EH31: =IFERROR(IF(EH2=$A$2,HLOOKUP(EH3,APR!$CI$3:$ET$26,24),0),0) -> 0 | EI31: =IFERROR(IF(EI2=$A$2,HLOOKUP(EI3,APR!$CI$3:$ET$26,24),0),0) -> 0 | EJ31: =IFERROR(IF(EJ2=$A$2,HLOOKUP(EJ3,APR!$CI$3:$ET$26,24),0),0) -> 0 | EK31: =IFERROR(IF(EK2=$A$2,HLOOKUP(EK3,APR!$CI$3:$ET$26,24),0),0) -> 0 | EL31: =IFERROR(IF(EL2=$A$2,HLOOKUP(EL3,APR!$CI$3:$ET$26,24),0),0) -> 0 | EM31: =IFERROR(IF(EM2=$A$2,HLOOKUP(EM3,APR!$CI$3:$ET$26,24),0),0) -> 0 | EN31: =IFERROR(IF(EN2=$A$2,HLOOKUP(EN3,APR!$CI$3:$ET$26,24),0),0) -> 0 | EO31: =IFERROR(IF(EO2=$A$2,HLOOKUP(EO3,APR!$CI$3:$ET$26,24),0),0) -> 0 | EP31: =IFERROR(IF(EP2=$A$2,HLOOKUP(EP3,APR!$CI$3:$ET$26,24),0),0) -> 0 | EQ31: =IFERROR(IF(EQ2=$A$2,HLOOKUP(EQ3,APR!$CI$3:$ET$26,24),0),0) -> 0 | ER31: =IFERROR(IF(ER2=$A$2,HLOOKUP(ER3,APR!$CI$3:$ET$26,24),0),0) -> 0 | ES31: =IFERROR(IF(ES2=$A$2,HLOOKUP(ES3,APR!$CI$3:$ET$26,24),0),0) -> 0 | ET31: =IFERROR(IF(ET2=$A$2,HLOOKUP(ET3,APR!$CI$3:$ET$26,24),0),0) -> 0 | EU31: =IFERROR(IF(EU2=$A$2,HLOOKUP(EU3,APR!$CI$3:$ET$26,24),0),0) -> 0 | EV31: =IFERROR(IF(EV2=$A$2,HLOOKUP(EV3,APR!$CI$3:$ET$26,24),0),0) -> 0 | EW31: =IFERROR(IF(EW2=$A$2,HLOOKUP(EW3,APR!$CI$3:$ET$26,24),0),0) -> 0 | EX31: =IFERROR(IF(EX2=$A$2,HLOOKUP(EX3,APR!$CI$3:$ET$26,24),0),0) -> 0 | EY31: =IFERROR(IF(EY2=$A$2,HLOOKUP(EY3,APR!$CI$3:$ET$26,24),0),0) -> 0 | EZ31: =IFERROR(IF(EZ2=$A$2,HLOOKUP(EZ3,APR!$CI$3:$ET$26,24),0),0) -> 0 | FA31: =IFERROR(IF(FA2=$A$2,HLOOKUP(FA3,APR!$CI$3:$ET$26,24),0),0) -> 0
I32: 134.8636364 | J32: Billing | K32: HDD | L32: =IF(L29<65, (65-L29)*L27,0) -> 0 | M32: =IF(M29<65, (65-M29)*M27,0) -> 0 | N32: 0 | O32: 0 | P32: 0 | Q32: 0 | R32: 0.3636363636 | S32: 0 | T32: 0 | U32: 0 | V32: 0 | W32: 0 | X32: 0 | Y32: 0.6136363636 | Z32: 0 | AA32: 0 | AB32: 0.8863636364 | AC32: 1.590909091 | AD32: 0 | AE32: 2.545454545 | AF32: 7.636363636 | AG32: 2.727272727 | AH32: 0 | AI32: 0 | AJ32: 8.590909091 | AK32: 11.04545455 | AL32: 11.04545455 | AM32: 9.931818182 | AN32: 5.909090909 | AO32: 0 | AP32: 4.090909091 | AQ32: 14.68181818 | AR32: 15.54545455 | AS32: 9.5 | AT32: 2.159090909 | AU32: 0 | AV32: 0 | AW32: 0 | AX32: 1.363636364 | AY32: 4.090909091 | AZ32: 2.045454545 | BA32: 6.681818182 | BB32: 3.545454545 | BC32: 3 | BD32: 0 | BE32: 0 | BF32: 0 | BG32: 3.636363636 | BH32: 1.636363636 | BI32: 0 | BJ32: 0 | BK32: 0 | BL32: 0 | BM32: 0 | BN32: 0 | BO32: 0 | BP32: 0 | BQ32: 0 | BR32: 0 | BS32: 0 | BT32: 0 | BU32: 0 | BV32: 0 | BW32: 0 | BX32: 0 | BY32: =IF(BY29<65, (65-BY29)*BY27,0) -> 0 | BZ32: 0 | CA32: 0 | CB32: 0 | CC32: 0 | CD32: 0 | CG32: Calendar | CI32: =+CI29+CI30+CI31 -> 0 | CJ32: =+CJ29+CJ30+CJ31 -> 0 | CK32: 0 | CL32: 0 | CM32: 0 | CN32: 0 | CO32: 0 | CP32: 0 | CQ32: 0 | CR32: 0 | CS32: 0 | CT32: 0 | CU32: 0 | CV32: 0 | CW32: 0 | CX32: 0 | CY32: 0 | CZ32: 0 | DA32: 0 | DB32: 0 | DC32: 0 | DD32: 0 | DE32: 0 | DF32: 0 | DG32: 0 | DH32: 0 | DI32: 0 | DJ32: 0 | DK32: 0 | DL32: 0 | DM32: 0 | DN32: 0 | DO32: 0 | DP32: 0 | ES32: 0 | ET32: 0 | EU32: 0 | EV32: =+EV29+EV30+EV31 -> 0 | EW32: 0 | EX32: 0 | EY32: =+EY29+EY30+EY31 -> 0 | EZ32: 0 | FA32: 0
I33: 62 | J33: Billing | K33: CDD | L33: =IF(L29>65, (L29-65)*L27,0) -> 0.4545454545 | M33: =IF(M29>65, (M29-65)*M27,0) -> 0.8181818182 | N33: 1.5 | O33: 1.295454545 | P33: 1.568181818 | Q33: 0 | R33: 0 | S33: 0.4545454545 | T33: 0 | U33: 2.227272727 | V33: 1.636363636 | W33: 3.454545455 | X33: 2.727272727 | Y33: 0 | Z33: 0.2272727273 | AA33: 0.8181818182 | AB33: 0 | AC33: 0 | AD33: 0.9545454545 | AE33: 0 | AF33: 0 | AG33: 0 | AH33: 0.3636363636 | AI33: 2.318181818 | AJ33: 0 | AK33: 0 | AL33: 0 | AM33: 0 | AN33: 0 | AO33: =IF(AO29>65, (AO29-65)*AO27,0) -> 1.431818182 | AP33: 0 | AQ33: 0 | AR33: 0 | AS33: 0 | AT33: 0 | AU33: 3.681818182 | AV33: 8.113636364 | AW33: 7.272727273 | AX33: 0 | AY33: 0 | AZ33: 0 | BA33: 0 | BB33: 0 | BC33: 0 | BD33: 0 | BE33: 1.136363636 | BF33: 0.4545454545 | BG33: 0 | BH33: 0 | BI33: 2.363636364 | BJ33: 3.659090909 | BK33: 2.590909091 | BL33: 0.7954545455 | BM33: 0.6818181818 | BN33: 2.159090909 | BO33: 2.181818182 | BP33: 1.772727273 | BQ33: 1.090909091 | BR33: 0.5 | BS33: 0.5 | BT33: 0.4772727273 | BU33: 0.3181818182 | BV33: 0 | BW33: 0 | BX33: 0 | BY33: =IF(BY29>65, (BY29-65)*BY27,0) -> 0 | BZ33: 0 | CA33: 0 | CB33: 0 | CC33: 0 | CD33: 0 | CG33: Check | CH33: =+CH32-CH29-CH30-CH31 -> 
I34: 2.087 | J34: Calendar | K34: Rainfall | L34: =VLOOKUP(L3,Daily!$A:$I,9) -> 0 | M34: =VLOOKUP(M3,Daily!$A:$I,9) -> 0 | N34: =VLOOKUP(N3,Daily!$A:$I,9) -> 0 | O34: =VLOOKUP(O3,Daily!$A:$I,9) -> 0 | P34: =VLOOKUP(P3,Daily!$A:$I,9) -> 0 | Q34: =VLOOKUP(Q3,Daily!$A:$I,9) -> 0.02 | R34: =VLOOKUP(R3,Daily!$A:$I,9) -> 0 | S34: =VLOOKUP(S3,Daily!$A:$I,9) -> 0 | T34: =VLOOKUP(T3,Daily!$A:$I,9) -> 0.001 | U34: =VLOOKUP(U3,Daily!$A:$I,9) -> 0.001 | V34: =VLOOKUP(V3,Daily!$A:$I,9) -> 0 | W34: =VLOOKUP(W3,Daily!$A:$I,9) -> 0 | X34: =VLOOKUP(X3,Daily!$A:$I,9) -> 0 | Y34: =VLOOKUP(Y3,Daily!$A:$I,9) -> 0 | Z34: =VLOOKUP(Z3,Daily!$A:$I,9) -> 0 | AA34: =VLOOKUP(AA3,Daily!$A:$I,9) -> 0.001 | AB34: =VLOOKUP(AB3,Daily!$A:$I,9) -> 0 | AC34: =VLOOKUP(AC3,Daily!$A:$I,9) -> 0 | AD34: =VLOOKUP(AD3,Daily!$A:$I,9) -> 0.68 | AE34: =VLOOKUP(AE3,Daily!$A:$I,9) -> 0 | AF34: =VLOOKUP(AF3,Daily!$A:$I,9) -> 0 | AG34: =VLOOKUP(AG3,Daily!$A:$I,9) -> 0 | AH34: =VLOOKUP(AH3,Daily!$A:$I,9) -> 0 | AI34: =VLOOKUP(AI3,Daily!$A:$I,9) -> 0 | AJ34: =VLOOKUP(AJ3,Daily!$A:$I,9) -> 0.01 | AK34: =VLOOKUP(AK3,Daily!$A:$I,9) -> 0.001 | AL34: =VLOOKUP(AL3,Daily!$A:$I,9) -> 0 | AM34: =VLOOKUP(AM3,Daily!$A:$I,9) -> 0.67 | AN34: =VLOOKUP(AN3,Daily!$A:$I,9) -> 0.08 | AO34: =VLOOKUP(AO3,Daily!$A:$I,9) -> 0 | AP34: =VLOOKUP(AP3,Daily!$A:$I,9) -> 0.001 | AQ34: =VLOOKUP(AQ3,Daily!$A:$I,9) -> 0 | AR34: =VLOOKUP(AR3,Daily!$A:$I,9) -> 0 | AS34: =VLOOKUP(AS3,Daily!$A:$I,9) -> 0 | AT34: =VLOOKUP(AT3,Daily!$A:$I,9) -> 0 | AU34: =VLOOKUP(AU3,Daily!$A:$I,9) -> 0 | AV34: =VLOOKUP(AV3,Daily!$A:$I,9) -> 0 | AW34: =VLOOKUP(AW3,Daily!$A:$I,9) -> 0 | AX34: =VLOOKUP(AX3,Daily!$A:$I,9) -> 0.02 | AY34: =VLOOKUP(AY3,Daily!$A:$I,9) -> 0.02 | AZ34: =VLOOKUP(AZ3,Daily!$A:$I,9) -> 0 | BA34: =VLOOKUP(BA3,Daily!$A:$I,9) -> 0.35 | BB34: =VLOOKUP(BB3,Daily!$A:$I,9) -> 0.001 | BC34: =VLOOKUP(BC3,Daily!$A:$I,9) -> 0 | BD34: =VLOOKUP(BD3,Daily!$A:$I,9) -> 0 | BE34: =VLOOKUP(BE3,Daily!$A:$I,9) -> 0.001 | BF34: =VLOOKUP(BF3,Daily!$A:$I,9) -> 0.1 | BG34: =VLOOKUP(BG3,Daily!$A:$I,9) -> 0 | BH34: =VLOOKUP(BH3,Daily!$A:$I,9) -> 0 | BI34: =VLOOKUP(BI3,Daily!$A:$I,9) -> 0 | BJ34: =VLOOKUP(BJ3,Daily!$A:$I,9) -> 0 | BK34: =VLOOKUP(BK3,Daily!$A:$I,9) -> 0 | BL34: =VLOOKUP(BL3,Daily!$A:$I,9) -> 0.13 | BM34: =VLOOKUP(BM3,Daily!$A:$I,9) -> 0 | BN34: =VLOOKUP(BN3,Daily!$A:$I,9) -> 0 | BO34: =VLOOKUP(BO3,Daily!$A:$I,9) -> 0 | BP34: =VLOOKUP(BP3,Daily!$A:$I,9) -> 0 | BQ34: =VLOOKUP(BQ3,Daily!$A:$I,9) -> 0 | BR34: =VLOOKUP(BR3,Daily!$A:$I,9) -> 0 | BS34: =VLOOKUP(BS3,Daily!$A:$I,9) -> 0 | BT34: =VLOOKUP(BT3,Daily!$A:$I,9) -> 0 | BU34: =VLOOKUP(BU3,Daily!$A:$I,9) -> 0 | BV34: =VLOOKUP(BV3,Daily!$A:$I,9) -> 0 | BW34: =VLOOKUP(BW3,Daily!$A:$I,9) -> 0 | BX34: =VLOOKUP(BX3,Daily!$A:$I,9) -> 0 | BY34: =VLOOKUP(BY3,Daily!$A:$I,9) -> 0 | BZ34: =VLOOKUP(BZ3,Daily!$A:$I,9) -> 0 | CA34: =VLOOKUP(CA3,Daily!$A:$I,9) -> 0 | CB34: =VLOOKUP(CB3,Daily!$A:$I,9) -> 0 | CC34: =VLOOKUP(CC3,Daily!$A:$I,9) -> 0 | CD34: =VLOOKUP(CD3,Daily!$A:$I,9) -> 0 | CG34: Calendar Rainfall | CI34: =IF(CI32>0,L34,0) -> 0 | CJ34: 0 | CK34: 0 | CL34: 0 | CM34: 0 | CN34: 0 | CO34: 0 | CP34: 0 | CQ34: 0 | CR34: 0 | CS34: 0 | CT34: 0 | CU34: 0 | CV34: 0 | CW34: 0 | CX34: 0 | CY34: 0 | CZ34: 0 | DA34: 0 | DB34: 0 | DC34: 0 | DD34: 0 | DE34: 0 | DF34: 0 | DG34: 0 | DH34: 0 | DI34: 0 | DJ34: 0 | DK34: 0 | DL34: 0 | DM34: 0 | DN34: 0 | DO34: =IF(DO32>0,AR34,0) -> 0 | DP34: 0 | ES34: 0 | ET34: 0 | EU34: =IF(EU32>0,BX34,0) -> 0 | EV34: 0 | EW34: 0 | EX34: 0 | EY34: =IF(EY32>0,CB34,0) -> 0 | EZ34: 0 | FA34: 0
I35: 1.423909091 | J35: Billing | K35: Rainfall | L35: =+L34*L27 -> 0 | M35: =+M34*M27 -> 0 | N35: 0 | O35: 0 | P35: 0 | Q35: 0.002727272727 | R35: 0 | S35: 0 | T35: 0.0002727272727 | U35: 0.0003181818182 | V35: 0 | W35: 0 | X35: 0 | Y35: 0 | Z35: 0 | AA35: 0.0005454545455 | AB35: 0 | AC35: 0 | AD35: 0.4327272727 | AE35: 0 | AF35: 0 | AG35: 0 | AH35: 0 | AI35: 0 | AJ35: 0.008181818182 | AK35: 0.0008181818182 | AL35: 0 | AM35: 0.5786363636 | AN35: 0.07272727273 | AO35: 0 | AP35: 0.0009090909091 | AQ35: 0 | AR35: 0 | AS35: 0 | AT35: 0 | AU35: 0 | AV35: 0 | AW35: 0 | AX35: 0.01363636364 | AY35: 0.01363636364 | AZ35: 0 | BA35: 0.2227272727 | BB35: 0.0005909090909 | BC35: 0 | BD35: 0 | BE35: 0.0004545454545 | BF35: 0.04545454545 | BG35: 0 | BH35: 0 | BI35: 0 | BJ35: 0 | BK35: 0 | BL35: 0.02954545455 | BM35: 0 | BN35: 0 | BO35: 0 | BP35: 0 | BQ35: 0 | BR35: 0 | BS35: 0 | BT35: 0 | BU35: 0 | BV35: 0 | BW35: =+BW34*BW27 -> 0 | BX35: =+BX34*BX27 -> 0 | BY35: =+BY34*BY27 -> 0 | BZ35: 0 | CA35: 0 | CB35: =+CB34*CB27 -> 0 | CC35: 0 | CD35: 0 | CG35: Calendar HDD | CI35: =IF(CI32>0,L30,0) -> 0 | CJ35: 0 | CK35: 0 | CL35: 0 | CM35: 0 | CN35: 0 | CO35: 0 | CP35: 0 | CQ35: 0 | CR35: 0 | CS35: 0 | CT35: 0 | CU35: 0 | CV35: 0 | CW35: 0 | CX35: 0 | CY35: 0 | CZ35: 0 | DA35: 0 | DB35: 0 | DC35: 0 | DD35: 0 | DE35: 0 | DF35: 0 | DG35: 0 | DH35: 0 | DI35: 0 | DJ35: 0 | DK35: 0 | DL35: 0 | DM35: 0 | DN35: 0 | DO35: =IF(DO32>0,AR30,0) -> 0 | DP35: 0 | ES35: 0 | ET35: 0 | EU35: =IF(EU32>0,BX30,0) -> 0 | EV35: 0 | EW35: 0 | EX35: 0 | EY35: =IF(EY32>0,CB30,0) -> 0 | EZ35: 0 | FA35: 0
CG36: Calendar CDD | CI36: =IF(CI32>0,L31,0) -> 0 | CJ36: 0 | CK36: 0 | CL36: 0 | CM36: 0 | CN36: 0 | CO36: 0 | CP36: 0 | CQ36: 0 | CR36: 0 | CS36: 0 | CT36: 0 | CU36: 0 | CV36: 0 | CW36: 0 | CX36: 0 | CY36: 0 | CZ36: 0 | DA36: 0 | DB36: 0 | DC36: 0 | DD36: 0 | DE36: 0 | DF36: 0 | DG36: 0 | DH36: 0 | DI36: 0 | DJ36: 0 | DK36: 0 | DL36: 0 | DM36: 0 | DN36: 0 | DO36: =IF(DO32>0,AR31,0) -> 0 | DP36: 0 | ES36: 0 | ET36: 0 | EU36: =IF(EU32>0,BX31,0) -> 0 | EV36: 0 | EW36: 0 | EX36: 0 | EY36: =IF(EY32>0,CB31,0) -> 0 | EZ36: 0 | FA36: 0
Y38: =TEXT(DATE(A1,A2,1),"mmm yyyy")&" - Billing Cycle Temperatures" -> Feb 2022 - Billing Cycle Temperatures
G41: Actual | H41: Budget | I41: Variance | J41: Var %
E42: Calendar | F42: HDD | G42: =I30 -> 47.5 | H42: =VLOOKUP($A$2,Daily!$AB$2:$AF$13,4) -> 93.6 | I42: =G42-H42 -> -46.1 | J42: =G42/H42-1 -> -0.4925213675
E43: Calendar | F43: CDD | G43: =I31 -> 148.5 | H43: =VLOOKUP($A$2,Daily!$AB$2:$AF$13,5) -> 81.7 | I43: =G43-H43 -> 66.8 | J43: =G43/H43-1 -> 0.817625459
E44: Billing | F44: HDD | G44: =I32 -> 134.8636364 | H44: =VLOOKUP($A$2,Daily!$AB$2:$AF$13,2) -> 136 | I44: -1.136363636 | J44: -0.008355614973
E45: Billing | F45: CDD | G45: =I33 -> 62 | H45: =VLOOKUP($A$2,Daily!$AB$2:$AF$13,3) -> 54 | I45: 8 | J45: 0.1481481481 | CI45: =+CI1 -> 2021 | CJ45: 2021 | CK45: 2021 | CL45: 2022 | CM45: 2022 | CN45: 2022 | CO45: 2022 | CP45: 2022 | CQ45: 2022 | CR45: 2022 | CS45: 2022 | CT45: 2022 | CU45: 2022 | CV45: 2022 | CW45: 2022 | CX45: 2022 | CY45: 2022 | CZ45: 2022 | DA45: 2022 | DB45: 2022 | DC45: 2022 | DD45: 2022 | DE45: 2022 | DF45: 2022 | DG45: 2022 | DH45: 2022 | DI45: 2022 | DJ45: 2022 | DK45: 2022 | DL45: 2022 | DM45: 2022 | DN45: 2022 | DO45: =+DO1 -> 2022 | DP45: 2022 | DQ45: 2022 | DR45: 2022 | DS45: 2022 | DT45: 2022 | DU45: 2022 | DV45: 2022 | DW45: 2022 | DX45: 2022 | DY45: 2022 | DZ45: 2022 | EA45: 2022 | EB45: 2022 | EC45: 2022 | ED45: 2022 | EE45: 2022 | EF45: 2022 | EG45: 2022 | EH45: 2022 | EI45: 2022 | EJ45: 2022 | EK45: 2022 | EL45: 2022 | EM45: 2022 | EN45: 2022 | EO45: 2022 | EP45: 2022 | EQ45: 2022 | ER45: 2022 | ES45: 2022 | ET45: 2022 | EU45: 2022 | EV45: =+EV1 -> 2022 | EW45: 2022 | EX45: 2022 | EY45: =+EY1 -> 2022 | EZ45: 2022 | FA45: 2022
CI46: =+CI2 -> 12 | CJ46: 12 | CK46: 12 | CL46: 1 | CM46: 1 | CN46: 1 | CO46: 1 | CP46: 1 | CQ46: 1 | CR46: 1 | CS46: 1 | CT46: 1 | CU46: 1 | CV46: 1 | CW46: 1 | CX46: 1 | CY46: 1 | CZ46: 1 | DA46: 1 | DB46: 1 | DC46: 1 | DD46: 1 | DE46: 1 | DF46: 1 | DG46: 1 | DH46: 1 | DI46: 1 | DJ46: 1 | DK46: 1 | DL46: 1 | DM46: 1 | DN46: 1 | DO46: =+DO2 -> 1 | DP46: 1 | DQ46: 2 | DR46: 2 | DS46: 2 | DT46: 2 | DU46: 2 | DV46: 2 | DW46: 2 | DX46: 2 | DY46: 2 | DZ46: 2 | EA46: 2 | EB46: 2 | EC46: 2 | ED46: 2 | EE46: 2 | EF46: 2 | EG46: 2 | EH46: 2 | EI46: 2 | EJ46: 2 | EK46: 2 | EL46: 2 | EM46: 2 | EN46: 2 | EO46: 2 | EP46: 2 | EQ46: 2 | ER46: 2 | ES46: 3 | ET46: 3 | EU46: 3 | EV46: =+EV2 -> 3 | EW46: 3 | EX46: 3 | EY46: =+EY2 -> 3 | EZ46: 3 | FA46: 3
CH47: Cycle | CI47: =+CI3 -> 2021-12-29 | CJ47: 2021-12-30 | CK47: 2021-12-31 | CL47: 2022-01-01 | CM47: 2022-01-02 | CN47: 2022-01-03 | CO47: 2022-01-04 | CP47: 2022-01-05 | CQ47: 2022-01-06 | CR47: 2022-01-07 | CS47: 2022-01-08 | CT47: 2022-01-09 | CU47: 2022-01-10 | CV47: 2022-01-11 | CW47: 2022-01-12 | CX47: 2022-01-13 | CY47: 2022-01-14 | CZ47: 2022-01-15 | DA47: 2022-01-16 | DB47: 2022-01-17 | DC47: 2022-01-18 | DD47: 2022-01-19 | DE47: 2022-01-20 | DF47: 2022-01-21 | DG47: 2022-01-22 | DH47: 2022-01-23 | DI47: 2022-01-24 | DJ47: 2022-01-25 | DK47: 2022-01-26 | DL47: 2022-01-27 | DM47: 2022-01-28 | DN47: 2022-01-29 | DO47: =+DO3 -> 2022-01-30 | DP47: 2022-01-31 | DQ47: 2022-02-01 | DR47: 2022-02-02 | DS47: 2022-02-03 | DT47: 2022-02-04 | DU47: 2022-02-05 | DV47: 2022-02-06 | DW47: 2022-02-07 | DX47: 2022-02-08 | DY47: 2022-02-09 | DZ47: 2022-02-10 | EA47: 2022-02-11 | EB47: 2022-02-12 | EC47: 2022-02-13 | ED47: 2022-02-14 | EE47: 2022-02-15 | EF47: 2022-02-16 | EG47: 2022-02-17 | EH47: 2022-02-18 | EI47: 2022-02-19 | EJ47: 2022-02-20 | EK47: 2022-02-21 | EL47: 2022-02-22 | EM47: 2022-02-23 | EN47: 2022-02-24 | EO47: 2022-02-25 | EP47: 2022-02-26 | EQ47: 2022-02-27 | ER47: 2022-02-28 | ES47: 2022-03-01 | ET47: 2022-03-02 | EU47: 2022-03-03 | EV47: =+EV3 -> 2022-03-04 | EW47: 2022-03-05 | EX47: 2022-03-06 | EY47: =+EY3 -> 2022-03-07 | EZ47: 2022-03-08 | FA47: 2022-03-09
G48: Actual | H48: Budget | I48: Variance | J48: Var % | CG48: =SUM(CI48:FA48) -> 0 | CH48: 1 | CI48: =IF(L4=1,CI$71,0) -> 0 | CJ48: =IF(M4=1,CJ$71,0) -> 0 | CK48: =IF(N4=1,CK$71,0) -> 0 | CL48: =IF(O4=1,CL$71,0) -> 0 | CM48: =IF(P4=1,CM$71,0) -> 0 | CN48: =IF(Q4=1,CN$71,0) -> 0 | CO48: =IF(R4=1,CO$71,0) -> 0 | CP48: =IF(S4=1,CP$71,0) -> 0 | CQ48: =IF(T4=1,CQ$71,0) -> 0 | CR48: =IF(U4=1,CR$71,0) -> 0 | CS48: =IF(V4=1,CS$71,0) -> 0 | CT48: =IF(W4=1,CT$71,0) -> 0 | CU48: =IF(X4=1,CU$71,0) -> 0 | CV48: =IF(Y4=1,CV$71,0) -> 0 | CW48: =IF(Z4=1,CW$71,0) -> 0 | CX48: =IF(AA4=1,CX$71,0) -> 0 | CY48: =IF(AB4=1,CY$71,0) -> 0 | CZ48: =IF(AC4=1,CZ$71,0) -> 0 | DA48: =IF(AD4=1,DA$71,0) -> 0 | DB48: =IF(AE4=1,DB$71,0) -> 0 | DC48: =IF(AF4=1,DC$71,0) -> 0 | DD48: =IF(AG4=1,DD$71,0) -> 0 | DE48: =IF(AH4=1,DE$71,0) -> 0 | DF48: =IF(AI4=1,DF$71,0) -> 0 | DG48: =IF(AJ4=1,DG$71,0) -> 0 | DH48: =IF(AK4=1,DH$71,0) -> 0 | DI48: =IF(AL4=1,DI$71,0) -> 0 | DJ48: =IF(AM4=1,DJ$71,0) -> 0 | DK48: =IF(AN4=1,DK$71,0) -> 0 | DL48: =IF(AO4=1,DL$71,0) -> 0 | DM48: =IF(AP4=1,DM$71,0) -> 0 | DN48: =IF(AQ4=1,DN$71,0) -> 0 | DO48: =IF(AR4=1,DO$71,0) -> 0 | DP48: =IF(AS4=1,DP$71,0) -> 0 | DQ48: =IF(AT4=1,DQ$71,0) -> 0 | DR48: =IF(AU4=1,DR$71,0) -> 0 | DS48: =IF(AV4=1,DS$71,0) -> 0 | DT48: =IF(AW4=1,DT$71,0) -> 0 | DU48: =IF(AX4=1,DU$71,0) -> 0 | DV48: =IF(AY4=1,DV$71,0) -> 0 | DW48: =IF(AZ4=1,DW$71,0) -> 0 | DX48: =IF(BA4=1,DX$71,0) -> 0 | DY48: =IF(BB4=1,DY$71,0) -> 0 | DZ48: =IF(BC4=1,DZ$71,0) -> 0 | EA48: =IF(BD4=1,EA$71,0) -> 0 | EB48: =IF(BE4=1,EB$71,0) -> 0 | EC48: =IF(BF4=1,EC$71,0) -> 0 | ED48: =IF(BG4=1,ED$71,0) -> 0 | EE48: =IF(BH4=1,EE$71,0) -> 0 | EF48: =IF(BI4=1,EF$71,0) -> 0 | EG48: =IF(BJ4=1,EG$71,0) -> 0 | EH48: =IF(BK4=1,EH$71,0) -> 0 | EI48: =IF(BL4=1,EI$71,0) -> 0 | EJ48: =IF(BM4=1,EJ$71,0) -> 0 | EK48: =IF(BN4=1,EK$71,0) -> 0 | EL48: =IF(BO4=1,EL$71,0) -> 0 | EM48: =IF(BP4=1,EM$71,0) -> 0 | EN48: =IF(BQ4=1,EN$71,0) -> 0 | EO48: =IF(BR4=1,EO$71,0) -> 0 | EP48: =IF(BS4=1,EP$71,0) -> 0 | EQ48: =IF(BT4=1,EQ$71,0) -> 0 | ER48: =IF(BU4=1,ER$71,0) -> 0 | ES48: =IF(BV4=1,ES$71,0) -> 0 | ET48: =IF(BW4=1,ET$71,0) -> 0 | EU48: =IF(BX4=1,EU$71,0) -> 0 | EV48: =IF(BY4=1,EV$71,0) -> 0 | EW48: =IF(BZ4=1,EW$71,0) -> 0 | EX48: =IF(CA4=1,EX$71,0) -> 0 | EY48: =IF(CB4=1,EY$71,0) -> 0 | EZ48: =IF(CC4=1,EZ$71,0) -> 0 | FA48: =IF(CD4=1,FA$71,0) -> 0
E49: Calendar | F49: Total DD | G49: =G42+G43 -> 196 | H49: =H42+H43 -> 175.3 | I49: =G49-H49 -> 20.7 | J49: =G49/H49-1 -> 0.1180832858 | CG49: =SUM(CI49:FA49) -> 0 | CH49: 2 | CI49: 0 | CJ49: 0 | CK49: 0 | CL49: 0 | CM49: 0 | CN49: 0 | CO49: 0 | CP49: 0 | CQ49: 0 | CR49: 0 | CS49: 0 | CT49: 0 | CU49: 0 | CV49: 0 | CW49: 0 | CX49: 0 | CY49: 0 | CZ49: 0 | DA49: 0 | DB49: 0 | DC49: 0 | DD49: 0 | DE49: 0 | DF49: 0 | DG49: 0 | DH49: 0 | DI49: 0 | DJ49: 0 | DK49: 0 | DL49: 0 | DM49: 0 | DN49: 0 | DO49: 0 | DP49: 0 | DQ49: 0 | DR49: 0 | DS49: 0 | DT49: 0 | DU49: 0 | DV49: 0 | DW49: 0 | DX49: 0 | DY49: 0 | DZ49: 0 | EA49: 0 | EB49: 0 | EC49: 0 | ED49: 0 | EE49: 0 | EF49: 0 | EG49: 0 | EH49: 0 | EI49: 0 | EJ49: 0 | EK49: 0 | EL49: 0 | EM49: 0 | EN49: 0 | EO49: 0 | EP49: 0 | EQ49: 0 | ER49: 0 | ES49: 0 | ET49: 0 | EU49: 0 | EV49: 0 | EW49: 0 | EX49: 0 | EY49: 0 | EZ49: 0 | FA49: 0
E50: Billing | F50: Total DD | G50: =G44+G45 -> 196.8636364 | H50: =H44+H45 -> 190 | I50: =G50-H50 -> 6.863636364 | J50: =G50/H50-1 -> 0.03612440191 | CG50: 0 | CH50: 3 | CI50: 0 | CJ50: 0 | CK50: 0 | CL50: 0 | CM50: 0 | CN50: 0 | CO50: 0 | CP50: 0 | CQ50: 0 | CR50: 0 | CS50: 0 | CT50: 0 | CU50: 0 | CV50: 0 | CW50: 0 | CX50: 0 | CY50: 0 | CZ50: 0 | DA50: 0 | DB50: 0 | DC50: 0 | DD50: 0 | DE50: 0 | DF50: 0 | DG50: 0 | DH50: 0 | DI50: 0 | DJ50: 0 | DK50: 0 | DL50: 0 | DM50: 0 | DN50: 0 | DO50: 0 | DP50: 0 | DQ50: 0 | DR50: 0 | DS50: 0 | DT50: 0 | DU50: 0 | DV50: 0 | DW50: 0 | DX50: 0 | DY50: 0 | DZ50: 0 | EA50: 0 | EB50: 0 | EC50: 0 | ED50: 0 | EE50: 0 | EF50: 0 | EG50: 0 | EH50: 0 | EI50: 0 | EJ50: 0 | EK50: 0 | EL50: 0 | EM50: 0 | EN50: 0 | EO50: 0 | EP50: 0 | EQ50: 0 | ER50: 0 | ES50: 0 | ET50: 0 | EU50: 0 | EV50: 0 | EW50: 0 | EX50: 0 | EY50: 0 | EZ50: 0 | FA50: 0
CG51: 0 | CH51: 4 | CI51: 0 | CJ51: 0 | CK51: 0 | CL51: 0 | CM51: 0 | CN51: 0 | CO51: 0 | CP51: 0 | CQ51: 0 | CR51: 0 | CS51: 0 | CT51: 0 | CU51: 0 | CV51: 0 | CW51: 0 | CX51: 0 | CY51: 0 | CZ51: 0 | DA51: 0 | DB51: 0 | DC51: 0 | DD51: 0 | DE51: 0 | DF51: 0 | DG51: 0 | DH51: 0 | DI51: 0 | DJ51: 0 | DK51: 0 | DL51: 0 | DM51: 0 | DN51: 0 | DO51: 0 | DP51: 0 | DQ51: 0 | DR51: 0 | DS51: 0 | DT51: 0 | DU51: 0 | DV51: 0 | DW51: 0 | DX51: 0 | DY51: 0 | DZ51: 0 | EA51: 0 | EB51: 0 | EC51: 0 | ED51: 0 | EE51: 0 | EF51: 0 | EG51: 0 | EH51: 0 | EI51: 0 | EJ51: 0 | EK51: 0 | EL51: 0 | EM51: 0 | EN51: 0 | EO51: 0 | EP51: 0 | EQ51: 0 | ER51: 0 | ES51: 0 | ET51: 0 | EU51: 0 | EV51: 0 | EW51: 0 | EX51: 0 | EY51: 0 | EZ51: 0 | FA51: 0
CG52: 0 | CH52: 5 | CI52: 0 | CJ52: 0 | CK52: 0 | CL52: 0 | CM52: 0 | CN52: 0 | CO52: 0 | CP52: 0 | CQ52: 0 | CR52: 0 | CS52: 0 | CT52: 0 | CU52: 0 | CV52: 0 | CW52: 0 | CX52: 0 | CY52: 0 | CZ52: 0 | DA52: 0 | DB52: 0 | DC52: 0 | DD52: 0 | DE52: 0 | DF52: 0 | DG52: 0 | DH52: 0 | DI52: 0 | DJ52: 0 | DK52: 0 | DL52: 0 | DM52: 0 | DN52: 0 | DO52: 0 | DP52: 0 | DQ52: 0 | DR52: 0 | DS52: 0 | DT52: 0 | DU52: 0 | DV52: 0 | DW52: 0 | DX52: 0 | DY52: 0 | DZ52: 0 | EA52: 0 | EB52: 0 | EC52: 0 | ED52: 0 | EE52: 0 | EF52: 0 | EG52: 0 | EH52: 0 | EI52: 0 | EJ52: 0 | EK52: 0 | EL52: 0 | EM52: 0 | EN52: 0 | EO52: 0 | EP52: 0 | EQ52: 0 | ER52: 0 | ES52: 0 | ET52: 0 | EU52: 0 | EV52: 0 | EW52: 0 | EX52: 0 | EY52: 0 | EZ52: 0 | FA52: 0
CG53: 0 | CH53: 6 | CI53: 0 | CJ53: 0 | CK53: 0 | CL53: 0 | CM53: 0 | CN53: 0 | CO53: 0 | CP53: 0 | CQ53: 0 | CR53: 0 | CS53: 0 | CT53: 0 | CU53: 0 | CV53: 0 | CW53: 0 | CX53: 0 | CY53: 0 | CZ53: 0 | DA53: 0 | DB53: 0 | DC53: 0 | DD53: 0 | DE53: 0 | DF53: 0 | DG53: 0 | DH53: 0 | DI53: 0 | DJ53: 0 | DK53: 0 | DL53: 0 | DM53: 0 | DN53: 0 | DO53: 0 | DP53: 0 | DQ53: 0 | DR53: 0 | DS53: 0 | DT53: 0 | DU53: 0 | DV53: 0 | DW53: 0 | DX53: 0 | DY53: 0 | DZ53: 0 | EA53: 0 | EB53: 0 | EC53: 0 | ED53: 0 | EE53: 0 | EF53: 0 | EG53: 0 | EH53: 0 | EI53: 0 | EJ53: 0 | EK53: 0 | EL53: 0 | EM53: 0 | EN53: 0 | EO53: 0 | EP53: 0 | EQ53: 0 | ER53: 0 | ES53: 0 | ET53: 0 | EU53: 0 | EV53: 0 | EW53: 0 | EX53: 0 | EY53: 0 | EZ53: 0 | FA53: 0
CG54: 0 | CH54: 7 | CI54: 0 | CJ54: 0 | CK54: 0 | CL54: 0 | CM54: 0 | CN54: 0 | CO54: 0 | CP54: 0 | CQ54: 0 | CR54: 0 | CS54: 0 | CT54: 0 | CU54: 0 | CV54: 0 | CW54: 0 | CX54: 0 | CY54: 0 | CZ54: 0 | DA54: 0 | DB54: 0 | DC54: 0 | DD54: 0 | DE54: 0 | DF54: 0 | DG54: 0 | DH54: 0 | DI54: 0 | DJ54: 0 | DK54: 0 | DL54: 0 | DM54: 0 | DN54: 0 | DO54: 0 | DP54: 0 | DQ54: 0 | DR54: 0 | DS54: 0 | DT54: 0 | DU54: 0 | DV54: 0 | DW54: 0 | DX54: 0 | DY54: 0 | DZ54: 0 | EA54: 0 | EB54: 0 | EC54: 0 | ED54: 0 | EE54: 0 | EF54: 0 | EG54: 0 | EH54: 0 | EI54: 0 | EJ54: 0 | EK54: 0 | EL54: 0 | EM54: 0 | EN54: 0 | EO54: 0 | EP54: 0 | EQ54: 0 | ER54: 0 | ES54: 0 | ET54: 0 | EU54: 0 | EV54: 0 | EW54: 0 | EX54: 0 | EY54: 0 | EZ54: 0 | FA54: 0
CG55: 0 | CH55: 8 | CI55: 0 | CJ55: 0 | CK55: 0 | CL55: 0 | CM55: 0 | CN55: 0 | CO55: 0 | CP55: 0 | CQ55: 0 | CR55: 0 | CS55: 0 | CT55: 0 | CU55: 0 | CV55: 0 | CW55: 0 | CX55: 0 | CY55: 0 | CZ55: 0 | DA55: 0 | DB55: 0 | DC55: 0 | DD55: 0 | DE55: 0 | DF55: 0 | DG55: 0 | DH55: 0 | DI55: 0 | DJ55: 0 | DK55: 0 | DL55: 0 | DM55: 0 | DN55: 0 | DO55: 0 | DP55: 0 | DQ55: 0 | DR55: 0 | DS55: 0 | DT55: 0 | DU55: 0 | DV55: 0 | DW55: 0 | DX55: 0 | DY55: 0 | DZ55: 0 | EA55: 0 | EB55: 0 | EC55: 0 | ED55: 0 | EE55: 0 | EF55: 0 | EG55: 0 | EH55: 0 | EI55: 0 | EJ55: 0 | EK55: 0 | EL55: 0 | EM55: 0 | EN55: 0 | EO55: 0 | EP55: 0 | EQ55: 0 | ER55: 0 | ES55: 0 | ET55: 0 | EU55: 0 | EV55: 0 | EW55: 0 | EX55: 0 | EY55: 0 | EZ55: 0 | FA55: 0
CG56: 0 | CH56: 9 | CI56: 0 | CJ56: 0 | CK56: 0 | CL56: 0 | CM56: 0 | CN56: 0 | CO56: 0 | CP56: 0 | CQ56: 0 | CR56: 0 | CS56: 0 | CT56: 0 | CU56: 0 | CV56: 0 | CW56: 0 | CX56: 0 | CY56: 0 | CZ56: 0 | DA56: 0 | DB56: 0 | DC56: 0 | DD56: 0 | DE56: 0 | DF56: 0 | DG56: 0 | DH56: 0 | DI56: 0 | DJ56: 0 | DK56: 0 | DL56: 0 | DM56: 0 | DN56: 0 | DO56: 0 | DP56: 0 | DQ56: 0 | DR56: 0 | DS56: 0 | DT56: 0 | DU56: 0 | DV56: 0 | DW56: 0 | DX56: 0 | DY56: 0 | DZ56: 0 | EA56: 0 | EB56: 0 | EC56: 0 | ED56: 0 | EE56: 0 | EF56: 0 | EG56: 0 | EH56: 0 | EI56: 0 | EJ56: 0 | EK56: 0 | EL56: 0 | EM56: 0 | EN56: 0 | EO56: 0 | EP56: 0 | EQ56: 0 | ER56: 0 | ES56: 0 | ET56: 0 | EU56: 0 | EV56: 0 | EW56: 0 | EX56: 0 | EY56: 0 | EZ56: 0 | FA56: 0
CG57: 0 | CH57: 10 | CI57: 0 | CJ57: 0 | CK57: 0 | CL57: 0 | CM57: 0 | CN57: 0 | CO57: 0 | CP57: 0 | CQ57: 0 | CR57: 0 | CS57: 0 | CT57: 0 | CU57: 0 | CV57: 0 | CW57: 0 | CX57: 0 | CY57: 0 | CZ57: 0 | DA57: 0 | DB57: 0 | DC57: 0 | DD57: 0 | DE57: 0 | DF57: 0 | DG57: 0 | DH57: 0 | DI57: 0 | DJ57: 0 | DK57: 0 | DL57: 0 | DM57: 0 | DN57: 0 | DO57: 0 | DP57: 0 | DQ57: 0 | DR57: 0 | DS57: 0 | DT57: 0 | DU57: 0 | DV57: 0 | DW57: 0 | DX57: 0 | DY57: 0 | DZ57: 0 | EA57: 0 | EB57: 0 | EC57: 0 | ED57: 0 | EE57: 0 | EF57: 0 | EG57: 0 | EH57: 0 | EI57: 0 | EJ57: 0 | EK57: 0 | EL57: 0 | EM57: 0 | EN57: 0 | EO57: 0 | EP57: 0 | EQ57: 0 | ER57: 0 | ES57: 0 | ET57: 0 | EU57: 0 | EV57: 0 | EW57: 0 | EX57: 0 | EY57: 0 | EZ57: 0 | FA57: 0
CG58: 0 | CH58: 11 | CI58: 0 | CJ58: 0 | CK58: 0 | CL58: 0 | CM58: 0 | CN58: 0 | CO58: 0 | CP58: 0 | CQ58: 0 | CR58: 0 | CS58: 0 | CT58: 0 | CU58: 0 | CV58: 0 | CW58: 0 | CX58: 0 | CY58: 0 | CZ58: 0 | DA58: 0 | DB58: 0 | DC58: 0 | DD58: 0 | DE58: 0 | DF58: 0 | DG58: 0 | DH58: 0 | DI58: 0 | DJ58: 0 | DK58: 0 | DL58: 0 | DM58: 0 | DN58: 0 | DO58: 0 | DP58: 0 | DQ58: 0 | DR58: 0 | DS58: 0 | DT58: 0 | DU58: 0 | DV58: 0 | DW58: 0 | DX58: 0 | DY58: 0 | DZ58: 0 | EA58: 0 | EB58: 0 | EC58: 0 | ED58: 0 | EE58: 0 | EF58: 0 | EG58: 0 | EH58: 0 | EI58: 0 | EJ58: 0 | EK58: 0 | EL58: 0 | EM58: 0 | EN58: 0 | EO58: 0 | EP58: 0 | EQ58: 0 | ER58: 0 | ES58: 0 | ET58: 0 | EU58: 0 | EV58: 0 | EW58: 0 | EX58: 0 | EY58: 0 | EZ58: 0 | FA58: 0
Y59: =TEXT(DATE(A1,A2,1),"mmm yyyy")&" - Billing Cycle Rainfall" -> Feb 2022 - Billing Cycle Rainfall | CG59: 0 | CH59: 12 | CI59: 0 | CJ59: 0 | CK59: 0 | CL59: 0 | CM59: 0 | CN59: 0 | CO59: 0 | CP59: 0 | CQ59: 0 | CR59: 0 | CS59: 0 | CT59: 0 | CU59: 0 | CV59: 0 | CW59: 0 | CX59: 0 | CY59: 0 | CZ59: 0 | DA59: 0 | DB59: 0 | DC59: 0 | DD59: 0 | DE59: 0 | DF59: 0 | DG59: 0 | DH59: 0 | DI59: 0 | DJ59: 0 | DK59: 0 | DL59: 0 | DM59: 0 | DN59: 0 | DO59: 0 | DP59: 0 | DQ59: 0 | DR59: 0 | DS59: 0 | DT59: 0 | DU59: 0 | DV59: 0 | DW59: 0 | DX59: 0 | DY59: 0 | DZ59: 0 | EA59: 0 | EB59: 0 | EC59: 0 | ED59: 0 | EE59: 0 | EF59: 0 | EG59: 0 | EH59: 0 | EI59: 0 | EJ59: 0 | EK59: 0 | EL59: 0 | EM59: 0 | EN59: 0 | EO59: 0 | EP59: 0 | EQ59: 0 | ER59: 0 | ES59: 0 | ET59: 0 | EU59: 0 | EV59: 0 | EW59: 0 | EX59: 0 | EY59: 0 | EZ59: 0 | FA59: 0
CG60: 0 | CH60: 13 | CI60: 0 | CJ60: 0 | CK60: 0 | CL60: 0 | CM60: 0 | CN60: 0 | CO60: 0 | CP60: 0 | CQ60: 0 | CR60: 0 | CS60: 0 | CT60: 0 | CU60: 0 | CV60: 0 | CW60: 0 | CX60: 0 | CY60: 0 | CZ60: 0 | DA60: 0 | DB60: 0 | DC60: 0 | DD60: 0 | DE60: 0 | DF60: 0 | DG60: 0 | DH60: 0 | DI60: 0 | DJ60: 0 | DK60: 0 | DL60: 0 | DM60: 0 | DN60: 0 | DO60: 0 | DP60: 0 | DQ60: 0 | DR60: 0 | DS60: 0 | DT60: 0 | DU60: 0 | DV60: 0 | DW60: 0 | DX60: 0 | DY60: 0 | DZ60: 0 | EA60: 0 | EB60: 0 | EC60: 0 | ED60: 0 | EE60: 0 | EF60: 0 | EG60: 0 | EH60: 0 | EI60: 0 | EJ60: 0 | EK60: 0 | EL60: 0 | EM60: 0 | EN60: 0 | EO60: 0 | EP60: 0 | EQ60: 0 | ER60: 0 | ES60: 0 | ET60: 0 | EU60: 0 | EV60: 0 | EW60: 0 | EX60: 0 | EY60: 0 | EZ60: 0 | FA60: 0
CG61: 0 | CH61: 14 | CI61: 0 | CJ61: 0 | CK61: 0 | CL61: 0 | CM61: 0 | CN61: 0 | CO61: 0 | CP61: 0 | CQ61: 0 | CR61: 0 | CS61: 0 | CT61: 0 | CU61: 0 | CV61: 0 | CW61: 0 | CX61: 0 | CY61: 0 | CZ61: 0 | DA61: 0 | DB61: 0 | DC61: 0 | DD61: 0 | DE61: 0 | DF61: 0 | DG61: 0 | DH61: 0 | DI61: 0 | DJ61: 0 | DK61: 0 | DL61: 0 | DM61: 0 | DN61: 0 | DO61: 0 | DP61: 0 | DQ61: 0 | DR61: 0 | DS61: 0 | DT61: 0 | DU61: 0 | DV61: 0 | DW61: 0 | DX61: 0 | DY61: 0 | DZ61: 0 | EA61: 0 | EB61: 0 | EC61: 0 | ED61: 0 | EE61: 0 | EF61: 0 | EG61: 0 | EH61: 0 | EI61: 0 | EJ61: 0 | EK61: 0 | EL61: 0 | EM61: 0 | EN61: 0 | EO61: 0 | EP61: 0 | EQ61: 0 | ER61: 0 | ES61: 0 | ET61: 0 | EU61: 0 | EV61: 0 | EW61: 0 | EX61: 0 | EY61: 0 | EZ61: 0 | FA61: 0
CG62: 0 | CH62: 15 | CI62: 0 | CJ62: 0 | CK62: 0 | CL62: 0 | CM62: 0 | CN62: 0 | CO62: 0 | CP62: 0 | CQ62: 0 | CR62: 0 | CS62: 0 | CT62: 0 | CU62: 0 | CV62: 0 | CW62: 0 | CX62: 0 | CY62: 0 | CZ62: 0 | DA62: 0 | DB62: 0 | DC62: 0 | DD62: 0 | DE62: 0 | DF62: 0 | DG62: 0 | DH62: 0 | DI62: 0 | DJ62: 0 | DK62: 0 | DL62: 0 | DM62: 0 | DN62: 0 | DO62: 0 | DP62: 0 | DQ62: 0 | DR62: 0 | DS62: 0 | DT62: 0 | DU62: 0 | DV62: 0 | DW62: 0 | DX62: 0 | DY62: 0 | DZ62: 0 | EA62: 0 | EB62: 0 | EC62: 0 | ED62: 0 | EE62: 0 | EF62: 0 | EG62: 0 | EH62: 0 | EI62: 0 | EJ62: 0 | EK62: 0 | EL62: 0 | EM62: 0 | EN62: 0 | EO62: 0 | EP62: 0 | EQ62: 0 | ER62: 0 | ES62: 0 | ET62: 0 | EU62: 0 | EV62: 0 | EW62: 0 | EX62: 0 | EY62: 0 | EZ62: 0 | FA62: 0
CG63: 0 | CH63: 16 | CI63: 0 | CJ63: 0 | CK63: 0 | CL63: 0 | CM63: 0 | CN63: 0 | CO63: 0 | CP63: 0 | CQ63: 0 | CR63: 0 | CS63: 0 | CT63: 0 | CU63: 0 | CV63: 0 | CW63: 0 | CX63: 0 | CY63: 0 | CZ63: 0 | DA63: 0 | DB63: 0 | DC63: 0 | DD63: 0 | DE63: 0 | DF63: 0 | DG63: 0 | DH63: 0 | DI63: 0 | DJ63: 0 | DK63: 0 | DL63: 0 | DM63: 0 | DN63: 0 | DO63: 0 | DP63: 0 | DQ63: 0 | DR63: 0 | DS63: 0 | DT63: 0 | DU63: 0 | DV63: 0 | DW63: 0 | DX63: 0 | DY63: 0 | DZ63: 0 | EA63: 0 | EB63: 0 | EC63: 0 | ED63: 0 | EE63: 0 | EF63: 0 | EG63: 0 | EH63: 0 | EI63: 0 | EJ63: 0 | EK63: 0 | EL63: 0 | EM63: 0 | EN63: 0 | EO63: 0 | EP63: 0 | EQ63: 0 | ER63: 0 | ES63: 0 | ET63: 0 | EU63: 0 | EV63: 0 | EW63: 0 | EX63: 0 | EY63: 0 | EZ63: 0 | FA63: 0
CG64: 0 | CH64: 17 | CI64: 0 | CJ64: 0 | CK64: 0 | CL64: 0 | CM64: 0 | CN64: 0 | CO64: 0 | CP64: 0 | CQ64: 0 | CR64: 0 | CS64: 0 | CT64: 0 | CU64: 0 | CV64: 0 | CW64: 0 | CX64: 0 | CY64: 0 | CZ64: 0 | DA64: 0 | DB64: 0 | DC64: 0 | DD64: 0 | DE64: 0 | DF64: 0 | DG64: 0 | DH64: 0 | DI64: 0 | DJ64: 0 | DK64: 0 | DL64: 0 | DM64: 0 | DN64: 0 | DO64: 0 | DP64: 0 | DQ64: 0 | DR64: 0 | DS64: 0 | DT64: 0 | DU64: 0 | DV64: 0 | DW64: 0 | DX64: 0 | DY64: 0 | DZ64: 0 | EA64: 0 | EB64: 0 | EC64: 0 | ED64: 0 | EE64: 0 | EF64: 0 | EG64: 0 | EH64: 0 | EI64: 0 | EJ64: 0 | EK64: 0 | EL64: 0 | EM64: 0 | EN64: 0 | EO64: 0 | EP64: 0 | EQ64: 0 | ER64: 0 | ES64: 0 | ET64: 0 | EU64: 0 | EV64: 0 | EW64: 0 | EX64: 0 | EY64: 0 | EZ64: 0 | FA64: 0
CG65: 0 | CH65: 18 | CI65: 0 | CJ65: 0 | CK65: 0 | CL65: 0 | CM65: 0 | CN65: 0 | CO65: 0 | CP65: 0 | CQ65: 0 | CR65: 0 | CS65: 0 | CT65: 0 | CU65: 0 | CV65: 0 | CW65: 0 | CX65: 0 | CY65: 0 | CZ65: 0 | DA65: 0 | DB65: 0 | DC65: 0 | DD65: 0 | DE65: 0 | DF65: 0 | DG65: 0 | DH65: 0 | DI65: 0 | DJ65: 0 | DK65: 0 | DL65: 0 | DM65: 0 | DN65: 0 | DO65: 0 | DP65: 0 | DQ65: 0 | DR65: 0 | DS65: 0 | DT65: 0 | DU65: 0 | DV65: 0 | DW65: 0 | DX65: 0 | DY65: 0 | DZ65: 0 | EA65: 0 | EB65: 0 | EC65: 0 | ED65: 0 | EE65: 0 | EF65: 0 | EG65: 0 | EH65: 0 | EI65: 0 | EJ65: 0 | EK65: 0 | EL65: 0 | EM65: 0 | EN65: 0 | EO65: 0 | EP65: 0 | EQ65: 0 | ER65: 0 | ES65: 0 | ET65: 0 | EU65: 0 | EV65: 0 | EW65: 0 | EX65: 0 | EY65: 0 | EZ65: 0 | FA65: 0
CG66: 0 | CH66: 19 | CI66: 0 | CJ66: 0 | CK66: 0 | CL66: 0 | CM66: 0 | CN66: 0 | CO66: 0 | CP66: 0 | CQ66: 0 | CR66: 0 | CS66: 0 | CT66: 0 | CU66: 0 | CV66: 0 | CW66: 0 | CX66: 0 | CY66: 0 | CZ66: 0 | DA66: 0 | DB66: 0 | DC66: 0 | DD66: 0 | DE66: 0 | DF66: 0 | DG66: 0 | DH66: 0 | DI66: 0 | DJ66: 0 | DK66: 0 | DL66: 0 | DM66: 0 | DN66: 0 | DO66: 0 | DP66: 0 | DQ66: 0 | DR66: 0 | DS66: 0 | DT66: 0 | DU66: 0 | DV66: 0 | DW66: 0 | DX66: 0 | DY66: 0 | DZ66: 0 | EA66: 0 | EB66: 0 | EC66: 0 | ED66: 0 | EE66: 0 | EF66: 0 | EG66: 0 | EH66: 0 | EI66: 0 | EJ66: 0 | EK66: 0 | EL66: 0 | EM66: 0 | EN66: 0 | EO66: 0 | EP66: 0 | EQ66: 0 | ER66: 0 | ES66: 0 | ET66: 0 | EU66: 0 | EV66: 0 | EW66: 0 | EX66: 0 | EY66: 0 | EZ66: 0 | FA66: 0
CG67: 0 | CH67: 20 | CI67: 0 | CJ67: 0 | CK67: 0 | CL67: 0 | CM67: 0 | CN67: 0 | CO67: 0 | CP67: 0 | CQ67: 0 | CR67: 0 | CS67: 0 | CT67: 0 | CU67: 0 | CV67: 0 | CW67: 0 | CX67: 0 | CY67: 0 | CZ67: 0 | DA67: 0 | DB67: 0 | DC67: 0 | DD67: 0 | DE67: 0 | DF67: 0 | DG67: 0 | DH67: 0 | DI67: 0 | DJ67: 0 | DK67: 0 | DL67: 0 | DM67: 0 | DN67: 0 | DO67: 0 | DP67: 0 | DQ67: 0 | DR67: 0 | DS67: 0 | DT67: 0 | DU67: 0 | DV67: 0 | DW67: 0 | DX67: 0 | DY67: 0 | DZ67: 0 | EA67: 0 | EB67: 0 | EC67: 0 | ED67: 0 | EE67: 0 | EF67: 0 | EG67: 0 | EH67: 0 | EI67: 0 | EJ67: 0 | EK67: 0 | EL67: 0 | EM67: 0 | EN67: 0 | EO67: 0 | EP67: 0 | EQ67: 0 | ER67: 0 | ES67: 0 | ET67: 0 | EU67: 0 | EV67: 0 | EW67: 0 | EX67: 0 | EY67: 0 | EZ67: 0 | FA67: 0
CG68: 0 | CH68: 21 | CI68: 0 | CJ68: 0 | CK68: 0 | CL68: 0 | CM68: 0 | CN68: 0 | CO68: 0 | CP68: 0 | CQ68: 0 | CR68: 0 | CS68: 0 | CT68: 0 | CU68: 0 | CV68: 0 | CW68: 0 | CX68: 0 | CY68: 0 | CZ68: 0 | DA68: 0 | DB68: 0 | DC68: 0 | DD68: 0 | DE68: 0 | DF68: 0 | DG68: 0 | DH68: 0 | DI68: 0 | DJ68: 0 | DK68: 0 | DL68: 0 | DM68: 0 | DN68: 0 | DO68: 0 | DP68: 0 | DQ68: 0 | DR68: 0 | DS68: 0 | DT68: 0 | DU68: 0 | DV68: 0 | DW68: 0 | DX68: 0 | DY68: 0 | DZ68: 0 | EA68: 0 | EB68: 0 | EC68: 0 | ED68: 0 | EE68: 0 | EF68: 0 | EG68: 0 | EH68: 0 | EI68: 0 | EJ68: 0 | EK68: 0 | EL68: 0 | EM68: 0 | EN68: 0 | EO68: 0 | EP68: 0 | EQ68: 0 | ER68: 0 | ES68: 0 | ET68: 0 | EU68: 0 | EV68: 0 | EW68: 0 | EX68: 0 | EY68: 0 | EZ68: 0 | FA68: 0
CG69: 0 | CH69: 23 | CI69: 0 | CJ69: 0 | CK69: 0 | CL69: 0 | CM69: 0 | CN69: 0 | CO69: 0 | CP69: 0 | CQ69: 0 | CR69: 0 | CS69: 0 | CT69: 0 | CU69: 0 | CV69: 0 | CW69: 0 | CX69: 0 | CY69: 0 | CZ69: 0 | DA69: 0 | DB69: 0 | DC69: 0 | DD69: 0 | DE69: 0 | DF69: 0 | DG69: 0 | DH69: 0 | DI69: 0 | DJ69: 0 | DK69: 0 | DL69: 0 | DM69: 0 | DN69: 0 | DO69: 0 | DP69: 0 | DQ69: 0 | DR69: 0 | DS69: 0 | DT69: 0 | DU69: 0 | DV69: 0 | DW69: 0 | DX69: 0 | DY69: 0 | DZ69: 0 | EA69: 0 | EB69: 0 | EC69: 0 | ED69: 0 | EE69: 0 | EF69: 0 | EG69: 0 | EH69: 0 | EI69: 0 | EJ69: 0 | EK69: 0 | EL69: 0 | EM69: 0 | EN69: 0 | EO69: 0 | EP69: 0 | EQ69: 0 | ER69: 0 | ES69: 0 | ET69: 0 | EU69: 0 | EV69: 0 | EW69: 0 | EX69: 0 | EY69: 0 | EZ69: 0 | FA69: 0
CH70: =SUM(CI70:EX70) -> 0 | CI70: =SUM(CI48:CI69) -> 0 | CJ70: =SUM(CJ48:CJ69) -> 0 | CK70: 0 | CL70: 0 | CM70: 0 | CN70: 0 | CO70: 0 | CP70: 0 | CQ70: 0 | CR70: 0 | CS70: 0 | CT70: 0 | CU70: 0 | CV70: 0 | CW70: 0 | CX70: 0 | CY70: 0 | CZ70: 0 | DA70: 0 | DB70: 0 | DC70: 0 | DD70: 0 | DE70: 0 | DF70: 0 | DG70: 0 | DH70: 0 | DI70: 0 | DJ70: 0 | DK70: 0 | DL70: 0 | DM70: 0 | DN70: 0 | DO70: 0 | DP70: 0 | DQ70: 0 | DR70: 0 | DS70: 0 | DT70: 0 | DU70: 0 | DV70: 0 | DW70: 0 | DX70: 0 | DY70: 0 | DZ70: 0 | EA70: 0 | EB70: 0 | EC70: 0 | ED70: 0 | EE70: 0 | EF70: 0 | EG70: 0 | EH70: 0 | EI70: 0 | EJ70: 0 | EK70: 0 | EL70: 0 | EM70: 0 | EN70: 0 | EO70: 0 | EP70: 0 | EQ70: 0 | ER70: 0 | ES70: 0 | ET70: 0 | EU70: 0 | EV70: =SUM(EV48:EV69) -> 0 | EW70: 0 | EX70: 0 | EY70: 0 | EZ70: 0 | FA70: 0
CH71: =SUM(CI71:EU71) -> 0 | CI71: =VLOOKUP(CI47,Daily!$A$2:$H$459,8) -> 0 | CJ71: =VLOOKUP(CJ47,Daily!$A$2:$H$459,8) -> 0 | CK71: =VLOOKUP(CK47,Daily!$A$2:$H$459,8) -> 0 | CL71: =VLOOKUP(CL47,Daily!$A$2:$H$459,8) -> 0 | CM71: =VLOOKUP(CM47,Daily!$A$2:$H$459,8) -> 0 | CN71: =VLOOKUP(CN47,Daily!$A$2:$H$459,8) -> 0 | CO71: =VLOOKUP(CO47,Daily!$A$2:$H$459,8) -> 0 | CP71: =VLOOKUP(CP47,Daily!$A$2:$H$459,8) -> 0 | CQ71: =VLOOKUP(CQ47,Daily!$A$2:$H$459,8) -> 0 | CR71: =VLOOKUP(CR47,Daily!$A$2:$H$459,8) -> 0 | CS71: =VLOOKUP(CS47,Daily!$A$2:$H$459,8) -> 0 | CT71: =VLOOKUP(CT47,Daily!$A$2:$H$459,8) -> 0 | CU71: =VLOOKUP(CU47,Daily!$A$2:$H$459,8) -> 0 | CV71: =VLOOKUP(CV47,Daily!$A$2:$H$459,8) -> 0 | CW71: =VLOOKUP(CW47,Daily!$A$2:$H$459,8) -> 0 | CX71: =VLOOKUP(CX47,Daily!$A$2:$H$459,8) -> 0 | CY71: =VLOOKUP(CY47,Daily!$A$2:$H$459,8) -> 0 | CZ71: =VLOOKUP(CZ47,Daily!$A$2:$H$459,8) -> 0 | DA71: =VLOOKUP(DA47,Daily!$A$2:$H$459,8) -> 0 | DB71: =VLOOKUP(DB47,Daily!$A$2:$H$459,8) -> 0 | DC71: =VLOOKUP(DC47,Daily!$A$2:$H$459,8) -> 0 | DD71: =VLOOKUP(DD47,Daily!$A$2:$H$459,8) -> 0 | DE71: =VLOOKUP(DE47,Daily!$A$2:$H$459,8) -> 0 | DF71: =VLOOKUP(DF47,Daily!$A$2:$H$459,8) -> 0 | DG71: =VLOOKUP(DG47,Daily!$A$2:$H$459,8) -> 0 | DH71: =VLOOKUP(DH47,Daily!$A$2:$H$459,8) -> 0 | DI71: =VLOOKUP(DI47,Daily!$A$2:$H$459,8) -> 0 | DJ71: =VLOOKUP(DJ47,Daily!$A$2:$H$459,8) -> 0 | DK71: =VLOOKUP(DK47,Daily!$A$2:$H$459,8) -> 0 | DL71: =VLOOKUP(DL47,Daily!$A$2:$H$459,8) -> 0 | DM71: =VLOOKUP(DM47,Daily!$A$2:$H$459,8) -> 0 | DN71: =VLOOKUP(DN47,Daily!$A$2:$H$459,8) -> 0 | DO71: =VLOOKUP(DO47,Daily!$A$2:$H$459,8) -> 0 | DP71: =VLOOKUP(DP47,Daily!$A$2:$H$459,8) -> 0 | DQ71: =VLOOKUP(DQ47,Daily!$A$2:$H$459,8) -> 0 | DR71: =VLOOKUP(DR47,Daily!$A$2:$H$459,8) -> 0 | DS71: =VLOOKUP(DS47,Daily!$A$2:$H$459,8) -> 0 | DT71: =VLOOKUP(DT47,Daily!$A$2:$H$459,8) -> 0 | DU71: =VLOOKUP(DU47,Daily!$A$2:$H$459,8) -> 0 | DV71: =VLOOKUP(DV47,Daily!$A$2:$H$459,8) -> 0 | DW71: =VLOOKUP(DW47,Daily!$A$2:$H$459,8) -> 0 | DX71: =VLOOKUP(DX47,Daily!$A$2:$H$459,8) -> 0 | DY71: =VLOOKUP(DY47,Daily!$A$2:$H$459,8) -> 0 | DZ71: =VLOOKUP(DZ47,Daily!$A$2:$H$459,8) -> 0 | EA71: =VLOOKUP(EA47,Daily!$A$2:$H$459,8) -> 0 | EB71: =VLOOKUP(EB47,Daily!$A$2:$H$459,8) -> 0 | EC71: =VLOOKUP(EC47,Daily!$A$2:$H$459,8) -> 0 | ED71: =VLOOKUP(ED47,Daily!$A$2:$H$459,8) -> 0 | EE71: =VLOOKUP(EE47,Daily!$A$2:$H$459,8) -> 0 | EF71: =VLOOKUP(EF47,Daily!$A$2:$H$459,8) -> 0 | EG71: =VLOOKUP(EG47,Daily!$A$2:$H$459,8) -> 0 | EH71: =VLOOKUP(EH47,Daily!$A$2:$H$459,8) -> 0 | EI71: =VLOOKUP(EI47,Daily!$A$2:$H$459,8) -> 0 | EJ71: =VLOOKUP(EJ47,Daily!$A$2:$H$459,8) -> 0 | EK71: =VLOOKUP(EK47,Daily!$A$2:$H$459,8) -> 0 | EL71: =VLOOKUP(EL47,Daily!$A$2:$H$459,8) -> 0 | EM71: =VLOOKUP(EM47,Daily!$A$2:$H$459,8) -> 0 | EN71: =VLOOKUP(EN47,Daily!$A$2:$H$459,8) -> 0 | EO71: =VLOOKUP(EO47,Daily!$A$2:$H$459,8) -> 0 | EP71: =VLOOKUP(EP47,Daily!$A$2:$H$459,8) -> 0 | EQ71: =VLOOKUP(EQ47,Daily!$A$2:$H$459,8) -> 0 | ER71: =VLOOKUP(ER47,Daily!$A$2:$H$459,8) -> 0 | ES71: =VLOOKUP(ES47,Daily!$A$2:$H$459,8) -> 0 | ET71: =VLOOKUP(ET47,Daily!$A$2:$H$459,8) -> 0 | EU71: =VLOOKUP(EU47,Daily!$A$2:$H$459,8) -> 0 | EV71: =VLOOKUP(EV47,Daily!$A$2:$H$459,8) -> 0 | EW71: =VLOOKUP(EW47,Daily!$A$2:$H$459,8) -> 0 | EX71: =VLOOKUP(EX47,Daily!$A$2:$H$459,8) -> 0 | EY71: =VLOOKUP(EY47,Daily!$A$2:$H$459,8) -> 0 | EZ71: =VLOOKUP(EZ47,Daily!$A$2:$H$459,8) -> 0 | FA71: =VLOOKUP(FA47,Daily!$A$2:$H$459,8) -> 0
CI72: =+CI71/$CH71 ->  | DO72: =+DO71/$CH71 ->  | EU72: =+EU71/$CH71 ->  | EY72: =+EY71/$CH71 -> 

Sheet MAR
A1: =+JAN!A1 -> 2022 | CI1: =YEAR(CI3) -> 2022 | CJ1: =YEAR(CJ3) -> 2022 | CK1: 2022 | CL1: 2022 | CM1: 2022 | CN1: 2022 | CO1: 2022 | CP1: 2022 | CQ1: 2022 | CR1: 2022 | CS1: 2022 | CT1: 2022 | CU1: 2022 | CV1: 2022 | CW1: 2022 | CX1: 2022 | CY1: 2022 | CZ1: 2022 | DA1: 2022 | DB1: 2022 | DC1: 2022 | DD1: 2022 | DE1: 2022 | DF1: 2022 | DG1: 2022 | DH1: 2022 | DI1: 2022 | DJ1: 2022 | DK1: 2022 | DL1: 2022 | DM1: 2022 | DN1: 2022 | DO1: 2022 | DP1: 2022 | DQ1: 2022 | DR1: 2022 | DS1: 2022 | DT1: 2022 | DU1: 2022 | DV1: 2022 | DW1: 2022 | DX1: 2022 | DY1: 2022 | DZ1: 2022 | EA1: 2022 | EB1: 2022 | EC1: 2022 | ED1: 2022 | EE1: 2022 | EF1: 2022 | EG1: 2022 | EH1: 2022 | EI1: 2022 | EJ1: 2022 | EK1: 2022 | EL1: 2022 | EM1: 2022 | EN1: 2022 | EO1: 2022 | EP1: 2022 | EQ1: 2022 | ER1: 2022 | ES1: 2022 | ET1: 2022 | EU1: =YEAR(EU3) -> 2022 | EV1: =YEAR(EV3) -> 2022 | EW1: 2022 | EX1: 2022 | EY1: =YEAR(EY3) -> 2022 | EZ1: 2022 | FA1: 2022
A2: 3 | B2: Published Billing Schedule | CI2: =MONTH(CI3) -> 1 | CJ2: =MONTH(CJ3) -> 1 | CK2: 1 | CL2: 1 | CM2: 2 | CN2: 2 | CO2: 2 | CP2: 2 | CQ2: 2 | CR2: 2 | CS2: 2 | CT2: 2 | CU2: 2 | CV2: 2 | CW2: 2 | CX2: 2 | CY2: 2 | CZ2: 2 | DA2: 2 | DB2: 2 | DC2: 2 | DD2: 2 | DE2: 2 | DF2: 2 | DG2: 2 | DH2: 2 | DI2: 2 | DJ2: 2 | DK2: 2 | DL2: 2 | DM2: 2 | DN2: 2 | DO2: 3 | DP2: 3 | DQ2: 3 | DR2: 3 | DS2: 3 | DT2: 3 | DU2: 3 | DV2: 3 | DW2: 3 | DX2: 3 | DY2: 3 | DZ2: 3 | EA2: 3 | EB2: 3 | EC2: 3 | ED2: 3 | EE2: 3 | EF2: 3 | EG2: 3 | EH2: 3 | EI2: 3 | EJ2: 3 | EK2: 3 | EL2: 3 | EM2: 3 | EN2: 3 | EO2: 3 | EP2: 3 | EQ2: 3 | ER2: 3 | ES2: 3 | ET2: 4 | EU2: 4 | EV2: 4 | EW2: =MONTH(EW3) -> 4 | EX2: 4 | EY2: 4 | EZ2: 4 | FA2: 4
A3: Lookup | B3: Year | C3: Month | D3: Cycle | E3: StartBilling | F3: EndBilling | G3: No.Days | K3: Date | L3: =+E4 -> 2022-01-28 | M3: =+L3+1 -> 2022-01-29 | N3: =+M3+1 -> 2022-01-30 | O3: 2022-01-31 | P3: 2022-02-01 | Q3: 2022-02-02 | R3: 2022-02-03 | S3: 2022-02-04 | T3: 2022-02-05 | U3: 2022-02-06 | V3: 2022-02-07 | W3: 2022-02-08 | X3: 2022-02-09 | Y3: 2022-02-10 | Z3: 2022-02-11 | AA3: 2022-02-12 | AB3: 2022-02-13 | AC3: 2022-02-14 | AD3: 2022-02-15 | AE3: 2022-02-16 | AF3: 2022-02-17 | AG3: 2022-02-18 | AH3: 2022-02-19 | AI3: 2022-02-20 | AJ3: 2022-02-21 | AK3: 2022-02-22 | AL3: 2022-02-23 | AM3: 2022-02-24 | AN3: 2022-02-25 | AO3: 2022-02-26 | AP3: 2022-02-27 | AQ3: 2022-02-28 | AR3: 2022-03-01 | AS3: 2022-03-02 | AT3: 2022-03-03 | AU3: 2022-03-04 | AV3: 2022-03-05 | AW3: 2022-03-06 | AX3: 2022-03-07 | AY3: 2022-03-08 | AZ3: 2022-03-09 | BA3: 2022-03-10 | BB3: 2022-03-11 | BC3: 2022-03-12 | BD3: 2022-03-13 | BE3: 2022-03-14 | BF3: 2022-03-15 | BG3: 2022-03-16 | BH3: 2022-03-17 | BI3: 2022-03-18 | BJ3: 2022-03-19 | BK3: 2022-03-20 | BL3: 2022-03-21 | BM3: 2022-03-22 | BN3: 2022-03-23 | BO3: 2022-03-24 | BP3: 2022-03-25 | BQ3: 2022-03-26 | BR3: 2022-03-27 | BS3: 2022-03-28 | BT3: 2022-03-29 | BU3: 2022-03-30 | BV3: 2022-03-31 | BW3: =+BV3+1 -> 2022-04-01 | BX3: =+BW3+1 -> 2022-04-02 | BY3: =+BX3+1 -> 2022-04-03 | BZ3: 2022-04-04 | CA3: 2022-04-05 | CB3: =+CA3+1 -> 2022-04-06 | CC3: =+CB3+1 -> 2022-04-07 | CD3: =+CC3+1 -> 2022-04-08 | CH3: Cycle | CI3: =+L3 -> 2022-01-28 | CJ3: 2022-01-29 | CK3: 2022-01-30 | CL3: 2022-01-31 | CM3: 2022-02-01 | CN3: 2022-02-02 | CO3: 2022-02-03 | CP3: 2022-02-04 | CQ3: 2022-02-05 | CR3: 2022-02-06 | CS3: 2022-02-07 | CT3: 2022-02-08 | CU3: 2022-02-09 | CV3: 2022-02-10 | CW3: 2022-02-11 | CX3: 2022-02-12 | CY3: 2022-02-13 | CZ3: 2022-02-14 | DA3: 2022-02-15 | DB3: 2022-02-16 | DC3: 2022-02-17 | DD3: 2022-02-18 | DE3: 2022-02-19 | DF3: 2022-02-20 | DG3: 2022-02-21 | DH3: 2022-02-22 | DI3: 2022-02-23 | DJ3: 2022-02-24 | DK3: 2022-02-25 | DL3: 2022-02-26 | DM3: 2022-02-27 | DN3: 2022-02-28 | DO3: =+AR3 -> 2022-03-01 | DP3: 2022-03-02 | DQ3: 2022-03-03 | DR3: 2022-03-04 | DS3: 2022-03-05 | DT3: 2022-03-06 | DU3: 2022-03-07 | DV3: 2022-03-08 | DW3: 2022-03-09 | DX3: 2022-03-10 | DY3: 2022-03-11 | DZ3: 2022-03-12 | EA3: 2022-03-13 | EB3: 2022-03-14 | EC3: 2022-03-15 | ED3: 2022-03-16 | EE3: 2022-03-17 | EF3: 2022-03-18 | EG3: 2022-03-19 | EH3: 2022-03-20 | EI3: 2022-03-21 | EJ3: 2022-03-22 | EK3: 2022-03-23 | EL3: 2022-03-24 | EM3: 2022-03-25 | EN3: 2022-03-26 | EO3: 2022-03-27 | EP3: 2022-03-28 | EQ3: 2022-03-29 | ER3: 2022-03-30 | ES3: 2022-03-31 | ET3: 2022-04-01 | EU3: =+BX3 -> 2022-04-02 | EV3: =+BY3 -> 2022-04-03 | EW3: =+BZ3 -> 2022-04-04 | EX3: =+CA3 -> 2022-04-05 | EY3: =+CB3 -> 2022-04-06 | EZ3: 2022-04-07 | FA3: 2022-04-08
A4: =+$A$1*10000+A2*100+1 -> 20220301 | B4: =+A1 -> 2022 | C4: =+A2 -> 3 | D4: 1 | E4: =+FEB!F4+1 -> 2022-01-28 | F4: 2022-02-25 | G4: =+F4-E4+1 -> 29 | H4: =+E4-FEB!F4 -> 1 | J4: Billing Cycles | K4: 1 | L4: =IF(AND(L$3>=$E4,L$3<=$F4),1,0) -> 1 | M4: =IF(AND(M$3>=$E4,M$3<=$F4),1,0) -> 1 | N4: 1 | O4: 1 | P4: 1 | Q4: 1 | R4: 1 | S4: 1 | T4: 1 | U4: 1 | V4: 1 | W4: 1 | X4: 1 | Y4: 1 | Z4: 1 | AA4: 1 | AB4: 1 | AC4: 1 | AD4: 1 | AE4: 1 | AF4: 1 | AG4: 1 | AH4: 1 | AI4: 1 | AJ4: 1 | AK4: 1 | AL4: 1 | AM4: 1 | AN4: 1 | AO4: 0 | AP4: 0 | AQ4: 0 | AR4: 0 | AS4: 0 | AT4: 0 | AU4: 0 | AV4: 0 | AW4: 0 | AX4: 0 | AY4: 0 | AZ4: 0 | BA4: 0 | BB4: 0 | BC4: 0 | BD4: 0 | BE4: 0 | BF4: 0 | BG4: 0 | BH4: 0 | BI4: 0 | BJ4: 0 | BK4: 0 | BL4: 0 | BM4: 0 | BN4: 0 | BO4: 0 | BP4: 0 | BQ4: 0 | BR4: 0 | BS4: 0 | BT4: 0 | BU4: 0 | BV4: 0 | BW4: 0 | BX4: 0 | BY4: =IF(AND(BY$3>=$E4,BY$3<=$F4),1,0) -> 0 | BZ4: 0 | CA4: 0 | CB4: 0 | CC4: 0 | CD4: 0 | CF4: =SUM(CI4:FA4)-CG4/1000 ->  | CG4: 34854128 | CH4: 1 | CI4: =((CI48/$CG48))*($CG4/1000) ->  | CJ4: =((CJ48/$CG48))*($CG4/1000) ->  | DO4: =((DO48/$CG48))*($CG4/1000) ->  | EV4: =((EV48/$CG48))*($CG4/1000) ->  | EY4: =((EY48/$CG48))*($CG4/1000) -> 
A5: =+A4+1 -> 20220302 | B5: =+B4 -> 2022 | C5: =+C4 -> 3 | D5: =+D4+1 -> 2 | E5: =+FEB!F5+1 -> 2022-01-29 | F5: 2022-02-28 | G5: =+F5-E5+1 -> 31 | H5: =+E5-FEB!F5 -> 1 | K5: 2 | L5: =IF(AND(L$3>=$E5,L$3<=$F5),1,0) -> 0 | M5: 1 | N5: 1 | O5: 1 | P5: 1 | Q5: 1 | R5: 1 | S5: 1 | T5: 1 | U5: 1 | V5: 1 | W5: 1 | X5: 1 | Y5: 1 | Z5: 1 | AA5: 1 | AB5: 1 | AC5: 1 | AD5: 1 | AE5: 1 | AF5: 1 | AG5: 1 | AH5: 1 | AI5: 1 | AJ5: 1 | AK5: 1 | AL5: 1 | AM5: 1 | AN5: 1 | AO5: 1 | AP5: 1 | AQ5: 1 | AR5: 0 | AS5: 0 | AT5: 0 | AU5: 0 | AV5: 0 | AW5: 0 | AX5: 0 | AY5: 0 | AZ5: 0 | BA5: 0 | BB5: 0 | BC5: 0 | BD5: 0 | BE5: 0 | BF5: 0 | BG5: 0 | BH5: 0 | BI5: 0 | BJ5: 0 | BK5: 0 | BL5: 0 | BM5: 0 | BN5: 0 | BO5: 0 | BP5: 0 | BQ5: 0 | BR5: 0 | BS5: 0 | BT5: 0 | BU5: 0 | BV5: 0 | BW5: 0 | BX5: 0 | BY5: 0 | BZ5: 0 | CA5: 0 | CB5: 0 | CC5: 0 | CD5: 0 | CG5: 71013818 | CH5: 2 | CI5: =((CI49/$CG49))*($CG5/1000) ->  | DO5: =((DO49/$CG49))*($CG5/1000) ->  | EV5: =((EV49/$CG49))*($CG5/1000) ->  | EY5: =((EY49/$CG49))*($CG5/1000) -> 
A6: =+A5+1 -> 20220303 | B6: =+B5 -> 2022 | C6: 3 | D6: =+D5+1 -> 3 | E6: =+FEB!F6+1 -> 2022-02-01 | F6: 2022-03-01 | G6: 29 | H6: =+E6-FEB!F6 -> 1 | K6: 3 | L6: 0 | M6: 0 | N6: 0 | O6: 0 | P6: 1 | Q6: 1 | R6: 1 | S6: 1 | T6: 1 | U6: 1 | V6: 1 | W6: 1 | X6: 1 | Y6: 1 | Z6: 1 | AA6: 1 | AB6: 1 | AC6: 1 | AD6: 1 | AE6: 1 | AF6: 1 | AG6: 1 | AH6: 1 | AI6: 1 | AJ6: 1 | AK6: 1 | AL6: 1 | AM6: 1 | AN6: 1 | AO6: 1 | AP6: 1 | AQ6: 1 | AR6: 1 | AS6: 0 | AT6: 0 | AU6: 0 | AV6: 0 | AW6: 0 | AX6: 0 | AY6: 0 | AZ6: 0 | BA6: 0 | BB6: 0 | BC6: 0 | BD6: 0 | BE6: 0 | BF6: 0 | BG6: 0 | BH6: 0 | BI6: 0 | BJ6: 0 | BK6: 0 | BL6: 0 | BM6: 0 | BN6: 0 | BO6: 0 | BP6: 0 | BQ6: 0 | BR6: 0 | BS6: 0 | BT6: 0 | BU6: 0 | BV6: 0 | BW6: 0 | BX6: 0 | BY6: 0 | BZ6: 0 | CA6: 0 | CB6: 0 | CC6: 0 | CD6: 0 | CG6: 48664120 | CH6: 3 | CI6: =((CI50/$CG50))*($CG6/1000) ->  | DO6: =((DO50/$CG50))*($CG6/1000) ->  | EV6: =((EV50/$CG50))*($CG6/1000) ->  | EY6: =((EY50/$CG50))*($CG6/1000) -> 
A7: 20220304 | B7: 2022 | C7: 3 | D7: 4 | E7: =+FEB!F7+1 -> 2022-02-02 | F7: 2022-03-02 | G7: 29 | H7: =+E7-FEB!F7 -> 1 | K7: 4 | L7: 0 | M7: 0 | N7: 0 | O7: 0 | P7: 0 | Q7: 1 | R7: 1 | S7: 1 | T7: 1 | U7: 1 | V7: 1 | W7: 1 | X7: 1 | Y7: 1 | Z7: 1 | AA7: 1 | AB7: 1 | AC7: 1 | AD7: 1 | AE7: 1 | AF7: 1 | AG7: 1 | AH7: 1 | AI7: 1 | AJ7: 1 | AK7: 1 | AL7: 1 | AM7: 1 | AN7: 1 | AO7: 1 | AP7: 1 | AQ7: 1 | AR7: 1 | AS7: 1 | AT7: 0 | AU7: 0 | AV7: 0 | AW7: 0 | AX7: 0 | AY7: 0 | AZ7: 0 | BA7: 0 | BB7: 0 | BC7: 0 | BD7: 0 | BE7: 0 | BF7: 0 | BG7: 0 | BH7: 0 | BI7: 0 | BJ7: 0 | BK7: 0 | BL7: 0 | BM7: 0 | BN7: 0 | BO7: 0 | BP7: 0 | BQ7: 0 | BR7: 0 | BS7: 0 | BT7: 0 | BU7: 0 | BV7: 0 | BW7: 0 | BX7: 0 | BY7: 0 | BZ7: 0 | CA7: 0 | CB7: 0 | CC7: 0 | CD7: 0 | CG7: 67173398 | CH7: 4 | CI7: =((CI51/$CG51))*($CG7/1000) ->  | DO7: =((DO51/$CG51))*($CG7/1000) ->  | EV7: =((EV51/$CG51))*($CG7/1000) ->  | EY7: =((EY51/$CG51))*($CG7/1000) -> 
A8: 20220305 | B8: 2022 | C8: 3 | D8: 5 | E8: =+FEB!F8+1 -> 2022-02-03 | F8: 2022-03-03 | G8: 29 | H8: =+E8-FEB!F8 -> 1 | K8: 5 | L8: 0 | M8: 0 | N8: 0 | O8: 0 | P8: 0 | Q8: 0 | R8: 1 | S8: 1 | T8: 1 | U8: 1 | V8: 1 | W8: 1 | X8: 1 | Y8: 1 | Z8: 1 | AA8: =IF(AND(AA$3>=$E8,AA$3<=$F8),1,0) -> 1 | AB8: 1 | AC8: 1 | AD8: 1 | AE8: 1 | AF8: 1 | AG8: 1 | AH8: 1 | AI8: 1 | AJ8: 1 | AK8: 1 | AL8: 1 | AM8: 1 | AN8: 1 | AO8: 1 | AP8: 1 | AQ8: 1 | AR8: 1 | AS8: 1 | AT8: 1 | AU8: 0 | AV8: 0 | AW8: 0 | AX8: 0 | AY8: 0 | AZ8: 0 | BA8: 0 | BB8: 0 | BC8: 0 | BD8: 0 | BE8: 0 | BF8: 0 | BG8: 0 | BH8: 0 | BI8: 0 | BJ8: 0 | BK8: 0 | BL8: 0 | BM8: 0 | BN8: 0 | BO8: 0 | BP8: 0 | BQ8: 0 | BR8: 0 | BS8: 0 | BT8: 0 | BU8: 0 | BV8: 0 | BW8: 0 | BX8: 0 | BY8: 0 | BZ8: 0 | CA8: 0 | CB8: 0 | CC8: 0 | CD8: 0 | CG8: 109543661 | CH8: 5 | CI8: =((CI52/$CG52))*($CG8/1000) ->  | DO8: =((DO52/$CG52))*($CG8/1000) ->  | EV8: =((EV52/$CG52))*($CG8/1000) ->  | EY8: =((EY52/$CG52))*($CG8/1000) -> 
A9: 20220306 | B9: 2022 | C9: 3 | D9: 6 | E9: =+FEB!F9+1 -> 2022-02-04 | F9: 2022-03-04 | G9: 29 | H9: =+E9-FEB!F9 -> 1 | K9: 6 | L9: 0 | M9: 0 | N9: 0 | O9: 0 | P9: 0 | Q9: 0 | R9: 0 | S9: 1 | T9: 1 | U9: 1 | V9: 1 | W9: 1 | X9: 1 | Y9: 1 | Z9: 1 | AA9: 1 | AB9: 1 | AC9: 1 | AD9: 1 | AE9: 1 | AF9: 1 | AG9: 1 | AH9: 1 | AI9: 1 | AJ9: 1 | AK9: 1 | AL9: 1 | AM9: 1 | AN9: 1 | AO9: 1 | AP9: 1 | AQ9: 1 | AR9: 1 | AS9: 1 | AT9: 1 | AU9: 1 | AV9: 0 | AW9: 0 | AX9: 0 | AY9: 0 | AZ9: 0 | BA9: 0 | BB9: 0 | BC9: 0 | BD9: 0 | BE9: 0 | BF9: 0 | BG9: 0 | BH9: 0 | BI9: 0 | BJ9: 0 | BK9: 0 | BL9: 0 | BM9: 0 | BN9: 0 | BO9: 0 | BP9: 0 | BQ9: 0 | BR9: 0 | BS9: 0 | BT9: 0 | BU9: 0 | BV9: 0 | BW9: 0 | BX9: 0 | BY9: 0 | BZ9: 0 | CA9: 0 | CB9: 0 | CC9: 0 | CD9: 0 | CG9: 40031071 | CH9: 6 | CI9: =((CI53/$CG53))*($CG9/1000) ->  | DO9: =((DO53/$CG53))*($CG9/1000) ->  | EV9: =((EV53/$CG53))*($CG9/1000) ->  | EY9: =((EY53/$CG53))*($CG9/1000) -> 
A10: 20220307 | B10: 2022 | C10: 3 | D10: 7 | E10: =+FEB!F10+1 -> 2022-02-05 | F10: 2022-03-07 | G10: 31 | H10: =+E10-FEB!F10 -> 1 | K10: 7 | L10: 0 | M10: 0 | N10: 0 | O10: 0 | P10: 0 | Q10: 0 | R10: 0 | S10: 0 | T10: 1 | U10: 1 | V10: 1 | W10: 1 | X10: 1 | Y10: 1 | Z10: 1 | AA10: 1 | AB10: 1 | AC10: 1 | AD10: 1 | AE10: 1 | AF10: 1 | AG10: 1 | AH10: 1 | AI10: 1 | AJ10: 1 | AK10: 1 | AL10: 1 | AM10: 1 | AN10: 1 | AO10: 1 | AP10: 1 | AQ10: 1 | AR10: 1 | AS10: 1 | AT10: 1 | AU10: 1 | AV10: 1 | AW10: 1 | AX10: 1 | AY10: 0 | AZ10: 0 | BA10: 0 | BB10: 0 | BC10: 0 | BD10: 0 | BE10: 0 | BF10: 0 | BG10: 0 | BH10: 0 | BI10: 0 | BJ10: 0 | BK10: 0 | BL10: 0 | BM10: 0 | BN10: 0 | BO10: 0 | BP10: 0 | BQ10: 0 | BR10: 0 | BS10: 0 | BT10: 0 | BU10: 0 | BV10: 0 | BW10: 0 | BX10: 0 | BY10: 0 | BZ10: 0 | CA10: 0 | CB10: 0 | CC10: 0 | CD10: 0 | CG10: 42709957 | CH10: 7 | CI10: =((CI54/$CG54))*($CG10/1000) ->  | DO10: =((DO54/$CG54))*($CG10/1000) ->  | EV10: =((EV54/$CG54))*($CG10/1000) ->  | EY10: =((EY54/$CG54))*($CG10/1000) -> 
A11: 20220308 | B11: 2022 | C11: 3 | D11: 8 | E11: =+FEB!F11+1 -> 2022-02-08 | F11: 2022-03-08 | G11: 29 | H11: =+E11-FEB!F11 -> 1 | K11: 8 | L11: 0 | M11: 0 | N11: 0 | O11: 0 | P11: 0 | Q11: 0 | R11: 0 | S11: 0 | T11: 0 | U11: 0 | V11: 0 | W11: 1 | X11: 1 | Y11: 1 | Z11: 1 | AA11: 1 | AB11: 1 | AC11: 1 | AD11: 1 | AE11: 1 | AF11: 1 | AG11: 1 | AH11: 1 | AI11: 1 | AJ11: 1 | AK11: 1 | AL11: 1 | AM11: 1 | AN11: 1 | AO11: 1 | AP11: 1 | AQ11: 1 | AR11: 1 | AS11: 1 | AT11: 1 | AU11: 1 | AV11: 1 | AW11: 1 | AX11: 1 | AY11: 1 | AZ11: 0 | BA11: 0 | BB11: 0 | BC11: 0 | BD11: 0 | BE11: 0 | BF11: 0 | BG11: 0 | BH11: 0 | BI11: 0 | BJ11: 0 | BK11: 0 | BL11: 0 | BM11: 0 | BN11: 0 | BO11: 0 | BP11: 0 | BQ11: 0 | BR11: 0 | BS11: 0 | BT11: 0 | BU11: 0 | BV11: 0 | BW11: 0 | BX11: 0 | BY11: 0 | BZ11: 0 | CA11: 0 | CB11: 0 | CC11: 0 | CD11: 0 | CG11: 61717587 | CH11: 8 | CI11: =((CI55/$CG55))*($CG11/1000) ->  | DO11: =((DO55/$CG55))*($CG11/1000) ->  | EV11: =((EV55/$CG55))*($CG11/1000) ->  | EY11: =((EY55/$CG55))*($CG11/1000) -> 
A12: 20220309 | B12: 2022 | C12: 3 | D12: 9 | E12: =+FEB!F12+1 -> 2022-02-09 | F12: 2022-03-09 | G12: 29 | H12: =+E12-FEB!F12 -> 1 | K12: 9 | L12: 0 | M12: 0 | N12: 0 | O12: 0 | P12: 0 | Q12: 0 | R12: 0 | S12: 0 | T12: 0 | U12: 0 | V12: 0 | W12: 0 | X12: 1 | Y12: 1 | Z12: 1 | AA12: 1 | AB12: 1 | AC12: 1 | AD12: 1 | AE12: 1 | AF12: 1 | AG12: 1 | AH12: 1 | AI12: 1 | AJ12: 1 | AK12: 1 | AL12: 1 | AM12: 1 | AN12: 1 | AO12: 1 | AP12: 1 | AQ12: 1 | AR12: 1 | AS12: 1 | AT12: 1 | AU12: 1 | AV12: 1 | AW12: 1 | AX12: 1 | AY12: 1 | AZ12: 1 | BA12: 0 | BB12: 0 | BC12: 0 | BD12: 0 | BE12: 0 | BF12: 0 | BG12: 0 | BH12: 0 | BI12: 0 | BJ12: 0 | BK12: 0 | BL12: 0 | BM12: 0 | BN12: 0 | BO12: 0 | BP12: 0 | BQ12: 0 | BR12: 0 | BS12: 0 | BT12: 0 | BU12: 0 | BV12: 0 | BW12: 0 | BX12: 0 | BY12: 0 | BZ12: 0 | CA12: 0 | CB12: 0 | CC12: 0 | CD12: 0 | CG12: 47742657 | CH12: 9 | CI12: =((CI56/$CG56))*($CG12/1000) ->  | DO12: =((DO56/$CG56))*($CG12/1000) ->  | EV12: =((EV56/$CG56))*($CG12/1000) ->  | EY12: =((EY56/$CG56))*($CG12/1000) -> 
A13: 20220310 | B13: 2022 | C13: 3 | D13: 10 | E13: =+FEB!F13+1 -> 2022-02-10 | F13: 2022-03-10 | G13: 29 | H13: =+E13-FEB!F13 -> 1 | K13: 10 | L13: 0 | M13: 0 | N13: 0 | O13: 0 | P13: 0 | Q13: 0 | R13: 0 | S13: 0 | T13: 0 | U13: 0 | V13: 0 | W13: 0 | X13: 0 | Y13: 1 | Z13: 1 | AA13: 1 | AB13: 1 | AC13: 1 | AD13: 1 | AE13: 1 | AF13: 1 | AG13: 1 | AH13: 1 | AI13: 1 | AJ13: 1 | AK13: =IF(AND(AK$3>=$E13,AK$3<=$F13),1,0) -> 1 | AL13: 1 | AM13: 1 | AN13: 1 | AO13: 1 | AP13: 1 | AQ13: 1 | AR13: 1 | AS13: 1 | AT13: 1 | AU13: 1 | AV13: 1 | AW13: 1 | AX13: 1 | AY13: 1 | AZ13: 1 | BA13: 1 | BB13: 0 | BC13: 0 | BD13: 0 | BE13: 0 | BF13: 0 | BG13: 0 | BH13: 0 | BI13: 0 | BJ13: 0 | BK13: 0 | BL13: 0 | BM13: 0 | BN13: 0 | BO13: 0 | BP13: 0 | BQ13: 0 | BR13: 0 | BS13: 0 | BT13: 0 | BU13: 0 | BV13: 0 | BW13: 0 | BX13: 0 | BY13: 0 | BZ13: 0 | CA13: 0 | CB13: 0 | CC13: 0 | CD13: 0 | CG13: 112198260 | CH13: 10 | CI13: =((CI57/$CG57))*($CG13/1000) ->  | DO13: =((DO57/$CG57))*($CG13/1000) ->  | EV13: =((EV57/$CG57))*($CG13/1000) ->  | EY13: =((EY57/$CG57))*($CG13/1000) -> 
A14: 20220311 | B14: 2022 | C14: 3 | D14: 11 | E14: =+FEB!F14+1 -> 2022-02-11 | F14: 2022-03-11 | G14: 29 | H14: =+E14-FEB!F14 -> 1 | K14: 11 | L14: 0 | M14: 0 | N14: 0 | O14: 0 | P14: 0 | Q14: 0 | R14: 0 | S14: 0 | T14: 0 | U14: 0 | V14: 0 | W14: 0 | X14: 0 | Y14: 0 | Z14: 1 | AA14: 1 | AB14: =IF(AND(AB$3>=$E14,AB$3<=$F14),1,0) -> 1 | AC14: 1 | AD14: 1 | AE14: 1 | AF14: 1 | AG14: 1 | AH14: 1 | AI14: 1 | AJ14: 1 | AK14: 1 | AL14: 1 | AM14: 1 | AN14: 1 | AO14: 1 | AP14: 1 | AQ14: 1 | AR14: 1 | AS14: 1 | AT14: 1 | AU14: 1 | AV14: 1 | AW14: 1 | AX14: 1 | AY14: 1 | AZ14: 1 | BA14: 1 | BB14: 1 | BC14: 0 | BD14: 0 | BE14: 0 | BF14: 0 | BG14: 0 | BH14: 0 | BI14: 0 | BJ14: 0 | BK14: 0 | BL14: 0 | BM14: 0 | BN14: 0 | BO14: 0 | BP14: 0 | BQ14: 0 | BR14: 0 | BS14: 0 | BT14: 0 | BU14: 0 | BV14: 0 | BW14: 0 | BX14: 0 | BY14: 0 | BZ14: 0 | CA14: 0 | CB14: 0 | CC14: 0 | CD14: 0 | CG14: 42613252 | CH14: 11 | CI14: =((CI58/$CG58))*($CG14/1000) ->  | DO14: =((DO58/$CG58))*($CG14/1000) ->  | EV14: =((EV58/$CG58))*($CG14/1000) ->  | EY14: =((EY58/$CG58))*($CG14/1000) -> 
A15: 20220312 | B15: 2022 | C15: 3 | D15: 12 | E15: =+FEB!F15+1 -> 2022-02-12 | F15: 2022-03-14 | G15: 31 | H15: =+E15-FEB!F15 -> 1 | K15: 12 | L15: 0 | M15: 0 | N15: 0 | O15: 0 | P15: 0 | Q15: 0 | R15: 0 | S15: 0 | T15: 0 | U15: 0 | V15: 0 | W15: 0 | X15: 0 | Y15: 0 | Z15: 0 | AA15: 1 | AB15: 1 | AC15: 1 | AD15: 1 | AE15: 1 | AF15: 1 | AG15: 1 | AH15: 1 | AI15: 1 | AJ15: 1 | AK15: 1 | AL15: 1 | AM15: 1 | AN15: 1 | AO15: 1 | AP15: 1 | AQ15: 1 | AR15: 1 | AS15: 1 | AT15: 1 | AU15: 1 | AV15: 1 | AW15: 1 | AX15: 1 | AY15: 1 | AZ15: 1 | BA15: 1 | BB15: 1 | BC15: 1 | BD15: 1 | BE15: 1 | BF15: 0 | BG15: 0 | BH15: 0 | BI15: 0 | BJ15: 0 | BK15: 0 | BL15: 0 | BM15: 0 | BN15: 0 | BO15: 0 | BP15: 0 | BQ15: 0 | BR15: 0 | BS15: 0 | BT15: 0 | BU15: 0 | BV15: 0 | BW15: 0 | BX15: 0 | BY15: 0 | BZ15: 0 | CA15: 0 | CB15: 0 | CC15: 0 | CD15: 0 | CG15: 40183327 | CH15: 12 | CI15: =((CI59/$CG59))*($CG15/1000) ->  | DO15: =((DO59/$CG59))*($CG15/1000) ->  | EV15: =((EV59/$CG59))*($CG15/1000) ->  | EY15: =((EY59/$CG59))*($CG15/1000) -> 
A16: 20220313 | B16: 2022 | C16: 3 | D16: 13 | E16: =+FEB!F16+1 -> 2022-02-15 | F16: 2022-03-15 | G16: 29 | H16: =+E16-FEB!F16 -> 1 | K16: 13 | L16: 0 | M16: 0 | N16: 0 | O16: 0 | P16: 0 | Q16: 0 | R16: 0 | S16: 0 | T16: 0 | U16: 0 | V16: 0 | W16: 0 | X16: 0 | Y16: 0 | Z16: 0 | AA16: 0 | AB16: 0 | AC16: 0 | AD16: 1 | AE16: 1 | AF16: 1 | AG16: 1 | AH16: 1 | AI16: 1 | AJ16: 1 | AK16: 1 | AL16: 1 | AM16: 1 | AN16: 1 | AO16: 1 | AP16: 1 | AQ16: 1 | AR16: 1 | AS16: 1 | AT16: 1 | AU16: 1 | AV16: 1 | AW16: 1 | AX16: 1 | AY16: 1 | AZ16: 1 | BA16: 1 | BB16: 1 | BC16: 1 | BD16: 1 | BE16: 1 | BF16: 1 | BG16: 0 | BH16: 0 | BI16: 0 | BJ16: 0 | BK16: 0 | BL16: 0 | BM16: 0 | BN16: 0 | BO16: 0 | BP16: 0 | BQ16: 0 | BR16: 0 | BS16: 0 | BT16: 0 | BU16: 0 | BV16: 0 | BW16: 0 | BX16: 0 | BY16: 0 | BZ16: 0 | CA16: 0 | CB16: 0 | CC16: 0 | CD16: 0 | CG16: 47868575 | CH16: 13 | CI16: =((CI60/$CG60))*($CG16/1000) ->  | DO16: =((DO60/$CG60))*($CG16/1000) ->  | EV16: =((EV60/$CG60))*($CG16/1000) ->  | EY16: =((EY60/$CG60))*($CG16/1000) -> 
A17: 20220314 | B17: 2022 | C17: 3 | D17: 14 | E17: =+FEB!F17+1 -> 2022-02-16 | F17: 2022-03-16 | G17: 29 | H17: =+E17-FEB!F17 -> 1 | K17: 14 | L17: 0 | M17: 0 | N17: 0 | O17: 0 | P17: 0 | Q17: 0 | R17: 0 | S17: 0 | T17: 0 | U17: 0 | V17: 0 | W17: 0 | X17: 0 | Y17: 0 | Z17: 0 | AA17: 0 | AB17: 0 | AC17: 0 | AD17: 0 | AE17: 1 | AF17: 1 | AG17: 1 | AH17: 1 | AI17: 1 | AJ17: 1 | AK17: 1 | AL17: 1 | AM17: 1 | AN17: 1 | AO17: 1 | AP17: 1 | AQ17: 1 | AR17: 1 | AS17: 1 | AT17: 1 | AU17: 1 | AV17: 1 | AW17: 1 | AX17: 1 | AY17: 1 | AZ17: 1 | BA17: 1 | BB17: 1 | BC17: 1 | BD17: 1 | BE17: 1 | BF17: 1 | BG17: 1 | BH17: 0 | BI17: 0 | BJ17: 0 | BK17: 0 | BL17: 0 | BM17: 0 | BN17: 0 | BO17: 0 | BP17: 0 | BQ17: 0 | BR17: 0 | BS17: 0 | BT17: 0 | BU17: 0 | BV17: 0 | BW17: 0 | BX17: 0 | BY17: 0 | BZ17: 0 | CA17: 0 | CB17: 0 | CC17: 0 | CD17: 0 | CG17: 62637358 | CH17: 14 | CI17: =((CI61/$CG61))*($CG17/1000) ->  | DO17: =((DO61/$CG61))*($CG17/1000) ->  | EV17: =((EV61/$CG61))*($CG17/1000) ->  | EY17: =((EY61/$CG61))*($CG17/1000) -> 
A18: 20220315 | B18: 2022 | C18: 3 | D18: 15 | E18: =+FEB!F18+1 -> 2022-02-17 | F18: 2022-03-17 | G18: 29 | H18: =+E18-FEB!F18 -> 1 | K18: 15 | L18: 0 | M18: 0 | N18: 0 | O18: 0 | P18: 0 | Q18: 0 | R18: 0 | S18: 0 | T18: 0 | U18: 0 | V18: 0 | W18: 0 | X18: 0 | Y18: 0 | Z18: 0 | AA18: 0 | AB18: 0 | AC18: 0 | AD18: 0 | AE18: 0 | AF18: 1 | AG18: 1 | AH18: 1 | AI18: 1 | AJ18: 1 | AK18: 1 | AL18: 1 | AM18: 1 | AN18: 1 | AO18: 1 | AP18: 1 | AQ18: 1 | AR18: 1 | AS18: 1 | AT18: 1 | AU18: 1 | AV18: 1 | AW18: 1 | AX18: 1 | AY18: 1 | AZ18: 1 | BA18: 1 | BB18: 1 | BC18: 1 | BD18: 1 | BE18: 1 | BF18: 1 | BG18: 1 | BH18: 1 | BI18: 0 | BJ18: 0 | BK18: 0 | BL18: 0 | BM18: 0 | BN18: 0 | BO18: 0 | BP18: 0 | BQ18: 0 | BR18: 0 | BS18: 0 | BT18: 0 | BU18: 0 | BV18: 0 | BW18: 0 | BX18: 0 | BY18: 0 | BZ18: 0 | CA18: 0 | CB18: 0 | CC18: 0 | CD18: 0 | CG18: 92621258 | CH18: 15 | CI18: =((CI62/$CG62))*($CG18/1000) ->  | DO18: =((DO62/$CG62))*($CG18/1000) ->  | EV18: =((EV62/$CG62))*($CG18/1000) ->  | EY18: =((EY62/$CG62))*($CG18/1000) -> 
A19: 20220316 | B19: 2022 | C19: 3 | D19: 16 | E19: =+FEB!F19+1 -> 2022-02-18 | F19: 2022-03-18 | G19: 29 | H19: =+E19-FEB!F19 -> 1 | K19: 16 | L19: 0 | M19: 0 | N19: 0 | O19: 0 | P19: 0 | Q19: 0 | R19: 0 | S19: 0 | T19: 0 | U19: 0 | V19: 0 | W19: 0 | X19: 0 | Y19: 0 | Z19: 0 | AA19: 0 | AB19: 0 | AC19: 0 | AD19: 0 | AE19: 0 | AF19: 0 | AG19: 1 | AH19: 1 | AI19: 1 | AJ19: 1 | AK19: 1 | AL19: =IF(AND(AL$3>=$E19,AL$3<=$F19),1,0) -> 1 | AM19: 1 | AN19: 1 | AO19: 1 | AP19: 1 | AQ19: 1 | AR19: 1 | AS19: 1 | AT19: 1 | AU19: 1 | AV19: 1 | AW19: 1 | AX19: 1 | AY19: 1 | AZ19: 1 | BA19: 1 | BB19: 1 | BC19: 1 | BD19: 1 | BE19: 1 | BF19: 1 | BG19: 1 | BH19: 1 | BI19: 1 | BJ19: 0 | BK19: 0 | BL19: 0 | BM19: 0 | BN19: 0 | BO19: 0 | BP19: 0 | BQ19: 0 | BR19: 0 | BS19: 0 | BT19: 0 | BU19: 0 | BV19: 0 | BW19: 0 | BX19: 0 | BY19: 0 | BZ19: 0 | CA19: 0 | CB19: 0 | CC19: 0 | CD19: 0 | CG19: 46853664 | CH19: 16 | CI19: =((CI63/$CG63))*($CG19/1000) ->  | DO19: =((DO63/$CG63))*($CG19/1000) ->  | EV19: =((EV63/$CG63))*($CG19/1000) ->  | EY19: =((EY63/$CG63))*($CG19/1000) -> 
A20: 20220317 | B20: 2022 | C20: 3 | D20: 17 | E20: =+FEB!F20+1 -> 2022-02-19 | F20: 2022-03-21 | G20: 31 | H20: =+E20-FEB!F20 -> 1 | K20: 17 | L20: 0 | M20: 0 | N20: 0 | O20: 0 | P20: 0 | Q20: 0 | R20: 0 | S20: 0 | T20: 0 | U20: 0 | V20: 0 | W20: 0 | X20: 0 | Y20: 0 | Z20: 0 | AA20: 0 | AB20: =IF(AND(AB$3>=$E20,AB$3<=$F20),1,0) -> 0 | AC20: 0 | AD20: 0 | AE20: 0 | AF20: 0 | AG20: 0 | AH20: 1 | AI20: 1 | AJ20: 1 | AK20: 1 | AL20: 1 | AM20: 1 | AN20: 1 | AO20: 1 | AP20: 1 | AQ20: 1 | AR20: 1 | AS20: 1 | AT20: 1 | AU20: 1 | AV20: 1 | AW20: 1 | AX20: 1 | AY20: 1 | AZ20: 1 | BA20: 1 | BB20: 1 | BC20: 1 | BD20: 1 | BE20: 1 | BF20: 1 | BG20: 1 | BH20: 1 | BI20: 1 | BJ20: 1 | BK20: 1 | BL20: 1 | BM20: 0 | BN20: 0 | BO20: 0 | BP20: 0 | BQ20: 0 | BR20: 0 | BS20: 0 | BT20: 0 | BU20: 0 | BV20: 0 | BW20: 0 | BX20: 0 | BY20: 0 | BZ20: 0 | CA20: 0 | CB20: =IF(AND(CB$3>=$E20,CB$3<=$F20),1,0) -> 0 | CC20: 0 | CD20: 0 | CG20: 33693064 | CH20: 17 | CI20: =((CI64/$CG64))*($CG20/1000) ->  | DO20: =((DO64/$CG64))*($CG20/1000) ->  | EV20: =((EV64/$CG64))*($CG20/1000) ->  | EY20: =((EY64/$CG64))*($CG20/1000) -> 
A21: 20220318 | B21: 2022 | C21: 3 | D21: 18 | E21: =+FEB!F21+1 -> 2022-02-22 | F21: 2022-03-22 | G21: 29 | H21: =+E21-FEB!F21 -> 1 | K21: 18 | L21: 0 | M21: 0 | N21: 0 | O21: 0 | P21: 0 | Q21: 0 | R21: 0 | S21: 0 | T21: 0 | U21: 0 | V21: 0 | W21: 0 | X21: 0 | Y21: 0 | Z21: 0 | AA21: 0 | AB21: 0 | AC21: 0 | AD21: 0 | AE21: 0 | AF21: 0 | AG21: 0 | AH21: 0 | AI21: 0 | AJ21: 0 | AK21: 1 | AL21: 1 | AM21: 1 | AN21: 1 | AO21: 1 | AP21: 1 | AQ21: 1 | AR21: 1 | AS21: 1 | AT21: 1 | AU21: 1 | AV21: 1 | AW21: 1 | AX21: 1 | AY21: 1 | AZ21: 1 | BA21: 1 | BB21: 1 | BC21: 1 | BD21: 1 | BE21: 1 | BF21: 1 | BG21: 1 | BH21: 1 | BI21: 1 | BJ21: 1 | BK21: 1 | BL21: 1 | BM21: 1 | BN21: 0 | BO21: 0 | BP21: 0 | BQ21: 0 | BR21: 0 | BS21: 0 | BT21: 0 | BU21: 0 | BV21: 0 | BW21: 0 | BX21: 0 | BY21: 0 | BZ21: 0 | CA21: 0 | CB21: 0 | CC21: 0 | CD21: 0 | CG21: 100729564 | CH21: 18 | CI21: =((CI65/$CG65))*($CG21/1000) ->  | DO21: =((DO65/$CG65))*($CG21/1000) ->  | EV21: =((EV65/$CG65))*($CG21/1000) ->  | EY21: =((EY65/$CG65))*($CG21/1000) -> 
A22: 20220319 | B22: 2022 | C22: 3 | D22: 19 | E22: =+FEB!F22+1 -> 2022-02-23 | F22: 2022-03-23 | G22: 29 | H22: =+E22-FEB!F22 -> 1 | K22: 19 | L22: 0 | M22: 0 | N22: 0 | O22: 0 | P22: 0 | Q22: 0 | R22: 0 | S22: 0 | T22: 0 | U22: 0 | V22: 0 | W22: 0 | X22: 0 | Y22: 0 | Z22: 0 | AA22: 0 | AB22: 0 | AC22: 0 | AD22: 0 | AE22: 0 | AF22: 0 | AG22: 0 | AH22: 0 | AI22: 0 | AJ22: 0 | AK22: 0 | AL22: 1 | AM22: 1 | AN22: 1 | AO22: 1 | AP22: 1 | AQ22: 1 | AR22: 1 | AS22: 1 | AT22: 1 | AU22: 1 | AV22: 1 | AW22: 1 | AX22: 1 | AY22: 1 | AZ22: 1 | BA22: 1 | BB22: 1 | BC22: 1 | BD22: 1 | BE22: 1 | BF22: 1 | BG22: 1 | BH22: 1 | BI22: 1 | BJ22: 1 | BK22: 1 | BL22: 1 | BM22: 1 | BN22: 1 | BO22: 0 | BP22: 0 | BQ22: 0 | BR22: 0 | BS22: 0 | BT22: 0 | BU22: 0 | BV22: 0 | BW22: 0 | BX22: 0 | BY22: 0 | BZ22: 0 | CA22: 0 | CB22: 0 | CC22: 0 | CD22: 0 | CG22: 44569141 | CH22: 19 | CI22: =((CI66/$CG66))*($CG22/1000) ->  | DO22: =((DO66/$CG66))*($CG22/1000) ->  | EV22: =((EV66/$CG66))*($CG22/1000) ->  | EY22: =((EY66/$CG66))*($CG22/1000) -> 
A23: 20220320 | B23: 2022 | C23: 3 | D23: 20 | E23: =+FEB!F23+1 -> 2022-02-24 | F23: 2022-03-24 | G23: 29 | H23: =+E23-FEB!F23 -> 1 | K23: 20 | L23: 0 | M23: 0 | N23: 0 | O23: 0 | P23: 0 | Q23: 0 | R23: 0 | S23: 0 | T23: 0 | U23: 0 | V23: 0 | W23: 0 | X23: =IF(AND(X$3>=$E23,X$3<=$F23),1,0) -> 0 | Y23: 0 | Z23: 0 | AA23: 0 | AB23: 0 | AC23: 0 | AD23: 0 | AE23: 0 | AF23: 0 | AG23: 0 | AH23: 0 | AI23: 0 | AJ23: 0 | AK23: 0 | AL23: 0 | AM23: 1 | AN23: 1 | AO23: 1 | AP23: 1 | AQ23: 1 | AR23: 1 | AS23: 1 | AT23: 1 | AU23: 1 | AV23: 1 | AW23: 1 | AX23: 1 | AY23: 1 | AZ23: 1 | BA23: 1 | BB23: 1 | BC23: 1 | BD23: 1 | BE23: 1 | BF23: 1 | BG23: 1 | BH23: 1 | BI23: 1 | BJ23: 1 | BK23: 1 | BL23: 1 | BM23: 1 | BN23: 1 | BO23: 1 | BP23: 0 | BQ23: 0 | BR23: 0 | BS23: 0 | BT23: 0 | BU23: 0 | BV23: 0 | BW23: 0 | BX23: 0 | BY23: 0 | BZ23: 0 | CA23: 0 | CB23: 0 | CC23: 0 | CD23: 0 | CG23: 39979659 | CH23: 20 | CI23: =((CI67/$CG67))*($CG23/1000) ->  | DO23: =((DO67/$CG67))*($CG23/1000) ->  | EV23: =((EV67/$CG67))*($CG23/1000) ->  | EY23: =((EY67/$CG67))*($CG23/1000) -> 
A24: 20220321 | B24: 2022 | C24: 3 | D24: 21 | E24: =+FEB!F24+1 -> 2022-02-25 | F24: 2022-03-25 | G24: 29 | H24: =+E24-FEB!F24 -> 1 | K24: 21 | L24: =IF(AND(L$3>=$E24,L$3<=$F24),1,0) -> 0 | M24: 0 | N24: 0 | O24: 0 | P24: 0 | Q24: 0 | R24: 0 | S24: 0 | T24: 0 | U24: 0 | V24: 0 | W24: 0 | X24: 0 | Y24: 0 | Z24: 0 | AA24: 0 | AB24: 0 | AC24: 0 | AD24: 0 | AE24: 0 | AF24: 0 | AG24: 0 | AH24: 0 | AI24: 0 | AJ24: 0 | AK24: 0 | AL24: 0 | AM24: 0 | AN24: 1 | AO24: 1 | AP24: 1 | AQ24: 1 | AR24: 1 | AS24: 1 | AT24: 1 | AU24: 1 | AV24: 1 | AW24: 1 | AX24: 1 | AY24: 1 | AZ24: 1 | BA24: 1 | BB24: 1 | BC24: 1 | BD24: 1 | BE24: 1 | BF24: 1 | BG24: 1 | BH24: 1 | BI24: 1 | BJ24: 1 | BK24: 1 | BL24: 1 | BM24: 1 | BN24: 1 | BO24: 1 | BP24: 1 | BQ24: 0 | BR24: 0 | BS24: 0 | BT24: 0 | BU24: 0 | BV24: 0 | BW24: 0 | BX24: 0 | BY24: 0 | BZ24: 0 | CA24: 0 | CB24: 0 | CC24: 0 | CD24: 0 | CG24: 78846395 | CH24: 21 | CI24: =((CI68/$CG68))*($CG24/1000) ->  | DO24: =((DO68/$CG68))*($CG24/1000) ->  | EV24: =((EV68/$CG68))*($CG24/1000) ->  | EY24: =((EY68/$CG68))*($CG24/1000) -> 
A25: =+A24+2 -> 20220323 | B25: 2022 | C25: 3 | D25: 23 | E25: =+FEB!F25+1 -> 2022-03-01 | F25: =DATE(A1,A2,31) -> 2022-03-31 | G25: 31 | H25: =+E25-FEB!F25 -> 1 | K25: 23 | L25: 0 | M25: 0 | N25: 0 | O25: 0 | P25: 0 | Q25: 0 | R25: 0 | S25: 0 | T25: 0 | U25: 0 | V25: 0 | W25: 0 | X25: 0 | Y25: 0 | Z25: 0 | AA25: 0 | AB25: 0 | AC25: 0 | AD25: 0 | AE25: 0 | AF25: 0 | AG25: 0 | AH25: 0 | AI25: 0 | AJ25: 0 | AK25: 0 | AL25: 0 | AM25: 0 | AN25: 0 | AO25: 0 | AP25: 0 | AQ25: 0 | AR25: 1 | AS25: 1 | AT25: 1 | AU25: 1 | AV25: 1 | AW25: 1 | AX25: 1 | AY25: 1 | AZ25: 1 | BA25: 1 | BB25: 1 | BC25: 1 | BD25: 1 | BE25: 1 | BF25: 1 | BG25: 1 | BH25: 1 | BI25: 1 | BJ25: 1 | BK25: 1 | BL25: 1 | BM25: 1 | BN25: 1 | BO25: 1 | BP25: 1 | BQ25: 1 | BR25: 1 | BS25: 1 | BT25: 1 | BU25: 1 | BV25: 1 | BW25: 0 | BX25: 0 | BY25: 0 | BZ25: 0 | CA25: 0 | CB25: 0 | CC25: 0 | CD25: 0 | CF25: =SUM(CI25:FA25)-CG25/1000 ->  | CG25: 104322836 | CH25: 23 | CI25: =((CI69/$CG69))*($CG25/1000) ->  | CJ25: =((CJ69/$CG69))*($CG25/1000) ->  | DO25: =((DO69/$CG69))*($CG25/1000) ->  | EV25: =((EV69/$CG69))*($CG25/1000) ->  | EY25: =((EY69/$CG69))*($CG25/1000) -> 
G26: =AVERAGE(G4:G25) -> 29.45454545 | K26: Cnt | L26: =SUM(L4:L25) -> 1 | M26: =SUM(M4:M25) -> 2 | N26: =SUM(N4:N25) -> 2 | O26: 2 | P26: 3 | Q26: 4 | R26: 5 | S26: 6 | T26: 7 | U26: 7 | V26: 7 | W26: 8 | X26: 9 | Y26: 10 | Z26: 11 | AA26: 12 | AB26: 12 | AC26: 12 | AD26: 13 | AE26: 14 | AF26: 15 | AG26: 16 | AH26: 17 | AI26: 17 | AJ26: 17 | AK26: 18 | AL26: 19 | AM26: 20 | AN26: 21 | AO26: 20 | AP26: 20 | AQ26: 20 | AR26: 20 | AS26: 19 | AT26: 18 | AU26: 17 | AV26: 16 | AW26: 16 | AX26: 16 | AY26: 15 | AZ26: 14 | BA26: 13 | BB26: 12 | BC26: 11 | BD26: 11 | BE26: 11 | BF26: 10 | BG26: 9 | BH26: 8 | BI26: 7 | BJ26: 6 | BK26: 6 | BL26: 6 | BM26: 5 | BN26: 4 | BO26: 3 | BP26: 2 | BQ26: 1 | BR26: 1 | BS26: 1 | BT26: 1 | BU26: 1 | BV26: 1 | BW26: 0 | BX26: 0 | BY26: =SUM(BY4:BY25) -> 0 | BZ26: 0 | CA26: 0 | CB26: 0 | CC26: 0 | CD26: 0 | CF26: =SUM(CI26:FA26)-CG26/1000 ->  | CG26: =SUM(CG4:CG25) -> 1370566750 | CH26: =SUM(CI26:FA26) ->  | CI26: =SUM(CI4:CI25) ->  | CJ26: =SUM(CJ4:CJ25) ->  | EV26: =SUM(EV4:EV25) ->  | EY26: =SUM(EY4:EY25) -> 
F27: Check | G27: =+CD3 -> 2022-04-08 | I27: =SUM(L27:CD27) -> 29.45454545 | K27: PctOn | L27: =+L26/22 -> 0.04545454545 | M27: =+M26/22 -> 0.09090909091 | N27: 0.09090909091 | O27: 0.09090909091 | P27: 0.1363636364 | Q27: 0.1818181818 | R27: 0.2272727273 | S27: 0.2727272727 | T27: 0.3181818182 | U27: 0.3181818182 | V27: 0.3181818182 | W27: 0.3636363636 | X27: 0.4090909091 | Y27: 0.4545454545 | Z27: 0.5 | AA27: 0.5454545455 | AB27: 0.5454545455 | AC27: 0.5454545455 | AD27: 0.5909090909 | AE27: 0.6363636364 | AF27: 0.6818181818 | AG27: 0.7272727273 | AH27: 0.7727272727 | AI27: 0.7727272727 | AJ27: 0.7727272727 | AK27: 0.8181818182 | AL27: 0.8636363636 | AM27: 0.9090909091 | AN27: 0.9545454545 | AO27: 0.9090909091 | AP27: 0.9090909091 | AQ27: 0.9090909091 | AR27: 0.9090909091 | AS27: 0.8636363636 | AT27: 0.8181818182 | AU27: 0.7727272727 | AV27: 0.7272727273 | AW27: 0.7272727273 | AX27: 0.7272727273 | AY27: 0.6818181818 | AZ27: 0.6363636364 | BA27: 0.5909090909 | BB27: 0.5454545455 | BC27: 0.5 | BD27: 0.5 | BE27: 0.5 | BF27: 0.4545454545 | BG27: 0.4090909091 | BH27: 0.3636363636 | BI27: 0.3181818182 | BJ27: 0.2727272727 | BK27: 0.2727272727 | BL27: 0.2727272727 | BM27: 0.2272727273 | BN27: 0.1818181818 | BO27: 0.1363636364 | BP27: 0.09090909091 | BQ27: 0.04545454545 | BR27: 0.04545454545 | BS27: 0.04545454545 | BT27: 0.04545454545 | BU27: 0.04545454545 | BV27: 0.04545454545 | BW27: 0 | BX27: 0 | BY27: =+BY26/22 -> 0 | BZ27: 0 | CA27: 0 | CB27: 0 | CC27: 0 | CD27: 0 | CH27: NEL---->>> | CI27: =VLOOKUP(CI3,Daily!$A$2:$H$459,8) -> 0 | CJ27: =VLOOKUP(CJ3,Daily!$A$2:$H$459,8) -> 0 | CK27: =VLOOKUP(CK3,Daily!$A$2:$H$459,8) -> 0 | CL27: =VLOOKUP(CL3,Daily!$A$2:$H$459,8) -> 0 | CM27: =VLOOKUP(CM3,Daily!$A$2:$H$459,8) -> 0 | CN27: =VLOOKUP(CN3,Daily!$A$2:$H$459,8) -> 0 | CO27: =VLOOKUP(CO3,Daily!$A$2:$H$459,8) -> 0 | CP27: =VLOOKUP(CP3,Daily!$A$2:$H$459,8) -> 0 | CQ27: =VLOOKUP(CQ3,Daily!$A$2:$H$459,8) -> 0 | CR27: =VLOOKUP(CR3,Daily!$A$2:$H$459,8) -> 0 | CS27: =VLOOKUP(CS3,Daily!$A$2:$H$459,8) -> 0 | CT27: =VLOOKUP(CT3,Daily!$A$2:$H$459,8) -> 0 | CU27: =VLOOKUP(CU3,Daily!$A$2:$H$459,8) -> 0 | CV27: =VLOOKUP(CV3,Daily!$A$2:$H$459,8) -> 0 | CW27: =VLOOKUP(CW3,Daily!$A$2:$H$459,8) -> 0 | CX27: =VLOOKUP(CX3,Daily!$A$2:$H$459,8) -> 0 | CY27: =VLOOKUP(CY3,Daily!$A$2:$H$459,8) -> 0 | CZ27: =VLOOKUP(CZ3,Daily!$A$2:$H$459,8) -> 0 | DA27: =VLOOKUP(DA3,Daily!$A$2:$H$459,8) -> 0 | DB27: =VLOOKUP(DB3,Daily!$A$2:$H$459,8) -> 0 | DC27: =VLOOKUP(DC3,Daily!$A$2:$H$459,8) -> 0 | DD27: =VLOOKUP(DD3,Daily!$A$2:$H$459,8) -> 0 | DE27: =VLOOKUP(DE3,Daily!$A$2:$H$459,8) -> 0 | DF27: =VLOOKUP(DF3,Daily!$A$2:$H$459,8) -> 0 | DG27: =VLOOKUP(DG3,Daily!$A$2:$H$459,8) -> 0 | DH27: =VLOOKUP(DH3,Daily!$A$2:$H$459,8) -> 0 | DI27: =VLOOKUP(DI3,Daily!$A$2:$H$459,8) -> 0 | DJ27: =VLOOKUP(DJ3,Daily!$A$2:$H$459,8) -> 0 | DK27: =VLOOKUP(DK3,Daily!$A$2:$H$459,8) -> 0 | DL27: =VLOOKUP(DL3,Daily!$A$2:$H$459,8) -> 0 | DM27: =VLOOKUP(DM3,Daily!$A$2:$H$459,8) -> 0 | DN27: =VLOOKUP(DN3,Daily!$A$2:$H$459,8) -> 0 | DO27: =VLOOKUP(DO3,Daily!$A$2:$H$459,8) -> 0 | DP27: =VLOOKUP(DP3,Daily!$A$2:$H$459,8) -> 0 | DQ27: =VLOOKUP(DQ3,Daily!$A$2:$H$459,8) -> 0 | DR27: =VLOOKUP(DR3,Daily!$A$2:$H$459,8) -> 0 | DS27: =VLOOKUP(DS3,Daily!$A$2:$H$459,8) -> 0 | DT27: =VLOOKUP(DT3,Daily!$A$2:$H$459,8) -> 0 | DU27: =VLOOKUP(DU3,Daily!$A$2:$H$459,8) -> 0 | DV27: =VLOOKUP(DV3,Daily!$A$2:$H$459,8) -> 0 | DW27: =VLOOKUP(DW3,Daily!$A$2:$H$459,8) -> 0 | DX27: =VLOOKUP(DX3,Daily!$A$2:$H$459,8) -> 0 | DY27: =VLOOKUP(DY3,Daily!$A$2:$H$459,8) -> 0 | DZ27: =VLOOKUP(DZ3,Daily!$A$2:$H$459,8) -> 0 | EA27: =VLOOKUP(EA3,Daily!$A$2:$H$459,8) -> 0 | EB27: =VLOOKUP(EB3,Daily!$A$2:$H$459,8) -> 0 | EC27: =VLOOKUP(EC3,Daily!$A$2:$H$459,8) -> 0 | ED27: =VLOOKUP(ED3,Daily!$A$2:$H$459,8) -> 0 | EE27: =VLOOKUP(EE3,Daily!$A$2:$H$459,8) -> 0 | EF27: =VLOOKUP(EF3,Daily!$A$2:$H$459,8) -> 0 | EG27: =VLOOKUP(EG3,Daily!$A$2:$H$459,8) -> 0 | EH27: =VLOOKUP(EH3,Daily!$A$2:$H$459,8) -> 0 | EI27: =VLOOKUP(EI3,Daily!$A$2:$H$459,8) -> 0 | EJ27: =VLOOKUP(EJ3,Daily!$A$2:$H$459,8) -> 0 | EK27: =VLOOKUP(EK3,Daily!$A$2:$H$459,8) -> 0 | EL27: =VLOOKUP(EL3,Daily!$A$2:$H$459,8) -> 0 | EM27: =VLOOKUP(EM3,Daily!$A$2:$H$459,8) -> 0 | EN27: =VLOOKUP(EN3,Daily!$A$2:$H$459,8) -> 0 | EO27: =VLOOKUP(EO3,Daily!$A$2:$H$459,8) -> 0 | EP27: =VLOOKUP(EP3,Daily!$A$2:$H$459,8) -> 0 | EQ27: =VLOOKUP(EQ3,Daily!$A$2:$H$459,8) -> 0 | ER27: =VLOOKUP(ER3,Daily!$A$2:$H$459,8) -> 0 | ES27: =VLOOKUP(ES3,Daily!$A$2:$H$459,8) -> 0 | ET27: =VLOOKUP(ET3,Daily!$A$2:$H$459,8) -> 0 | EU27: =VLOOKUP(EU3,Daily!$A$2:$H$459,8) -> 0 | EV27: =VLOOKUP(EV3,Daily!$A$2:$H$459,8) -> 0 | EW27: =VLOOKUP(EW3,Daily!$A$2:$H$459,8) -> 0 | EX27: =VLOOKUP(EX3,Daily!$A$2:$H$459,8) -> 0 | EY27: =VLOOKUP(EY3,Daily!$A$2:$H$459,8) -> 0 | EZ27: =VLOOKUP(EZ3,Daily!$A$2:$H$459,8) -> 0 | FA27: =VLOOKUP(FA3,Daily!$A$2:$H$459,8) -> 0
K28: PctOff | L28: =1-L27 -> 0.9545454545 | M28: =1-M27 -> 0.9090909091 | N28: 0.9090909091 | O28: 0.9090909091 | P28: 0.8636363636 | Q28: 0.8181818182 | R28: 0.7727272727 | S28: 0.7272727273 | T28: 0.6818181818 | U28: 0.6818181818 | V28: 0.6818181818 | W28: 0.6363636364 | X28: 0.5909090909 | Y28: 0.5454545455 | Z28: 0.5 | AA28: 0.4545454545 | AB28: 0.4545454545 | AC28: 0.4545454545 | AD28: 0.4090909091 | AE28: 0.3636363636 | AF28: 0.3181818182 | AG28: 0.2727272727 | AH28: 0.2272727273 | AI28: 0.2272727273 | AJ28: 0.2272727273 | AK28: 0.1818181818 | AL28: 0.1363636364 | AM28: 0.09090909091 | AN28: 0.04545454545 | AO28: 0.09090909091 | AP28: 0.09090909091 | AQ28: 0.09090909091 | AR28: 0.09090909091 | AS28: 0.1363636364 | AT28: 0.1818181818 | AU28: 0.2272727273 | AV28: 0.2727272727 | AW28: 0.2727272727 | AX28: 0.2727272727 | AY28: 0.3181818182 | AZ28: 0.3636363636 | BA28: 0.4090909091 | BB28: 0.4545454545 | BC28: 0.5 | BD28: 0.5 | BE28: 0.5 | BF28: 0.5454545455 | BG28: 0.5909090909 | BH28: 0.6363636364 | BI28: 0.6818181818 | BJ28: 0.7272727273 | BK28: 0.7272727273 | BL28: 0.7272727273 | BM28: 0.7727272727 | BN28: 0.8181818182 | BO28: 0.8636363636 | BP28: 0.9090909091 | BQ28: 0.9545454545 | BR28: 0.9545454545 | BS28: 0.9545454545 | BT28: 0.9545454545 | BU28: 0.9545454545 | BV28: 0.9545454545 | BW28: =1-BW27 -> 1 | BX28: =1-BX27 -> 1 | BY28: =1-BY27 -> 1 | BZ28: 1 | CA28: 1 | CB28: =1-CB27 -> 1 | CC28: 1 | CD28: 1 | CG28: January:
J29: Average | K29: Temp | L29: =VLOOKUP(L3,Daily!$A:$D,4) -> 60.5 | M29: =VLOOKUP(M3,Daily!$A:$D,4) -> 48 | N29: =VLOOKUP(N3,Daily!$A:$D,4) -> 47 | O29: =VLOOKUP(O3,Daily!$A:$D,4) -> 54 | P29: =VLOOKUP(P3,Daily!$A:$D,4) -> 62.5 | Q29: =VLOOKUP(Q3,Daily!$A:$D,4) -> 69.5 | R29: =VLOOKUP(R3,Daily!$A:$D,4) -> 75.5 | S29: =VLOOKUP(S3,Daily!$A:$D,4) -> 75 | T29: =VLOOKUP(T3,Daily!$A:$D,4) -> 63 | U29: =VLOOKUP(U3,Daily!$A:$D,4) -> 59 | V29: =VLOOKUP(V3,Daily!$A:$D,4) -> 62 | W29: =VLOOKUP(W3,Daily!$A:$D,4) -> 54.5 | X29: =VLOOKUP(X3,Daily!$A:$D,4) -> 59 | Y29: =VLOOKUP(Y3,Daily!$A:$D,4) -> 59.5 | Z29: =VLOOKUP(Z3,Daily!$A:$D,4) -> 65 | AA29: =VLOOKUP(AA3,Daily!$A:$D,4) -> 67.5 | AB29: =VLOOKUP(AB3,Daily!$A:$D,4) -> 66 | AC29: =VLOOKUP(AC3,Daily!$A:$D,4) -> 57 | AD29: =VLOOKUP(AD3,Daily!$A:$D,4) -> 61 | AE29: =VLOOKUP(AE3,Daily!$A:$D,4) -> 71.5 | AF29: =VLOOKUP(AF3,Daily!$A:$D,4) -> 76.5 | AG29: =VLOOKUP(AG3,Daily!$A:$D,4) -> 74.5 | AH29: =VLOOKUP(AH3,Daily!$A:$D,4) -> 68.5 | AI29: =VLOOKUP(AI3,Daily!$A:$D,4) -> 68 | AJ29: =VLOOKUP(AJ3,Daily!$A:$D,4) -> 74.5 | AK29: =VLOOKUP(AK3,Daily!$A:$D,4) -> 77 | AL29: =VLOOKUP(AL3,Daily!$A:$D,4) -> 78 | AM29: =VLOOKUP(AM3,Daily!$A:$D,4) -> 77 | AN29: =VLOOKUP(AN3,Daily!$A:$D,4) -> 76 | AO29: =VLOOKUP(AO3,Daily!$A:$D,4) -> 76 | AP29: =VLOOKUP(AP3,Daily!$A:$D,4) -> 75.5 | AQ29: =VLOOKUP(AQ3,Daily!$A:$D,4) -> 72 | AR29: =VLOOKUP(AR3,Daily!$A:$D,4) -> 69.5 | AS29: =VLOOKUP(AS3,Daily!$A:$D,4) -> 68 | AT29: =VLOOKUP(AT3,Daily!$A:$D,4) -> 71 | AU29: =VLOOKUP(AU3,Daily!$A:$D,4) -> 77 | AV29: =VLOOKUP(AV3,Daily!$A:$D,4) -> 76 | AW29: =VLOOKUP(AW3,Daily!$A:$D,4) -> 77.5 | AX29: =VLOOKUP(AX3,Daily!$A:$D,4) -> 79.5 | AY29: =VLOOKUP(AY3,Daily!$A:$D,4) -> 80 | AZ29: =VLOOKUP(AZ3,Daily!$A:$D,4) -> 80.5 | BA29: =VLOOKUP(BA3,Daily!$A:$D,4) -> 78 | BB29: =VLOOKUP(BB3,Daily!$A:$D,4) -> 79 | BC29: =VLOOKUP(BC3,Daily!$A:$D,4) -> 63.5 | BD29: =VLOOKUP(BD3,Daily!$A:$D,4) -> 55.5 | BE29: =VLOOKUP(BE3,Daily!$A:$D,4) -> 67.5 | BF29: =VLOOKUP(BF3,Daily!$A:$D,4) -> 75.5 | BG29: =VLOOKUP(BG3,Daily!$A:$D,4) -> 74 | BH29: =VLOOKUP(BH3,Daily!$A:$D,4) -> 72 | BI29: =VLOOKUP(BI3,Daily!$A:$D,4) -> 76 | BJ29: =VLOOKUP(BJ3,Daily!$A:$D,4) -> 77.5 | BK29: =VLOOKUP(BK3,Daily!$A:$D,4) -> 74.5 | BL29: =VLOOKUP(BL3,Daily!$A:$D,4) -> 71 | BM29: =VLOOKUP(BM3,Daily!$A:$D,4) -> 77 | BN29: =VLOOKUP(BN3,Daily!$A:$D,4) -> 80 | BO29: =VLOOKUP(BO3,Daily!$A:$D,4) -> 70 | BP29: =VLOOKUP(BP3,Daily!$A:$D,4) -> 71 | BQ29: =VLOOKUP(BQ3,Daily!$A:$D,4) -> 70.5 | BR29: =VLOOKUP(BR3,Daily!$A:$D,4) -> 72 | BS29: =VLOOKUP(BS3,Daily!$A:$D,4) -> 75 | BT29: =VLOOKUP(BT3,Daily!$A:$D,4) -> 75 | BU29: =VLOOKUP(BU3,Daily!$A:$D,4) -> 78.5 | BV29: =VLOOKUP(BV3,Daily!$A:$D,4) -> 79.5 | BW29: =VLOOKUP(BW3,Daily!$A:$D,4) -> 75.5 | BX29: =VLOOKUP(BX3,Daily!$A:$D,4) -> 74 | BY29: =VLOOKUP(BY3,Daily!$A:$D,4) -> 74 | BZ29: =VLOOKUP(BZ3,Daily!$A:$D,4) -> 75 | CA29: =VLOOKUP(CA3,Daily!$A:$D,4) -> 80 | CB29: =VLOOKUP(CB3,Daily!$A:$D,4) -> 82 | CC29: =VLOOKUP(CC3,Daily!$A:$D,4) -> 76 | CD29: =VLOOKUP(CD3,Daily!$A:$D,4) -> 71 | CG29: Billed | CH29: =SUM(CI29:FA29) ->  | CI29: =IF(CI2=$A$2,CI26,0) -> 0 | CJ29: 0 | CK29: 0 | CL29: 0 | CM29: 0 | CN29: 0 | CO29: 0 | CP29: 0 | CQ29: 0 | CR29: 0 | CS29: 0 | CT29: 0 | CU29: 0 | CV29: 0 | CW29: 0 | CX29: 0 | CY29: 0 | CZ29: 0 | DA29: 0 | DB29: 0 | DC29: 0 | DD29: 0 | DE29: 0 | DF29: 0 | DG29: 0 | DH29: 0 | DI29: 0 | DJ29: 0 | DK29: 0 | DL29: 0 | DM29: 0 | DN29: 0 | DO29: =IF(DO2=$A$2,DO26,0) ->  | DP29: =IF(DP2=$A$2,DP26,0) ->  | ET29: 0 | EU29: 0 | EV29: =IF(EV2=$A$2,EV26,0) -> 0 | EW29: 0 | EX29: 0 | EY29: =IF(EY2=$A$2,EY26,0) -> 0 | EZ29: 0 | FA29: 0
I30: =SUM(L30:CD30) -> 11 | J30: Calendar | K30: HDD | L30: =IF((L3>=DATE($A$1,$A$2,1))*(L3<=DATE($A$1,$A$2,DAY(EOMONTH(DATE($A$1,$A$2,1),0)))), IF(L29<65,65-L29,0),0) -> 0 | M30: =IF((M3>=DATE($A$1,$A$2,1))*(M3<=DATE($A$1,$A$2,DAY(EOMONTH(DATE($A$1,$A$2,1),0)))), IF(M29<65,65-M29,0),0) -> 0 | N30: 0 | O30: 0 | P30: 0 | Q30: 0 | R30: 0 | S30: 0 | T30: 0 | U30: 0 | V30: 0 | W30: 0 | X30: 0 | Y30: 0 | Z30: 0 | AA30: 0 | AB30: 0 | AC30: 0 | AD30: 0 | AE30: 0 | AF30: 0 | AG30: 0 | AH30: 0 | AI30: 0 | AJ30: 0 | AK30: 0 | AL30: 0 | AM30: 0 | AN30: 0 | AO30: 0 | AP30: 0 | AQ30: 0 | AR30: 0 | AS30: 0 | AT30: 0 | AU30: 0 | AV30: 0 | AW30: 0 | AX30: 0 | AY30: 0 | AZ30: 0 | BA30: 0 | BB30: 0 | BC30: 1.5 | BD30: 9.5 | BE30: 0 | BF30: 0 | BG30: 0 | BH30: 0 | BI30: 0 | BJ30: 0 | BK30: 0 | BL30: 0 | BM30: 0 | BN30: 0 | BO30: 0 | BP30: 0 | BQ30: 0 | BR30: 0 | BS30: 0 | BT30: 0 | BU30: 0 | BV30: 0 | BW30: 0 | BX30: 0 | BY30: =IF((BY3>=DATE($A$1,$A$2,1))*(BY3<=DATE($A$1,$A$2,DAY(EOMONTH(DATE($A$1,$A$2,1),0)))), IF(BY29<65,65-BY29,0),0) -> 0 | BZ30: 0 | CA30: 0 | CB30: 0 | CC30: 0 | CD30: 0 | CG30: Unbilled1 | CH30: =SUM(CI30:FA30) -> 0 | CI30: =IFERROR(IF(CI2=$A$2,HLOOKUP(CI3,APR!$CI$3:$ET$26,24),0),0) -> 0 | CJ30: =IFERROR(IF(CJ2=$A$2,HLOOKUP(CJ3,APR!$CI$3:$ET$26,24),0),0) -> 0 | CK30: =IFERROR(IF(CK2=$A$2,HLOOKUP(CK3,APR!$CI$3:$ET$26,24),0),0) -> 0 | CL30: =IFERROR(IF(CL2=$A$2,HLOOKUP(CL3,APR!$CI$3:$ET$26,24),0),0) -> 0 | CM30: =IFERROR(IF(CM2=$A$2,HLOOKUP(CM3,APR!$CI$3:$ET$26,24),0),0) -> 0 | CN30: =IFERROR(IF(CN2=$A$2,HLOOKUP(CN3,APR!$CI$3:$ET$26,24),0),0) -> 0 | CO30: =IFERROR(IF(CO2=$A$2,HLOOKUP(CO3,APR!$CI$3:$ET$26,24),0),0) -> 0 | CP30: =IFERROR(IF(CP2=$A$2,HLOOKUP(CP3,APR!$CI$3:$ET$26,24),0),0) -> 0 | CQ30: =IFERROR(IF(CQ2=$A$2,HLOOKUP(CQ3,APR!$CI$3:$ET$26,24),0),0) -> 0 | CR30: =IFERROR(IF(CR2=$A$2,HLOOKUP(CR3,APR!$CI$3:$ET$26,24),0),0) -> 0 | CS30: =IFERROR(IF(CS2=$A$2,HLOOKUP(CS3,APR!$CI$3:$ET$26,24),0),0) -> 0 | CT30: =IFERROR(IF(CT2=$A$2,HLOOKUP(CT3,APR!$CI$3:$ET$26,24),0),0) -> 0 | CU30: =IFERROR(IF(CU2=$A$2,HLOOKUP(CU3,APR!$CI$3:$ET$26,24),0),0) -> 0 | CV30: =IFERROR(IF(CV2=$A$2,HLOOKUP(CV3,APR!$CI$3:$ET$26,24),0),0) -> 0 | CW30: =IFERROR(IF(CW2=$A$2,HLOOKUP(CW3,APR!$CI$3:$ET$26,24),0),0) -> 0 | CX30: =IFERROR(IF(CX2=$A$2,HLOOKUP(CX3,APR!$CI$3:$ET$26,24),0),0) -> 0 | CY30: =IFERROR(IF(CY2=$A$2,HLOOKUP(CY3,APR!$CI$3:$ET$26,24),0),0) -> 0 | CZ30: =IFERROR(IF(CZ2=$A$2,HLOOKUP(CZ3,APR!$CI$3:$ET$26,24),0),0) -> 0 | DA30: =IFERROR(IF(DA2=$A$2,HLOOKUP(DA3,APR!$CI$3:$ET$26,24),0),0) -> 0 | DB30: =IFERROR(IF(DB2=$A$2,HLOOKUP(DB3,APR!$CI$3:$ET$26,24),0),0) -> 0 | DC30: =IFERROR(IF(DC2=$A$2,HLOOKUP(DC3,APR!$CI$3:$ET$26,24),0),0) -> 0 | DD30: =IFERROR(IF(DD2=$A$2,HLOOKUP(DD3,APR!$CI$3:$ET$26,24),0),0) -> 0 | DE30: =IFERROR(IF(DE2=$A$2,HLOOKUP(DE3,APR!$CI$3:$ET$26,24),0),0) -> 0 | DF30: =IFERROR(IF(DF2=$A$2,HLOOKUP(DF3,APR!$CI$3:$ET$26,24),0),0) -> 0 | DG30: =IFERROR(IF(DG2=$A$2,HLOOKUP(DG3,APR!$CI$3:$ET$26,24),0),0) -> 0 | DH30: =IFERROR(IF(DH2=$A$2,HLOOKUP(DH3,APR!$CI$3:$ET$26,24),0),0) -> 0 | DI30: =IFERROR(IF(DI2=$A$2,HLOOKUP(DI3,APR!$CI$3:$ET$26,24),0),0) -> 0 | DJ30: =IFERROR(IF(DJ2=$A$2,HLOOKUP(DJ3,APR!$CI$3:$ET$26,24),0),0) -> 0 | DK30: =IFERROR(IF(DK2=$A$2,HLOOKUP(DK3,APR!$CI$3:$ET$26,24),0),0) -> 0 | DL30: =IFERROR(IF(DL2=$A$2,HLOOKUP(DL3,APR!$CI$3:$ET$26,24),0),0) -> 0 | DM30: =IFERROR(IF(DM2=$A$2,HLOOKUP(DM3,APR!$CI$3:$ET$26,24),0),0) -> 0 | DN30: =IFERROR(IF(DN2=$A$2,HLOOKUP(DN3,APR!$CI$3:$ET$26,24),0),0) -> 0 | DO30: =IFERROR(IF(DO2=$A$2,HLOOKUP(DO3,APR!$CI$3:$ET$26,24),0),0) -> 0 | DP30: =IFERROR(IF(DP2=$A$2,HLOOKUP(DP3,APR!$CI$3:$ET$26,24),0),0) -> 0 | DQ30: =IFERROR(IF(DQ2=$A$2,HLOOKUP(DQ3,APR!$CI$3:$ET$26,24),0),0) -> 0 | DR30: =IFERROR(IF(DR2=$A$2,HLOOKUP(DR3,APR!$CI$3:$ET$26,24),0),0) -> 0 | DS30: =IFERROR(IF(DS2=$A$2,HLOOKUP(DS3,APR!$CI$3:$ET$26,24),0),0) -> 0 | DT30: =IFERROR(IF(DT2=$A$2,HLOOKUP(DT3,APR!$CI$3:$ET$26,24),0),0) -> 0 | DU30: =IFERROR(IF(DU2=$A$2,HLOOKUP(DU3,APR!$CI$3:$ET$26,24),0),0) -> 0 | DV30: =IFERROR(IF(DV2=$A$2,HLOOKUP(DV3,APR!$CI$3:$ET$26,24),0),0) -> 0 | DW30: =IFERROR(IF(DW2=$A$2,HLOOKUP(DW3,APR!$CI$3:$ET$26,24),0),0) -> 0 | DX30: =IFERROR(IF(DX2=$A$2,HLOOKUP(DX3,APR!$CI$3:$ET$26,24),0),0) -> 0 | DY30: =IFERROR(IF(DY2=$A$2,HLOOKUP(DY3,APR!$CI$3:$ET$26,24),0),0) -> 0 | DZ30: =IFERROR(IF(DZ2=$A$2,HLOOKUP(DZ3,APR!$CI$3:$ET$26,24),0),0) -> 0 | EA30: =IFERROR(IF(EA2=$A$2,HLOOKUP(EA3,APR!$CI$3:$ET$26,24),0),0) -> 0 | EB30: =IFERROR(IF(EB2=$A$2,HLOOKUP(EB3,APR!$CI$3:$ET$26,24),0),0) -> 0 | EC30: =IFERROR(IF(EC2=$A$2,HLOOKUP(EC3,APR!$CI$3:$ET$26,24),0),0) -> 0 | ED30: =IFERROR(IF(ED2=$A$2,HLOOKUP(ED3,APR!$CI$3:$ET$26,24),0),0) -> 0 | EE30: =IFERROR(IF(EE2=$A$2,HLOOKUP(EE3,APR!$CI$3:$ET$26,24),0),0) -> 0 | EF30: =IFERROR(IF(EF2=$A$2,HLOOKUP(EF3,APR!$CI$3:$ET$26,24),0),0) -> 0 | EG30: =IFERROR(IF(EG2=$A$2,HLOOKUP(EG3,APR!$CI$3:$ET$26,24),0),0) -> 0 | EH30: =IFERROR(IF(EH2=$A$2,HLOOKUP(EH3,APR!$CI$3:$ET$26,24),0),0) -> 0 | EI30: =IFERROR(IF(EI2=$A$2,HLOOKUP(EI3,APR!$CI$3:$ET$26,24),0),0) -> 0 | EJ30: =IFERROR(IF(EJ2=$A$2,HLOOKUP(EJ3,APR!$CI$3:$ET$26,24),0),0) -> 0 | EK30: =IFERROR(IF(EK2=$A$2,HLOOKUP(EK3,APR!$CI$3:$ET$26,24),0),0) -> 0 | EL30: =IFERROR(IF(EL2=$A$2,HLOOKUP(EL3,APR!$CI$3:$ET$26,24),0),0) -> 0 | EM30: =IFERROR(IF(EM2=$A$2,HLOOKUP(EM3,APR!$CI$3:$ET$26,24),0),0) -> 0 | EN30: =IFERROR(IF(EN2=$A$2,HLOOKUP(EN3,APR!$CI$3:$ET$26,24),0),0) -> 0 | EO30: =IFERROR(IF(EO2=$A$2,HLOOKUP(EO3,APR!$CI$3:$ET$26,24),0),0) -> 0 | EP30: =IFERROR(IF(EP2=$A$2,HLOOKUP(EP3,APR!$CI$3:$ET$26,24),0),0) -> 0 | EQ30: =IFERROR(IF(EQ2=$A$2,HLOOKUP(EQ3,APR!$CI$3:$ET$26,24),0),0) -> 0 | ER30: =IFERROR(IF(ER2=$A$2,HLOOKUP(ER3,APR!$CI$3:$ET$26,24),0),0) -> 0 | ES30: =IFERROR(IF(ES2=$A$2,HLOOKUP(ES3,APR!$CI$3:$ET$26,24),0),0) -> 0 | ET30: =IFERROR(IF(ET2=$A$2,HLOOKUP(ET3,APR!$CI$3:$ET$26,24),0),0) -> 0 | EU30: =IFERROR(IF(EU2=$A$2,HLOOKUP(EU3,APR!$CI$3:$ET$26,24),0),0) -> 0 | EV30: =IFERROR(IF(EV2=$A$2,HLOOKUP(EV3,APR!$CI$3:$ET$26,24),0),0) -> 0 | EW30: =IFERROR(IF(EW2=$A$2,HLOOKUP(EW3,APR!$CI$3:$ET$26,24),0),0) -> 0 | EX30: =IFERROR(IF(EX2=$A$2,HLOOKUP(EX3,APR!$CI$3:$ET$26,24),0),0) -> 0 | EY30: =IFERROR(IF(EY2=$A$2,HLOOKUP(EY3,APR!$CI$3:$ET$26,24),0),0) -> 0 | EZ30: =IFERROR(IF(EZ2=$A$2,HLOOKUP(EZ3,APR!$CI$3:$ET$26,24),0),0) -> 0 | FA30: =IFERROR(IF(FA2=$A$2,HLOOKUP(FA3,APR!$CI$3:$ET$26,24),0),0) -> 0
I31: 287.5 | J31: Calendar | K31: CDD | L31: =IF((L3>=DATE($A$1,$A$2,1))*(L3<=DATE($A$1,$A$2,DAY(EOMONTH(DATE($A$1,$A$2,1),0)))), IF(L29>65,L29-65,0),0) -> 0 | M31: =IF((M3>=DATE($A$1,$A$2,1))*(M3<=DATE($A$1,$A$2,DAY(EOMONTH(DATE($A$1,$A$2,1),0)))), IF(M29>65,M29-65,0),0) -> 0 | N31: 0 | O31: 0 | P31: 0 | Q31: 0 | R31: 0 | S31: 0 | T31: 0 | U31: 0 | V31: 0 | W31: 0 | X31: 0 | Y31: 0 | Z31: 0 | AA31: 0 | AB31: 0 | AC31: 0 | AD31: 0 | AE31: 0 | AF31: 0 | AG31: 0 | AH31: 0 | AI31: 0 | AJ31: 0 | AK31: 0 | AL31: 0 | AM31: 0 | AN31: 0 | AO31: 0 | AP31: 0 | AQ31: 0 | AR31: 4.5 | AS31: 3 | AT31: 6 | AU31: 12 | AV31: 11 | AW31: 12.5 | AX31: 14.5 | AY31: 15 | AZ31: 15.5 | BA31: 13 | BB31: 14 | BC31: 0 | BD31: 0 | BE31: 2.5 | BF31: 10.5 | BG31: 9 | BH31: 7 | BI31: 11 | BJ31: 12.5 | BK31: 9.5 | BL31: 6 | BM31: 12 | BN31: 15 | BO31: 5 | BP31: 6 | BQ31: 5.5 | BR31: 7 | BS31: 10 | BT31: 10 | BU31: 13.5 | BV31: 14.5 | BW31: 0 | BX31: 0 | BY31: =IF((BY3>=DATE($A$1,$A$2,1))*(BY3<=DATE($A$1,$A$2,DAY(EOMONTH(DATE($A$1,$A$2,1),0)))), IF(BY29>65,BY29-65,0),0) -> 0 | BZ31: 0 | CA31: 0 | CB31: 0 | CC31: 0 | CD31: 0 | CG31: Unbilled2 | CH31: 0 | CI31: =IFERROR(IF(CI2=$A$2,HLOOKUP(CI3,#REF!,24),0),0) -> 0 | CJ31: =IFERROR(IF(CJ2=$A$2,HLOOKUP(CJ3,#REF!,24),0),0) -> 0 | CK31: =IFERROR(IF(CK2=$A$2,HLOOKUP(CK3,#REF!,24),0),0) -> 0 | CL31: =IFERROR(IF(CL2=$A$2,HLOOKUP(CL3,#REF!,24),0),0) -> 0 | CM31: =IFERROR(IF(CM2=$A$2,HLOOKUP(CM3,#REF!,24),0),0) -> 0 | CN31: =IFERROR(IF(CN2=$A$2,HLOOKUP(CN3,#REF!,24),0),0) -> 0 | CO31: =IFERROR(IF(CO2=$A$2,HLOOKUP(CO3,#REF!,24),0),0) -> 0 | CP31: =IFERROR(IF(CP2=$A$2,HLOOKUP(CP3,#REF!,24),0),0) -> 0 | CQ31: =IFERROR(IF(CQ2=$A$2,HLOOKUP(CQ3,#REF!,24),0),0) -> 0 | CR31: =IFERROR(IF(CR2=$A$2,HLOOKUP(CR3,#REF!,24),0),0) -> 0 | CS31: =IFERROR(IF(CS2=$A$2,HLOOKUP(CS3,#REF!,24),0),0) -> 0 | CT31: =IFERROR(IF(CT2=$A$2,HLOOKUP(CT3,#REF!,24),0),0) -> 0 | CU31: =IFERROR(IF(CU2=$A$2,HLOOKUP(CU3,#REF!,24),0),0) -> 0 | CV31: =IFERROR(IF(CV2=$A$2,HLOOKUP(CV3,#REF!,24),0),0) -> 0 | CW31: =IFERROR(IF(CW2=$A$2,HLOOKUP(CW3,#REF!,24),0),0) -> 0 | CX31: =IFERROR(IF(CX2=$A$2,HLOOKUP(CX3,#REF!,24),0),0) -> 0 | CY31: =IFERROR(IF(CY2=$A$2,HLOOKUP(CY3,#REF!,24),0),0) -> 0 | CZ31: =IFERROR(IF(CZ2=$A$2,HLOOKUP(CZ3,#REF!,24),0),0) -> 0 | DA31: =IFERROR(IF(DA2=$A$2,HLOOKUP(DA3,#REF!,24),0),0) -> 0 | DB31: =IFERROR(IF(DB2=$A$2,HLOOKUP(DB3,#REF!,24),0),0) -> 0 | DC31: =IFERROR(IF(DC2=$A$2,HLOOKUP(DC3,#REF!,24),0),0) -> 0 | DD31: =IFERROR(IF(DD2=$A$2,HLOOKUP(DD3,#REF!,24),0),0) -> 0 | DE31: =IFERROR(IF(DE2=$A$2,HLOOKUP(DE3,#REF!,24),0),0) -> 0 | DF31: =IFERROR(IF(DF2=$A$2,HLOOKUP(DF3,#REF!,24),0),0) -> 0 | DG31: =IFERROR(IF(DG2=$A$2,HLOOKUP(DG3,#REF!,24),0),0) -> 0 | DH31: =IFERROR(IF(DH2=$A$2,HLOOKUP(DH3,#REF!,24),0),0) -> 0 | DI31: =IFERROR(IF(DI2=$A$2,HLOOKUP(DI3,#REF!,24),0),0) -> 0 | DJ31: =IFERROR(IF(DJ2=$A$2,HLOOKUP(DJ3,#REF!,24),0),0) -> 0 | DK31: =IFERROR(IF(DK2=$A$2,HLOOKUP(DK3,#REF!,24),0),0) -> 0 | DL31: =IFERROR(IF(DL2=$A$2,HLOOKUP(DL3,#REF!,24),0),0) -> 0 | DM31: =IFERROR(IF(DM2=$A$2,HLOOKUP(DM3,#REF!,24),0),0) -> 0 | DN31: =IFERROR(IF(DN2=$A$2,HLOOKUP(DN3,#REF!,24),0),0) -> 0 | DO31: =IFERROR(IF(DO2=$A$2,HLOOKUP(DO3,#REF!,24),0),0) -> 0 | DP31: =IFERROR(IF(DP2=$A$2,HLOOKUP(DP3,#REF!,24),0),0) -> 0 | DQ31: =IFERROR(IF(DQ2=$A$2,HLOOKUP(DQ3,#REF!,24),0),0) -> 0 | DR31: =IFERROR(IF(DR2=$A$2,HLOOKUP(DR3,#REF!,24),0),0) -> 0 | DS31: =IFERROR(IF(DS2=$A$2,HLOOKUP(DS3,#REF!,24),0),0) -> 0 | DT31: =IFERROR(IF(DT2=$A$2,HLOOKUP(DT3,#REF!,24),0),0) -> 0 | DU31: =IFERROR(IF(DU2=$A$2,HLOOKUP(DU3,#REF!,24),0),0) -> 0 | DV31: =IFERROR(IF(DV2=$A$2,HLOOKUP(DV3,#REF!,24),0),0) -> 0 | DW31: =IFERROR(IF(DW2=$A$2,HLOOKUP(DW3,#REF!,24),0),0) -> 0 | DX31: =IFERROR(IF(DX2=$A$2,HLOOKUP(DX3,#REF!,24),0),0) -> 0 | DY31: =IFERROR(IF(DY2=$A$2,HLOOKUP(DY3,#REF!,24),0),0) -> 0 | DZ31: =IFERROR(IF(DZ2=$A$2,HLOOKUP(DZ3,#REF!,24),0),0) -> 0 | EA31: =IFERROR(IF(EA2=$A$2,HLOOKUP(EA3,#REF!,24),0),0) -> 0 | EB31: =IFERROR(IF(EB2=$A$2,HLOOKUP(EB3,#REF!,24),0),0) -> 0 | EC31: =IFERROR(IF(EC2=$A$2,HLOOKUP(EC3,#REF!,24),0),0) -> 0 | ED31: =IFERROR(IF(ED2=$A$2,HLOOKUP(ED3,#REF!,24),0),0) -> 0 | EE31: =IFERROR(IF(EE2=$A$2,HLOOKUP(EE3,#REF!,24),0),0) -> 0 | EF31: =IFERROR(IF(EF2=$A$2,HLOOKUP(EF3,#REF!,24),0),0) -> 0 | EG31: =IFERROR(IF(EG2=$A$2,HLOOKUP(EG3,#REF!,24),0),0) -> 0 | EH31: =IFERROR(IF(EH2=$A$2,HLOOKUP(EH3,#REF!,24),0),0) -> 0 | EI31: =IFERROR(IF(EI2=$A$2,HLOOKUP(EI3,#REF!,24),0),0) -> 0 | EJ31: =IFERROR(IF(EJ2=$A$2,HLOOKUP(EJ3,#REF!,24),0),0) -> 0 | EK31: =IFERROR(IF(EK2=$A$2,HLOOKUP(EK3,#REF!,24),0),0) -> 0 | EL31: =IFERROR(IF(EL2=$A$2,HLOOKUP(EL3,#REF!,24),0),0) -> 0 | EM31: =IFERROR(IF(EM2=$A$2,HLOOKUP(EM3,#REF!,24),0),0) -> 0 | EN31: =IFERROR(IF(EN2=$A$2,HLOOKUP(EN3,#REF!,24),0),0) -> 0 | EO31: =IFERROR(IF(EO2=$A$2,HLOOKUP(EO3,#REF!,24),0),0) -> 0 | EP31: =IFERROR(IF(EP2=$A$2,HLOOKUP(EP3,#REF!,24),0),0) -> 0 | EQ31: =IFERROR(IF(EQ2=$A$2,HLOOKUP(EQ3,#REF!,24),0),0) -> 0 | ER31: =IFERROR(IF(ER2=$A$2,HLOOKUP(ER3,#REF!,24),0),0) -> 0 | ES31: =IFERROR(IF(ES2=$A$2,HLOOKUP(ES3,#REF!,24),0),0) -> 0 | ET31: =IFERROR(IF(ET2=$A$2,HLOOKUP(ET3,#REF!,24),0),0) -> 0 | EU31: =IFERROR(IF(EU2=$A$2,HLOOKUP(EU3,#REF!,24),0),0) -> 0 | EV31: =IFERROR(IF(EV2=$A$2,HLOOKUP(EV3,#REF!,24),0),0) -> 0 | EW31: =IFERROR(IF(EW2=$A$2,HLOOKUP(EW3,#REF!,24),0),0) -> 0 | EX31: =IFERROR(IF(EX2=$A$2,HLOOKUP(EX3,#REF!,24),0),0) -> 0 | EY31: =IFERROR(IF(EY2=$A$2,HLOOKUP(EY3,#REF!,24),0),0) -> 0 | EZ31: =IFERROR(IF(EZ2=$A$2,HLOOKUP(EZ3,#REF!,24),0),0) -> 0 | FA31: =IFERROR(IF(FA2=$A$2,HLOOKUP(FA3,#REF!,24),0),0) -> 0
I32: 29.22727273 | J32: Billing | K32: HDD | L32: =IF(L29<65, (65-L29)*L27,0) -> 0.2045454545 | M32: =IF(M29<65, (65-M29)*M27,0) -> 1.545454545 | N32: 1.636363636 | O32: 1 | P32: 0.3409090909 | Q32: 0 | R32: 0 | S32: 0 | T32: 0.6363636364 | U32: 1.909090909 | V32: 0.9545454545 | W32: 3.818181818 | X32: 2.454545455 | Y32: 2.5 | Z32: 0 | AA32: 0 | AB32: 0 | AC32: 4.363636364 | AD32: 2.363636364 | AE32: 0 | AF32: 0 | AG32: 0 | AH32: 0 | AI32: 0 | AJ32: 0 | AK32: 0 | AL32: 0 | AM32: 0 | AN32: 0 | AO32: 0 | AP32: 0 | AQ32: 0 | AR32: 0 | AS32: 0 | AT32: 0 | AU32: 0 | AV32: 0 | AW32: 0 | AX32: 0 | AY32: 0 | AZ32: 0 | BA32: 0 | BB32: 0 | BC32: 0.75 | BD32: 4.75 | BE32: 0 | BF32: 0 | BG32: 0 | BH32: 0 | BI32: 0 | BJ32: 0 | BK32: 0 | BL32: 0 | BM32: 0 | BN32: 0 | BO32: 0 | BP32: 0 | BQ32: 0 | BR32: 0 | BS32: 0 | BT32: 0 | BU32: 0 | BV32: 0 | BW32: 0 | BX32: 0 | BY32: =IF(BY29<65, (65-BY29)*BY27,0) -> 0 | BZ32: 0 | CA32: 0 | CB32: 0 | CC32: 0 | CD32: 0 | CG32: Calendar | CI32: =+CI29+CI30+CI31 -> 0 | CJ32: =+CJ29+CJ30+CJ31 -> 0 | CK32: 0 | CL32: 0 | CM32: 0 | CN32: 0 | CO32: 0 | CP32: 0 | CQ32: 0 | CR32: 0 | CS32: 0 | CT32: 0 | CU32: 0 | CV32: 0 | CW32: 0 | CX32: 0 | CY32: 0 | CZ32: 0 | DA32: 0 | DB32: 0 | DC32: 0 | DD32: 0 | DE32: 0 | DF32: 0 | DG32: 0 | DH32: 0 | DI32: 0 | DJ32: 0 | DK32: 0 | DL32: 0 | DM32: 0 | DN32: 0 | ET32: 0 | EU32: 0 | EV32: =+EV29+EV30+EV31 -> 0 | EW32: 0 | EX32: 0 | EY32: =+EY29+EY30+EY31 -> 0 | EZ32: 0 | FA32: 0
I33: 224.1818182 | J33: Billing | K33: CDD | L33: =IF(L29>65, (L29-65)*L27,0) -> 0 | M33: =IF(M29>65, (M29-65)*M27,0) -> 0 | N33: 0 | O33: 0 | P33: 0 | Q33: 0.8181818182 | R33: 2.386363636 | S33: 2.727272727 | T33: 0 | U33: 0 | V33: 0 | W33: 0 | X33: 0 | Y33: 0 | Z33: 0 | AA33: 1.363636364 | AB33: 0.5454545455 | AC33: 0 | AD33: 0 | AE33: 4.136363636 | AF33: 7.840909091 | AG33: 6.909090909 | AH33: 2.704545455 | AI33: 2.318181818 | AJ33: 7.340909091 | AK33: 9.818181818 | AL33: 11.22727273 | AM33: 10.90909091 | AN33: 10.5 | AO33: 10 | AP33: 9.545454545 | AQ33: 6.363636364 | AR33: 4.090909091 | AS33: 2.590909091 | AT33: 4.909090909 | AU33: 9.272727273 | AV33: 8 | AW33: 9.090909091 | AX33: 10.54545455 | AY33: 10.22727273 | AZ33: 9.863636364 | BA33: 7.681818182 | BB33: 7.636363636 | BC33: 0 | BD33: 0 | BE33: 1.25 | BF33: 4.772727273 | BG33: 3.681818182 | BH33: 2.545454545 | BI33: 3.5 | BJ33: 3.409090909 | BK33: 2.590909091 | BL33: 1.636363636 | BM33: 2.727272727 | BN33: 2.727272727 | BO33: 0.6818181818 | BP33: 0.5454545455 | BQ33: 0.25 | BR33: 0.3181818182 | BS33: 0.4545454545 | BT33: 0.4545454545 | BU33: 0.6136363636 | BV33: 0.6590909091 | BW33: 0 | BX33: 0 | BY33: =IF(BY29>65, (BY29-65)*BY27,0) -> 0 | BZ33: 0 | CA33: 0 | CB33: 0 | CC33: 0 | CD33: 0 | CG33: Check | CH33: =+CH32-CH29-CH30-CH31 -> 
I34: 3.715 | J34: Calendar | K34: Rainfall | L34: =VLOOKUP(L3,Daily!$A:$I,9) -> 0.001 | M34: =VLOOKUP(M3,Daily!$A:$I,9) -> 0 | N34: =VLOOKUP(N3,Daily!$A:$I,9) -> 0 | O34: =VLOOKUP(O3,Daily!$A:$I,9) -> 0 | P34: =VLOOKUP(P3,Daily!$A:$I,9) -> 0 | Q34: =VLOOKUP(Q3,Daily!$A:$I,9) -> 0 | R34: =VLOOKUP(R3,Daily!$A:$I,9) -> 0 | S34: =VLOOKUP(S3,Daily!$A:$I,9) -> 0 | T34: =VLOOKUP(T3,Daily!$A:$I,9) -> 0.02 | U34: =VLOOKUP(U3,Daily!$A:$I,9) -> 0.02 | V34: =VLOOKUP(V3,Daily!$A:$I,9) -> 0 | W34: =VLOOKUP(W3,Daily!$A:$I,9) -> 0.35 | X34: =VLOOKUP(X3,Daily!$A:$I,9) -> 0.001 | Y34: =VLOOKUP(Y3,Daily!$A:$I,9) -> 0 | Z34: =VLOOKUP(Z3,Daily!$A:$I,9) -> 0 | AA34: =VLOOKUP(AA3,Daily!$A:$I,9) -> 0.001 | AB34: =VLOOKUP(AB3,Daily!$A:$I,9) -> 0.1 | AC34: =VLOOKUP(AC3,Daily!$A:$I,9) -> 0 | AD34: =VLOOKUP(AD3,Daily!$A:$I,9) -> 0 | AE34: =VLOOKUP(AE3,Daily!$A:$I,9) -> 0 | AF34: =VLOOKUP(AF3,Daily!$A:$I,9) -> 0 | AG34: =VLOOKUP(AG3,Daily!$A:$I,9) -> 0 | AH34: =VLOOKUP(AH3,Daily!$A:$I,9) -> 0.13 | AI34: =VLOOKUP(AI3,Daily!$A:$I,9) -> 0 | AJ34: =VLOOKUP(AJ3,Daily!$A:$I,9) -> 0 | AK34: =VLOOKUP(AK3,Daily!$A:$I,9) -> 0 | AL34: =VLOOKUP(AL3,Daily!$A:$I,9) -> 0 | AM34: =VLOOKUP(AM3,Daily!$A:$I,9) -> 0 | AN34: =VLOOKUP(AN3,Daily!$A:$I,9) -> 0 | AO34: =VLOOKUP(AO3,Daily!$A:$I,9) -> 0 | AP34: =VLOOKUP(AP3,Daily!$A:$I,9) -> 0 | AQ34: =VLOOKUP(AQ3,Daily!$A:$I,9) -> 0 | AR34: =VLOOKUP(AR3,Daily!$A:$I,9) -> 0 | AS34: =VLOOKUP(AS3,Daily!$A:$I,9) -> 0 | AT34: =VLOOKUP(AT3,Daily!$A:$I,9) -> 0 | AU34: =VLOOKUP(AU3,Daily!$A:$I,9) -> 0 | AV34: =VLOOKUP(AV3,Daily!$A:$I,9) -> 0 | AW34: =VLOOKUP(AW3,Daily!$A:$I,9) -> 0 | AX34: =VLOOKUP(AX3,Daily!$A:$I,9) -> 0 | AY34: =VLOOKUP(AY3,Daily!$A:$I,9) -> 0 | AZ34: =VLOOKUP(AZ3,Daily!$A:$I,9) -> 0 | BA34: =VLOOKUP(BA3,Daily!$A:$I,9) -> 0.001 | BB34: =VLOOKUP(BB3,Daily!$A:$I,9) -> 0 | BC34: =VLOOKUP(BC3,Daily!$A:$I,9) -> 0.41 | BD34: =VLOOKUP(BD3,Daily!$A:$I,9) -> 0 | BE34: =VLOOKUP(BE3,Daily!$A:$I,9) -> 0 | BF34: =VLOOKUP(BF3,Daily!$A:$I,9) -> 1.04 | BG34: =VLOOKUP(BG3,Daily!$A:$I,9) -> 0.001 | BH34: =VLOOKUP(BH3,Daily!$A:$I,9) -> 0 | BI34: =VLOOKUP(BI3,Daily!$A:$I,9) -> 0 | BJ34: =VLOOKUP(BJ3,Daily!$A:$I,9) -> 0 | BK34: =VLOOKUP(BK3,Daily!$A:$I,9) -> 0 | BL34: =VLOOKUP(BL3,Daily!$A:$I,9) -> 0 | BM34: =VLOOKUP(BM3,Daily!$A:$I,9) -> 0 | BN34: =VLOOKUP(BN3,Daily!$A:$I,9) -> 0 | BO34: =VLOOKUP(BO3,Daily!$A:$I,9) -> 1.42 | BP34: =VLOOKUP(BP3,Daily!$A:$I,9) -> 0 | BQ34: =VLOOKUP(BQ3,Daily!$A:$I,9) -> 0 | BR34: =VLOOKUP(BR3,Daily!$A:$I,9) -> 0 | BS34: =VLOOKUP(BS3,Daily!$A:$I,9) -> 0 | BT34: =VLOOKUP(BT3,Daily!$A:$I,9) -> 0 | BU34: =VLOOKUP(BU3,Daily!$A:$I,9) -> 0 | BV34: =VLOOKUP(BV3,Daily!$A:$I,9) -> 0.04 | BW34: =VLOOKUP(BW3,Daily!$A:$I,9) -> 0.18 | BX34: =VLOOKUP(BX3,Daily!$A:$I,9) -> 0 | BY34: =VLOOKUP(BY3,Daily!$A:$I,9) -> 0 | BZ34: =VLOOKUP(BZ3,Daily!$A:$I,9) -> 0 | CA34: =VLOOKUP(CA3,Daily!$A:$I,9) -> 0 | CB34: =VLOOKUP(CB3,Daily!$A:$I,9) -> 0 | CC34: =VLOOKUP(CC3,Daily!$A:$I,9) -> 0 | CD34: =VLOOKUP(CD3,Daily!$A:$I,9) -> 0 | CG34: Calendar Rainfall | CI34: =IF(CI32>0,L34,0) -> 0 | CJ34: 0 | CK34: 0 | CL34: 0 | CM34: 0 | CN34: 0 | CO34: 0 | CP34: 0 | CQ34: 0 | CR34: 0 | CS34: 0 | CT34: 0 | CU34: 0 | CV34: 0 | CW34: 0 | CX34: 0 | CY34: 0 | CZ34: 0 | DA34: 0 | DB34: 0 | DC34: 0 | DD34: 0 | DE34: 0 | DF34: 0 | DG34: 0 | DH34: 0 | DI34: 0 | DJ34: 0 | DK34: 0 | DL34: 0 | DM34: 0 | DN34: 0 | DO34: =IF(DO32>0,AR34,0) ->  | ET34: 0 | EU34: =IF(EU32>0,BX34,0) -> 0 | EV34: 0 | EW34: 0 | EX34: 0 | EY34: =IF(EY32>0,CB34,0) -> 0 | EZ34: 0 | FA34: 0
I35: 1.170181818 | J35: Billing | K35: Rainfall | L35: =+L34*L27 -> 4.545454545e-05 | M35: =+M34*M27 -> 0 | N35: 0 | O35: 0 | P35: 0 | Q35: 0 | R35: 0 | S35: 0 | T35: 0.006363636364 | U35: 0.006363636364 | V35: 0 | W35: 0.1272727273 | X35: 0.0004090909091 | Y35: 0 | Z35: 0 | AA35: 0.0005454545455 | AB35: 0.05454545455 | AC35: 0 | AD35: 0 | AE35: 0 | AF35: 0 | AG35: 0 | AH35: 0.1004545455 | AI35: 0 | AJ35: 0 | AK35: 0 | AL35: 0 | AM35: 0 | AN35: 0 | AO35: 0 | AP35: 0 | AQ35: 0 | AR35: 0 | AS35: 0 | AT35: 0 | AU35: 0 | AV35: 0 | AW35: 0 | AX35: 0 | AY35: 0 | AZ35: 0 | BA35: 0.0005909090909 | BB35: 0 | BC35: 0.205 | BD35: 0 | BE35: 0 | BF35: 0.4727272727 | BG35: 0.0004090909091 | BH35: 0 | BI35: 0 | BJ35: 0 | BK35: 0 | BL35: 0 | BM35: 0 | BN35: 0 | BO35: 0.1936363636 | BP35: 0 | BQ35: 0 | BR35: 0 | BS35: 0 | BT35: 0 | BU35: 0 | BV35: 0.001818181818 | BW35: =+BW34*BW27 -> 0 | BX35: =+BX34*BX27 -> 0 | BY35: =+BY34*BY27 -> 0 | BZ35: 0 | CA35: 0 | CB35: =+CB34*CB27 -> 0 | CC35: 0 | CD35: 0 | CG35: Calendar HDD | CI35: =IF(CI32>0,L30,0) -> 0 | CJ35: 0 | CK35: 0 | CL35: 0 | CM35: 0 | CN35: 0 | CO35: 0 | CP35: 0 | CQ35: 0 | CR35: 0 | CS35: 0 | CT35: 0 | CU35: 0 | CV35: 0 | CW35: 0 | CX35: 0 | CY35: 0 | CZ35: 0 | DA35: 0 | DB35: 0 | DC35: 0 | DD35: 0 | DE35: 0 | DF35: 0 | DG35: 0 | DH35: 0 | DI35: 0 | DJ35: 0 | DK35: 0 | DL35: 0 | DM35: 0 | DN35: 0 | DO35: =IF(DO32>0,AR30,0) ->  | ET35: 0 | EU35: =IF(EU32>0,BX30,0) -> 0 | EV35: 0 | EW35: 0 | EX35: 0 | EY35: =IF(EY32>0,CB30,0) -> 0 | EZ35: 0 | FA35: 0
CG36: Calendar CDD | CI36: =IF(CI32>0,L31,0) -> 0 | CJ36: 0 | CK36: 0 | CL36: 0 | CM36: 0 | CN36: 0 | CO36: 0 | CP36: 0 | CQ36: 0 | CR36: 0 | CS36: 0 | CT36: 0 | CU36: 0 | CV36: 0 | CW36: 0 | CX36: 0 | CY36: 0 | CZ36: 0 | DA36: 0 | DB36: 0 | DC36: 0 | DD36: 0 | DE36: 0 | DF36: 0 | DG36: 0 | DH36: 0 | DI36: 0 | DJ36: 0 | DK36: 0 | DL36: 0 | DM36: 0 | DN36: 0 | DO36: =IF(DO32>0,AR31,0) ->  | ET36: 0 | EU36: =IF(EU32>0,BX31,0) -> 0 | EV36: 0 | EW36: 0 | EX36: 0 | EY36: =IF(EY32>0,CB31,0) -> 0 | EZ36: 0 | FA36: 0
Y38: =TEXT(DATE(A1,A2,1),"mmm yyyy")&" - Billing Cycle Temperatures" -> Mar 2022 - Billing Cycle Temperatures
G41: Actual | H41: Budget | I41: Variance | J41: Var %
E42: Calendar | F42: HDD | G42: =I30 -> 11 | H42: =VLOOKUP($A$2,Daily!$AB$2:$AF$13,4) -> 46 | I42: =G42-H42 -> -35 | J42: =G42/H42-1 -> -0.7608695652
E43: Calendar | F43: CDD | G43: =I31 -> 287.5 | H43: =VLOOKUP($A$2,Daily!$AB$2:$AF$13,5) -> 156.65 | I43: =G43-H43 -> 130.85 | J43: =G43/H43-1 -> 0.8353016278
E44: Billing | F44: HDD | G44: =I32 -> 29.22727273 | H44: =VLOOKUP($A$2,Daily!$AB$2:$AF$13,2) -> 65 | I44: -35.77272727 | J44: -0.5503496503
E45: Billing | F45: CDD | G45: =I33 -> 224.1818182 | H45: =VLOOKUP($A$2,Daily!$AB$2:$AF$13,3) -> 111 | I45: 113.1818182 | J45: 1.01965602 | CI45: =+CI1 -> 2022 | CJ45: 2022 | CK45: 2022 | CL45: 2022 | CM45: 2022 | CN45: 2022 | CO45: 2022 | CP45: 2022 | CQ45: 2022 | CR45: 2022 | CS45: 2022 | CT45: 2022 | CU45: 2022 | CV45: 2022 | CW45: 2022 | CX45: 2022 | CY45: 2022 | CZ45: 2022 | DA45: 2022 | DB45: 2022 | DC45: 2022 | DD45: 2022 | DE45: 2022 | DF45: 2022 | DG45: 2022 | DH45: 2022 | DI45: 2022 | DJ45: 2022 | DK45: 2022 | DL45: 2022 | DM45: 2022 | DN45: 2022 | DO45: =+DO1 -> 2022 | DP45: 2022 | DQ45: 2022 | DR45: 2022 | DS45: 2022 | DT45: 2022 | DU45: 2022 | DV45: 2022 | DW45: 2022 | DX45: 2022 | DY45: 2022 | DZ45: 2022 | EA45: 2022 | EB45: 2022 | EC45: 2022 | ED45: 2022 | EE45: 2022 | EF45: 2022 | EG45: 2022 | EH45: 2022 | EI45: 2022 | EJ45: 2022 | EK45: 2022 | EL45: 2022 | EM45: 2022 | EN45: 2022 | EO45: 2022 | EP45: 2022 | EQ45: 2022 | ER45: 2022 | ES45: 2022 | ET45: 2022 | EU45: 2022 | EV45: =+EV1 -> 2022 | EW45: 2022 | EX45: 2022 | EY45: =+EY1 -> 2022 | EZ45: 2022 | FA45: 2022
CI46: =+CI2 -> 1 | CJ46: 1 | CK46: 1 | CL46: 1 | CM46: 2 | CN46: 2 | CO46: 2 | CP46: 2 | CQ46: 2 | CR46: 2 | CS46: 2 | CT46: 2 | CU46: 2 | CV46: 2 | CW46: 2 | CX46: 2 | CY46: 2 | CZ46: 2 | DA46: 2 | DB46: 2 | DC46: 2 | DD46: 2 | DE46: 2 | DF46: 2 | DG46: 2 | DH46: 2 | DI46: 2 | DJ46: 2 | DK46: 2 | DL46: 2 | DM46: 2 | DN46: 2 | DO46: =+DO2 -> 3 | DP46: 3 | DQ46: 3 | DR46: 3 | DS46: 3 | DT46: 3 | DU46: 3 | DV46: 3 | DW46: 3 | DX46: 3 | DY46: 3 | DZ46: 3 | EA46: 3 | EB46: 3 | EC46: 3 | ED46: 3 | EE46: 3 | EF46: 3 | EG46: 3 | EH46: 3 | EI46: 3 | EJ46: 3 | EK46: 3 | EL46: 3 | EM46: 3 | EN46: 3 | EO46: 3 | EP46: 3 | EQ46: 3 | ER46: 3 | ES46: 3 | ET46: 4 | EU46: 4 | EV46: =+EV2 -> 4 | EW46: 4 | EX46: 4 | EY46: =+EY2 -> 4 | EZ46: 4 | FA46: 4
CH47: Cycle | CI47: =+CI3 -> 2022-01-28 | CJ47: 2022-01-29 | CK47: 2022-01-30 | CL47: 2022-01-31 | CM47: 2022-02-01 | CN47: 2022-02-02 | CO47: 2022-02-03 | CP47: 2022-02-04 | CQ47: 2022-02-05 | CR47: 2022-02-06 | CS47: 2022-02-07 | CT47: 2022-02-08 | CU47: 2022-02-09 | CV47: 2022-02-10 | CW47: 2022-02-11 | CX47: 2022-02-12 | CY47: 2022-02-13 | CZ47: 2022-02-14 | DA47: 2022-02-15 | DB47: 2022-02-16 | DC47: 2022-02-17 | DD47: 2022-02-18 | DE47: 2022-02-19 | DF47: 2022-02-20 | DG47: 2022-02-21 | DH47: 2022-02-22 | DI47: 2022-02-23 | DJ47: 2022-02-24 | DK47: 2022-02-25 | DL47: 2022-02-26 | DM47: 2022-02-27 | DN47: 2022-02-28 | DO47: =+DO3 -> 2022-03-01 | DP47: 2022-03-02 | DQ47: 2022-03-03 | DR47: 2022-03-04 | DS47: 2022-03-05 | DT47: 2022-03-06 | DU47: 2022-03-07 | DV47: 2022-03-08 | DW47: 2022-03-09 | DX47: 2022-03-10 | DY47: 2022-03-11 | DZ47: 2022-03-12 | EA47: 2022-03-13 | EB47: 2022-03-14 | EC47: 2022-03-15 | ED47: 2022-03-16 | EE47: 2022-03-17 | EF47: 2022-03-18 | EG47: 2022-03-19 | EH47: 2022-03-20 | EI47: 2022-03-21 | EJ47: 2022-03-22 | EK47: 2022-03-23 | EL47: 2022-03-24 | EM47: 2022-03-25 | EN47: 2022-03-26 | EO47: 2022-03-27 | EP47: 2022-03-28 | EQ47: 2022-03-29 | ER47: 2022-03-30 | ES47: 2022-03-31 | ET47: 2022-04-01 | EU47: 2022-04-02 | EV47: =+EV3 -> 2022-04-03 | EW47: 2022-04-04 | EX47: 2022-04-05 | EY47: =+EY3 -> 2022-04-06 | EZ47: 2022-04-07 | FA47: 2022-04-08
G48: Actual | H48: Budget | I48: Variance | J48: Var % | CG48: =SUM(CI48:FA48) -> 0 | CH48: 1 | CI48: =IF(L4=1,CI$71,0) -> 0 | CJ48: =IF(M4=1,CJ$71,0) -> 0 | CK48: =IF(N4=1,CK$71,0) -> 0 | CL48: =IF(O4=1,CL$71,0) -> 0 | CM48: =IF(P4=1,CM$71,0) -> 0 | CN48: =IF(Q4=1,CN$71,0) -> 0 | CO48: =IF(R4=1,CO$71,0) -> 0 | CP48: =IF(S4=1,CP$71,0) -> 0 | CQ48: =IF(T4=1,CQ$71,0) -> 0 | CR48: =IF(U4=1,CR$71,0) -> 0 | CS48: =IF(V4=1,CS$71,0) -> 0 | CT48: =IF(W4=1,CT$71,0) -> 0 | CU48: =IF(X4=1,CU$71,0) -> 0 | CV48: =IF(Y4=1,CV$71,0) -> 0 | CW48: =IF(Z4=1,CW$71,0) -> 0 | CX48: =IF(AA4=1,CX$71,0) -> 0 | CY48: =IF(AB4=1,CY$71,0) -> 0 | CZ48: =IF(AC4=1,CZ$71,0) -> 0 | DA48: =IF(AD4=1,DA$71,0) -> 0 | DB48: =IF(AE4=1,DB$71,0) -> 0 | DC48: =IF(AF4=1,DC$71,0) -> 0 | DD48: =IF(AG4=1,DD$71,0) -> 0 | DE48: =IF(AH4=1,DE$71,0) -> 0 | DF48: =IF(AI4=1,DF$71,0) -> 0 | DG48: =IF(AJ4=1,DG$71,0) -> 0 | DH48: =IF(AK4=1,DH$71,0) -> 0 | DI48: =IF(AL4=1,DI$71,0) -> 0 | DJ48: =IF(AM4=1,DJ$71,0) -> 0 | DK48: =IF(AN4=1,DK$71,0) -> 0 | DL48: =IF(AO4=1,DL$71,0) -> 0 | DM48: =IF(AP4=1,DM$71,0) -> 0 | DN48: =IF(AQ4=1,DN$71,0) -> 0 | DO48: =IF(AR4=1,DO$71,0) -> 0 | DP48: =IF(AS4=1,DP$71,0) -> 0 | DQ48: =IF(AT4=1,DQ$71,0) -> 0 | DR48: =IF(AU4=1,DR$71,0) -> 0 | DS48: =IF(AV4=1,DS$71,0) -> 0 | DT48: =IF(AW4=1,DT$71,0) -> 0 | DU48: =IF(AX4=1,DU$71,0) -> 0 | DV48: =IF(AY4=1,DV$71,0) -> 0 | DW48: =IF(AZ4=1,DW$71,0) -> 0 | DX48: =IF(BA4=1,DX$71,0) -> 0 | DY48: =IF(BB4=1,DY$71,0) -> 0 | DZ48: =IF(BC4=1,DZ$71,0) -> 0 | EA48: =IF(BD4=1,EA$71,0) -> 0 | EB48: =IF(BE4=1,EB$71,0) -> 0 | EC48: =IF(BF4=1,EC$71,0) -> 0 | ED48: =IF(BG4=1,ED$71,0) -> 0 | EE48: =IF(BH4=1,EE$71,0) -> 0 | EF48: =IF(BI4=1,EF$71,0) -> 0 | EG48: =IF(BJ4=1,EG$71,0) -> 0 | EH48: =IF(BK4=1,EH$71,0) -> 0 | EI48: =IF(BL4=1,EI$71,0) -> 0 | EJ48: =IF(BM4=1,EJ$71,0) -> 0 | EK48: =IF(BN4=1,EK$71,0) -> 0 | EL48: =IF(BO4=1,EL$71,0) -> 0 | EM48: =IF(BP4=1,EM$71,0) -> 0 | EN48: =IF(BQ4=1,EN$71,0) -> 0 | EO48: =IF(BR4=1,EO$71,0) -> 0 | EP48: =IF(BS4=1,EP$71,0) -> 0 | EQ48: =IF(BT4=1,EQ$71,0) -> 0 | ER48: =IF(BU4=1,ER$71,0) -> 0 | ES48: =IF(BV4=1,ES$71,0) -> 0 | ET48: =IF(BW4=1,ET$71,0) -> 0 | EU48: =IF(BX4=1,EU$71,0) -> 0 | EV48: =IF(BY4=1,EV$71,0) -> 0 | EW48: =IF(BZ4=1,EW$71,0) -> 0 | EX48: =IF(CA4=1,EX$71,0) -> 0 | EY48: =IF(CB4=1,EY$71,0) -> 0 | EZ48: =IF(CC4=1,EZ$71,0) -> 0 | FA48: =IF(CD4=1,FA$71,0) -> 0
E49: Calendar | F49: Total DD | G49: =G42+G43 -> 298.5 | H49: =H42+H43 -> 202.65 | I49: =G49-H49 -> 95.85 | J49: =G49/H49-1 -> 0.4729829756 | CG49: =SUM(CI49:FA49) -> 0 | CH49: 2 | CI49: 0 | CJ49: 0 | CK49: 0 | CL49: 0 | CM49: 0 | CN49: 0 | CO49: 0 | CP49: 0 | CQ49: 0 | CR49: 0 | CS49: 0 | CT49: 0 | CU49: 0 | CV49: 0 | CW49: 0 | CX49: 0 | CY49: 0 | CZ49: 0 | DA49: 0 | DB49: 0 | DC49: 0 | DD49: 0 | DE49: 0 | DF49: 0 | DG49: 0 | DH49: 0 | DI49: 0 | DJ49: 0 | DK49: 0 | DL49: 0 | DM49: 0 | DN49: 0 | DO49: 0 | DP49: 0 | DQ49: 0 | DR49: 0 | DS49: 0 | DT49: 0 | DU49: 0 | DV49: 0 | DW49: 0 | DX49: 0 | DY49: 0 | DZ49: 0 | EA49: 0 | EB49: 0 | EC49: 0 | ED49: 0 | EE49: 0 | EF49: 0 | EG49: 0 | EH49: 0 | EI49: 0 | EJ49: 0 | EK49: 0 | EL49: 0 | EM49: 0 | EN49: 0 | EO49: 0 | EP49: 0 | EQ49: 0 | ER49: 0 | ES49: 0 | ET49: 0 | EU49: 0 | EV49: 0 | EW49: 0 | EX49: 0 | EY49: 0 | EZ49: 0 | FA49: 0
E50: Billing | F50: Total DD | G50: =G44+G45 -> 253.4090909 | H50: =H44+H45 -> 176 | I50: =G50-H50 -> 77.40909091 | J50: =G50/H50-1 -> 0.4398243802 | CG50: 0 | CH50: 3 | CI50: 0 | CJ50: 0 | CK50: 0 | CL50: 0 | CM50: 0 | CN50: 0 | CO50: 0 | CP50: 0 | CQ50: 0 | CR50: 0 | CS50: 0 | CT50: 0 | CU50: 0 | CV50: 0 | CW50: 0 | CX50: 0 | CY50: 0 | CZ50: 0 | DA50: 0 | DB50: 0 | DC50: 0 | DD50: 0 | DE50: 0 | DF50: 0 | DG50: 0 | DH50: 0 | DI50: 0 | DJ50: 0 | DK50: 0 | DL50: 0 | DM50: 0 | DN50: 0 | DO50: 0 | DP50: 0 | DQ50: 0 | DR50: 0 | DS50: 0 | DT50: 0 | DU50: 0 | DV50: 0 | DW50: 0 | DX50: 0 | DY50: 0 | DZ50: 0 | EA50: 0 | EB50: 0 | EC50: 0 | ED50: 0 | EE50: 0 | EF50: 0 | EG50: 0 | EH50: 0 | EI50: 0 | EJ50: 0 | EK50: 0 | EL50: 0 | EM50: 0 | EN50: 0 | EO50: 0 | EP50: 0 | EQ50: 0 | ER50: 0 | ES50: 0 | ET50: 0 | EU50: 0 | EV50: 0 | EW50: 0 | EX50: 0 | EY50: 0 | EZ50: 0 | FA50: 0
CG51: 0 | CH51: 4 | CI51: 0 | CJ51: 0 | CK51: 0 | CL51: 0 | CM51: 0 | CN51: 0 | CO51: 0 | CP51: 0 | CQ51: 0 | CR51: 0 | CS51: 0 | CT51: 0 | CU51: 0 | CV51: 0 | CW51: 0 | CX51: 0 | CY51: 0 | CZ51: 0 | DA51: 0 | DB51: 0 | DC51: 0 | DD51: 0 | DE51: 0 | DF51: 0 | DG51: 0 | DH51: 0 | DI51: 0 | DJ51: 0 | DK51: 0 | DL51: 0 | DM51: 0 | DN51: 0 | DO51: 0 | DP51: 0 | DQ51: 0 | DR51: 0 | DS51: 0 | DT51: 0 | DU51: 0 | DV51: 0 | DW51: 0 | DX51: 0 | DY51: 0 | DZ51: 0 | EA51: 0 | EB51: 0 | EC51: 0 | ED51: 0 | EE51: 0 | EF51: 0 | EG51: 0 | EH51: 0 | EI51: 0 | EJ51: 0 | EK51: 0 | EL51: 0 | EM51: 0 | EN51: 0 | EO51: 0 | EP51: 0 | EQ51: 0 | ER51: 0 | ES51: 0 | ET51: 0 | EU51: 0 | EV51: 0 | EW51: 0 | EX51: 0 | EY51: 0 | EZ51: 0 | FA51: 0
CG52: 0 | CH52: 5 | CI52: 0 | CJ52: 0 | CK52: 0 | CL52: 0 | CM52: 0 | CN52: 0 | CO52: 0 | CP52: 0 | CQ52: 0 | CR52: 0 | CS52: 0 | CT52: 0 | CU52: 0 | CV52: 0 | CW52: 0 | CX52: 0 | CY52: 0 | CZ52: 0 | DA52: 0 | DB52: 0 | DC52: 0 | DD52: 0 | DE52: 0 | DF52: 0 | DG52: 0 | DH52: 0 | DI52: 0 | DJ52: 0 | DK52: 0 | DL52: 0 | DM52: 0 | DN52: 0 | DO52: 0 | DP52: 0 | DQ52: 0 | DR52: 0 | DS52: 0 | DT52: 0 | DU52: 0 | DV52: 0 | DW52: 0 | DX52: 0 | DY52: 0 | DZ52: 0 | EA52: 0 | EB52: 0 | EC52: 0 | ED52: 0 | EE52: 0 | EF52: 0 | EG52: 0 | EH52: 0 | EI52: 0 | EJ52: 0 | EK52: 0 | EL52: 0 | EM52: 0 | EN52: 0 | EO52: 0 | EP52: 0 | EQ52: 0 | ER52: 0 | ES52: 0 | ET52: 0 | EU52: 0 | EV52: 0 | EW52: 0 | EX52: 0 | EY52: 0 | EZ52: 0 | FA52: 0
CG53: 0 | CH53: 6 | CI53: 0 | CJ53: 0 | CK53: 0 | CL53: 0 | CM53: 0 | CN53: 0 | CO53: 0 | CP53: 0 | CQ53: 0 | CR53: 0 | CS53: 0 | CT53: 0 | CU53: 0 | CV53: 0 | CW53: 0 | CX53: 0 | CY53: 0 | CZ53: 0 | DA53: 0 | DB53: 0 | DC53: 0 | DD53: 0 | DE53: 0 | DF53: 0 | DG53: 0 | DH53: 0 | DI53: 0 | DJ53: 0 | DK53: 0 | DL53: 0 | DM53: 0 | DN53: 0 | DO53: 0 | DP53: 0 | DQ53: 0 | DR53: 0 | DS53: 0 | DT53: 0 | DU53: 0 | DV53: 0 | DW53: 0 | DX53: 0 | DY53: 0 | DZ53: 0 | EA53: 0 | EB53: 0 | EC53: 0 | ED53: 0 | EE53: 0 | EF53: 0 | EG53: 0 | EH53: 0 | EI53: 0 | EJ53: 0 | EK53: 0 | EL53: 0 | EM53: 0 | EN53: 0 | EO53: 0 | EP53: 0 | EQ53: 0 | ER53: 0 | ES53: 0 | ET53: 0 | EU53: 0 | EV53: 0 | EW53: 0 | EX53: 0 | EY53: 0 | EZ53: 0 | FA53: 0
CG54: 0 | CH54: 7 | CI54: 0 | CJ54: 0 | CK54: 0 | CL54: 0 | CM54: 0 | CN54: 0 | CO54: 0 | CP54: 0 | CQ54: 0 | CR54: 0 | CS54: 0 | CT54: 0 | CU54: 0 | CV54: 0 | CW54: 0 | CX54: 0 | CY54: 0 | CZ54: 0 | DA54: 0 | DB54: 0 | DC54: 0 | DD54: 0 | DE54: 0 | DF54: 0 | DG54: 0 | DH54: 0 | DI54: 0 | DJ54: 0 | DK54: 0 | DL54: 0 | DM54: 0 | DN54: 0 | DO54: 0 | DP54: 0 | DQ54: 0 | DR54: 0 | DS54: 0 | DT54: 0 | DU54: 0 | DV54: 0 | DW54: 0 | DX54: 0 | DY54: 0 | DZ54: 0 | EA54: 0 | EB54: 0 | EC54: 0 | ED54: 0 | EE54: 0 | EF54: 0 | EG54: 0 | EH54: 0 | EI54: 0 | EJ54: 0 | EK54: 0 | EL54: 0 | EM54: 0 | EN54: 0 | EO54: 0 | EP54: 0 | EQ54: 0 | ER54: 0 | ES54: 0 | ET54: 0 | EU54: 0 | EV54: 0 | EW54: 0 | EX54: 0 | EY54: 0 | EZ54: 0 | FA54: 0
CG55: 0 | CH55: 8 | CI55: 0 | CJ55: 0 | CK55: 0 | CL55: 0 | CM55: 0 | CN55: 0 | CO55: 0 | CP55: 0 | CQ55: 0 | CR55: 0 | CS55: 0 | CT55: 0 | CU55: 0 | CV55: 0 | CW55: 0 | CX55: 0 | CY55: 0 | CZ55: 0 | DA55: 0 | DB55: 0 | DC55: 0 | DD55: 0 | DE55: 0 | DF55: 0 | DG55: 0 | DH55: 0 | DI55: 0 | DJ55: 0 | DK55: 0 | DL55: 0 | DM55: 0 | DN55: 0 | DO55: 0 | DP55: 0 | DQ55: 0 | DR55: 0 | DS55: 0 | DT55: 0 | DU55: 0 | DV55: 0 | DW55: 0 | DX55: 0 | DY55: 0 | DZ55: 0 | EA55: 0 | EB55: 0 | EC55: 0 | ED55: 0 | EE55: 0 | EF55: 0 | EG55: 0 | EH55: 0 | EI55: 0 | EJ55: 0 | EK55: 0 | EL55: 0 | EM55: 0 | EN55: 0 | EO55: 0 | EP55: 0 | EQ55: 0 | ER55: 0 | ES55: 0 | ET55: 0 | EU55: 0 | EV55: 0 | EW55: 0 | EX55: 0 | EY55: 0 | EZ55: 0 | FA55: 0
CG56: 0 | CH56: 9 | CI56: 0 | CJ56: 0 | CK56: 0 | CL56: 0 | CM56: 0 | CN56: 0 | CO56: 0 | CP56: 0 | CQ56: 0 | CR56: 0 | CS56: 0 | CT56: 0 | CU56: 0 | CV56: 0 | CW56: 0 | CX56: 0 | CY56: 0 | CZ56: 0 | DA56: 0 | DB56: 0 | DC56: 0 | DD56: 0 | DE56: 0 | DF56: 0 | DG56: 0 | DH56: 0 | DI56: 0 | DJ56: 0 | DK56: 0 | DL56: 0 | DM56: 0 | DN56: 0 | DO56: 0 | DP56: 0 | DQ56: 0 | DR56: 0 | DS56: 0 | DT56: 0 | DU56: 0 | DV56: 0 | DW56: 0 | DX56: 0 | DY56: 0 | DZ56: 0 | EA56: 0 | EB56: 0 | EC56: 0 | ED56: 0 | EE56: 0 | EF56: 0 | EG56: 0 | EH56: 0 | EI56: 0 | EJ56: 0 | EK56: 0 | EL56: 0 | EM56: 0 | EN56: 0 | EO56: 0 | EP56: 0 | EQ56: 0 | ER56: 0 | ES56: 0 | ET56: 0 | EU56: 0 | EV56: 0 | EW56: 0 | EX56: 0 | EY56: 0 | EZ56: 0 | FA56: 0
CG57: 0 | CH57: 10 | CI57: 0 | CJ57: 0 | CK57: 0 | CL57: 0 | CM57: 0 | CN57: 0 | CO57: 0 | CP57: 0 | CQ57: 0 | CR57: 0 | CS57: 0 | CT57: 0 | CU57: 0 | CV57: 0 | CW57: 0 | CX57: 0 | CY57: 0 | CZ57: 0 | DA57: 0 | DB57: 0 | DC57: 0 | DD57: 0 | DE57: 0 | DF57: 0 | DG57: 0 | DH57: 0 | DI57: 0 | DJ57: 0 | DK57: 0 | DL57: 0 | DM57: 0 | DN57: 0 | DO57: 0 | DP57: 0 | DQ57: 0 | DR57: 0 | DS57: 0 | DT57: 0 | DU57: 0 | DV57: 0 | DW57: 0 | DX57: 0 | DY57: 0 | DZ57: 0 | EA57: 0 | EB57: 0 | EC57: 0 | ED57: 0 | EE57: 0 | EF57: 0 | EG57: 0 | EH57: 0 | EI57: 0 | EJ57: 0 | EK57: 0 | EL57: 0 | EM57: 0 | EN57: 0 | EO57: 0 | EP57: 0 | EQ57: 0 | ER57: 0 | ES57: 0 | ET57: 0 | EU57: 0 | EV57: 0 | EW57: 0 | EX57: 0 | EY57: 0 | EZ57: 0 | FA57: 0
CG58: 0 | CH58: 11 | CI58: 0 | CJ58: 0 | CK58: 0 | CL58: 0 | CM58: 0 | CN58: 0 | CO58: 0 | CP58: 0 | CQ58: 0 | CR58: 0 | CS58: 0 | CT58: 0 | CU58: 0 | CV58: 0 | CW58: 0 | CX58: 0 | CY58: 0 | CZ58: 0 | DA58: 0 | DB58: 0 | DC58: 0 | DD58: 0 | DE58: 0 | DF58: 0 | DG58: 0 | DH58: 0 | DI58: 0 | DJ58: 0 | DK58: 0 | DL58: 0 | DM58: 0 | DN58: 0 | DO58: 0 | DP58: 0 | DQ58: 0 | DR58: 0 | DS58: 0 | DT58: 0 | DU58: 0 | DV58: 0 | DW58: 0 | DX58: 0 | DY58: 0 | DZ58: 0 | EA58: 0 | EB58: 0 | EC58: 0 | ED58: 0 | EE58: 0 | EF58: 0 | EG58: 0 | EH58: 0 | EI58: 0 | EJ58: 0 | EK58: 0 | EL58: 0 | EM58: 0 | EN58: 0 | EO58: 0 | EP58: 0 | EQ58: 0 | ER58: 0 | ES58: 0 | ET58: 0 | EU58: 0 | EV58: 0 | EW58: 0 | EX58: 0 | EY58: 0 | EZ58: 0 | FA58: 0
Y59: =TEXT(DATE(A1,A2,1),"mmm yyyy")&" - Billing Cycle Rainfall" -> Mar 2022 - Billing Cycle Rainfall | CG59: 0 | CH59: 12 | CI59: 0 | CJ59: 0 | CK59: 0 | CL59: 0 | CM59: 0 | CN59: 0 | CO59: 0 | CP59: 0 | CQ59: 0 | CR59: 0 | CS59: 0 | CT59: 0 | CU59: 0 | CV59: 0 | CW59: 0 | CX59: 0 | CY59: 0 | CZ59: 0 | DA59: 0 | DB59: 0 | DC59: 0 | DD59: 0 | DE59: 0 | DF59: 0 | DG59: 0 | DH59: 0 | DI59: 0 | DJ59: 0 | DK59: 0 | DL59: 0 | DM59: 0 | DN59: 0 | DO59: 0 | DP59: 0 | DQ59: 0 | DR59: 0 | DS59: 0 | DT59: 0 | DU59: 0 | DV59: 0 | DW59: 0 | DX59: 0 | DY59: 0 | DZ59: 0 | EA59: 0 | EB59: 0 | EC59: 0 | ED59: 0 | EE59: 0 | EF59: 0 | EG59: 0 | EH59: 0 | EI59: 0 | EJ59: 0 | EK59: 0 | EL59: 0 | EM59: 0 | EN59: 0 | EO59: 0 | EP59: 0 | EQ59: 0 | ER59: 0 | ES59: 0 | ET59: 0 | EU59: 0 | EV59: 0 | EW59: 0 | EX59: 0 | EY59: 0 | EZ59: 0 | FA59: 0
CG60: 0 | CH60: 13 | CI60: 0 | CJ60: 0 | CK60: 0 | CL60: 0 | CM60: 0 | CN60: 0 | CO60: 0 | CP60: 0 | CQ60: 0 | CR60: 0 | CS60: 0 | CT60: 0 | CU60: 0 | CV60: 0 | CW60: 0 | CX60: 0 | CY60: 0 | CZ60: 0 | DA60: 0 | DB60: 0 | DC60: 0 | DD60: 0 | DE60: 0 | DF60: 0 | DG60: 0 | DH60: 0 | DI60: 0 | DJ60: 0 | DK60: 0 | DL60: 0 | DM60: 0 | DN60: 0 | DO60: 0 | DP60: 0 | DQ60: 0 | DR60: 0 | DS60: 0 | DT60: 0 | DU60: 0 | DV60: 0 | DW60: 0 | DX60: 0 | DY60: 0 | DZ60: 0 | EA60: 0 | EB60: 0 | EC60: 0 | ED60: 0 | EE60: 0 | EF60: 0 | EG60: 0 | EH60: 0 | EI60: 0 | EJ60: 0 | EK60: 0 | EL60: 0 | EM60: 0 | EN60: 0 | EO60: 0 | EP60: 0 | EQ60: 0 | ER60: 0 | ES60: 0 | ET60: 0 | EU60: 0 | EV60: 0 | EW60: 0 | EX60: 0 | EY60: 0 | EZ60: 0 | FA60: 0
CG61: 0 | CH61: 14 | CI61: 0 | CJ61: 0 | CK61: 0 | CL61: 0 | CM61: 0 | CN61: 0 | CO61: 0 | CP61: 0 | CQ61: 0 | CR61: 0 | CS61: 0 | CT61: 0 | CU61: 0 | CV61: 0 | CW61: 0 | CX61: 0 | CY61: 0 | CZ61: 0 | DA61: 0 | DB61: 0 | DC61: 0 | DD61: 0 | DE61: 0 | DF61: 0 | DG61: 0 | DH61: 0 | DI61: 0 | DJ61: 0 | DK61: 0 | DL61: 0 | DM61: 0 | DN61: 0 | DO61: 0 | DP61: 0 | DQ61: 0 | DR61: 0 | DS61: 0 | DT61: 0 | DU61: 0 | DV61: 0 | DW61: 0 | DX61: 0 | DY61: 0 | DZ61: 0 | EA61: 0 | EB61: 0 | EC61: 0 | ED61: 0 | EE61: 0 | EF61: 0 | EG61: 0 | EH61: 0 | EI61: 0 | EJ61: 0 | EK61: 0 | EL61: 0 | EM61: 0 | EN61: 0 | EO61: 0 | EP61: 0 | EQ61: 0 | ER61: 0 | ES61: 0 | ET61: 0 | EU61: 0 | EV61: 0 | EW61: 0 | EX61: 0 | EY61: 0 | EZ61: 0 | FA61: 0
CG62: 0 | CH62: 15 | CI62: 0 | CJ62: 0 | CK62: 0 | CL62: 0 | CM62: 0 | CN62: 0 | CO62: 0 | CP62: 0 | CQ62: 0 | CR62: 0 | CS62: 0 | CT62: 0 | CU62: 0 | CV62: 0 | CW62: 0 | CX62: 0 | CY62: 0 | CZ62: 0 | DA62: 0 | DB62: 0 | DC62: 0 | DD62: 0 | DE62: 0 | DF62: 0 | DG62: 0 | DH62: 0 | DI62: 0 | DJ62: 0 | DK62: 0 | DL62: 0 | DM62: 0 | DN62: 0 | DO62: 0 | DP62: 0 | DQ62: 0 | DR62: 0 | DS62: 0 | DT62: 0 | DU62: 0 | DV62: 0 | DW62: 0 | DX62: 0 | DY62: 0 | DZ62: 0 | EA62: 0 | EB62: 0 | EC62: 0 | ED62: 0 | EE62: 0 | EF62: 0 | EG62: 0 | EH62: 0 | EI62: 0 | EJ62: 0 | EK62: 0 | EL62: 0 | EM62: 0 | EN62: 0 | EO62: 0 | EP62: 0 | EQ62: 0 | ER62: 0 | ES62: 0 | ET62: 0 | EU62: 0 | EV62: 0 | EW62: 0 | EX62: 0 | EY62: 0 | EZ62: 0 | FA62: 0
CG63: 0 | CH63: 16 | CI63: 0 | CJ63: 0 | CK63: 0 | CL63: 0 | CM63: 0 | CN63: 0 | CO63: 0 | CP63: 0 | CQ63: 0 | CR63: 0 | CS63: 0 | CT63: 0 | CU63: 0 | CV63: 0 | CW63: 0 | CX63: 0 | CY63: 0 | CZ63: 0 | DA63: 0 | DB63: 0 | DC63: 0 | DD63: 0 | DE63: 0 | DF63: 0 | DG63: 0 | DH63: 0 | DI63: 0 | DJ63: 0 | DK63: 0 | DL63: 0 | DM63: 0 | DN63: 0 | DO63: 0 | DP63: 0 | DQ63: 0 | DR63: 0 | DS63: 0 | DT63: 0 | DU63: 0 | DV63: 0 | DW63: 0 | DX63: 0 | DY63: 0 | DZ63: 0 | EA63: 0 | EB63: 0 | EC63: 0 | ED63: 0 | EE63: 0 | EF63: 0 | EG63: 0 | EH63: 0 | EI63: 0 | EJ63: 0 | EK63: 0 | EL63: 0 | EM63: 0 | EN63: 0 | EO63: 0 | EP63: 0 | EQ63: 0 | ER63: 0 | ES63: 0 | ET63: 0 | EU63: 0 | EV63: 0 | EW63: 0 | EX63: 0 | EY63: 0 | EZ63: 0 | FA63: 0
CG64: 0 | CH64: 17 | CI64: 0 | CJ64: 0 | CK64: 0 | CL64: 0 | CM64: 0 | CN64: 0 | CO64: 0 | CP64: 0 | CQ64: 0 | CR64: 0 | CS64: 0 | CT64: 0 | CU64: 0 | CV64: 0 | CW64: 0 | CX64: 0 | CY64: 0 | CZ64: 0 | DA64: 0 | DB64: 0 | DC64: 0 | DD64: 0 | DE64: 0 | DF64: 0 | DG64: 0 | DH64: 0 | DI64: 0 | DJ64: 0 | DK64: 0 | DL64: 0 | DM64: 0 | DN64: 0 | DO64: 0 | DP64: 0 | DQ64: 0 | DR64: 0 | DS64: 0 | DT64: 0 | DU64: 0 | DV64: 0 | DW64: 0 | DX64: 0 | DY64: 0 | DZ64: 0 | EA64: 0 | EB64: 0 | EC64: 0 | ED64: 0 | EE64: 0 | EF64: 0 | EG64: 0 | EH64: 0 | EI64: 0 | EJ64: 0 | EK64: 0 | EL64: 0 | EM64: 0 | EN64: 0 | EO64: 0 | EP64: 0 | EQ64: 0 | ER64: 0 | ES64: 0 | ET64: 0 | EU64: 0 | EV64: 0 | EW64: 0 | EX64: 0 | EY64: 0 | EZ64: 0 | FA64: 0
CG65: 0 | CH65: 18 | CI65: 0 | CJ65: 0 | CK65: 0 | CL65: 0 | CM65: 0 | CN65: 0 | CO65: 0 | CP65: 0 | CQ65: 0 | CR65: 0 | CS65: 0 | CT65: 0 | CU65: 0 | CV65: 0 | CW65: 0 | CX65: 0 | CY65: 0 | CZ65: 0 | DA65: 0 | DB65: 0 | DC65: 0 | DD65: 0 | DE65: 0 | DF65: 0 | DG65: 0 | DH65: 0 | DI65: 0 | DJ65: 0 | DK65: 0 | DL65: 0 | DM65: 0 | DN65: 0 | DO65: 0 | DP65: 0 | DQ65: 0 | DR65: 0 | DS65: 0 | DT65: 0 | DU65: 0 | DV65: 0 | DW65: 0 | DX65: 0 | DY65: 0 | DZ65: 0 | EA65: 0 | EB65: 0 | EC65: 0 | ED65: 0 | EE65: 0 | EF65: 0 | EG65: 0 | EH65: 0 | EI65: 0 | EJ65: 0 | EK65: 0 | EL65: 0 | EM65: 0 | EN65: 0 | EO65: 0 | EP65: 0 | EQ65: 0 | ER65: 0 | ES65: 0 | ET65: 0 | EU65: 0 | EV65: 0 | EW65: 0 | EX65: 0 | EY65: 0 | EZ65: 0 | FA65: 0
CG66: 0 | CH66: 19 | CI66: 0 | CJ66: 0 | CK66: 0 | CL66: 0 | CM66: 0 | CN66: 0 | CO66: 0 | CP66: 0 | CQ66: 0 | CR66: 0 | CS66: 0 | CT66: 0 | CU66: 0 | CV66: 0 | CW66: 0 | CX66: 0 | CY66: 0 | CZ66: 0 | DA66: 0 | DB66: 0 | DC66: 0 | DD66: 0 | DE66: 0 | DF66: 0 | DG66: 0 | DH66: 0 | DI66: 0 | DJ66: 0 | DK66: 0 | DL66: 0 | DM66: 0 | DN66: 0 | DO66: 0 | DP66: 0 | DQ66: 0 | DR66: 0 | DS66: 0 | DT66: 0 | DU66: 0 | DV66: 0 | DW66: 0 | DX66: 0 | DY66: 0 | DZ66: 0 | EA66: 0 | EB66: 0 | EC66: 0 | ED66: 0 | EE66: 0 | EF66: 0 | EG66: 0 | EH66: 0 | EI66: 0 | EJ66: 0 | EK66: 0 | EL66: 0 | EM66: 0 | EN66: 0 | EO66: 0 | EP66: 0 | EQ66: 0 | ER66: 0 | ES66: 0 | ET66: 0 | EU66: 0 | EV66: 0 | EW66: 0 | EX66: 0 | EY66: 0 | EZ66: 0 | FA66: 0
CG67: 0 | CH67: 20 | CI67: 0 | CJ67: 0 | CK67: 0 | CL67: 0 | CM67: 0 | CN67: 0 | CO67: 0 | CP67: 0 | CQ67: 0 | CR67: 0 | CS67: 0 | CT67: 0 | CU67: 0 | CV67: 0 | CW67: 0 | CX67: 0 | CY67: 0 | CZ67: 0 | DA67: 0 | DB67: 0 | DC67: 0 | DD67: 0 | DE67: 0 | DF67: 0 | DG67: 0 | DH67: 0 | DI67: 0 | DJ67: 0 | DK67: 0 | DL67: 0 | DM67: 0 | DN67: 0 | DO67: 0 | DP67: 0 | DQ67: 0 | DR67: 0 | DS67: 0 | DT67: 0 | DU67: 0 | DV67: 0 | DW67: 0 | DX67: 0 | DY67: 0 | DZ67: 0 | EA67: 0 | EB67: 0 | EC67: 0 | ED67: 0 | EE67: 0 | EF67: 0 | EG67: 0 | EH67: 0 | EI67: 0 | EJ67: 0 | EK67: 0 | EL67: 0 | EM67: 0 | EN67: 0 | EO67: 0 | EP67: 0 | EQ67: 0 | ER67: 0 | ES67: 0 | ET67: 0 | EU67: 0 | EV67: 0 | EW67: 0 | EX67: 0 | EY67: 0 | EZ67: 0 | FA67: 0
CG68: 0 | CH68: 21 | CI68: 0 | CJ68: 0 | CK68: 0 | CL68: 0 | CM68: 0 | CN68: 0 | CO68: 0 | CP68: 0 | CQ68: 0 | CR68: 0 | CS68: 0 | CT68: 0 | CU68: 0 | CV68: 0 | CW68: 0 | CX68: 0 | CY68: 0 | CZ68: 0 | DA68: 0 | DB68: 0 | DC68: 0 | DD68: 0 | DE68: 0 | DF68: 0 | DG68: 0 | DH68: 0 | DI68: 0 | DJ68: 0 | DK68: 0 | DL68: 0 | DM68: 0 | DN68: 0 | DO68: 0 | DP68: 0 | DQ68: 0 | DR68: 0 | DS68: 0 | DT68: 0 | DU68: 0 | DV68: 0 | DW68: 0 | DX68: 0 | DY68: 0 | DZ68: 0 | EA68: 0 | EB68: 0 | EC68: 0 | ED68: 0 | EE68: 0 | EF68: 0 | EG68: 0 | EH68: 0 | EI68: 0 | EJ68: 0 | EK68: 0 | EL68: 0 | EM68: 0 | EN68: 0 | EO68: 0 | EP68: 0 | EQ68: 0 | ER68: 0 | ES68: 0 | ET68: 0 | EU68: 0 | EV68: 0 | EW68: 0 | EX68: 0 | EY68: 0 | EZ68: 0 | FA68: 0
CG69: 0 | CH69: 23 | CI69: =IF(L25=1,CI$71,0) -> 0 | CJ69: 0 | CK69: 0 | CL69: 0 | CM69: 0 | CN69: 0 | CO69: 0 | CP69: 0 | CQ69: 0 | CR69: 0 | CS69: 0 | CT69: 0 | CU69: 0 | CV69: 0 | CW69: 0 | CX69: 0 | CY69: 0 | CZ69: 0 | DA69: 0 | DB69: 0 | DC69: 0 | DD69: 0 | DE69: 0 | DF69: 0 | DG69: 0 | DH69: 0 | DI69: 0 | DJ69: 0 | DK69: =IF(AN25=1,DK$71,0) -> 0 | DL69: 0 | DM69: 0 | DN69: 0 | DO69: 0 | DP69: 0 | DQ69: 0 | DR69: 0 | DS69: 0 | DT69: 0 | DU69: 0 | DV69: 0 | DW69: 0 | DX69: 0 | DY69: 0 | DZ69: 0 | EA69: 0 | EB69: 0 | EC69: 0 | ED69: 0 | EE69: 0 | EF69: 0 | EG69: 0 | EH69: 0 | EI69: 0 | EJ69: 0 | EK69: 0 | EL69: 0 | EM69: 0 | EN69: 0 | EO69: 0 | EP69: 0 | EQ69: 0 | ER69: 0 | ES69: 0 | ET69: 0 | EU69: 0 | EV69: 0 | EW69: 0 | EX69: 0 | EY69: 0 | EZ69: 0 | FA69: 0
CH70: =SUM(CI70:EX70) -> 0 | CI70: =SUM(CI48:CI69) -> 0 | CJ70: =SUM(CJ48:CJ69) -> 0 | CK70: 0 | CL70: 0 | CM70: 0 | CN70: 0 | CO70: 0 | CP70: 0 | CQ70: 0 | CR70: 0 | CS70: 0 | CT70: 0 | CU70: 0 | CV70: 0 | CW70: 0 | CX70: 0 | CY70: 0 | CZ70: 0 | DA70: 0 | DB70: 0 | DC70: 0 | DD70: 0 | DE70: 0 | DF70: 0 | DG70: 0 | DH70: 0 | DI70: 0 | DJ70: 0 | DK70: 0 | DL70: 0 | DM70: 0 | DN70: 0 | DO70: 0 | DP70: 0 | DQ70: 0 | DR70: 0 | DS70: 0 | DT70: 0 | DU70: 0 | DV70: 0 | DW70: 0 | DX70: 0 | DY70: 0 | DZ70: 0 | EA70: 0 | EB70: 0 | EC70: 0 | ED70: 0 | EE70: 0 | EF70: 0 | EG70: 0 | EH70: 0 | EI70: 0 | EJ70: 0 | EK70: 0 | EL70: 0 | EM70: 0 | EN70: 0 | EO70: 0 | EP70: 0 | EQ70: 0 | ER70: 0 | ES70: 0 | ET70: 0 | EU70: 0 | EV70: =SUM(EV48:EV69) -> 0 | EW70: 0 | EX70: 0 | EY70: 0 | EZ70: 0 | FA70: 0
CH71: =SUM(CI71:EU71) -> 0 | CI71: =VLOOKUP(CI47,Daily!$A$2:$H$459,8) -> 0 | CJ71: =VLOOKUP(CJ47,Daily!$A$2:$H$459,8) -> 0 | CK71: =VLOOKUP(CK47,Daily!$A$2:$H$459,8) -> 0 | CL71: =VLOOKUP(CL47,Daily!$A$2:$H$459,8) -> 0 | CM71: =VLOOKUP(CM47,Daily!$A$2:$H$459,8) -> 0 | CN71: =VLOOKUP(CN47,Daily!$A$2:$H$459,8) -> 0 | CO71: =VLOOKUP(CO47,Daily!$A$2:$H$459,8) -> 0 | CP71: =VLOOKUP(CP47,Daily!$A$2:$H$459,8) -> 0 | CQ71: =VLOOKUP(CQ47,Daily!$A$2:$H$459,8) -> 0 | CR71: =VLOOKUP(CR47,Daily!$A$2:$H$459,8) -> 0 | CS71: =VLOOKUP(CS47,Daily!$A$2:$H$459,8) -> 0 | CT71: =VLOOKUP(CT47,Daily!$A$2:$H$459,8) -> 0 | CU71: =VLOOKUP(CU47,Daily!$A$2:$H$459,8) -> 0 | CV71: =VLOOKUP(CV47,Daily!$A$2:$H$459,8) -> 0 | CW71: =VLOOKUP(CW47,Daily!$A$2:$H$459,8) -> 0 | CX71: =VLOOKUP(CX47,Daily!$A$2:$H$459,8) -> 0 | CY71: =VLOOKUP(CY47,Daily!$A$2:$H$459,8) -> 0 | CZ71: =VLOOKUP(CZ47,Daily!$A$2:$H$459,8) -> 0 | DA71: =VLOOKUP(DA47,Daily!$A$2:$H$459,8) -> 0 | DB71: =VLOOKUP(DB47,Daily!$A$2:$H$459,8) -> 0 | DC71: =VLOOKUP(DC47,Daily!$A$2:$H$459,8) -> 0 | DD71: =VLOOKUP(DD47,Daily!$A$2:$H$459,8) -> 0 | DE71: =VLOOKUP(DE47,Daily!$A$2:$H$459,8) -> 0 | DF71: =VLOOKUP(DF47,Daily!$A$2:$H$459,8) -> 0 | DG71: =VLOOKUP(DG47,Daily!$A$2:$H$459,8) -> 0 | DH71: =VLOOKUP(DH47,Daily!$A$2:$H$459,8) -> 0 | DI71: =VLOOKUP(DI47,Daily!$A$2:$H$459,8) -> 0 | DJ71: =VLOOKUP(DJ47,Daily!$A$2:$H$459,8) -> 0 | DK71: =VLOOKUP(DK47,Daily!$A$2:$H$459,8) -> 0 | DL71: =VLOOKUP(DL47,Daily!$A$2:$H$459,8) -> 0 | DM71: =VLOOKUP(DM47,Daily!$A$2:$H$459,8) -> 0 | DN71: =VLOOKUP(DN47,Daily!$A$2:$H$459,8) -> 0 | DO71: =VLOOKUP(DO47,Daily!$A$2:$H$459,8) -> 0 | DP71: =VLOOKUP(DP47,Daily!$A$2:$H$459,8) -> 0 | DQ71: =VLOOKUP(DQ47,Daily!$A$2:$H$459,8) -> 0 | DR71: =VLOOKUP(DR47,Daily!$A$2:$H$459,8) -> 0 | DS71: =VLOOKUP(DS47,Daily!$A$2:$H$459,8) -> 0 | DT71: =VLOOKUP(DT47,Daily!$A$2:$H$459,8) -> 0 | DU71: =VLOOKUP(DU47,Daily!$A$2:$H$459,8) -> 0 | DV71: =VLOOKUP(DV47,Daily!$A$2:$H$459,8) -> 0 | DW71: =VLOOKUP(DW47,Daily!$A$2:$H$459,8) -> 0 | DX71: =VLOOKUP(DX47,Daily!$A$2:$H$459,8) -> 0 | DY71: =VLOOKUP(DY47,Daily!$A$2:$H$459,8) -> 0 | DZ71: =VLOOKUP(DZ47,Daily!$A$2:$H$459,8) -> 0 | EA71: =VLOOKUP(EA47,Daily!$A$2:$H$459,8) -> 0 | EB71: =VLOOKUP(EB47,Daily!$A$2:$H$459,8) -> 0 | EC71: =VLOOKUP(EC47,Daily!$A$2:$H$459,8) -> 0 | ED71: =VLOOKUP(ED47,Daily!$A$2:$H$459,8) -> 0 | EE71: =VLOOKUP(EE47,Daily!$A$2:$H$459,8) -> 0 | EF71: =VLOOKUP(EF47,Daily!$A$2:$H$459,8) -> 0 | EG71: =VLOOKUP(EG47,Daily!$A$2:$H$459,8) -> 0 | EH71: =VLOOKUP(EH47,Daily!$A$2:$H$459,8) -> 0 | EI71: =VLOOKUP(EI47,Daily!$A$2:$H$459,8) -> 0 | EJ71: =VLOOKUP(EJ47,Daily!$A$2:$H$459,8) -> 0 | EK71: =VLOOKUP(EK47,Daily!$A$2:$H$459,8) -> 0 | EL71: =VLOOKUP(EL47,Daily!$A$2:$H$459,8) -> 0 | EM71: =VLOOKUP(EM47,Daily!$A$2:$H$459,8) -> 0 | EN71: =VLOOKUP(EN47,Daily!$A$2:$H$459,8) -> 0 | EO71: =VLOOKUP(EO47,Daily!$A$2:$H$459,8) -> 0 | EP71: =VLOOKUP(EP47,Daily!$A$2:$H$459,8) -> 0 | EQ71: =VLOOKUP(EQ47,Daily!$A$2:$H$459,8) -> 0 | ER71: =VLOOKUP(ER47,Daily!$A$2:$H$459,8) -> 0 | ES71: =VLOOKUP(ES47,Daily!$A$2:$H$459,8) -> 0 | ET71: =VLOOKUP(ET47,Daily!$A$2:$H$459,8) -> 0 | EU71: =VLOOKUP(EU47,Daily!$A$2:$H$459,8) -> 0 | EV71: =VLOOKUP(EV47,Daily!$A$2:$H$459,8) -> 0 | EW71: =VLOOKUP(EW47,Daily!$A$2:$H$459,8) -> 0 | EX71: =VLOOKUP(EX47,Daily!$A$2:$H$459,8) -> 0 | EY71: =VLOOKUP(EY47,Daily!$A$2:$H$459,8) -> 0 | EZ71: =VLOOKUP(EZ47,Daily!$A$2:$H$459,8) -> 0 | FA71: =VLOOKUP(FA47,Daily!$A$2:$H$459,8) -> 0
CI72: =+CI71/$CH71 ->  | DO72: =+DO71/$CH71 ->  | EU72: =+EU71/$CH71 ->  | EY72: =+EY71/$CH71 -> 

Sheet APR
A1: =+JAN!A1 -> 2022 | CI1: =YEAR(CI3) -> 2022 | CJ1: =YEAR(CJ3) -> 2022 | CK1: 2022 | CL1: 2022 | CM1: 2022 | CN1: 2022 | CO1: 2022 | CP1: 2022 | CQ1: 2022 | CR1: 2022 | CS1: 2022 | CT1: 2022 | CU1: 2022 | CV1: 2022 | CW1: 2022 | CX1: 2022 | CY1: 2022 | CZ1: 2022 | DA1: 2022 | DB1: 2022 | DC1: 2022 | DD1: 2022 | DE1: 2022 | DF1: 2022 | DG1: 2022 | DH1: 2022 | DI1: 2022 | DJ1: 2022 | DK1: 2022 | DL1: 2022 | DM1: 2022 | DN1: 2022 | DO1: 2022 | DP1: 2022 | DQ1: 2022 | DR1: 2022 | DS1: 2022 | DT1: 2022 | DU1: 2022 | DV1: 2022 | DW1: 2022 | DX1: 2022 | DY1: 2022 | DZ1: 2022 | EA1: 2022 | EB1: 2022 | EC1: 2022 | ED1: 2022 | EE1: 2022 | EF1: 2022 | EG1: 2022 | EH1: 2022 | EI1: 2022 | EJ1: 2022 | EK1: 2022 | EL1: 2022 | EM1: 2022 | EN1: 2022 | EO1: 2022 | EP1: 2022 | EQ1: 2022 | ER1: 2022 | ES1: 2022 | ET1: 2022 | EU1: =YEAR(EU3) -> 2022 | EV1: =YEAR(EV3) -> 2022 | EW1: 2022 | EX1: 2022 | EY1: =YEAR(EY3) -> 2022 | EZ1: 2022 | FA1: 2022
A2: 4 | B2: Published Billing Schedule | CI2: =MONTH(CI3) -> 2 | CJ2: =MONTH(CJ3) -> 2 | CK2: 2 | CL2: 3 | CM2: 3 | CN2: 3 | CO2: 3 | CP2: 3 | CQ2: 3 | CR2: 3 | CS2: 3 | CT2: 3 | CU2: 3 | CV2: 3 | CW2: 3 | CX2: 3 | CY2: 3 | CZ2: 3 | DA2: 3 | DB2: 3 | DC2: 3 | DD2: 3 | DE2: 3 | DF2: 3 | DG2: 3 | DH2: 3 | DI2: 3 | DJ2: 3 | DK2: 3 | DL2: 3 | DM2: 3 | DN2: 3 | DO2: 3 | DP2: 3 | DQ2: 4 | DR2: 4 | DS2: 4 | DT2: 4 | DU2: 4 | DV2: 4 | DW2: 4 | DX2: 4 | DY2: 4 | DZ2: 4 | EA2: 4 | EB2: 4 | EC2: 4 | ED2: 4 | EE2: 4 | EF2: 4 | EG2: 4 | EH2: 4 | EI2: 4 | EJ2: 4 | EK2: 4 | EL2: 4 | EM2: 4 | EN2: 4 | EO2: 4 | EP2: 4 | EQ2: 4 | ER2: 4 | ES2: 4 | ET2: 4 | EU2: 5 | EV2: 5 | EW2: =MONTH(EW3) -> 5 | EX2: 5 | EY2: 5 | EZ2: 5 | FA2: 5
A3: Lookup | B3: Year | C3: Month | D3: Cycle | E3: StartBilling | F3: EndBilling | G3: No.Days | K3: Date | L3: =+E4 -> 2022-02-26 | M3: =+L3+1 -> 2022-02-27 | N3: =+M3+1 -> 2022-02-28 | O3: 2022-03-01 | P3: 2022-03-02 | Q3: 2022-03-03 | R3: 2022-03-04 | S3: 2022-03-05 | T3: 2022-03-06 | U3: 2022-03-07 | V3: 2022-03-08 | W3: 2022-03-09 | X3: 2022-03-10 | Y3: 2022-03-11 | Z3: 2022-03-12 | AA3: 2022-03-13 | AB3: 2022-03-14 | AC3: 2022-03-15 | AD3: 2022-03-16 | AE3: 2022-03-17 | AF3: 2022-03-18 | AG3: 2022-03-19 | AH3: 2022-03-20 | AI3: 2022-03-21 | AJ3: 2022-03-22 | AK3: 2022-03-23 | AL3: 2022-03-24 | AM3: 2022-03-25 | AN3: 2022-03-26 | AO3: 2022-03-27 | AP3: 2022-03-28 | AQ3: 2022-03-29 | AR3: 2022-03-30 | AS3: 2022-03-31 | AT3: 2022-04-01 | AU3: 2022-04-02 | AV3: 2022-04-03 | AW3: 2022-04-04 | AX3: 2022-04-05 | AY3: 2022-04-06 | AZ3: 2022-04-07 | BA3: 2022-04-08 | BB3: 2022-04-09 | BC3: 2022-04-10 | BD3: 2022-04-11 | BE3: 2022-04-12 | BF3: 2022-04-13 | BG3: 2022-04-14 | BH3: 2022-04-15 | BI3: 2022-04-16 | BJ3: 2022-04-17 | BK3: 2022-04-18 | BL3: 2022-04-19 | BM3: 2022-04-20 | BN3: 2022-04-21 | BO3: 2022-04-22 | BP3: 2022-04-23 | BQ3: 2022-04-24 | BR3: 2022-04-25 | BS3: 2022-04-26 | BT3: 2022-04-27 | BU3: 2022-04-28 | BV3: 2022-04-29 | BW3: =+BV3+1 -> 2022-04-30 | BX3: =+BW3+1 -> 2022-05-01 | BY3: =+BX3+1 -> 2022-05-02 | BZ3: 2022-05-03 | CA3: 2022-05-04 | CB3: =+CA3+1 -> 2022-05-05 | CC3: =+CB3+1 -> 2022-05-06 | CD3: =+CC3+1 -> 2022-05-07 | CH3: Cycle | CI3: =+L3 -> 2022-02-26 | CJ3: 2022-02-27 | CK3: 2022-02-28 | CL3: 2022-03-01 | CM3: 2022-03-02 | CN3: 2022-03-03 | CO3: 2022-03-04 | CP3: 2022-03-05 | CQ3: 2022-03-06 | CR3: 2022-03-07 | CS3: 2022-03-08 | CT3: 2022-03-09 | CU3: 2022-03-10 | CV3: 2022-03-11 | CW3: 2022-03-12 | CX3: 2022-03-13 | CY3: 2022-03-14 | CZ3: 2022-03-15 | DA3: 2022-03-16 | DB3: 2022-03-17 | DC3: 2022-03-18 | DD3: 2022-03-19 | DE3: 2022-03-20 | DF3: 2022-03-21 | DG3: 2022-03-22 | DH3: 2022-03-23 | DI3: 2022-03-24 | DJ3: 2022-03-25 | DK3: 2022-03-26 | DL3: 2022-03-27 | DM3: 2022-03-28 | DN3: 2022-03-29 | DO3: =+AR3 -> 2022-03-30 | DP3: 2022-03-31 | DQ3: 2022-04-01 | DR3: 2022-04-02 | DS3: 2022-04-03 | DT3: 2022-04-04 | DU3: 2022-04-05 | DV3: 2022-04-06 | DW3: 2022-04-07 | DX3: 2022-04-08 | DY3: 2022-04-09 | DZ3: 2022-04-10 | EA3: 2022-04-11 | EB3: 2022-04-12 | EC3: 2022-04-13 | ED3: 2022-04-14 | EE3: 2022-04-15 | EF3: 2022-04-16 | EG3: 2022-04-17 | EH3: 2022-04-18 | EI3: 2022-04-19 | EJ3: 2022-04-20 | EK3: 2022-04-21 | EL3: 2022-04-22 | EM3: 2022-04-23 | EN3: 2022-04-24 | EO3: 2022-04-25 | EP3: 2022-04-26 | EQ3: 2022-04-27 | ER3: 2022-04-28 | ES3: 2022-04-29 | ET3: 2022-04-30 | EU3: =+BX3 -> 2022-05-01 | EV3: =+BY3 -> 2022-05-02 | EW3: =+BZ3 -> 2022-05-03 | EX3: =+CA3 -> 2022-05-04 | EY3: =+CB3 -> 2022-05-05 | EZ3: 2022-05-06 | FA3: 2022-05-07
